Workbook

Sheet Controllo_UPLOAD
A1: ID_ATO | B1: ID_Aeeg_Gestore | D1: SONO PRESENTI ATO E GESTORE ? | E1: il file può essere caricato ?
A2: =idato -> 1202 | B2: =Codice_Aeeg -> 13989 | D2: =IF(A2*B2>0,"SI","NO") -> SI | E2: SI
D3: PRECOMPILATO
D4: 1
D5: 1 = precompilato; 0 = deve fornire tutti i dati
D7: Tipo_file
D8: RDT

Sheet Menu
B1: RACCOLTA DATI TARIFFARI
B2: ATO | E2: GESTORE
B3: ID_ATO | C3: ATO | D3: campo_vuoto | E3: ID_Aeeg_Gestore | F3: Gestore | H3: DATA CALCOLO
B4: 1202 | C4: ATO 2 - LAZIO CENTRALE ROMA | E4: 13989 | F4: ACEA ATO2 S.P.A.
F6: Dichiarazione relativa alla natura dei dati forniti per l'anno 2015
F7: dati 2015 preconsutivi
B8: Sono presenti Errori | C8: elenco schede: | G8: foglio | I8: nomi delle tabelle
C9: Dati tecnici | G9: Dati_tecnici | H9: scrittura
C10: Dati di conto economico | G10: Dati_conto_econ | H10: scrittura
C11: Altri dati economico finanziari | G11: Altri dati economico_finanziari | H11: scrittura
C12: Elenco soggetti proprietari (infrastrutture di terzi e/o corrispettivi) | G12: Soggetti_proprietari_infrastrut | H12: lettura/scrittura | I12: Elenco_Proprietari
C13: Corrispettivi su infrastrutture di terzi | G13: Corrispettivi Infrast Terzi | H13: lettura/scrittura | I13: Corrispettivi_Proprietari
C14: Elenco Ambiti Tariffari | G14: Elenco_Ambiti_Tariffari | I14: AmbitiTariffariElenco
C15: Ambiti Tariffari e Comuni per Ambito Tariffario | G15: Ambiti_Tariffari_Comuni | H15: scrittura | I15: Ambiti_Tariffari_Comuni
C16: Articolazione Tariffaria - Quota Variabile | G16: Articolaz tariff QV | H16: lettura
C17: Articolazione Tariffaria - Quota Fissa | G17: Articolaz tariff QF | H17: lettura
C18: Ricavi tariffari totali per Ambito Tariffario | G18: Ricavi_ambiti_tariffari | H18: lettura/scrittura | I18: Ambiti_Tariffari_Ricavi
C19: Proposta cambio articolazione: quota variabile | G19: Proposta nuova art QV
C20: Proposta cambio articolazione: quota fissa | G20: Proposta nuova art QF
C21: Servizi all'ingrosso: soggetti | G21: Soggetti_Scambio | H21: scrittura | I21: Soggetti_Elenco
C22: Servizi all'ingrosso: vendita | G22: Vendita_Servizi_ingrosso | H22: scrittura | I22: Vendita_Servizi
C23: Servizi all'ingrosso: acquisto | G23: Acquisto_Servizi_ingrosso | H23: scrittura | I23: Acquisto_Servizi
C24: Nuovi investimenti | G24: Nuovi_Investimenti | H24: scrittura | I24: Nuovi_Investimenti
C25: Dismissioni | G25: Dismissioni | H25: scrittura | I25: Dismissioni
C26: Ammortamento finanziario | G26: Ammortamento_Finanziario | H26: lettura/scrittura
C27: Informazioni su aggregazioni | G27: Info_eventuali_aggregazioni | I27: Info_Soggetti_Aggregati
C28: Dati_exGestioni_incomplete | G28: Dati_exGestioni_incomplete | H28: scrittura | I28: Gestioni_Aggregate_Ricavi
C29: Dati anni precedenti | G29: Dati_Anni_precedenti | H29: lettura
C30: Vite utili anni precedenti | G30: Vite_utili_precedenti | H30: lettura/scrittura
C31: RAB cespiti ante 2013 | G31: RAB_cespiti_ante2013 | H31: lettura
C32: Conferma Investimenti MTI (2013) | G32: conferma_investimenti_mti | H32: lettura/scrittura | I32: Conferma_Investimenti_2013
C33: RAB dei proprietari | G33: rab_proprietari | H33: lettura | I33: RAB_PROPRIETARI
C34: Storico articolazione tariffaria - Quota Variabile | G34: storico articolazione QV
C35: Storico articolazione tariffaria - Quota Fissa | G35: storico articolazione Qf
C36: Elenco Gestori | G36: TT_Gestori | H36: lettura?
C37: Tabelle di supporto anagrafica territorio | G37: TT_Comuni_ATO | H37: lettura?
C38: Tabelle di riferimento (per i menù) | G38: TT_Tabelle_Riferimento | H38: foglio da nascondere
C39: Parametri | G39: TT_parametri | H39: sola lettura

Sheet Dati_tecnici
B1: DATI TECNICI
B2: FORNITURA ELETTRICA | E2: ANNO 2014 | F2: ANNO 2015 | G2: ANNO 2013 | K2: controllo compilazione | L2: integrità dati per EE | M2: integrità dati pop | N2: controllo finale dati_tecnici
C3: Consumo di energia elettrica | D3: kwh | E3: 323826424.4 | F3: 345095482.6 | K3: =+COUNTA(F5:F6,E5:E6,E3:F3,E29,E30,E31,E32,E33,E34,E35)=13 -> TRUE | L3: =+E3*F3*E5*F5>0 -> TRUE | M3: =+SUM(E9,E17,E23)*SUM(F9,F17,F23)>0 -> TRUE | N3: =+AND(K3:M3) -> TRUE
C4: Costo energia elettrica a bilancio | D4: Euro
C5: Costo medio della fornitura elettrica | D5: Euro/kwh | E5: 0.1769807403 | F5: 0.1654184446
C6: Si esclude di avere acquistato energia elettrica in regime di salvaguardia per almeno 4 mesi | D6: SI/NO | E6: SI | F6: SI
B7: SERVIZIO ACQUEDOTTO
C8: Numero di comuni serviti (ComA) | D8: N | E8: 80 | F8: 83
C9: Popolazione residente servita (PRA) | D9: N | E9: 3512710 | F9: 3556117
C10: Volume di acqua fatturato (A20) | D10: m3 | E10: 343269814.8 | F10: 338520277.7
C11: Utenze totali (UtT) | D11: N | E11: 591580 | F11: 625887
C12: Popolazione fluttuante (PFA) | D12: N | E12: 729300 | F12: 734155
C13: Superficie (SUA) | D13: km2 | E13: 3996 | F13: 4088
C14: Lunghezza rete (L) | D14: km | E14: =9725+2529 -> 12254 | F14: =1570+8488+2541 -> 12599
B15: SERVIZIO FOGNATURA
C16: Numero di comuni serviti (ComF) | D16: N | E16: 76 | F16: 79
C17: Popolazione residente servita (PRF) | D17: N | E17: 3346997 | F17: 3348877
C18: Lunghezza rete fognaria (LL) | D18: km | E18: =6084+1643 -> 7727 | F18: =6199+1644 -> 7843
C19: Popolazione fluttuante (PFF) | D19: N | E19: 755761 | F19: 761890
C20: Superficie (SUF) | D20: km2 | E20: 3996 | F20: 4073
B21: SERVIZIO DEPURAZIONE
C22: Numero di comuni serviti (ComD) | D22: N | E22: 86 | F22: 88
C23: Popolazione residente servita (PRD) | D23: N | E23: 3282357 | F23: 3292579
C24: Popolazione fluttuante (PFD) | D24: N | E24: 771178 | F24: 776294
C25: Superficie (SUD) | D25: km2 | E25: 4336 | F25: 4404
C26: Abitanti Equivalenti serviti da depurazione | D26: A.E. | E26: 4640725 | F26: 4746017
B28: TERRITORIO GESTITO E AFFIDAMENTO
C29: Tipo affidamento | D29: - | E29: Affidamento del SII
C30: Data inizio affidamento | D30: gg/mm/aaaa | E30: 2003-01-01
C31: Data fine affidamento | D31: gg/mm/aaaa | E31: 2032-12-31
C32: Presenza Carta dei servizi | D32: SI/NO | E32: SI
C33: Presenza di un consumo minimo impegnato per la fatturazione delle utenze domestiche | D33: SI/NO | E33: NO
C34: Adempimento obblighi di verifica qualità dell'acqua | D34: conforme/non conforme | E34: conforme
C35: Adempimento sul versamento delle componenti perequative a CSEA | D35: SI/NO | E35: SI

Sheet Dati_conto_econ
B1: DATI DI CONTO ECONOMICO | P1: ERRORE NEI SUBTOTALI | R1: assenza errori voci "di cui" | S1: assenza errori "di cui ERC" 2014 | T1: assenza errori "di cui ERC" 2015
C2: ANNO 2014 | I2: ANNO 2015 | P2: =+IF(AND(R2=TRUE,S2=TRUE,T2=TRUE),TRUE,FALSE) -> FALSE | R2: =IF(COUNTIF(P4:P85,TRUE)>=1,FALSE,TRUE) -> FALSE | S2: =+IF(MIN(E4:E85)<0,FALSE,TRUE) -> TRUE | T2: =+IF(MIN(K4:K85)<0,FALSE,TRUE) -> TRUE
C3: Totale SII | D3: di cui ERC | E3: SII escluso ERC | F3: Altre attività idriche (c.d. Attività b) | G3: Attività diverse | I3: Totale SII | J3: di cui ERC | K3: SII escluso ERC | L3: Altre attività idriche (c.d. Attività b) | M3: Attività diverse | O3: n_riga
A4: VALORE DELLA PRODUZIONE (Euro) | C4: =C5+C7+C8+C9+C11 -> 540584743.5 | E4: =+C4-D4 -> 540584743.5 | F4: =F5+F7+F8+F9+F11 -> 9706410.17 | G4: =G5+G7+G8+G9+G11 -> 5722648.24 | I4: =I5+I7+I8+I9+I11 -> 543917253.9 | K4: =+I4-J4 -> 543917253.9 | L4: =L5+L7+L8+L9+L11 -> 11201907.69 | M4: =M5+M7+M8+M9+M11 -> 5008660.47 | O4: 0 | P4: =OR(C13>C4,F13>F4,G13>G4,I13>I4,L13>L4,M13>M4) -> FALSE
B5: A1) Ricavi delle vendite e delle prestazioni | C5: 508435463.4 | E5: =+C5-D5 -> 508435463.4 | F5: 5952594.24 | G5: 4947130.91 | I5: 512326102.4 | K5: =+I5-J5 -> 512326102.4 | L5: 5111744.11 | M5: 4000000 | O5: 1
B6: di cui da altre imprese del gruppo | C6: 3549691.05 | E6: =+C6-D6 -> 3549691.05 | F6: 892801.39 | I6: 2457547.19 | K6: =+I6-J6 -> 2457547.19 | L6: 350275.59 | O6: 2 | P6: =OR(C6>C5,F6>F5,G6>G5,I6>I5,L6>L5,M6>M5) -> FALSE
B7: A2) Variazioni rimanenze di prodotti in corso di lavorazione, semilavorati e finiti | E7: 0 | K7: 0 | O7: 3
B8: A3) Variazioni dei lavori in corso su ordinazione | E8: 0 | K8: 0 | O8: 4
B9: A4) Incrementi di immobilizzazioni per lavori interni (inclusi costi del personale) | C9: 18160429.06 | E9: 18160429.06 | F9: 0 | I9: 28374300.23 | K9: 28374300.23 | O9: 5
B10: di cui per realizzazione allacciamenti idrici e fognari | C10: 904228.601 | E10: 904228.601 | K10: 0 | O10: 6 | P10: =OR(C10>C9,F10>F9,G10>G9,I10>I9,L10>L9,M10>M9) -> FALSE
B11: A5) Altri ricavi e proventi | C11: 13988851.06 | E11: 13988851.06 | F11: 3753815.93 | G11: 775517.33 | I11: 3216851.3 | K11: 3216851.3 | L11: 6090163.58 | M11: 1008660.47 | O11: 7
B12: di cui da altre imprese del gruppo | C12: 2141331.71 | E12: 2141331.71 | F12: 1805421.15 | G12: 46101.15 | I12: 0 | K12: 0 | L12: 2761535.86 | M12: 45751.06 | O12: 8 | P12: =OR(C12>C11,F12>F11,G12>G11,I12>I11,L12>L11,M12>M11) -> FALSE
A13: ULTERIORI SPECIFICAZIONI DEI RICAVI (Euro) | C13: =SUM(C14:C40) -> 522424314.4 | E13: =+C13-D13 -> 522424314.4 | F13: =SUM(F14:F40) -> 9706410.17 | G13: =SUM(G14:G40) -> 5722648.24 | I13: =SUM(I14:I40) -> 515542953.8 | K13: =+I13-J13 -> 515542953.8 | L13: =SUM(L14:L40) -> 11201907.56 | M13: =SUM(M14:M40) -> 5008660.47 | O13: 9
B14: Ricavi da articolazione tariffaria | C14: 484536572.6 | E14: =+C14-D14 -> 484536572.6 | I14: 496125012.7 | K14: =+I14-J14 -> 496125012.7 | O14: 10
B15: Vendita di acqua all’ingrosso | C15: 15525099.63 | E15: 15525099.63 | I15: 8995194.62 | K15: 8995194.62 | O15: 11
B16: Acquedotto (utenti non allacciati alla pubblica fognatura) | E16: 0 | K16: 0 | O16: 12
B17: Vendita di acqua non potabile o ad uso industriale | E17: 0 | F17: 2949140.91 | K17: 0 | L17: 2905025.42 | O17: 13
B18: Vendita di acqua forfetaria | E18: 0 | K18: 0 | O18: 14
B19: Fornitura bocche antincendio | C19: 576517.74 | E19: 576517.74 | I19: 790871.21 | K19: 790871.21 | O19: 15
B20: Fognatura e depurazione civile (approvvigionamento autonomo) | E20: 0 | K20: 0 | O20: 16
B21: Fognatura e depurazione di acque reflue industriali | E21: 0 | K21: 0 | O21: 17
B22: Contributi di allacciamento | C22: 1916757.34 | E22: 1916757.34 | I22: 2004286.43 | K22: 2004286.43 | O22: 18
B23: Prestazioni e servizi accessori (v. comma 1.1 All.A del 664/2015/R/idr) | C23: 6591451.63 | E23: 6591451.63 | I23: 4686950.1 | O23: 19
B24: Vendita di acqua con autobotte (v. comma 1.1 All.A del 664/2015/R/idr) | C24: 0 | E24: 0 | F24: 107837.58 | L24: 115330.66 | O24: 20
B25: Trattamento percolati | F25: 0 | O25: 21
B26: Trattamento bottini | F26: 0 | O26: 22
B27: Gestione fognature bianche (v. comma 1.1 All.A del 664/2015/R/idr) | C27: 0 | E27: 0 | G27: 0 | K27: 0 | O27: 23
B28: Pulizia e manutenzione caditoie stradali (v. comma 1.1 All.A del 664/2015/R/idr) | C28: 0 | E28: 0 | G28: 0 | K28: 0 | O28: 24
B29: Installazione/gestione bocche antincendio | F29: 0 | O29: 25
B30: Vendita di servizi a terzi | F30: 583859.83 | G30: 4947130.91 | L30: 436510.92 | M30: 4000000 | O30: 26
B31: Lavori conto terzi | E31: 0 | F31: 2718585.11 | G31: 0 | K31: 0 | L31: 1844484.17 | M31: 228508 | O31: 27
B32: Spurgo pozzi neri | F32: 0 | O32: 28
B33: Rilascio autorizzazioni allo scarico | F33: 0 | O33: 29
B34: Lottizzazioni | F34: 232764.37 | G34: 0 | L34: 399658.33 | O34: 30
B35: Riuso delle acque di depurazione | F35: 0 | O35: 31
B36: Case dell’acqua | O36: 32
B37: Proventi straordinari | C37: 11136583.78 | E37: 11136583.78 | I37: 2940638.78 | K37: 2940638.78 | L37: 1265404.3 | O37: 33
B38: Contributi in conto esercizio | C38: 0 | E38: 0 | K38: 0 | O38: 34
B39: Rimborsi e indennizzi | C39: 2141331.71 | E39: 2141331.71 | F39: 2316375.83 | I39: 0 | K39: 0 | L39: 3311053.68 | O39: 35
B40: Ricavi da altre attività (non inclusi nelle suddette voci) | F40: 797846.54 | G40: 775517.33 | L40: 924440.08 | M40: 780152.47 | O40: 36
O41: 37
A42: COSTI DELLA PRODUZIONE (Euro) | C42: =C43+C44+C49+C52+SUM(C54:C57) -> 315022308.7 | D42: =D43+D44+D49+D52+SUM(D54:D57) -> 0 | E42: =+C42-D42 -> 315022308.7 | F42: =F43+F44+F49+F52+SUM(F54:F57) -> 5168962.21 | G42: 1978852.361 | I42: =I43+I44+I49+I52+SUM(I54:I57) -> 314344489.4 | J42: 0 | K42: =+I42-J42 -> 314344489.4 | L42: =L43+L44+L49+L52+SUM(L54:L57) -> 5877656.6 | M42: 1600000 | O42: 38 | P42: =OR(C58>C42,D58>D42,F58>F42,G58>G42,I58>I42,J58>J42,L58>L42,M58>M42) -> TRUE
B43: B6) Per materie prime, sussidiarie, di consumo e merci | C43: 7851521.14 | E43: =+C43-D43 -> 7851521.14 | F43: 41181.3 | G43: 48778.63 | I43: 7367590.51 | K43: =+I43-J43 -> 7367590.51 | L43: 48051 | M43: 37052.48371 | O43: 39
B44: B7) Per servizi | C44: =+SUM(C45:C48) -> 171572282.3 | D44: =+SUM(D45:D48) -> 0 | E44: =+C44-D44 -> 171572282.3 | F44: =+SUM(F45:F48) -> 1821921.95 | G44: 1071688.25 | I44: =+SUM(I45:I48) -> 165130869.4 | J44: 0 | K44: =+I44-J44 -> 165130869.4 | L44: =+SUM(L45:L48) -> 1706049 | M44: 835265.3192 | O44: 40
B45: energia elettrica da altre imprese del gruppo | C45: 57304829.77 | E45: =+C45-D45 -> 57304829.77 | G45: 354156.43 | I45: 56441828.21 | K45: =+I45-J45 -> 56441828.21 | M45: 282013.366 | O45: 41
B46: energia elettrica da altre imprese | C46: 6547.12 | E46: 6547.12 | G46: 40.46 | I46: 766140.91 | K46: 766140.91 | M46: 3828.047115 | O46: 42
B47: altri servizi da altre imprese del gruppo | C47: 73608939.29 | E47: 73608939.29 | F47: 394250.16 | G47: 457355.96 | I47: 49829750.03 | K47: 49829750.03 | L47: 388617 | M47: 250917.6478 | O47: 43
B48: altri servizi da altre imprese | C48: 40651966.12 | E48: 40651966.12 | F48: 1427671.79 | G48: 260135.4 | I48: 58093150.23 | K48: 58093150.23 | L48: 1317432 | M48: 298506.2584 | O48: 44
B49: B8) Per godimento beni di terzi | C49: 39240861.45 | E49: 39240861.45 | F49: 11625.2 | G49: 242514.99 | I49: 40611718.1 | K49: 40611718.1 | M49: 201258.3033 | O49: 45 | P49: =OR(C49<SUM(C50:C51),D49<SUM(D50:D51),F49<SUM(F50:F51),G49<SUM(G50:G51),I49<SUM(I50:I51),J49<SUM(J50:J51),L49<SUM(L50:L51),M49<SUM(M50:M51)) -> FALSE
B50: di cui per uso impianti di altre imprese del gruppo | E50: 0 | K50: 0 | O50: 46
B51: di cui altre spese verso altre imprese del gruppo | E51: 0 | K51: 0 | O51: 47
B52: B9) Per il personale | C52: 83073372.35 | E52: 83073372.35 | F52: 3294233.76 | G52: 533770.7709 | I52: 82978847.57 | K52: 82978847.57 | L52: 3655441.95 | M52: 432870.9464 | O52: 48
B53: di cui per trattamento di fine rapporto (inclusa rivalutazione) | C53: 3872108.4 | E53: 3872108.4 | F53: 152566.27 | G53: 0 | I53: 3745532.41 | K53: 3745532.41 | L53: 164144.52 | M53: 0 | O53: 49 | P53: =OR(C53>C52,D53>D52,F53>F52,G53>G52,I53>I52,J53>J52,L53>L52,M53>M52) -> FALSE
B54: B11) Variazione delle rimanenze | C54: 1348842.92 | E54: 1348842.92 | G54: 8336.15 | I54: 1333390.353 | K54: 1333390.353 | M54: 6662.326746 | O54: 50
B55: B12) Accantonamenti per rischi | C55: 7459739.76 | E55: 7459739.76 | G55: 46102.83 | I55: 9669548.07 | K55: 9669548.07 | M55: 48314.20039 | O55: 51
B56: B13) Altri accantonamenti | E56: 0 | G56: 0 | K56: 0 | O56: 52
B57: B14) Oneri diversi di gestione | C57: 4475688.81 | E57: 4475688.81 | G57: 27660.74 | I57: 7252525.38 | K57: 7252525.38 | L57: 468114.65 | M57: 38576.42021 | O57: 53
A58: ULTERIORI SPECIFICAZIONI DEI COSTI (Euro) | C58: =SUM(C59:C74)+C75+C79 -> 52582758.41 | D58: =SUM(D59:D74)+D75+D79 -> 16792887.54 | E58: 35789870.87 | F58: =SUM(F59:F74)+F75+F79 -> 0 | G58: 0 | I58: =SUM(I59:I74)+I75+I79 -> 52956120.97 | J58: 15680414.7 | K58: 37275706.27 | L58: =SUM(L59:L74)+L75+L79 -> 0 | M58: 0 | O58: 54
B59: Accantonamenti e rettifiche in eccesso rispetto all'applicazione di norme tributarie | E59: 0 | K59: 0 | O59: 55
B60: Rettifiche di valori di attività finanziarie | E60: 0 | K60: 0 | O60: 56
B61: Costi connessi all'erogazione di liberalità | E61: 0 | K61: 0 | O61: 57
B62: Costi pubblicitari e di marketing (incluse le imposte connesse) | E62: 0 | K62: 0 | O62: 58
B63: Oneri per sanzioni, penalità, risarcimenti automatici e simili | C63: 827759.68 | E63: 827759.68 | I63: 288522.43 | K63: 288522.43 | O63: 59
B64: Oneri straordinari | C64: 1153027.8 | E64: 1153027.8 | I64: 1727159.76 | K64: 1727159.76 | O64: 60
B65: Spese processuali in cui la parte è risultata soccombente | C65: 68628.22 | E65: 68628.22 | I65: 298880.83 | K65: 298880.83 | O65: 61
B66: Contributi associativi | C66: 212282.92 | E66: 212282.92 | I66: 219986.06 | K66: 219986.06 | O66: 62
B67: Spese di viaggio e di rappresentanza | C67: 75760.59 | E67: 75760.59 | I67: 71178.2 | K67: 71178.2 | O67: 63
B68: Spese di funzionamento Ente d'Ambito | C68: 1450125.53 | E68: 1450125.53 | I68: 1464737.532 | K68: 1464737.532 | O68: 64
B69: Canoni di affitto immobili non industriali | C69: 898666.32 | E69: 898666.32 | I69: 863110.6 | K69: 863110.6 | O69: 65
B70: Costi di realizzazione degli allacciamenti idrici e fognari | C70: 2514005.327 | E70: 2514005.327 | I70: 2569628.37 | K70: 2569628.37 | O70: 66
B71: Gestione fognature bianche (* solo se già incluse nel SII; v. comma 1.1 All.A del 643/2013/R/idr) | C71: 0 | E71: 0 | K71: 0 | O71: 67
B72: Pulizia e manutenzione caditoie stradali (* solo se già incluse nel SII; v. comma 1.1 All.A del 643/2013/R/idr) | C72: 0 | E72: 0 | K72: 0 | O72: 68
B73: Perdite su crediti per la sola quota parte eccedente l'utilizzo del fondo | E73: 0 | K73: 0 | O73: 69
B74: Costi di strutturazione dei progetti di finanziamento (non capitalizzati) | E74: 0 | K74: 0 | O74: 70
B75: Uso infrastrutture di terzi | C75: =+SUM(C76:C78) -> 28387203.49 | D75: =+SUM(D76:D78) -> 0 | E75: 28387203.49 | F75: =+SUM(F76:F78) -> 0 | G75: 0 | I75: =+SUM(I76:I78) -> 29633951.4 | J75: 0 | K75: 29633951.4 | L75: =+SUM(L76:L78) -> 0 | M75: 0 | O75: 71
B76: rimborso mutui di comuni, aziende speciali, società patrimoniali | C76: 4857856.05 | E76: 4857856.05 | I76: 5801009.44 | K76: =+I76-J76 -> 5801009.44 | O76: 72
B77: altri corrispettivi a comuni, aziende speciali, società patrimoniali | C77: 23529347.44 | E77: 23529347.44 | I77: 23832941.96 | K77: =+I77-J77 -> 23832941.96 | O77: 73
B78: corrispettivi a gestori preesistenti, altri proprietari | E78: 0 | K78: =+I78-J78 -> 0 | O78: 74
B79: Oneri locali | C79: =+SUM(C80:C85) -> 16995298.53 | D79: =+SUM(D80:D85) -> 16792887.54 | E79: 202410.99 | F79: =+SUM(F80:F85) -> 0 | G79: 0 | I79: =+SUM(I80:I85) -> 15818965.79 | J79: 15680414.7 | K79: =+I79-J79 -> 138551.09 | L79: =+SUM(L80:L85) -> 0 | M79: 0 | O79: 75
B80: canoni di derivazione/sottensione idrica | C80: 9638059.14 | D80: 9638059.14 | E80: 0 | I80: 8719771.071 | J80: 8719771.071 | K80: =+I80-J80 -> 0 | O80: 76
B81: contributi per consorzi di bonifica | C81: 5794525.26 | D81: 5794525.26 | E81: 0 | I81: 5777648.007 | J81: 5777648.007 | K81: 0 | O81: 77
B82: contributi a comunità montane | E82: 0 | K82: 0 | O82: 78
B83: canoni per restituzione acque | E83: 0 | K83: 0 | O83: 79
B84: oneri per la gestione di aree di salvaguardia | C84: 1360303.14 | D84: 1360303.14 | E84: 0 | I84: 1182995.62 | J84: 1182995.62 | K84: 0 | O84: 80
B85: altri oneri locali (TOSAP, COSAP, TARSU) | C85: 202410.99 | E85: 202410.99 | I85: 138551.09 | K85: 138551.09 | O85: 81

Sheet Altri dati economico_finanziari
B1: FONTI DI FINANZIAMENTO
E2: ANNO 2014 | F2: ANNO 2015 | P2: controllo coerenza voci "di cui" | Q2: controllo finale altri_dati_economico_finanziari
C3: Mezzi Propri | D3: Euro | E3: 729407078 | F3: 726237441.8 | P3: =+IF(OR(E6>E5,F6>F5,E12>E11,F12>F11,E47>E46,F47>F46),FALSE,TRUE) -> TRUE | Q3: =+P3 -> TRUE
B4: MEZZI DI TERZI
C5: Finanziamenti a medio-lungo termine | D5: Euro | E5: 739359959 | F5: 0
C6: di cui verso società controllate e collegate e verso controllanti | D6: Euro | E6: 738253825.1 | F6: 0
C7: Tasso medio finanziamenti a medio-lungo termine | D7: % | E7: 0.03829
C8: Prestiti obbligazionari | D8: Euro | E8: 0 | F8: 0
C9: Tasso medio Prestiti obbligazionari | D9: %
C10: Altre passitivtà consolidate | D10: Euro | E10: 134933816.3 | F10: 141178570
C11: Finanziamenti a breve termine | D11: Euro | E11: -297347175.1 | F11: 492184760.1
C12: di cui verso società controllate e collegate e verso controllanti | D12: Euro | E12: -350702246.1 | F12: 448651689.5
C13: Tasso medio Finanziamenti a breve termine | D13: % | E13: 0.03829 | F13: 0.04805
C14: Altre passività correnti | D14: Euro | E14: 397336977.6 | F14: 457581194
C15: Debiti tributari | D15: Euro | E15: 3749583.49 | F15: 3277223.79
B16: TFR, FONDO RISCHI E ALTRI
C17: TFR | D17: Euro | E17: 18016082.47 | F17: 17439349.24
C18: Fondo di quiescenza | D18: Euro
C19: Fondo rischi e oneri | D19: Euro | E19: 10665367.81 | F19: 15052410.02
C20: Fondo rischi su crediti | D20: Euro
C21: Fondo svalutazione crediti | D21: Euro | E21: 24335621.04 | F21: 21753630.48
C22: Valore Deposito cauzionale | D22: Euro | E22: 55419614.8 | F22: 58262326.26
C23: Fondo imposte e tasse (anche differite) | D23: Euro | E23: 16852763.87 | F23: 14707866.74
C24: Fondo sentenza Corte Costituzionale 335/2008 | D24: Euro | E24: 0 | F24: 0
C25: Fondo per il ripristino di beni di terzi | D25: Euro
C26: Fondo per il finanziamento di tariffe sociali o di solidarietà | D26: Euro | E26: 8363301.68 | F26: 13129586.87
B28: ALTRI DATI ECONOMICO FINANZIARI
B29: MOROSITA' | E29: ANNO 2014 | F29: ANNO 2015 | G29: ANNO 2016 | H29: ANNO 2017
C30: Unpaid Ratio (UR) a 24 mesi effettivamente rilevato | D30: % | E30: 0.04863715969 | F30: 0.03126978612
C31: Rimborsi dagli utenti finali relativi alla gestione della morosità | D31: Euro | E31: 0 | F31: 0
B32: IMPOSTE
C33: IRES | D33: Euro | E33: 30302620.08 | F33: 32803340.63
C34: IRAP | D34: Euro | E34: 12342219.69 | F34: 7951177.355
C35: Imposte differite | D35: Euro | E35: -323601.5994 | F35: -2144897.128
C36: Imposte anticipate | D36: Euro | E36: 2302561.83 | F36: -693742.3114
C37: Aliquota media di tassazione, IRAP inclusa | D37: % | E37: 0.3646 | F37: 0.3491
B38: FoNI spesa
C39: FoNI speso per agevolazioni tariffarie | D39: Euro | E39: 0 | F39: 0
B40: AGEVOLAZIONI TARIFFARIE E ALTRI IMPORTI IN BOLLETTA
C41: Agevolazioni tariffarie da regolamento erogate (Euro) | D41: Euro | E41: 0 | F41: 151694.6
C42: Ui1 (importo fatturato componente Ui1) | D42: Euro | E42: 3507112.95 | F42: 3423701.13
C43: Altre componenti perequative | D43: Euro
B44: ALTRI DATI PER CALCOLO RC
C45: Contributo versato all'AEEG | D45: Euro | E45: 117979.92 | F45: 127911.63
C46: Costi per variazioni sistemiche o per eventi eccezionali | D46: Euro | E46: 153373.7 | F46: =2887143.72090765+201697.1 -> 3088840.821
C47: di cui: per eventi eccezionali | D47: Euro | F47: 941478
C48: Costo delle forniture all’ingrosso transfrontaliere | D48: Euro | E48: 0 | F48: 0
C49: Rimborsi effettuati ai sensi sentenza CC 335/2008 ed eccedenti la quota riconosciuta in tariffa negli anni 2012-2015 | D49: Euro | E49: 0 | F49: 2846898.34
B51: ALTRI DATI PER IL CALCOLO DELLA COMPONENTE CAPEX | E51: ANNO 2016 | F51: ANNO 2017 | G51: ANNO 2018 | H51: ANNO 2019
C52: DCUIT capex (dettagliare nella relazione le motivazioni della collocazione tra i capex) | D52: Euro | E52: 3715789.944 | F52: 0 | G52: 0 | H52: 0
C53: Ammortamento finanziario ammissibile ai sensi del comma 16.5 lettera a) | D53: SI/NO | E53: SI

Sheet Soggetti_proprietari_infrastrut
B1: ELENCO SOGGETTI PROPRIETARI
C3: Elenco proprietari infrastrutture per calcolo Mutui/Altri corrispettivi ed eventuale Stratificazione di terzi | O3: Non sono presenti Errori | R3: ---> se errori indicazione FALSO
O4: =+IF(AND(O5=TRUE,P5=TRUE,Q5=TRUE),TRUE,FALSE) -> FALSE
O5: =AND(INDEX(Elenco_Proprietari,0,15)) -> FALSE | P5: =AND(INDEX(Elenco_Proprietari,0,16)) -> FALSE | Q5: =AND(INDEX(Elenco_Proprietari,0,17)) -> FALSE
A7: N_riga | B7: Key_Prop | C7: Soggetto Proprietario | D7: Tipologia di proprietario | E7: P. IVA Proprietario | F7: Codice Istat Comune proprietario | G7: Proprietario ai fini dei corrispettivi AC/MT | H7: Proprietario non più presente ai fini della RAB di terzi | I7: Fusione | J7: Numero Cespiti | K7: Key_Prop_bis | L7: New_Key_prop | M7: Proprietario risultante dalla fusione | N7: per costruzione | O7: Proprietario non duplicato | P7: presenza PIVA o CodiceISTAT | Q7: Presenza tipologia
A8: 1 | B8: =idato & "_" & idgestore & "-" & IF($D8="Comune",$F8,"") & "-" &IF($D8="Comune","",$E8) -> 1202_13989-- | K8: =B8 -> 1202_13989-- | L8: =IF(I8="SI",VLOOKUP(M8,$C$8:$K$7996,9,0),K8) -> 1202_13989-- | N8: =+IF(H8="SI",L8,0) -> 0 | O8: =IF(COUNTIF(B:B,B8)>1,FALSE,TRUE) -> FALSE | P8: =IF(ISBLANK(C8),TRUE,IF(COUNTA(E8:F8)<1,FALSE,TRUE)) -> TRUE | Q8: =IF(ISBLANK(C8),TRUE,IF(COUNTA(D8)<1,FALSE,TRUE)) -> TRUE
A9: 2 | B9: 1202_13989-058001- | C9: Affile | D9: Comune | F9: 058001 | J9: 0 | K9: 1202_13989-058001- | L9: =IF(I9="SI",VLOOKUP(M9,$C$8:$K$7996,9,0),K9) -> 1202_13989-058001- | N9: =+IF(H9="SI",L9,0) -> 0 | O9: =IF(COUNTIF(B:B,B9)>1,FALSE,TRUE) -> TRUE | P9: =IF(ISBLANK(C9),TRUE,IF(COUNTA(E9:F9)<1,FALSE,TRUE)) -> TRUE | Q9: =IF(ISBLANK(C9),TRUE,IF(COUNTA(D9)<1,FALSE,TRUE)) -> TRUE
A10: 3 | B10: 1202_13989-058002- | C10: Agosta | D10: Comune | F10: 058002 | J10: 0 | K10: 1202_13989-058002- | L10: 1202_13989-058002- | N10: 0 | O10: TRUE | P10: TRUE | Q10: TRUE
A11: 4 | B11: 1202_13989-058003- | C11: Albano Laziale | D11: Comune | F11: 058003 | J11: 0 | K11: 1202_13989-058003- | L11: 1202_13989-058003- | N11: 0 | O11: TRUE | P11: TRUE | Q11: TRUE
A12: 5 | B12: 1202_13989-058004- | C12: Allumiere | D12: Comune | F12: 058004 | J12: 0 | K12: 1202_13989-058004- | L12: 1202_13989-058004- | N12: 0 | O12: TRUE | P12: TRUE | Q12: TRUE
A13: 6 | B13: 1202_13989-058006- | C13: Anticoli Corrado | D13: Comune | F13: 058006 | J13: 0 | K13: 1202_13989-058006- | L13: 1202_13989-058006- | N13: 0 | O13: TRUE | P13: TRUE | Q13: TRUE
A14: 7 | B14: 1202_13989-058008- | C14: Arcinazzo Romano | D14: Comune | F14: 058008 | J14: 0 | K14: 1202_13989-058008- | L14: 1202_13989-058008- | N14: 0 | O14: TRUE | P14: TRUE | Q14: TRUE
A15: 8 | B15: 1202_13989-058009- | C15: Ariccia | D15: Comune | F15: 058009 | J15: 0 | K15: 1202_13989-058009- | L15: 1202_13989-058009- | N15: 0 | O15: TRUE | P15: TRUE | Q15: TRUE
A16: 9 | B16: 1202_13989-058010- | C16: Arsoli | D16: Comune | F16: 058010 | J16: 0 | K16: 1202_13989-058010- | L16: 1202_13989-058010- | N16: 0 | O16: TRUE | P16: TRUE | Q16: TRUE
A17: 10 | B17: 1202_13989-058011- | C17: Artena | D17: Comune | F17: 058011 | J17: 0 | K17: 1202_13989-058011- | L17: 1202_13989-058011- | N17: 0 | O17: TRUE | P17: TRUE | Q17: TRUE
A18: 11 | B18: 1202_13989-058012- | C18: Bellegra | D18: Comune | F18: 058012 | J18: 0 | K18: 1202_13989-058012- | L18: 1202_13989-058012- | N18: 0 | O18: TRUE | P18: TRUE | Q18: TRUE
A19: 12 | B19: 1202_13989-058017- | C19: Canterano | D19: Comune | F19: 058017 | J19: 0 | K19: 1202_13989-058017- | L19: 1202_13989-058017- | N19: 0 | O19: TRUE | P19: TRUE | Q19: TRUE
A20: 13 | B20: 1202_13989-058019- | C20: Capranica Prenestina | D20: Comune | F20: 058019 | J20: 0 | K20: 1202_13989-058019- | L20: 1202_13989-058019- | N20: 0 | O20: TRUE | P20: TRUE | Q20: TRUE
A21: 14 | B21: 1202_13989-058020- | C21: Carpineto Romano | D21: Comune | F21: 058020 | J21: 0 | K21: 1202_13989-058020- | L21: 1202_13989-058020- | N21: 0 | O21: TRUE | P21: TRUE | Q21: TRUE
A22: 15 | B22: 1202_13989-058021- | C22: Casape | D22: Comune | F22: 058021 | J22: 0 | K22: 1202_13989-058021- | L22: 1202_13989-058021- | N22: 0 | O22: TRUE | P22: TRUE | Q22: TRUE
A23: 16 | B23: 1202_13989-058022- | C23: Castel Gandolfo | D23: Comune | F23: 058022 | J23: 0 | K23: 1202_13989-058022- | L23: 1202_13989-058022- | N23: 0 | O23: TRUE | P23: TRUE | Q23: TRUE
A24: 17 | B24: 1202_13989-058023- | C24: Castel Madama | D24: Comune | F24: 058023 | J24: 0 | K24: 1202_13989-058023- | L24: 1202_13989-058023- | N24: 0 | O24: TRUE | P24: TRUE | Q24: TRUE
A25: 18 | B25: 1202_13989-058025- | C25: Castel San Pietro Romano | D25: Comune | F25: 058025 | J25: 0 | K25: 1202_13989-058025- | L25: 1202_13989-058025- | N25: 0 | O25: TRUE | P25: TRUE | Q25: TRUE
A26: 19 | B26: 1202_13989-058024- | C26: Castelnuovo di Porto | D26: Comune | F26: 058024 | J26: 0 | K26: 1202_13989-058024- | L26: 1202_13989-058024- | N26: 0 | O26: TRUE | P26: TRUE | Q26: TRUE
A27: 20 | B27: 1202_13989-058026- | C27: Cave | D27: Comune | F27: 058026 | J27: 0 | K27: 1202_13989-058026- | L27: 1202_13989-058026- | N27: 0 | O27: TRUE | P27: TRUE | Q27: TRUE
A28: 21 | B28: 1202_13989-058027- | C28: Cerreto Laziale | D28: Comune | F28: 058027 | J28: 0 | K28: 1202_13989-058027- | L28: 1202_13989-058027- | N28: 0 | O28: TRUE | P28: TRUE | Q28: TRUE
A29: 22 | B29: 1202_13989-058028- | C29: Cervara di Roma | D29: Comune | F29: 058028 | J29: 0 | K29: 1202_13989-058028- | L29: 1202_13989-058028- | N29: 0 | O29: TRUE | P29: TRUE | Q29: TRUE
A30: 23 | B30: 1202_13989-058029- | C30: Cerveteri | D30: Comune | F30: 058029 | J30: 0 | K30: 1202_13989-058029- | L30: 1202_13989-058029- | N30: 0 | O30: TRUE | P30: TRUE | Q30: TRUE
A31: 24 | B31: 1202_13989-058118- | C31: Ciampino | D31: Comune | F31: 058118 | J31: 0 | K31: 1202_13989-058118- | L31: 1202_13989-058118- | N31: 0 | O31: TRUE | P31: TRUE | Q31: TRUE
A32: 25 | B32: 1202_13989-058030- | C32: Ciciliano | D32: Comune | F32: 058030 | J32: 0 | K32: 1202_13989-058030- | L32: 1202_13989-058030- | N32: 0 | O32: TRUE | P32: TRUE | Q32: TRUE
A33: 26 | B33: 1202_13989-058035- | C33: Colonna | D33: Comune | F33: 058035 | J33: 0 | K33: 1202_13989-058035- | L33: 1202_13989-058035- | N33: 0 | O33: TRUE | P33: TRUE | Q33: TRUE
A34: 27 | B34: 1202_13989-058036- | C34: Fiano Romano | D34: Comune | F34: 058036 | J34: 0 | K34: 1202_13989-058036- | L34: 1202_13989-058036- | N34: 0 | O34: TRUE | P34: TRUE | Q34: TRUE
A35: 28 | B35: 1202_13989-058037- | C35: Filacciano | D35: Comune | F35: 058037 | J35: 0 | K35: 1202_13989-058037- | L35: 1202_13989-058037- | N35: 0 | O35: TRUE | P35: TRUE | Q35: TRUE
A36: 29 | B36: 1202_13989-058120- | C36: Fiumicino | D36: Comune | F36: 058120 | J36: 0 | K36: 1202_13989-058120- | L36: 1202_13989-058120- | N36: 0 | O36: TRUE | P36: TRUE | Q36: TRUE
A37: 30 | B37: 1202_13989-058122- | C37: Fonte Nuova | D37: Comune | F37: 058122 | J37: 0 | K37: 1202_13989-058122- | L37: 1202_13989-058122- | N37: 0 | O37: TRUE | P37: TRUE | Q37: TRUE
A38: 31 | B38: 1202_13989-058038- | C38: Formello | D38: Comune | F38: 058038 | J38: 0 | K38: 1202_13989-058038- | L38: 1202_13989-058038- | N38: 0 | O38: TRUE | P38: TRUE | Q38: TRUE
A39: 32 | B39: 1202_13989-058039- | C39: Frascati | D39: Comune | F39: 058039 | J39: 0 | K39: 1202_13989-058039- | L39: 1202_13989-058039- | N39: 0 | O39: TRUE | P39: TRUE | Q39: TRUE
A40: 33 | B40: 1202_13989-058040- | C40: Gallicano nel Lazio | D40: Comune | F40: 058040 | J40: 0 | K40: 1202_13989-058040- | L40: 1202_13989-058040- | N40: 0 | O40: TRUE | P40: TRUE | Q40: TRUE
A41: 34 | B41: 1202_13989-058041- | C41: Gavignano | D41: Comune | F41: 058041 | J41: 0 | K41: 1202_13989-058041- | L41: 1202_13989-058041- | N41: 0 | O41: TRUE | P41: TRUE | Q41: TRUE
A42: 35 | B42: 1202_13989-058042- | C42: Genazzano | D42: Comune | F42: 058042 | J42: 0 | K42: 1202_13989-058042- | L42: 1202_13989-058042- | N42: 0 | O42: TRUE | P42: TRUE | Q42: TRUE
A43: 36 | B43: 1202_13989-058043- | C43: Genzano di Roma | D43: Comune | F43: 058043 | J43: 0 | K43: 1202_13989-058043- | L43: 1202_13989-058043- | N43: 0 | O43: TRUE | P43: TRUE | Q43: TRUE
A44: 37 | B44: 1202_13989-058044- | C44: Gerano | D44: Comune | F44: 058044 | J44: 0 | K44: 1202_13989-058044- | L44: 1202_13989-058044- | N44: 0 | O44: TRUE | P44: TRUE | Q44: TRUE
A45: 38 | B45: 1202_13989-058045- | C45: Gorga | D45: Comune | F45: 058045 | J45: 0 | K45: 1202_13989-058045- | L45: 1202_13989-058045- | N45: 0 | O45: TRUE | P45: TRUE | Q45: TRUE
A46: 39 | B46: 1202_13989-058046- | C46: Grottaferrata | D46: Comune | F46: 058046 | J46: 0 | K46: 1202_13989-058046- | L46: 1202_13989-058046- | N46: 0 | O46: TRUE | P46: TRUE | Q46: TRUE
A47: 40 | B47: 1202_13989-058047- | C47: Guidonia Montecelio | D47: Comune | F47: 058047 | J47: 0 | K47: 1202_13989-058047- | L47: 1202_13989-058047- | N47: 0 | O47: TRUE | P47: TRUE | Q47: TRUE
A48: 41 | B48: 1202_13989-058048- | C48: Jenne | D48: Comune | F48: 058048 | J48: 0 | K48: 1202_13989-058048- | L48: 1202_13989-058048- | N48: 0 | O48: TRUE | P48: TRUE | Q48: TRUE
A49: 42 | B49: 1202_13989-058049- | C49: Labico | D49: Comune | F49: 058049 | J49: 0 | K49: 1202_13989-058049- | L49: 1202_13989-058049- | N49: 0 | O49: TRUE | P49: TRUE | Q49: TRUE
A50: 43 | B50: 1202_13989-058050- | C50: Lanuvio | D50: Comune | F50: 058050 | J50: 0 | K50: 1202_13989-058050- | L50: 1202_13989-058050- | N50: 0 | O50: TRUE | P50: TRUE | Q50: TRUE
A51: 44 | B51: 1202_13989-058115- | C51: Lariano | D51: Comune | F51: 058115 | J51: 0 | K51: 1202_13989-058115- | L51: 1202_13989-058115- | N51: 0 | O51: TRUE | P51: TRUE | Q51: TRUE
A52: 45 | B52: 1202_13989-058055- | C52: Marano Equo | D52: Comune | F52: 058055 | J52: 0 | K52: 1202_13989-058055- | L52: 1202_13989-058055- | N52: 0 | O52: TRUE | P52: TRUE | Q52: TRUE
A53: 46 | B53: 1202_13989-058056- | C53: Marcellina | D53: Comune | F53: 058056 | J53: 0 | K53: 1202_13989-058056- | L53: 1202_13989-058056- | N53: 0 | O53: TRUE | P53: TRUE | Q53: TRUE
A54: 47 | B54: 1202_13989-058057- | C54: Marino | D54: Comune | F54: 058057 | J54: 0 | K54: 1202_13989-058057- | L54: 1202_13989-058057- | N54: 0 | O54: TRUE | P54: TRUE | Q54: TRUE
A55: 48 | B55: 1202_13989-058059- | C55: Mentana | D55: Comune | F55: 058059 | J55: 0 | K55: 1202_13989-058059- | L55: 1202_13989-058059- | N55: 0 | O55: TRUE | P55: TRUE | Q55: TRUE
A56: 49 | B56: 1202_13989-058060- | C56: Monte Compatri | D56: Comune | F56: 058060 | J56: 0 | K56: 1202_13989-058060- | L56: 1202_13989-058060- | N56: 0 | O56: TRUE | P56: TRUE | Q56: TRUE
A57: 50 | B57: 1202_13989-058064- | C57: Monte Porzio Catone | D57: Comune | F57: 058064 | J57: 0 | K57: 1202_13989-058064- | L57: 1202_13989-058064- | N57: 0 | O57: TRUE | P57: TRUE | Q57: TRUE
A58: 51 | B58: 1202_13989-058062- | C58: Montelanico | D58: Comune | F58: 058062 | J58: 0 | K58: 1202_13989-058062- | L58: 1202_13989-058062- | N58: 0 | O58: TRUE | P58: TRUE | Q58: TRUE
A59: 52 | B59: 1202_13989-058065- | C59: Monterotondo | D59: Comune | F59: 058065 | J59: 0 | K59: 1202_13989-058065- | L59: 1202_13989-058065- | N59: 0 | O59: TRUE | P59: TRUE | Q59: TRUE
A60: 53 | B60: 1202_13989-058069- | C60: Nazzano | D60: Comune | F60: 058069 | J60: 0 | K60: 1202_13989-058069- | L60: 1202_13989-058069- | N60: 0 | O60: TRUE | P60: TRUE | Q60: TRUE
A61: 54 | B61: 1202_13989-058070- | C61: Nemi | D61: Comune | F61: 058070 | J61: 0 | K61: 1202_13989-058070- | L61: 1202_13989-058070- | N61: 0 | O61: TRUE | P61: TRUE | Q61: TRUE
A62: 55 | B62: 1202_13989-058073- | C62: Olevano Romano | D62: Comune | F62: 058073 | J62: 0 | K62: 1202_13989-058073- | L62: 1202_13989-058073- | N62: 0 | O62: TRUE | P62: TRUE | Q62: TRUE
A63: 56 | B63: 1202_13989-056041- | C63: Oriolo Romano | D63: Comune | F63: 056041 | J63: 0 | K63: 1202_13989-056041- | L63: 1202_13989-056041- | N63: 0 | O63: TRUE | P63: TRUE | Q63: TRUE
A64: 57 | B64: 1202_13989-058074- | C64: Palestrina | D64: Comune | F64: 058074 | J64: 0 | K64: 1202_13989-058074- | L64: 1202_13989-058074- | N64: 0 | O64: TRUE | P64: TRUE | Q64: TRUE
A65: 58 | B65: 1202_13989-058077- | C65: Pisoniano | D65: Comune | F65: 058077 | J65: 0 | K65: 1202_13989-058077- | L65: 1202_13989-058077- | N65: 0 | O65: TRUE | P65: TRUE | Q65: TRUE
A66: 59 | B66: 1202_13989-058078- | C66: Poli | D66: Comune | F66: 058078 | J66: 0 | K66: 1202_13989-058078- | L66: 1202_13989-058078- | N66: 0 | O66: TRUE | P66: TRUE | Q66: TRUE
A67: 60 | B67: 1202_13989-058079- | C67: Pomezia | D67: Comune | F67: 058079 | J67: 0 | K67: 1202_13989-058079- | L67: 1202_13989-058079- | N67: 0 | O67: TRUE | P67: TRUE | Q67: TRUE
A68: 61 | B68: 1202_13989-058080- | C68: Ponzano Romano | D68: Comune | F68: 058080 | J68: 0 | K68: 1202_13989-058080- | L68: 1202_13989-058080- | N68: 0 | O68: TRUE | P68: TRUE | Q68: TRUE
A69: 62 | B69: 1202_13989-058081- | C69: Riano | D69: Comune | F69: 058081 | J69: 0 | K69: 1202_13989-058081- | L69: 1202_13989-058081- | N69: 0 | O69: TRUE | P69: TRUE | Q69: TRUE
A70: 63 | B70: 1202_13989-058084- | C70: Rocca Canterano | D70: Comune | F70: 058084 | J70: 0 | K70: 1202_13989-058084- | L70: 1202_13989-058084- | N70: 0 | O70: TRUE | P70: TRUE | Q70: TRUE
A71: 64 | B71: 1202_13989-058085- | C71: Rocca di Cave | D71: Comune | F71: 058085 | J71: 0 | K71: 1202_13989-058085- | L71: 1202_13989-058085- | N71: 0 | O71: TRUE | P71: TRUE | Q71: TRUE
A72: 65 | B72: 1202_13989-058086- | C72: Rocca di Papa | D72: Comune | F72: 058086 | J72: 0 | K72: 1202_13989-058086- | L72: 1202_13989-058086- | N72: 0 | O72: TRUE | P72: TRUE | Q72: TRUE
A73: 66 | B73: 1202_13989-058088- | C73: Rocca Priora | D73: Comune | F73: 058088 | J73: 0 | K73: 1202_13989-058088- | L73: =IF(I73="SI",VLOOKUP(M73,$C$8:$K$7996,9,0),K73) -> 1202_13989-058088- | N73: =+IF(H73="SI",L73,0) -> 0 | O73: =IF(COUNTIF(B:B,B73)>1,FALSE,TRUE) -> TRUE | P73: =IF(ISBLANK(C73),TRUE,IF(COUNTA(E73:F73)<1,FALSE,TRUE)) -> TRUE | Q73: =IF(ISBLANK(C73),TRUE,IF(COUNTA(D73)<1,FALSE,TRUE)) -> TRUE
A74: 67 | B74: 1202_13989-058089- | C74: Rocca Santo Stefano | D74: Comune | F74: 058089 | J74: 0 | K74: 1202_13989-058089- | L74: 1202_13989-058089- | N74: 0 | O74: TRUE | P74: TRUE | Q74: TRUE
A75: 68 | B75: 1202_13989-058090- | C75: Roiate | D75: Comune | F75: 058090 | J75: 0 | K75: 1202_13989-058090- | L75: 1202_13989-058090- | N75: 0 | O75: TRUE | P75: TRUE | Q75: TRUE
A76: 69 | B76: 1202_13989-058091- | C76: Roma | D76: Comune | F76: 058091 | J76: 116 | K76: 1202_13989-058091- | L76: 1202_13989-058091- | N76: 0 | O76: TRUE | P76: TRUE | Q76: TRUE
A77: 70 | B77: 1202_13989-058092- | C77: Roviano | D77: Comune | F77: 058092 | J77: 0 | K77: 1202_13989-058092- | L77: 1202_13989-058092- | N77: 0 | O77: TRUE | P77: TRUE | Q77: TRUE
A78: 71 | B78: 1202_13989-058093- | C78: Sacrofano | D78: Comune | F78: 058093 | J78: 0 | K78: 1202_13989-058093- | L78: 1202_13989-058093- | N78: 0 | O78: TRUE | P78: TRUE | Q78: TRUE
A79: 72 | B79: 1202_13989-058094- | C79: Sambuci | D79: Comune | F79: 058094 | J79: 0 | K79: 1202_13989-058094- | L79: 1202_13989-058094- | N79: 0 | O79: TRUE | P79: TRUE | Q79: TRUE
A80: 73 | B80: 1202_13989-058119- | C80: San Cesareo | D80: Comune | F80: 058119 | J80: 0 | K80: 1202_13989-058119- | L80: 1202_13989-058119- | N80: 0 | O80: TRUE | P80: TRUE | Q80: TRUE
A81: 74 | B81: 1202_13989-058095- | C81: San Gregorio da Sassola | D81: Comune | F81: 058095 | J81: 0 | K81: 1202_13989-058095- | L81: 1202_13989-058095- | N81: 0 | O81: TRUE | P81: TRUE | Q81: TRUE
A82: 75 | B82: 1202_13989-058096- | C82: San Polo dei Cavalieri | D82: Comune | F82: 058096 | J82: 0 | K82: 1202_13989-058096- | L82: 1202_13989-058096- | N82: 0 | O82: TRUE | P82: TRUE | Q82: TRUE
A83: 76 | B83: 1202_13989-058100- | C83: San Vito Romano | D83: Comune | F83: 058100 | J83: 0 | K83: 1202_13989-058100- | L83: 1202_13989-058100- | N83: 0 | O83: TRUE | P83: TRUE | Q83: TRUE
A84: 77 | B84: 1202_13989-058097- | C84: Santa Marinella | D84: Comune | F84: 058097 | J84: 0 | K84: 1202_13989-058097- | L84: 1202_13989-058097- | N84: 0 | O84: TRUE | P84: TRUE | Q84: TRUE
A85: 78 | B85: 1202_13989-058099- | C85: Sant'Oreste | D85: Comune | F85: 058099 | J85: 0 | K85: 1202_13989-058099- | L85: 1202_13989-058099- | N85: 0 | O85: TRUE | P85: TRUE | Q85: TRUE
A86: 79 | B86: 1202_13989-058101- | C86: Saracinesco | D86: Comune | F86: 058101 | J86: 0 | K86: 1202_13989-058101- | L86: 1202_13989-058101- | N86: 0 | O86: TRUE | P86: TRUE | Q86: TRUE
A87: 80 | B87: 1202_13989-058102- | C87: Segni | D87: Comune | F87: 058102 | J87: 0 | K87: 1202_13989-058102- | L87: 1202_13989-058102- | N87: 0 | O87: TRUE | P87: TRUE | Q87: TRUE
A88: 81 | B88: 1202_13989-058103- | C88: Subiaco | D88: Comune | F88: 058103 | J88: 0 | K88: 1202_13989-058103- | L88: 1202_13989-058103- | N88: 0 | O88: TRUE | P88: TRUE | Q88: TRUE
A89: 82 | B89: 1202_13989-058104- | C89: Tivoli | D89: Comune | F89: 058104 | J89: 0 | K89: 1202_13989-058104- | L89: 1202_13989-058104- | N89: 0 | O89: TRUE | P89: TRUE | Q89: TRUE
A90: 83 | B90: 1202_13989-058105- | C90: Tolfa | D90: Comune | F90: 058105 | J90: 0 | K90: 1202_13989-058105- | L90: 1202_13989-058105- | N90: 0 | O90: TRUE | P90: TRUE | Q90: TRUE
A91: 84 | B91: 1202_13989-058106- | C91: Torrita Tiberina | D91: Comune | F91: 058106 | J91: 0 | K91: 1202_13989-058106- | L91: 1202_13989-058106- | N91: 0 | O91: TRUE | P91: TRUE | Q91: TRUE
A92: 85 | B92: 1202_13989-060080- | C92: Trevi nel Lazio | D92: Comune | F92: 060080 | J92: 0 | K92: 1202_13989-060080- | L92: 1202_13989-060080- | N92: 0 | O92: TRUE | P92: TRUE | Q92: TRUE
A93: 86 | B93: 1202_13989-058107- | C93: Trevignano Romano | D93: Comune | F93: 058107 | J93: 0 | K93: 1202_13989-058107- | L93: 1202_13989-058107- | N93: 0 | O93: TRUE | P93: TRUE | Q93: TRUE
A94: 87 | B94: 1202_13989-058110- | C94: Valmontone | D94: Comune | F94: 058110 | J94: 0 | K94: 1202_13989-058110- | L94: 1202_13989-058110- | N94: 0 | O94: TRUE | P94: TRUE | Q94: TRUE
A95: 88 | B95: 1202_13989-056056- | C95: Vejano | D95: Comune | F95: 056056 | J95: 0 | K95: 1202_13989-056056- | L95: 1202_13989-056056- | N95: 0 | O95: TRUE | P95: TRUE | Q95: TRUE
A96: 89 | B96: 1202_13989-058111- | C96: Velletri | D96: Comune | F96: 058111 | J96: 0 | K96: 1202_13989-058111- | L96: 1202_13989-058111- | N96: 0 | O96: TRUE | P96: TRUE | Q96: TRUE
A97: 90 | B97: 1202_13989-058112- | C97: Vicovaro | D97: Comune | F97: 058112 | J97: 0 | K97: 1202_13989-058112- | L97: 1202_13989-058112- | N97: 0 | O97: TRUE | P97: TRUE | Q97: TRUE
A98: 91 | B98: 1202_13989-- | C98: XX | J98: 0 | K98: 1202_13989-- | L98: 1202_13989-- | N98: 0 | O98: FALSE | P98: FALSE | Q98: FALSE
A99: 92 | B99: 1202_13989-058114- | C99: Zagarolo | D99: Comune | F99: 058114 | J99: 0 | K99: 1202_13989-058114- | L99: 1202_13989-058114- | N99: 0 | O99: TRUE | P99: TRUE | Q99: TRUE
A100: 93 | B100: =idato & "_" & idgestore & "-" & IF($D100="Comune",$F100,"") & "-" &IF($D100="Comune","",$E100) -> 1202_13989-058034- | C100: Colleferro | D100: Comune | F100: 058034 | G100: SI | K100: =B100 -> 1202_13989-058034- | L100: =IF(I100="SI",VLOOKUP(M100,$C$8:$K$7996,9,0),K100) -> 1202_13989-058034- | N100: =+IF(H100="SI",L100,0) -> 0 | O100: =IF(COUNTIF(B:B,B100)>1,FALSE,TRUE) -> TRUE | P100: TRUE | Q100: =IF(ISBLANK(C100),TRUE,IF(COUNTA(D100)<1,FALSE,TRUE)) -> TRUE
A101: 94 | B101: =idato & "_" & idgestore & "-" & IF($D101="Comune",$F101,"") & "-" &IF($D101="Comune","",$E101) -> 1202_13989-058054- | C101: Manziana | D101: Comune | F101: 058054 | G101: SI | K101: =B101 -> 1202_13989-058054- | L101: =IF(I101="SI",VLOOKUP(M101,$C$8:$K$7996,9,0),K101) -> 1202_13989-058054- | N101: =+IF(H101="SI",L101,0) -> 0 | O101: =IF(COUNTIF(B:B,B101)>1,FALSE,TRUE) -> TRUE | P101: TRUE | Q101: =IF(ISBLANK(C101),TRUE,IF(COUNTA(D101)<1,FALSE,TRUE)) -> TRUE

Sheet Corrispettivi Infrast Terzi
B1: COSTI ASSOCIATI AI SOGGETTI PROPRIETARI
C3: Imputare per ciascun soggetto proprietario il valore dei Mutui MT e altri corrispettivi AC
AF4: Non esistono duplicati | AI4: ---> se errori indicazione FALSO
AF5: =OR(INDEX(Corrispettivi_Proprietari,0,32)) -> TRUE
I6: Rimborso della rata dei mutui (MT) | M6: Altri corrispettivi (AC)
A7: N_riga | B7: Key_Prop | C7: Soggetto Proprietario | D7: Tipologia di proprietario | E7: P. IVA Proprietario | F7: Codice Istat Comune proprietario | G7: Anno di deliberazione | H7: previsto 2016 (€) | I7: previsto 2017 (€) | J7: previsto 2018 (€) | K7: previsto 2019 (€) | L7: Anno di deliberazione | M7: previsto 2016 (€) | N7: previsto 2017 (€) | O7: previsto 2018 (€) | P7: previsto 2019 (€) | AF7: Proprietario non duplicato
A8: 9 | B8: =IF(ISNA(VLOOKUP(C8,Soggetti_proprietari_infrastrut!C:K,9,0)),"",VLOOKUP(C8,Soggetti_proprietari_infrastrut!C:K,9,0)) -> 1202_13989-058001- | C8: Affile | D8: =IF(ISNA(VLOOKUP(C8,Soggetti_proprietari_infrastrut!C:K,2,0)),"",VLOOKUP(C8,Soggetti_proprietari_infrastrut!C:K,2,0)) -> Comune | E8: =IF(ISNA(VLOOKUP(C8,Soggetti_proprietari_infrastrut!C:K,3,0)),"",VLOOKUP(C8,Soggetti_proprietari_infrastrut!C:K,3,0)) -> 0 | F8: =IF(ISNA(VLOOKUP(C8,Soggetti_proprietari_infrastrut!C:K,4,0)),"",VLOOKUP(C8,Soggetti_proprietari_infrastrut!C:K,4,0)) -> 058001 | L8: 2002 | M8: 12688.39 | N8: 12688.39 | O8: 12688.39 | P8: 12688.39 | AF8: =IF(B8<>"",IF(COUNTIF(B:B,B8)>1,FALSE,TRUE),TRUE) -> TRUE
A9: 10 | B9: =IF(ISNA(VLOOKUP(C9,Soggetti_proprietari_infrastrut!C:K,9,0)),"",VLOOKUP(C9,Soggetti_proprietari_infrastrut!C:K,9,0)) -> 1202_13989-058003- | C9: Albano Laziale | D9: =IF(ISNA(VLOOKUP(C9,Soggetti_proprietari_infrastrut!C:K,2,0)),"",VLOOKUP(C9,Soggetti_proprietari_infrastrut!C:K,2,0)) -> Comune | E9: =IF(ISNA(VLOOKUP(C9,Soggetti_proprietari_infrastrut!C:K,3,0)),"",VLOOKUP(C9,Soggetti_proprietari_infrastrut!C:K,3,0)) -> 0 | F9: =IF(ISNA(VLOOKUP(C9,Soggetti_proprietari_infrastrut!C:K,4,0)),"",VLOOKUP(C9,Soggetti_proprietari_infrastrut!C:K,4,0)) -> 058003 | G9: 2002 | H9: 198196.11 | I9: 31719.81 | J9: 31719.81 | K9: 18060.08 | L9: 2002 | M9: 49227.76 | N9: 215704.06 | O9: 215704.06 | P9: 229363.79 | AF9: TRUE
A10: 11 | B10: =IF(ISNA(VLOOKUP(C10,Soggetti_proprietari_infrastrut!C:K,9,0)),"",VLOOKUP(C10,Soggetti_proprietari_infrastrut!C:K,9,0)) -> 1202_13989-058004- | C10: Allumiere | D10: =IF(ISNA(VLOOKUP(C10,Soggetti_proprietari_infrastrut!C:K,2,0)),"",VLOOKUP(C10,Soggetti_proprietari_infrastrut!C:K,2,0)) -> Comune | E10: =IF(ISNA(VLOOKUP(C10,Soggetti_proprietari_infrastrut!C:K,3,0)),"",VLOOKUP(C10,Soggetti_proprietari_infrastrut!C:K,3,0)) -> 0 | F10: =IF(ISNA(VLOOKUP(C10,Soggetti_proprietari_infrastrut!C:K,4,0)),"",VLOOKUP(C10,Soggetti_proprietari_infrastrut!C:K,4,0)) -> 058004 | L10: 2002 | M10: 31232.4 | N10: 31232.4 | O10: 31232.4 | P10: 31232.4 | AF10: TRUE
A11: 12 | B11: =IF(ISNA(VLOOKUP(C11,Soggetti_proprietari_infrastrut!C:K,9,0)),"",VLOOKUP(C11,Soggetti_proprietari_infrastrut!C:K,9,0)) -> 1202_13989-058008- | C11: Arcinazzo Romano | D11: =IF(ISNA(VLOOKUP(C11,Soggetti_proprietari_infrastrut!C:K,2,0)),"",VLOOKUP(C11,Soggetti_proprietari_infrastrut!C:K,2,0)) -> Comune | E11: =IF(ISNA(VLOOKUP(C11,Soggetti_proprietari_infrastrut!C:K,3,0)),"",VLOOKUP(C11,Soggetti_proprietari_infrastrut!C:K,3,0)) -> 0 | F11: =IF(ISNA(VLOOKUP(C11,Soggetti_proprietari_infrastrut!C:K,4,0)),"",VLOOKUP(C11,Soggetti_proprietari_infrastrut!C:K,4,0)) -> 058008 | L11: 2002 | M11: 10311.5 | N11: 10311.5 | O11: 10311.5 | P11: 10311.5 | AF11: TRUE
A12: 13 | B12: =IF(ISNA(VLOOKUP(C12,Soggetti_proprietari_infrastrut!C:K,9,0)),"",VLOOKUP(C12,Soggetti_proprietari_infrastrut!C:K,9,0)) -> 1202_13989-058009- | C12: Ariccia | D12: =IF(ISNA(VLOOKUP(C12,Soggetti_proprietari_infrastrut!C:K,2,0)),"",VLOOKUP(C12,Soggetti_proprietari_infrastrut!C:K,2,0)) -> Comune | E12: =IF(ISNA(VLOOKUP(C12,Soggetti_proprietari_infrastrut!C:K,3,0)),"",VLOOKUP(C12,Soggetti_proprietari_infrastrut!C:K,3,0)) -> 0 | F12: =IF(ISNA(VLOOKUP(C12,Soggetti_proprietari_infrastrut!C:K,4,0)),"",VLOOKUP(C12,Soggetti_proprietari_infrastrut!C:K,4,0)) -> 058009 | G12: 2002 | H12: 310331.86 | I12: 242946.32 | J12: 242946.32 | K12: 242946.32 | L12: 2002 | M12: 9051.7 | N12: 9051.7 | O12: 9051.7 | P12: 9051.7 | AF12: TRUE
A13: 14 | B13: =IF(ISNA(VLOOKUP(C13,Soggetti_proprietari_infrastrut!C:K,9,0)),"",VLOOKUP(C13,Soggetti_proprietari_infrastrut!C:K,9,0)) -> 1202_13989-058011- | C13: Artena | D13: =IF(ISNA(VLOOKUP(C13,Soggetti_proprietari_infrastrut!C:K,2,0)),"",VLOOKUP(C13,Soggetti_proprietari_infrastrut!C:K,2,0)) -> Comune | E13: =IF(ISNA(VLOOKUP(C13,Soggetti_proprietari_infrastrut!C:K,3,0)),"",VLOOKUP(C13,Soggetti_proprietari_infrastrut!C:K,3,0)) -> 0 | F13: =IF(ISNA(VLOOKUP(C13,Soggetti_proprietari_infrastrut!C:K,4,0)),"",VLOOKUP(C13,Soggetti_proprietari_infrastrut!C:K,4,0)) -> 058011 | L13: 2002 | M13: 81653.11 | N13: 81653.11 | O13: 81653.11 | P13: 81653.11 | AF13: TRUE
A14: 15 | B14: =IF(ISNA(VLOOKUP(C14,Soggetti_proprietari_infrastrut!C:K,9,0)),"",VLOOKUP(C14,Soggetti_proprietari_infrastrut!C:K,9,0)) -> 1202_13989-058012- | C14: Bellegra | D14: =IF(ISNA(VLOOKUP(C14,Soggetti_proprietari_infrastrut!C:K,2,0)),"",VLOOKUP(C14,Soggetti_proprietari_infrastrut!C:K,2,0)) -> Comune | E14: =IF(ISNA(VLOOKUP(C14,Soggetti_proprietari_infrastrut!C:K,3,0)),"",VLOOKUP(C14,Soggetti_proprietari_infrastrut!C:K,3,0)) -> 0 | F14: =IF(ISNA(VLOOKUP(C14,Soggetti_proprietari_infrastrut!C:K,4,0)),"",VLOOKUP(C14,Soggetti_proprietari_infrastrut!C:K,4,0)) -> 058012 | L14: 2002 | M14: 22565.84 | N14: 22565.84 | O14: 22565.84 | P14: 22565.84 | AF14: TRUE
A15: 16 | B15: =IF(ISNA(VLOOKUP(C15,Soggetti_proprietari_infrastrut!C:K,9,0)),"",VLOOKUP(C15,Soggetti_proprietari_infrastrut!C:K,9,0)) -> 1202_13989-058017- | C15: Canterano | D15: =IF(ISNA(VLOOKUP(C15,Soggetti_proprietari_infrastrut!C:K,2,0)),"",VLOOKUP(C15,Soggetti_proprietari_infrastrut!C:K,2,0)) -> Comune | E15: =IF(ISNA(VLOOKUP(C15,Soggetti_proprietari_infrastrut!C:K,3,0)),"",VLOOKUP(C15,Soggetti_proprietari_infrastrut!C:K,3,0)) -> 0 | F15: =IF(ISNA(VLOOKUP(C15,Soggetti_proprietari_infrastrut!C:K,4,0)),"",VLOOKUP(C15,Soggetti_proprietari_infrastrut!C:K,4,0)) -> 058017 | L15: 2002 | M15: 2898.59 | N15: 2898.59 | O15: 2898.59 | P15: 2898.59 | AF15: TRUE
A16: 17 | B16: =IF(ISNA(VLOOKUP(C16,Soggetti_proprietari_infrastrut!C:K,9,0)),"",VLOOKUP(C16,Soggetti_proprietari_infrastrut!C:K,9,0)) -> 1202_13989-058019- | C16: Capranica Prenestina | D16: =IF(ISNA(VLOOKUP(C16,Soggetti_proprietari_infrastrut!C:K,2,0)),"",VLOOKUP(C16,Soggetti_proprietari_infrastrut!C:K,2,0)) -> Comune | E16: =IF(ISNA(VLOOKUP(C16,Soggetti_proprietari_infrastrut!C:K,3,0)),"",VLOOKUP(C16,Soggetti_proprietari_infrastrut!C:K,3,0)) -> 0 | F16: =IF(ISNA(VLOOKUP(C16,Soggetti_proprietari_infrastrut!C:K,4,0)),"",VLOOKUP(C16,Soggetti_proprietari_infrastrut!C:K,4,0)) -> 058019 | L16: 2002 | M16: 2340.54 | N16: 2340.54 | O16: 2340.54 | P16: 2340.54 | AF16: TRUE
A17: 18 | B17: =IF(ISNA(VLOOKUP(C17,Soggetti_proprietari_infrastrut!C:K,9,0)),"",VLOOKUP(C17,Soggetti_proprietari_infrastrut!C:K,9,0)) -> 1202_13989-058020- | C17: Carpineto Romano | D17: =IF(ISNA(VLOOKUP(C17,Soggetti_proprietari_infrastrut!C:K,2,0)),"",VLOOKUP(C17,Soggetti_proprietari_infrastrut!C:K,2,0)) -> Comune | E17: =IF(ISNA(VLOOKUP(C17,Soggetti_proprietari_infrastrut!C:K,3,0)),"",VLOOKUP(C17,Soggetti_proprietari_infrastrut!C:K,3,0)) -> 0 | F17: =IF(ISNA(VLOOKUP(C17,Soggetti_proprietari_infrastrut!C:K,4,0)),"",VLOOKUP(C17,Soggetti_proprietari_infrastrut!C:K,4,0)) -> 058020 | L17: 2002 | M17: 36761.61 | N17: 36761.61 | O17: 36761.61 | P17: 36761.61 | AF17: TRUE
A18: 19 | B18: =IF(ISNA(VLOOKUP(C18,Soggetti_proprietari_infrastrut!C:K,9,0)),"",VLOOKUP(C18,Soggetti_proprietari_infrastrut!C:K,9,0)) -> 1202_13989-058021- | C18: Casape | D18: =IF(ISNA(VLOOKUP(C18,Soggetti_proprietari_infrastrut!C:K,2,0)),"",VLOOKUP(C18,Soggetti_proprietari_infrastrut!C:K,2,0)) -> Comune | E18: =IF(ISNA(VLOOKUP(C18,Soggetti_proprietari_infrastrut!C:K,3,0)),"",VLOOKUP(C18,Soggetti_proprietari_infrastrut!C:K,3,0)) -> 0 | F18: =IF(ISNA(VLOOKUP(C18,Soggetti_proprietari_infrastrut!C:K,4,0)),"",VLOOKUP(C18,Soggetti_proprietari_infrastrut!C:K,4,0)) -> 058021 | L18: 2002 | M18: 5877.01 | N18: 5877.01 | O18: 5877.01 | P18: 5877.01 | AF18: TRUE
A19: 20 | B19: =IF(ISNA(VLOOKUP(C19,Soggetti_proprietari_infrastrut!C:K,9,0)),"",VLOOKUP(C19,Soggetti_proprietari_infrastrut!C:K,9,0)) -> 1202_13989-058022- | C19: Castel Gandolfo | D19: =IF(ISNA(VLOOKUP(C19,Soggetti_proprietari_infrastrut!C:K,2,0)),"",VLOOKUP(C19,Soggetti_proprietari_infrastrut!C:K,2,0)) -> Comune | E19: =IF(ISNA(VLOOKUP(C19,Soggetti_proprietari_infrastrut!C:K,3,0)),"",VLOOKUP(C19,Soggetti_proprietari_infrastrut!C:K,3,0)) -> 0 | F19: =IF(ISNA(VLOOKUP(C19,Soggetti_proprietari_infrastrut!C:K,4,0)),"",VLOOKUP(C19,Soggetti_proprietari_infrastrut!C:K,4,0)) -> 058022 | L19: 2002 | M19: 56884.99 | N19: 56884.99 | O19: 56884.99 | P19: 56884.99 | AF19: TRUE
A20: 21 | B20: =IF(ISNA(VLOOKUP(C20,Soggetti_proprietari_infrastrut!C:K,9,0)),"",VLOOKUP(C20,Soggetti_proprietari_infrastrut!C:K,9,0)) -> 1202_13989-058023- | C20: Castel Madama | D20: =IF(ISNA(VLOOKUP(C20,Soggetti_proprietari_infrastrut!C:K,2,0)),"",VLOOKUP(C20,Soggetti_proprietari_infrastrut!C:K,2,0)) -> Comune | E20: =IF(ISNA(VLOOKUP(C20,Soggetti_proprietari_infrastrut!C:K,3,0)),"",VLOOKUP(C20,Soggetti_proprietari_infrastrut!C:K,3,0)) -> 0 | F20: =IF(ISNA(VLOOKUP(C20,Soggetti_proprietari_infrastrut!C:K,4,0)),"",VLOOKUP(C20,Soggetti_proprietari_infrastrut!C:K,4,0)) -> 058023 | G20: 2002 | H20: 31155.03 | I20: 25614.97 | J20: 25614.97 | K20: 25614.97 | L20: 2002 | M20: 17150.35 | N20: 22690.41 | O20: 22690.41 | P20: 22690.41 | AF20: TRUE
A21: 22 | B21: =IF(ISNA(VLOOKUP(C21,Soggetti_proprietari_infrastrut!C:K,9,0)),"",VLOOKUP(C21,Soggetti_proprietari_infrastrut!C:K,9,0)) -> 1202_13989-058025- | C21: Castel San Pietro Romano | D21: =IF(ISNA(VLOOKUP(C21,Soggetti_proprietari_infrastrut!C:K,2,0)),"",VLOOKUP(C21,Soggetti_proprietari_infrastrut!C:K,2,0)) -> Comune | E21: =IF(ISNA(VLOOKUP(C21,Soggetti_proprietari_infrastrut!C:K,3,0)),"",VLOOKUP(C21,Soggetti_proprietari_infrastrut!C:K,3,0)) -> 0 | F21: =IF(ISNA(VLOOKUP(C21,Soggetti_proprietari_infrastrut!C:K,4,0)),"",VLOOKUP(C21,Soggetti_proprietari_infrastrut!C:K,4,0)) -> 058025 | L21: 2002 | M21: 5478.6 | N21: 5478.6 | O21: 5478.6 | P21: 5478.6 | AF21: TRUE
A22: 23 | B22: =IF(ISNA(VLOOKUP(C22,Soggetti_proprietari_infrastrut!C:K,9,0)),"",VLOOKUP(C22,Soggetti_proprietari_infrastrut!C:K,9,0)) -> 1202_13989-058024- | C22: Castelnuovo di Porto | D22: =IF(ISNA(VLOOKUP(C22,Soggetti_proprietari_infrastrut!C:K,2,0)),"",VLOOKUP(C22,Soggetti_proprietari_infrastrut!C:K,2,0)) -> Comune | E22: =IF(ISNA(VLOOKUP(C22,Soggetti_proprietari_infrastrut!C:K,3,0)),"",VLOOKUP(C22,Soggetti_proprietari_infrastrut!C:K,3,0)) -> 0 | F22: =IF(ISNA(VLOOKUP(C22,Soggetti_proprietari_infrastrut!C:K,4,0)),"",VLOOKUP(C22,Soggetti_proprietari_infrastrut!C:K,4,0)) -> 058024 | L22: 2002 | M22: 50689.4 | N22: 50689.4 | O22: 50689.4 | P22: 50689.4 | AF22: TRUE
A23: 24 | B23: =IF(ISNA(VLOOKUP(C23,Soggetti_proprietari_infrastrut!C:K,9,0)),"",VLOOKUP(C23,Soggetti_proprietari_infrastrut!C:K,9,0)) -> 1202_13989-058026- | C23: Cave | D23: =IF(ISNA(VLOOKUP(C23,Soggetti_proprietari_infrastrut!C:K,2,0)),"",VLOOKUP(C23,Soggetti_proprietari_infrastrut!C:K,2,0)) -> Comune | E23: =IF(ISNA(VLOOKUP(C23,Soggetti_proprietari_infrastrut!C:K,3,0)),"",VLOOKUP(C23,Soggetti_proprietari_infrastrut!C:K,3,0)) -> 0 | F23: =IF(ISNA(VLOOKUP(C23,Soggetti_proprietari_infrastrut!C:K,4,0)),"",VLOOKUP(C23,Soggetti_proprietari_infrastrut!C:K,4,0)) -> 058026 | L23: 2002 | M23: 67385.35 | N23: 67385.35 | O23: 67385.35 | P23: 67385.35 | AF23: TRUE
A24: 25 | B24: =IF(ISNA(VLOOKUP(C24,Soggetti_proprietari_infrastrut!C:K,9,0)),"",VLOOKUP(C24,Soggetti_proprietari_infrastrut!C:K,9,0)) -> 1202_13989-058028- | C24: Cervara di Roma | D24: =IF(ISNA(VLOOKUP(C24,Soggetti_proprietari_infrastrut!C:K,2,0)),"",VLOOKUP(C24,Soggetti_proprietari_infrastrut!C:K,2,0)) -> Comune | E24: =IF(ISNA(VLOOKUP(C24,Soggetti_proprietari_infrastrut!C:K,3,0)),"",VLOOKUP(C24,Soggetti_proprietari_infrastrut!C:K,3,0)) -> 0 | F24: =IF(ISNA(VLOOKUP(C24,Soggetti_proprietari_infrastrut!C:K,4,0)),"",VLOOKUP(C24,Soggetti_proprietari_infrastrut!C:K,4,0)) -> 058028 | L24: 2002 | M24: 3521.5 | N24: 3521.5 | O24: 3521.5 | P24: 3521.5 | AF24: TRUE
A25: 26 | B25: =IF(ISNA(VLOOKUP(C25,Soggetti_proprietari_infrastrut!C:K,9,0)),"",VLOOKUP(C25,Soggetti_proprietari_infrastrut!C:K,9,0)) -> 1202_13989-058029- | C25: Cerveteri | D25: =IF(ISNA(VLOOKUP(C25,Soggetti_proprietari_infrastrut!C:K,2,0)),"",VLOOKUP(C25,Soggetti_proprietari_infrastrut!C:K,2,0)) -> Comune | E25: =IF(ISNA(VLOOKUP(C25,Soggetti_proprietari_infrastrut!C:K,3,0)),"",VLOOKUP(C25,Soggetti_proprietari_infrastrut!C:K,3,0)) -> 0 | F25: =IF(ISNA(VLOOKUP(C25,Soggetti_proprietari_infrastrut!C:K,4,0)),"",VLOOKUP(C25,Soggetti_proprietari_infrastrut!C:K,4,0)) -> 058029 | L25: 2002 | M25: 177162.02 | N25: 177162.02 | O25: 177162.02 | P25: 177162.02 | AF25: TRUE
A26: 27 | B26: =IF(ISNA(VLOOKUP(C26,Soggetti_proprietari_infrastrut!C:K,9,0)),"",VLOOKUP(C26,Soggetti_proprietari_infrastrut!C:K,9,0)) -> 1202_13989-058118- | C26: Ciampino | D26: =IF(ISNA(VLOOKUP(C26,Soggetti_proprietari_infrastrut!C:K,2,0)),"",VLOOKUP(C26,Soggetti_proprietari_infrastrut!C:K,2,0)) -> Comune | E26: =IF(ISNA(VLOOKUP(C26,Soggetti_proprietari_infrastrut!C:K,3,0)),"",VLOOKUP(C26,Soggetti_proprietari_infrastrut!C:K,3,0)) -> 0 | F26: =IF(ISNA(VLOOKUP(C26,Soggetti_proprietari_infrastrut!C:K,4,0)),"",VLOOKUP(C26,Soggetti_proprietari_infrastrut!C:K,4,0)) -> 058118 | G26: 2002 | H26: 1394122.46 | I26: 3354.86 | J26: 3354.86 | K26: 3354.86 | L26: 2002 | M26: 18094.42 | N26: 260881.14 | O26: 260881.14 | P26: 260881.14 | AF26: TRUE
A27: 28 | B27: =IF(ISNA(VLOOKUP(C27,Soggetti_proprietari_infrastrut!C:K,9,0)),"",VLOOKUP(C27,Soggetti_proprietari_infrastrut!C:K,9,0)) -> 1202_13989-058030- | C27: Ciciliano | D27: =IF(ISNA(VLOOKUP(C27,Soggetti_proprietari_infrastrut!C:K,2,0)),"",VLOOKUP(C27,Soggetti_proprietari_infrastrut!C:K,2,0)) -> Comune | E27: =IF(ISNA(VLOOKUP(C27,Soggetti_proprietari_infrastrut!C:K,3,0)),"",VLOOKUP(C27,Soggetti_proprietari_infrastrut!C:K,3,0)) -> 0 | F27: =IF(ISNA(VLOOKUP(C27,Soggetti_proprietari_infrastrut!C:K,4,0)),"",VLOOKUP(C27,Soggetti_proprietari_infrastrut!C:K,4,0)) -> 058030 | L27: 2002 | M27: 8311.63 | N27: 8311.63 | O27: 8311.63 | P27: 8311.63 | AF27: TRUE
A28: 29 | B28: =IF(ISNA(VLOOKUP(C28,Soggetti_proprietari_infrastrut!C:K,9,0)),"",VLOOKUP(C28,Soggetti_proprietari_infrastrut!C:K,9,0)) -> 1202_13989-058035- | C28: Colonna | D28: =IF(ISNA(VLOOKUP(C28,Soggetti_proprietari_infrastrut!C:K,2,0)),"",VLOOKUP(C28,Soggetti_proprietari_infrastrut!C:K,2,0)) -> Comune | E28: =IF(ISNA(VLOOKUP(C28,Soggetti_proprietari_infrastrut!C:K,3,0)),"",VLOOKUP(C28,Soggetti_proprietari_infrastrut!C:K,3,0)) -> 0 | F28: =IF(ISNA(VLOOKUP(C28,Soggetti_proprietari_infrastrut!C:K,4,0)),"",VLOOKUP(C28,Soggetti_proprietari_infrastrut!C:K,4,0)) -> 058035 | L28: 2002 | M28: 23543.68 | N28: 23543.68 | O28: 23543.68 | P28: 23543.68 | AF28: TRUE
A29: 30 | B29: =IF(ISNA(VLOOKUP(C29,Soggetti_proprietari_infrastrut!C:K,9,0)),"",VLOOKUP(C29,Soggetti_proprietari_infrastrut!C:K,9,0)) -> 1202_13989-058036- | C29: Fiano Romano | D29: =IF(ISNA(VLOOKUP(C29,Soggetti_proprietari_infrastrut!C:K,2,0)),"",VLOOKUP(C29,Soggetti_proprietari_infrastrut!C:K,2,0)) -> Comune | E29: =IF(ISNA(VLOOKUP(C29,Soggetti_proprietari_infrastrut!C:K,3,0)),"",VLOOKUP(C29,Soggetti_proprietari_infrastrut!C:K,3,0)) -> 0 | F29: =IF(ISNA(VLOOKUP(C29,Soggetti_proprietari_infrastrut!C:K,4,0)),"",VLOOKUP(C29,Soggetti_proprietari_infrastrut!C:K,4,0)) -> 058036 | G29: 2002 | H29: 62482.01 | I29: 62482.01 | J29: 62482.01 | K29: 59495.83 | L29: 2002 | M29: 3721.2 | N29: 3721.2 | O29: 3721.2 | P29: 3721.2 | AF29: TRUE
A30: 31 | B30: =IF(ISNA(VLOOKUP(C30,Soggetti_proprietari_infrastrut!C:K,9,0)),"",VLOOKUP(C30,Soggetti_proprietari_infrastrut!C:K,9,0)) -> 1202_13989-058037- | C30: Filacciano | D30: =IF(ISNA(VLOOKUP(C30,Soggetti_proprietari_infrastrut!C:K,2,0)),"",VLOOKUP(C30,Soggetti_proprietari_infrastrut!C:K,2,0)) -> Comune | E30: =IF(ISNA(VLOOKUP(C30,Soggetti_proprietari_infrastrut!C:K,3,0)),"",VLOOKUP(C30,Soggetti_proprietari_infrastrut!C:K,3,0)) -> 0 | F30: =IF(ISNA(VLOOKUP(C30,Soggetti_proprietari_infrastrut!C:K,4,0)),"",VLOOKUP(C30,Soggetti_proprietari_infrastrut!C:K,4,0)) -> 058037 | L30: 2002 | M30: 3442.39 | N30: 3442.39 | O30: 3442.39 | P30: 3442.39 | AF30: TRUE
A31: 32 | B31: =IF(ISNA(VLOOKUP(C31,Soggetti_proprietari_infrastrut!C:K,9,0)),"",VLOOKUP(C31,Soggetti_proprietari_infrastrut!C:K,9,0)) -> 1202_13989-058120- | C31: Fiumicino | D31: =IF(ISNA(VLOOKUP(C31,Soggetti_proprietari_infrastrut!C:K,2,0)),"",VLOOKUP(C31,Soggetti_proprietari_infrastrut!C:K,2,0)) -> Comune | E31: =IF(ISNA(VLOOKUP(C31,Soggetti_proprietari_infrastrut!C:K,3,0)),"",VLOOKUP(C31,Soggetti_proprietari_infrastrut!C:K,3,0)) -> 0 | F31: =IF(ISNA(VLOOKUP(C31,Soggetti_proprietari_infrastrut!C:K,4,0)),"",VLOOKUP(C31,Soggetti_proprietari_infrastrut!C:K,4,0)) -> 058120 | G31: 2002 | H31: 455043.04 | I31: 455043.04 | J31: 138617.84 | K31: 47379.46 | L31: 2002 | M31: 24899.67 | N31: 24899.67 | O31: 224996.38 | P31: 316234.76 | AF31: TRUE
A32: 33 | B32: =IF(ISNA(VLOOKUP(C32,Soggetti_proprietari_infrastrut!C:K,9,0)),"",VLOOKUP(C32,Soggetti_proprietari_infrastrut!C:K,9,0)) -> 1202_13989-058122- | C32: Fonte Nuova | D32: =IF(ISNA(VLOOKUP(C32,Soggetti_proprietari_infrastrut!C:K,2,0)),"",VLOOKUP(C32,Soggetti_proprietari_infrastrut!C:K,2,0)) -> Comune | E32: =IF(ISNA(VLOOKUP(C32,Soggetti_proprietari_infrastrut!C:K,3,0)),"",VLOOKUP(C32,Soggetti_proprietari_infrastrut!C:K,3,0)) -> 0 | F32: =IF(ISNA(VLOOKUP(C32,Soggetti_proprietari_infrastrut!C:K,4,0)),"",VLOOKUP(C32,Soggetti_proprietari_infrastrut!C:K,4,0)) -> 058122 | G32: 2002 | H32: 29454.62 | I32: 29454.62 | J32: 29454.62 | L32: 2002 | M32: 113685.45 | N32: 113685.45 | O32: 113685.45 | P32: 143140.07 | AF32: TRUE
A33: 34 | B33: =IF(ISNA(VLOOKUP(C33,Soggetti_proprietari_infrastrut!C:K,9,0)),"",VLOOKUP(C33,Soggetti_proprietari_infrastrut!C:K,9,0)) -> 1202_13989-058038- | C33: Formello | D33: =IF(ISNA(VLOOKUP(C33,Soggetti_proprietari_infrastrut!C:K,2,0)),"",VLOOKUP(C33,Soggetti_proprietari_infrastrut!C:K,2,0)) -> Comune | E33: =IF(ISNA(VLOOKUP(C33,Soggetti_proprietari_infrastrut!C:K,3,0)),"",VLOOKUP(C33,Soggetti_proprietari_infrastrut!C:K,3,0)) -> 0 | F33: =IF(ISNA(VLOOKUP(C33,Soggetti_proprietari_infrastrut!C:K,4,0)),"",VLOOKUP(C33,Soggetti_proprietari_infrastrut!C:K,4,0)) -> 058038 | G33: 2002 | H33: 78931.33 | I33: 70420.96 | J33: 38856 | K33: 24464.14 | L33: 2002 | M33: 4459.08 | N33: 4459.08 | O33: 26260.8 | P33: 40652.66 | AF33: TRUE
A34: 35 | B34: =IF(ISNA(VLOOKUP(C34,Soggetti_proprietari_infrastrut!C:K,9,0)),"",VLOOKUP(C34,Soggetti_proprietari_infrastrut!C:K,9,0)) -> 1202_13989-058039- | C34: Frascati | D34: =IF(ISNA(VLOOKUP(C34,Soggetti_proprietari_infrastrut!C:K,2,0)),"",VLOOKUP(C34,Soggetti_proprietari_infrastrut!C:K,2,0)) -> Comune | E34: =IF(ISNA(VLOOKUP(C34,Soggetti_proprietari_infrastrut!C:K,3,0)),"",VLOOKUP(C34,Soggetti_proprietari_infrastrut!C:K,3,0)) -> 0 | F34: =IF(ISNA(VLOOKUP(C34,Soggetti_proprietari_infrastrut!C:K,4,0)),"",VLOOKUP(C34,Soggetti_proprietari_infrastrut!C:K,4,0)) -> 058039 | G34: 2002 | H34: 615945.91 | I34: 615945.91 | J34: 615945.91 | K34: 615945.91 | L34: 2002 | M34: 10378.08 | N34: 10378.08 | O34: 10378.08 | P34: 10378.08 | AF34: TRUE
A35: 36 | B35: =IF(ISNA(VLOOKUP(C35,Soggetti_proprietari_infrastrut!C:K,9,0)),"",VLOOKUP(C35,Soggetti_proprietari_infrastrut!C:K,9,0)) -> 1202_13989-058040- | C35: Gallicano nel Lazio | D35: =IF(ISNA(VLOOKUP(C35,Soggetti_proprietari_infrastrut!C:K,2,0)),"",VLOOKUP(C35,Soggetti_proprietari_infrastrut!C:K,2,0)) -> Comune | E35: =IF(ISNA(VLOOKUP(C35,Soggetti_proprietari_infrastrut!C:K,3,0)),"",VLOOKUP(C35,Soggetti_proprietari_infrastrut!C:K,3,0)) -> 0 | F35: =IF(ISNA(VLOOKUP(C35,Soggetti_proprietari_infrastrut!C:K,4,0)),"",VLOOKUP(C35,Soggetti_proprietari_infrastrut!C:K,4,0)) -> 058040 | L35: 2002 | M35: 30123.42 | N35: 30123.42 | O35: 30123.42 | P35: 30123.42 | AF35: TRUE
A36: 37 | B36: =IF(ISNA(VLOOKUP(C36,Soggetti_proprietari_infrastrut!C:K,9,0)),"",VLOOKUP(C36,Soggetti_proprietari_infrastrut!C:K,9,0)) -> 1202_13989-058041- | C36: Gavignano | D36: =IF(ISNA(VLOOKUP(C36,Soggetti_proprietari_infrastrut!C:K,2,0)),"",VLOOKUP(C36,Soggetti_proprietari_infrastrut!C:K,2,0)) -> Comune | E36: =IF(ISNA(VLOOKUP(C36,Soggetti_proprietari_infrastrut!C:K,3,0)),"",VLOOKUP(C36,Soggetti_proprietari_infrastrut!C:K,3,0)) -> 0 | F36: =IF(ISNA(VLOOKUP(C36,Soggetti_proprietari_infrastrut!C:K,4,0)),"",VLOOKUP(C36,Soggetti_proprietari_infrastrut!C:K,4,0)) -> 058041 | L36: 2002 | M36: 12427.53 | N36: 12427.53 | O36: 12427.53 | P36: 12427.53 | AF36: TRUE
A37: 38 | B37: =IF(ISNA(VLOOKUP(C37,Soggetti_proprietari_infrastrut!C:K,9,0)),"",VLOOKUP(C37,Soggetti_proprietari_infrastrut!C:K,9,0)) -> 1202_13989-058042- | C37: Genazzano | D37: =IF(ISNA(VLOOKUP(C37,Soggetti_proprietari_infrastrut!C:K,2,0)),"",VLOOKUP(C37,Soggetti_proprietari_infrastrut!C:K,2,0)) -> Comune | E37: =IF(ISNA(VLOOKUP(C37,Soggetti_proprietari_infrastrut!C:K,3,0)),"",VLOOKUP(C37,Soggetti_proprietari_infrastrut!C:K,3,0)) -> 0 | F37: =IF(ISNA(VLOOKUP(C37,Soggetti_proprietari_infrastrut!C:K,4,0)),"",VLOOKUP(C37,Soggetti_proprietari_infrastrut!C:K,4,0)) -> 058042 | G37: 2002 | H37: 29827.22 | I37: 29827.22 | J37: 29827.22 | K37: 29827.22 | L37: 2002 | M37: 9180.85 | N37: 9180.85 | O37: 9180.85 | P37: 9180.85 | AF37: TRUE
A38: 39 | B38: =IF(ISNA(VLOOKUP(C38,Soggetti_proprietari_infrastrut!C:K,9,0)),"",VLOOKUP(C38,Soggetti_proprietari_infrastrut!C:K,9,0)) -> 1202_13989-058043- | C38: Genzano di Roma | D38: =IF(ISNA(VLOOKUP(C38,Soggetti_proprietari_infrastrut!C:K,2,0)),"",VLOOKUP(C38,Soggetti_proprietari_infrastrut!C:K,2,0)) -> Comune | E38: =IF(ISNA(VLOOKUP(C38,Soggetti_proprietari_infrastrut!C:K,3,0)),"",VLOOKUP(C38,Soggetti_proprietari_infrastrut!C:K,3,0)) -> 0 | F38: =IF(ISNA(VLOOKUP(C38,Soggetti_proprietari_infrastrut!C:K,4,0)),"",VLOOKUP(C38,Soggetti_proprietari_infrastrut!C:K,4,0)) -> 058043 | L38: 2002 | M38: 160952.13 | N38: 160952.13 | O38: 160952.13 | P38: 160952.13 | AF38: TRUE
A39: 40 | B39: =IF(ISNA(VLOOKUP(C39,Soggetti_proprietari_infrastrut!C:K,9,0)),"",VLOOKUP(C39,Soggetti_proprietari_infrastrut!C:K,9,0)) -> 1202_13989-058044- | C39: Gerano | D39: =IF(ISNA(VLOOKUP(C39,Soggetti_proprietari_infrastrut!C:K,2,0)),"",VLOOKUP(C39,Soggetti_proprietari_infrastrut!C:K,2,0)) -> Comune | E39: =IF(ISNA(VLOOKUP(C39,Soggetti_proprietari_infrastrut!C:K,3,0)),"",VLOOKUP(C39,Soggetti_proprietari_infrastrut!C:K,3,0)) -> 0 | F39: =IF(ISNA(VLOOKUP(C39,Soggetti_proprietari_infrastrut!C:K,4,0)),"",VLOOKUP(C39,Soggetti_proprietari_infrastrut!C:K,4,0)) -> 058044 | L39: 2002 | M39: 8804.83 | N39: 8804.83 | O39: 8804.83 | P39: 8804.83 | AF39: TRUE
A40: 41 | B40: =IF(ISNA(VLOOKUP(C40,Soggetti_proprietari_infrastrut!C:K,9,0)),"",VLOOKUP(C40,Soggetti_proprietari_infrastrut!C:K,9,0)) -> 1202_13989-058045- | C40: Gorga | D40: =IF(ISNA(VLOOKUP(C40,Soggetti_proprietari_infrastrut!C:K,2,0)),"",VLOOKUP(C40,Soggetti_proprietari_infrastrut!C:K,2,0)) -> Comune | E40: =IF(ISNA(VLOOKUP(C40,Soggetti_proprietari_infrastrut!C:K,3,0)),"",VLOOKUP(C40,Soggetti_proprietari_infrastrut!C:K,3,0)) -> 0 | F40: =IF(ISNA(VLOOKUP(C40,Soggetti_proprietari_infrastrut!C:K,4,0)),"",VLOOKUP(C40,Soggetti_proprietari_infrastrut!C:K,4,0)) -> 058045 | L40: 2002 | M40: 5435.13 | N40: 5435.13 | O40: 5435.13 | P40: 5435.13 | AF40: =IF(B40<>"",IF(COUNTIF(B:B,B40)>1,FALSE,TRUE),TRUE) -> TRUE
A41: 42 | B41: =IF(ISNA(VLOOKUP(C41,Soggetti_proprietari_infrastrut!C:K,9,0)),"",VLOOKUP(C41,Soggetti_proprietari_infrastrut!C:K,9,0)) -> 1202_13989-058046- | C41: Grottaferrata | D41: =IF(ISNA(VLOOKUP(C41,Soggetti_proprietari_infrastrut!C:K,2,0)),"",VLOOKUP(C41,Soggetti_proprietari_infrastrut!C:K,2,0)) -> Comune | E41: =IF(ISNA(VLOOKUP(C41,Soggetti_proprietari_infrastrut!C:K,3,0)),"",VLOOKUP(C41,Soggetti_proprietari_infrastrut!C:K,3,0)) -> 0 | F41: =IF(ISNA(VLOOKUP(C41,Soggetti_proprietari_infrastrut!C:K,4,0)),"",VLOOKUP(C41,Soggetti_proprietari_infrastrut!C:K,4,0)) -> 058046 | G41: 2002 | H41: 98859.34 | I41: 98859.34 | J41: 33332.3 | K41: 33332.3 | L41: 2002 | M41: 28975.98 | N41: 28975.98 | O41: 94503.02 | P41: 94503.02 | AF41: TRUE
A42: 43 | B42: =IF(ISNA(VLOOKUP(C42,Soggetti_proprietari_infrastrut!C:K,9,0)),"",VLOOKUP(C42,Soggetti_proprietari_infrastrut!C:K,9,0)) -> 1202_13989-058047- | C42: Guidonia Montecelio | D42: =IF(ISNA(VLOOKUP(C42,Soggetti_proprietari_infrastrut!C:K,2,0)),"",VLOOKUP(C42,Soggetti_proprietari_infrastrut!C:K,2,0)) -> Comune | E42: =IF(ISNA(VLOOKUP(C42,Soggetti_proprietari_infrastrut!C:K,3,0)),"",VLOOKUP(C42,Soggetti_proprietari_infrastrut!C:K,3,0)) -> 0 | F42: =IF(ISNA(VLOOKUP(C42,Soggetti_proprietari_infrastrut!C:K,4,0)),"",VLOOKUP(C42,Soggetti_proprietari_infrastrut!C:K,4,0)) -> 058047 | L42: 2002 | M42: 469580.02 | N42: 469580.02 | O42: 469580.02 | P42: 469580.02 | AF42: TRUE
A43: 44 | B43: =IF(ISNA(VLOOKUP(C43,Soggetti_proprietari_infrastrut!C:K,9,0)),"",VLOOKUP(C43,Soggetti_proprietari_infrastrut!C:K,9,0)) -> 1202_13989-058048- | C43: Jenne | D43: =IF(ISNA(VLOOKUP(C43,Soggetti_proprietari_infrastrut!C:K,2,0)),"",VLOOKUP(C43,Soggetti_proprietari_infrastrut!C:K,2,0)) -> Comune | E43: =IF(ISNA(VLOOKUP(C43,Soggetti_proprietari_infrastrut!C:K,3,0)),"",VLOOKUP(C43,Soggetti_proprietari_infrastrut!C:K,3,0)) -> 0 | F43: =IF(ISNA(VLOOKUP(C43,Soggetti_proprietari_infrastrut!C:K,4,0)),"",VLOOKUP(C43,Soggetti_proprietari_infrastrut!C:K,4,0)) -> 058048 | G43: 2002 | H43: 13508.51 | I43: 5747.86 | J43: 5747.86 | K43: 636 | L43: 2002 | M43: 260.03 | N43: 260.03 | O43: 260.03 | P43: 3161.32 | AF43: TRUE
A44: 45 | B44: =IF(ISNA(VLOOKUP(C44,Soggetti_proprietari_infrastrut!C:K,9,0)),"",VLOOKUP(C44,Soggetti_proprietari_infrastrut!C:K,9,0)) -> 1202_13989-058050- | C44: Lanuvio | D44: =IF(ISNA(VLOOKUP(C44,Soggetti_proprietari_infrastrut!C:K,2,0)),"",VLOOKUP(C44,Soggetti_proprietari_infrastrut!C:K,2,0)) -> Comune | E44: =IF(ISNA(VLOOKUP(C44,Soggetti_proprietari_infrastrut!C:K,3,0)),"",VLOOKUP(C44,Soggetti_proprietari_infrastrut!C:K,3,0)) -> 0 | F44: =IF(ISNA(VLOOKUP(C44,Soggetti_proprietari_infrastrut!C:K,4,0)),"",VLOOKUP(C44,Soggetti_proprietari_infrastrut!C:K,4,0)) -> 058050 | G44: 2002 | H44: 52874.62 | I44: 48296.4 | J44: 48296.4 | K44: 48296.4 | L44: 2002 | M44: 13438.11 | N44: 18016.33 | O44: 18016.33 | P44: 18016.33 | AF44: TRUE
A45: 46 | B45: =IF(ISNA(VLOOKUP(C45,Soggetti_proprietari_infrastrut!C:K,9,0)),"",VLOOKUP(C45,Soggetti_proprietari_infrastrut!C:K,9,0)) -> 1202_13989-058115- | C45: Lariano | D45: =IF(ISNA(VLOOKUP(C45,Soggetti_proprietari_infrastrut!C:K,2,0)),"",VLOOKUP(C45,Soggetti_proprietari_infrastrut!C:K,2,0)) -> Comune | E45: =IF(ISNA(VLOOKUP(C45,Soggetti_proprietari_infrastrut!C:K,3,0)),"",VLOOKUP(C45,Soggetti_proprietari_infrastrut!C:K,3,0)) -> 0 | F45: =IF(ISNA(VLOOKUP(C45,Soggetti_proprietari_infrastrut!C:K,4,0)),"",VLOOKUP(C45,Soggetti_proprietari_infrastrut!C:K,4,0)) -> 058115 | G45: 2002 | H45: 70680.77 | I45: 70680.77 | J45: 70680.77 | K45: 70680.77 | L45: 2002 | M45: 4714.14 | N45: 4714.14 | O45: 4714.14 | P45: 4714.14 | AF45: TRUE
A46: 47 | B46: =IF(ISNA(VLOOKUP(C46,Soggetti_proprietari_infrastrut!C:K,9,0)),"",VLOOKUP(C46,Soggetti_proprietari_infrastrut!C:K,9,0)) -> 1202_13989-058056- | C46: Marcellina | D46: =IF(ISNA(VLOOKUP(C46,Soggetti_proprietari_infrastrut!C:K,2,0)),"",VLOOKUP(C46,Soggetti_proprietari_infrastrut!C:K,2,0)) -> Comune | E46: =IF(ISNA(VLOOKUP(C46,Soggetti_proprietari_infrastrut!C:K,3,0)),"",VLOOKUP(C46,Soggetti_proprietari_infrastrut!C:K,3,0)) -> 0 | F46: =IF(ISNA(VLOOKUP(C46,Soggetti_proprietari_infrastrut!C:K,4,0)),"",VLOOKUP(C46,Soggetti_proprietari_infrastrut!C:K,4,0)) -> 058056 | L46: 2002 | M46: 39080.06 | N46: 39080.06 | O46: 39080.06 | P46: 39080.06 | AF46: TRUE
A47: 48 | B47: =IF(ISNA(VLOOKUP(C47,Soggetti_proprietari_infrastrut!C:K,9,0)),"",VLOOKUP(C47,Soggetti_proprietari_infrastrut!C:K,9,0)) -> 1202_13989-058057- | C47: Marino | D47: =IF(ISNA(VLOOKUP(C47,Soggetti_proprietari_infrastrut!C:K,2,0)),"",VLOOKUP(C47,Soggetti_proprietari_infrastrut!C:K,2,0)) -> Comune | E47: =IF(ISNA(VLOOKUP(C47,Soggetti_proprietari_infrastrut!C:K,3,0)),"",VLOOKUP(C47,Soggetti_proprietari_infrastrut!C:K,3,0)) -> 0 | F47: =IF(ISNA(VLOOKUP(C47,Soggetti_proprietari_infrastrut!C:K,4,0)),"",VLOOKUP(C47,Soggetti_proprietari_infrastrut!C:K,4,0)) -> 058057 | L47: 2002 | M47: 258076.76 | N47: 258076.76 | O47: 258076.76 | P47: 258076.76 | AF47: TRUE
A48: 49 | B48: =IF(ISNA(VLOOKUP(C48,Soggetti_proprietari_infrastrut!C:K,9,0)),"",VLOOKUP(C48,Soggetti_proprietari_infrastrut!C:K,9,0)) -> 1202_13989-058059- | C48: Mentana | D48: =IF(ISNA(VLOOKUP(C48,Soggetti_proprietari_infrastrut!C:K,2,0)),"",VLOOKUP(C48,Soggetti_proprietari_infrastrut!C:K,2,0)) -> Comune | E48: =IF(ISNA(VLOOKUP(C48,Soggetti_proprietari_infrastrut!C:K,3,0)),"",VLOOKUP(C48,Soggetti_proprietari_infrastrut!C:K,3,0)) -> 0 | F48: =IF(ISNA(VLOOKUP(C48,Soggetti_proprietari_infrastrut!C:K,4,0)),"",VLOOKUP(C48,Soggetti_proprietari_infrastrut!C:K,4,0)) -> 058059 | G48: 2002 | H48: 62240.13 | I48: 60677.51 | J48: 42474.67 | K48: 42474.67 | L48: 2002 | M48: 67595.06 | N48: 69157.68 | O48: 87360.52 | P48: 87360.52 | AF48: TRUE
A49: 50 | B49: =IF(ISNA(VLOOKUP(C49,Soggetti_proprietari_infrastrut!C:K,9,0)),"",VLOOKUP(C49,Soggetti_proprietari_infrastrut!C:K,9,0)) -> 1202_13989-058060- | C49: Monte Compatri | D49: =IF(ISNA(VLOOKUP(C49,Soggetti_proprietari_infrastrut!C:K,2,0)),"",VLOOKUP(C49,Soggetti_proprietari_infrastrut!C:K,2,0)) -> Comune | E49: =IF(ISNA(VLOOKUP(C49,Soggetti_proprietari_infrastrut!C:K,3,0)),"",VLOOKUP(C49,Soggetti_proprietari_infrastrut!C:K,3,0)) -> 0 | F49: =IF(ISNA(VLOOKUP(C49,Soggetti_proprietari_infrastrut!C:K,4,0)),"",VLOOKUP(C49,Soggetti_proprietari_infrastrut!C:K,4,0)) -> 058060 | L49: 2002 | M49: 57537.12 | N49: 57537.12 | O49: 57537.12 | P49: 57537.12 | AF49: TRUE
A50: 51 | B50: =IF(ISNA(VLOOKUP(C50,Soggetti_proprietari_infrastrut!C:K,9,0)),"",VLOOKUP(C50,Soggetti_proprietari_infrastrut!C:K,9,0)) -> 1202_13989-058064- | C50: Monte Porzio Catone | D50: =IF(ISNA(VLOOKUP(C50,Soggetti_proprietari_infrastrut!C:K,2,0)),"",VLOOKUP(C50,Soggetti_proprietari_infrastrut!C:K,2,0)) -> Comune | E50: =IF(ISNA(VLOOKUP(C50,Soggetti_proprietari_infrastrut!C:K,3,0)),"",VLOOKUP(C50,Soggetti_proprietari_infrastrut!C:K,3,0)) -> 0 | F50: =IF(ISNA(VLOOKUP(C50,Soggetti_proprietari_infrastrut!C:K,4,0)),"",VLOOKUP(C50,Soggetti_proprietari_infrastrut!C:K,4,0)) -> 058064 | G50: 2002 | H50: 76338.23 | I50: 76338.23 | J50: 76338.23 | K50: 76338.23 | L50: 2002 | M50: 4039.8 | N50: 4039.8 | O50: 4039.8 | P50: 4039.8 | AF50: TRUE
A51: 52 | B51: =IF(ISNA(VLOOKUP(C51,Soggetti_proprietari_infrastrut!C:K,9,0)),"",VLOOKUP(C51,Soggetti_proprietari_infrastrut!C:K,9,0)) -> 1202_13989-058062- | C51: Montelanico | D51: =IF(ISNA(VLOOKUP(C51,Soggetti_proprietari_infrastrut!C:K,2,0)),"",VLOOKUP(C51,Soggetti_proprietari_infrastrut!C:K,2,0)) -> Comune | E51: =IF(ISNA(VLOOKUP(C51,Soggetti_proprietari_infrastrut!C:K,3,0)),"",VLOOKUP(C51,Soggetti_proprietari_infrastrut!C:K,3,0)) -> 0 | F51: =IF(ISNA(VLOOKUP(C51,Soggetti_proprietari_infrastrut!C:K,4,0)),"",VLOOKUP(C51,Soggetti_proprietari_infrastrut!C:K,4,0)) -> 058062 | L51: 2002 | M51: 13797.36 | N51: 13797.36 | O51: 13797.36 | P51: 13797.36 | AF51: TRUE
A52: 53 | B52: =IF(ISNA(VLOOKUP(C52,Soggetti_proprietari_infrastrut!C:K,9,0)),"",VLOOKUP(C52,Soggetti_proprietari_infrastrut!C:K,9,0)) -> 1202_13989-058065- | C52: Monterotondo | D52: =IF(ISNA(VLOOKUP(C52,Soggetti_proprietari_infrastrut!C:K,2,0)),"",VLOOKUP(C52,Soggetti_proprietari_infrastrut!C:K,2,0)) -> Comune | E52: =IF(ISNA(VLOOKUP(C52,Soggetti_proprietari_infrastrut!C:K,3,0)),"",VLOOKUP(C52,Soggetti_proprietari_infrastrut!C:K,3,0)) -> 0 | F52: =IF(ISNA(VLOOKUP(C52,Soggetti_proprietari_infrastrut!C:K,4,0)),"",VLOOKUP(C52,Soggetti_proprietari_infrastrut!C:K,4,0)) -> 058065 | G52: 2002 | H52: 36624.29 | I52: 36624.29 | J52: 36624.29 | K52: 21513.38 | L52: 2002 | M52: 201285.61 | N52: 201285.61 | O52: 201285.61 | P52: 216396.52 | AF52: TRUE
A53: 54 | B53: =IF(ISNA(VLOOKUP(C53,Soggetti_proprietari_infrastrut!C:K,9,0)),"",VLOOKUP(C53,Soggetti_proprietari_infrastrut!C:K,9,0)) -> 1202_13989-058069- | C53: Nazzano | D53: =IF(ISNA(VLOOKUP(C53,Soggetti_proprietari_infrastrut!C:K,2,0)),"",VLOOKUP(C53,Soggetti_proprietari_infrastrut!C:K,2,0)) -> Comune | E53: =IF(ISNA(VLOOKUP(C53,Soggetti_proprietari_infrastrut!C:K,3,0)),"",VLOOKUP(C53,Soggetti_proprietari_infrastrut!C:K,3,0)) -> 0 | F53: =IF(ISNA(VLOOKUP(C53,Soggetti_proprietari_infrastrut!C:K,4,0)),"",VLOOKUP(C53,Soggetti_proprietari_infrastrut!C:K,4,0)) -> 058069 | L53: 2002 | M53: 9181.14 | N53: 9181.14 | O53: 9181.14 | P53: 9181.14 | AF53: TRUE
A54: 55 | B54: =IF(ISNA(VLOOKUP(C54,Soggetti_proprietari_infrastrut!C:K,9,0)),"",VLOOKUP(C54,Soggetti_proprietari_infrastrut!C:K,9,0)) -> 1202_13989-058070- | C54: Nemi | D54: =IF(ISNA(VLOOKUP(C54,Soggetti_proprietari_infrastrut!C:K,2,0)),"",VLOOKUP(C54,Soggetti_proprietari_infrastrut!C:K,2,0)) -> Comune | E54: =IF(ISNA(VLOOKUP(C54,Soggetti_proprietari_infrastrut!C:K,3,0)),"",VLOOKUP(C54,Soggetti_proprietari_infrastrut!C:K,3,0)) -> 0 | F54: =IF(ISNA(VLOOKUP(C54,Soggetti_proprietari_infrastrut!C:K,4,0)),"",VLOOKUP(C54,Soggetti_proprietari_infrastrut!C:K,4,0)) -> 058070 | L54: 2002 | M54: 12775.34 | N54: 12775.34 | O54: 12775.34 | P54: 12775.34 | AF54: TRUE
A55: 56 | B55: =IF(ISNA(VLOOKUP(C55,Soggetti_proprietari_infrastrut!C:K,9,0)),"",VLOOKUP(C55,Soggetti_proprietari_infrastrut!C:K,9,0)) -> 1202_13989-058073- | C55: Olevano Romano | D55: =IF(ISNA(VLOOKUP(C55,Soggetti_proprietari_infrastrut!C:K,2,0)),"",VLOOKUP(C55,Soggetti_proprietari_infrastrut!C:K,2,0)) -> Comune | E55: =IF(ISNA(VLOOKUP(C55,Soggetti_proprietari_infrastrut!C:K,3,0)),"",VLOOKUP(C55,Soggetti_proprietari_infrastrut!C:K,3,0)) -> 0 | F55: =IF(ISNA(VLOOKUP(C55,Soggetti_proprietari_infrastrut!C:K,4,0)),"",VLOOKUP(C55,Soggetti_proprietari_infrastrut!C:K,4,0)) -> 058073 | L55: 2002 | M55: 45616.31 | N55: 45616.31 | O55: 45616.31 | P55: 45616.31 | AF55: TRUE
A56: 57 | B56: =IF(ISNA(VLOOKUP(C56,Soggetti_proprietari_infrastrut!C:K,9,0)),"",VLOOKUP(C56,Soggetti_proprietari_infrastrut!C:K,9,0)) -> 1202_13989-056041- | C56: Oriolo Romano | D56: =IF(ISNA(VLOOKUP(C56,Soggetti_proprietari_infrastrut!C:K,2,0)),"",VLOOKUP(C56,Soggetti_proprietari_infrastrut!C:K,2,0)) -> Comune | E56: =IF(ISNA(VLOOKUP(C56,Soggetti_proprietari_infrastrut!C:K,3,0)),"",VLOOKUP(C56,Soggetti_proprietari_infrastrut!C:K,3,0)) -> 0 | F56: =IF(ISNA(VLOOKUP(C56,Soggetti_proprietari_infrastrut!C:K,4,0)),"",VLOOKUP(C56,Soggetti_proprietari_infrastrut!C:K,4,0)) -> 056041 | L56: 2002 | M56: 20181.82 | N56: 20181.82 | O56: 20181.82 | P56: 20181.82 | AF56: TRUE
A57: 58 | B57: =IF(ISNA(VLOOKUP(C57,Soggetti_proprietari_infrastrut!C:K,9,0)),"",VLOOKUP(C57,Soggetti_proprietari_infrastrut!C:K,9,0)) -> 1202_13989-058077- | C57: Pisoniano | D57: =IF(ISNA(VLOOKUP(C57,Soggetti_proprietari_infrastrut!C:K,2,0)),"",VLOOKUP(C57,Soggetti_proprietari_infrastrut!C:K,2,0)) -> Comune | E57: =IF(ISNA(VLOOKUP(C57,Soggetti_proprietari_infrastrut!C:K,3,0)),"",VLOOKUP(C57,Soggetti_proprietari_infrastrut!C:K,3,0)) -> 0 | F57: =IF(ISNA(VLOOKUP(C57,Soggetti_proprietari_infrastrut!C:K,4,0)),"",VLOOKUP(C57,Soggetti_proprietari_infrastrut!C:K,4,0)) -> 058077 | L57: 2002 | M57: 6072.29 | N57: 6072.29 | O57: 6072.29 | P57: 6072.29 | AF57: TRUE
A58: 59 | B58: =IF(ISNA(VLOOKUP(C58,Soggetti_proprietari_infrastrut!C:K,9,0)),"",VLOOKUP(C58,Soggetti_proprietari_infrastrut!C:K,9,0)) -> 1202_13989-058078- | C58: Poli | D58: =IF(ISNA(VLOOKUP(C58,Soggetti_proprietari_infrastrut!C:K,2,0)),"",VLOOKUP(C58,Soggetti_proprietari_infrastrut!C:K,2,0)) -> Comune | E58: =IF(ISNA(VLOOKUP(C58,Soggetti_proprietari_infrastrut!C:K,3,0)),"",VLOOKUP(C58,Soggetti_proprietari_infrastrut!C:K,3,0)) -> 0 | F58: =IF(ISNA(VLOOKUP(C58,Soggetti_proprietari_infrastrut!C:K,4,0)),"",VLOOKUP(C58,Soggetti_proprietari_infrastrut!C:K,4,0)) -> 058078 | L58: 2002 | M58: 15790.1 | N58: 15790.1 | O58: 15790.1 | P58: 15790.1 | AF58: TRUE
A59: 60 | B59: =IF(ISNA(VLOOKUP(C59,Soggetti_proprietari_infrastrut!C:K,9,0)),"",VLOOKUP(C59,Soggetti_proprietari_infrastrut!C:K,9,0)) -> 1202_13989-058079- | C59: Pomezia | D59: =IF(ISNA(VLOOKUP(C59,Soggetti_proprietari_infrastrut!C:K,2,0)),"",VLOOKUP(C59,Soggetti_proprietari_infrastrut!C:K,2,0)) -> Comune | E59: =IF(ISNA(VLOOKUP(C59,Soggetti_proprietari_infrastrut!C:K,3,0)),"",VLOOKUP(C59,Soggetti_proprietari_infrastrut!C:K,3,0)) -> 0 | F59: =IF(ISNA(VLOOKUP(C59,Soggetti_proprietari_infrastrut!C:K,4,0)),"",VLOOKUP(C59,Soggetti_proprietari_infrastrut!C:K,4,0)) -> 058079 | AF59: TRUE
A60: 61 | B60: =IF(ISNA(VLOOKUP(C60,Soggetti_proprietari_infrastrut!C:K,9,0)),"",VLOOKUP(C60,Soggetti_proprietari_infrastrut!C:K,9,0)) -> 1202_13989-058080- | C60: Ponzano Romano | D60: =IF(ISNA(VLOOKUP(C60,Soggetti_proprietari_infrastrut!C:K,2,0)),"",VLOOKUP(C60,Soggetti_proprietari_infrastrut!C:K,2,0)) -> Comune | E60: =IF(ISNA(VLOOKUP(C60,Soggetti_proprietari_infrastrut!C:K,3,0)),"",VLOOKUP(C60,Soggetti_proprietari_infrastrut!C:K,3,0)) -> 0 | F60: =IF(ISNA(VLOOKUP(C60,Soggetti_proprietari_infrastrut!C:K,4,0)),"",VLOOKUP(C60,Soggetti_proprietari_infrastrut!C:K,4,0)) -> 058080 | G60: 2002 | H60: 26598.38 | I60: 26598.38 | J60: 14407.22 | K60: 5439.61 | L60: 2002 | M60: 515.09 | N60: 515.09 | O60: 515.09 | P60: 2082.34 | AF60: TRUE
A61: 62 | B61: =IF(ISNA(VLOOKUP(C61,Soggetti_proprietari_infrastrut!C:K,9,0)),"",VLOOKUP(C61,Soggetti_proprietari_infrastrut!C:K,9,0)) -> 1202_13989-058081- | C61: Riano | D61: =IF(ISNA(VLOOKUP(C61,Soggetti_proprietari_infrastrut!C:K,2,0)),"",VLOOKUP(C61,Soggetti_proprietari_infrastrut!C:K,2,0)) -> Comune | E61: =IF(ISNA(VLOOKUP(C61,Soggetti_proprietari_infrastrut!C:K,3,0)),"",VLOOKUP(C61,Soggetti_proprietari_infrastrut!C:K,3,0)) -> 0 | F61: =IF(ISNA(VLOOKUP(C61,Soggetti_proprietari_infrastrut!C:K,4,0)),"",VLOOKUP(C61,Soggetti_proprietari_infrastrut!C:K,4,0)) -> 058081 | G61: 2002 | H61: 89266.69 | I61: 89266.69 | J61: 89266.69 | K61: 89266.69 | L61: 2002 | M61: 3141.1 | N61: 3141.1 | O61: 3141.1 | P61: 3141.1 | AF61: TRUE
A62: 63 | B62: =IF(ISNA(VLOOKUP(C62,Soggetti_proprietari_infrastrut!C:K,9,0)),"",VLOOKUP(C62,Soggetti_proprietari_infrastrut!C:K,9,0)) -> 1202_13989-058084- | C62: Rocca Canterano | D62: =IF(ISNA(VLOOKUP(C62,Soggetti_proprietari_infrastrut!C:K,2,0)),"",VLOOKUP(C62,Soggetti_proprietari_infrastrut!C:K,2,0)) -> Comune | E62: =IF(ISNA(VLOOKUP(C62,Soggetti_proprietari_infrastrut!C:K,3,0)),"",VLOOKUP(C62,Soggetti_proprietari_infrastrut!C:K,3,0)) -> 0 | F62: =IF(ISNA(VLOOKUP(C62,Soggetti_proprietari_infrastrut!C:K,4,0)),"",VLOOKUP(C62,Soggetti_proprietari_infrastrut!C:K,4,0)) -> 058084 | L62: 2002 | M62: 1942.14 | N62: 1942.14 | O62: 1942.14 | P62: 1942.14 | AF62: TRUE
A63: 64 | B63: =IF(ISNA(VLOOKUP(C63,Soggetti_proprietari_infrastrut!C:K,9,0)),"",VLOOKUP(C63,Soggetti_proprietari_infrastrut!C:K,9,0)) -> 1202_13989-058085- | C63: Rocca di Cave | D63: =IF(ISNA(VLOOKUP(C63,Soggetti_proprietari_infrastrut!C:K,2,0)),"",VLOOKUP(C63,Soggetti_proprietari_infrastrut!C:K,2,0)) -> Comune | E63: =IF(ISNA(VLOOKUP(C63,Soggetti_proprietari_infrastrut!C:K,3,0)),"",VLOOKUP(C63,Soggetti_proprietari_infrastrut!C:K,3,0)) -> 0 | F63: =IF(ISNA(VLOOKUP(C63,Soggetti_proprietari_infrastrut!C:K,4,0)),"",VLOOKUP(C63,Soggetti_proprietari_infrastrut!C:K,4,0)) -> 058085 | L63: 2002 | M63: 2615.65 | N63: 2615.65 | O63: 2615.65 | P63: 2615.65 | AF63: TRUE
A64: 65 | B64: =IF(ISNA(VLOOKUP(C64,Soggetti_proprietari_infrastrut!C:K,9,0)),"",VLOOKUP(C64,Soggetti_proprietari_infrastrut!C:K,9,0)) -> 1202_13989-058086- | C64: Rocca di Papa | D64: =IF(ISNA(VLOOKUP(C64,Soggetti_proprietari_infrastrut!C:K,2,0)),"",VLOOKUP(C64,Soggetti_proprietari_infrastrut!C:K,2,0)) -> Comune | E64: =IF(ISNA(VLOOKUP(C64,Soggetti_proprietari_infrastrut!C:K,3,0)),"",VLOOKUP(C64,Soggetti_proprietari_infrastrut!C:K,3,0)) -> 0 | F64: =IF(ISNA(VLOOKUP(C64,Soggetti_proprietari_infrastrut!C:K,4,0)),"",VLOOKUP(C64,Soggetti_proprietari_infrastrut!C:K,4,0)) -> 058086 | L64: 2002 | M64: 90733.04 | N64: 90733.04 | O64: 90733.04 | P64: 90733.04 | AF64: TRUE
A65: 66 | B65: =IF(ISNA(VLOOKUP(C65,Soggetti_proprietari_infrastrut!C:K,9,0)),"",VLOOKUP(C65,Soggetti_proprietari_infrastrut!C:K,9,0)) -> 1202_13989-058088- | C65: Rocca Priora | D65: =IF(ISNA(VLOOKUP(C65,Soggetti_proprietari_infrastrut!C:K,2,0)),"",VLOOKUP(C65,Soggetti_proprietari_infrastrut!C:K,2,0)) -> Comune | E65: =IF(ISNA(VLOOKUP(C65,Soggetti_proprietari_infrastrut!C:K,3,0)),"",VLOOKUP(C65,Soggetti_proprietari_infrastrut!C:K,3,0)) -> 0 | F65: =IF(ISNA(VLOOKUP(C65,Soggetti_proprietari_infrastrut!C:K,4,0)),"",VLOOKUP(C65,Soggetti_proprietari_infrastrut!C:K,4,0)) -> 058088 | L65: 2002 | M65: 46784.91 | N65: 46784.91 | O65: 46784.91 | P65: 46784.91 | AF65: TRUE
A66: 67 | B66: =IF(ISNA(VLOOKUP(C66,Soggetti_proprietari_infrastrut!C:K,9,0)),"",VLOOKUP(C66,Soggetti_proprietari_infrastrut!C:K,9,0)) -> 1202_13989-058089- | C66: Rocca Santo Stefano | D66: =IF(ISNA(VLOOKUP(C66,Soggetti_proprietari_infrastrut!C:K,2,0)),"",VLOOKUP(C66,Soggetti_proprietari_infrastrut!C:K,2,0)) -> Comune | E66: =IF(ISNA(VLOOKUP(C66,Soggetti_proprietari_infrastrut!C:K,3,0)),"",VLOOKUP(C66,Soggetti_proprietari_infrastrut!C:K,3,0)) -> 0 | F66: =IF(ISNA(VLOOKUP(C66,Soggetti_proprietari_infrastrut!C:K,4,0)),"",VLOOKUP(C66,Soggetti_proprietari_infrastrut!C:K,4,0)) -> 058089 | L66: 2002 | M66: 7398.65 | N66: 7398.65 | O66: 7398.65 | P66: 7398.65 | AF66: TRUE
A67: 68 | B67: =IF(ISNA(VLOOKUP(C67,Soggetti_proprietari_infrastrut!C:K,9,0)),"",VLOOKUP(C67,Soggetti_proprietari_infrastrut!C:K,9,0)) -> 1202_13989-058090- | C67: Roiate | D67: =IF(ISNA(VLOOKUP(C67,Soggetti_proprietari_infrastrut!C:K,2,0)),"",VLOOKUP(C67,Soggetti_proprietari_infrastrut!C:K,2,0)) -> Comune | E67: =IF(ISNA(VLOOKUP(C67,Soggetti_proprietari_infrastrut!C:K,3,0)),"",VLOOKUP(C67,Soggetti_proprietari_infrastrut!C:K,3,0)) -> 0 | F67: =IF(ISNA(VLOOKUP(C67,Soggetti_proprietari_infrastrut!C:K,4,0)),"",VLOOKUP(C67,Soggetti_proprietari_infrastrut!C:K,4,0)) -> 058090 | L67: 2002 | M67: 5920.5 | N67: 5920.5 | O67: 5920.5 | P67: 5920.5 | AF67: TRUE
A68: 69 | B68: =IF(ISNA(VLOOKUP(C68,Soggetti_proprietari_infrastrut!C:K,9,0)),"",VLOOKUP(C68,Soggetti_proprietari_infrastrut!C:K,9,0)) -> 1202_13989-058091- | C68: Roma | D68: =IF(ISNA(VLOOKUP(C68,Soggetti_proprietari_infrastrut!C:K,2,0)),"",VLOOKUP(C68,Soggetti_proprietari_infrastrut!C:K,2,0)) -> Comune | E68: =IF(ISNA(VLOOKUP(C68,Soggetti_proprietari_infrastrut!C:K,3,0)),"",VLOOKUP(C68,Soggetti_proprietari_infrastrut!C:K,3,0)) -> 0 | F68: =IF(ISNA(VLOOKUP(C68,Soggetti_proprietari_infrastrut!C:K,4,0)),"",VLOOKUP(C68,Soggetti_proprietari_infrastrut!C:K,4,0)) -> 058091 | L68: 2002 | M68: 25646248.27 | N68: 25764732.18 | O68: 25967965.42 | P68: 26114838.13 | AF68: TRUE
A69: 70 | B69: =IF(ISNA(VLOOKUP(C69,Soggetti_proprietari_infrastrut!C:K,9,0)),"",VLOOKUP(C69,Soggetti_proprietari_infrastrut!C:K,9,0)) -> 1202_13989-058093- | C69: Sacrofano | D69: =IF(ISNA(VLOOKUP(C69,Soggetti_proprietari_infrastrut!C:K,2,0)),"",VLOOKUP(C69,Soggetti_proprietari_infrastrut!C:K,2,0)) -> Comune | E69: =IF(ISNA(VLOOKUP(C69,Soggetti_proprietari_infrastrut!C:K,3,0)),"",VLOOKUP(C69,Soggetti_proprietari_infrastrut!C:K,3,0)) -> 0 | F69: =IF(ISNA(VLOOKUP(C69,Soggetti_proprietari_infrastrut!C:K,4,0)),"",VLOOKUP(C69,Soggetti_proprietari_infrastrut!C:K,4,0)) -> 058093 | L69: 2002 | M69: 39377.26 | N69: 39377.26 | O69: 39377.26 | P69: 39377.26 | AF69: TRUE
A70: 71 | B70: =IF(ISNA(VLOOKUP(C70,Soggetti_proprietari_infrastrut!C:K,9,0)),"",VLOOKUP(C70,Soggetti_proprietari_infrastrut!C:K,9,0)) -> 1202_13989-058094- | C70: Sambuci | D70: =IF(ISNA(VLOOKUP(C70,Soggetti_proprietari_infrastrut!C:K,2,0)),"",VLOOKUP(C70,Soggetti_proprietari_infrastrut!C:K,2,0)) -> Comune | E70: =IF(ISNA(VLOOKUP(C70,Soggetti_proprietari_infrastrut!C:K,3,0)),"",VLOOKUP(C70,Soggetti_proprietari_infrastrut!C:K,3,0)) -> 0 | F70: =IF(ISNA(VLOOKUP(C70,Soggetti_proprietari_infrastrut!C:K,4,0)),"",VLOOKUP(C70,Soggetti_proprietari_infrastrut!C:K,4,0)) -> 058094 | L70: 2002 | M70: 6485.67 | N70: 6485.67 | O70: 6485.67 | P70: 6485.67 | AF70: TRUE
A71: 72 | B71: =IF(ISNA(VLOOKUP(C71,Soggetti_proprietari_infrastrut!C:K,9,0)),"",VLOOKUP(C71,Soggetti_proprietari_infrastrut!C:K,9,0)) -> 1202_13989-058119- | C71: San Cesareo | D71: =IF(ISNA(VLOOKUP(C71,Soggetti_proprietari_infrastrut!C:K,2,0)),"",VLOOKUP(C71,Soggetti_proprietari_infrastrut!C:K,2,0)) -> Comune | E71: =IF(ISNA(VLOOKUP(C71,Soggetti_proprietari_infrastrut!C:K,3,0)),"",VLOOKUP(C71,Soggetti_proprietari_infrastrut!C:K,3,0)) -> 0 | F71: =IF(ISNA(VLOOKUP(C71,Soggetti_proprietari_infrastrut!C:K,4,0)),"",VLOOKUP(C71,Soggetti_proprietari_infrastrut!C:K,4,0)) -> 058119 | G71: 2002 | H71: 93285.13 | I71: 93285.13 | J71: 93285.13 | K71: 93285.13 | L71: 2002 | M71: 4499.3 | N71: 4499.3 | O71: 4499.3 | P71: 4499.3 | AF71: TRUE
A72: 73 | B72: =IF(ISNA(VLOOKUP(C72,Soggetti_proprietari_infrastrut!C:K,9,0)),"",VLOOKUP(C72,Soggetti_proprietari_infrastrut!C:K,9,0)) -> 1202_13989-058095- | C72: San Gregorio da Sassola | D72: =IF(ISNA(VLOOKUP(C72,Soggetti_proprietari_infrastrut!C:K,2,0)),"",VLOOKUP(C72,Soggetti_proprietari_infrastrut!C:K,2,0)) -> Comune | E72: =IF(ISNA(VLOOKUP(C72,Soggetti_proprietari_infrastrut!C:K,3,0)),"",VLOOKUP(C72,Soggetti_proprietari_infrastrut!C:K,3,0)) -> 0 | F72: =IF(ISNA(VLOOKUP(C72,Soggetti_proprietari_infrastrut!C:K,4,0)),"",VLOOKUP(C72,Soggetti_proprietari_infrastrut!C:K,4,0)) -> 058095 | G72: 2002 | H72: 74366.58 | I72: 53870.54 | J72: 36697.86 | K72: 15380.66 | L72: 2002 | M72: 758.73 | N72: 758.73 | O72: 758.73 | P72: 758.73 | AF72: =IF(B72<>"",IF(COUNTIF(B:B,B72)>1,FALSE,TRUE),TRUE) -> TRUE
A73: 74 | B73: =IF(ISNA(VLOOKUP(C73,Soggetti_proprietari_infrastrut!C:K,9,0)),"",VLOOKUP(C73,Soggetti_proprietari_infrastrut!C:K,9,0)) -> 1202_13989-058096- | C73: San Polo dei Cavalieri | D73: =IF(ISNA(VLOOKUP(C73,Soggetti_proprietari_infrastrut!C:K,2,0)),"",VLOOKUP(C73,Soggetti_proprietari_infrastrut!C:K,2,0)) -> Comune | E73: =IF(ISNA(VLOOKUP(C73,Soggetti_proprietari_infrastrut!C:K,3,0)),"",VLOOKUP(C73,Soggetti_proprietari_infrastrut!C:K,3,0)) -> 0 | F73: =IF(ISNA(VLOOKUP(C73,Soggetti_proprietari_infrastrut!C:K,4,0)),"",VLOOKUP(C73,Soggetti_proprietari_infrastrut!C:K,4,0)) -> 058096 | L73: 2002 | M73: 16456.49 | N73: 16456.49 | O73: 16456.49 | P73: 16456.49 | AF73: TRUE
A74: 75 | B74: =IF(ISNA(VLOOKUP(C74,Soggetti_proprietari_infrastrut!C:K,9,0)),"",VLOOKUP(C74,Soggetti_proprietari_infrastrut!C:K,9,0)) -> 1202_13989-058100- | C74: San Vito Romano | D74: =IF(ISNA(VLOOKUP(C74,Soggetti_proprietari_infrastrut!C:K,2,0)),"",VLOOKUP(C74,Soggetti_proprietari_infrastrut!C:K,2,0)) -> Comune | E74: =IF(ISNA(VLOOKUP(C74,Soggetti_proprietari_infrastrut!C:K,3,0)),"",VLOOKUP(C74,Soggetti_proprietari_infrastrut!C:K,3,0)) -> 0 | F74: =IF(ISNA(VLOOKUP(C74,Soggetti_proprietari_infrastrut!C:K,4,0)),"",VLOOKUP(C74,Soggetti_proprietari_infrastrut!C:K,4,0)) -> 058100 | L74: 2002 | M74: 24398.93 | N74: 24398.93 | O74: 24398.93 | P74: 24398.93 | AF74: TRUE
A75: 76 | B75: =IF(ISNA(VLOOKUP(C75,Soggetti_proprietari_infrastrut!C:K,9,0)),"",VLOOKUP(C75,Soggetti_proprietari_infrastrut!C:K,9,0)) -> 1202_13989-058097- | C75: Santa Marinella | D75: =IF(ISNA(VLOOKUP(C75,Soggetti_proprietari_infrastrut!C:K,2,0)),"",VLOOKUP(C75,Soggetti_proprietari_infrastrut!C:K,2,0)) -> Comune | E75: =IF(ISNA(VLOOKUP(C75,Soggetti_proprietari_infrastrut!C:K,3,0)),"",VLOOKUP(C75,Soggetti_proprietari_infrastrut!C:K,3,0)) -> 0 | F75: =IF(ISNA(VLOOKUP(C75,Soggetti_proprietari_infrastrut!C:K,4,0)),"",VLOOKUP(C75,Soggetti_proprietari_infrastrut!C:K,4,0)) -> 058097 | L75: 2002 | M75: 112393.02 | N75: 112393.02 | O75: 112393.02 | P75: 112393.02 | AF75: TRUE
A76: 77 | B76: =IF(ISNA(VLOOKUP(C76,Soggetti_proprietari_infrastrut!C:K,9,0)),"",VLOOKUP(C76,Soggetti_proprietari_infrastrut!C:K,9,0)) -> 1202_13989-058099- | C76: Sant'Oreste | D76: =IF(ISNA(VLOOKUP(C76,Soggetti_proprietari_infrastrut!C:K,2,0)),"",VLOOKUP(C76,Soggetti_proprietari_infrastrut!C:K,2,0)) -> Comune | E76: =IF(ISNA(VLOOKUP(C76,Soggetti_proprietari_infrastrut!C:K,3,0)),"",VLOOKUP(C76,Soggetti_proprietari_infrastrut!C:K,3,0)) -> 0 | F76: =IF(ISNA(VLOOKUP(C76,Soggetti_proprietari_infrastrut!C:K,4,0)),"",VLOOKUP(C76,Soggetti_proprietari_infrastrut!C:K,4,0)) -> 058099 | L76: 2002 | M76: 25036.81 | N76: 25036.81 | O76: 25036.81 | P76: 25036.81 | AF76: TRUE
A77: 78 | B77: =IF(ISNA(VLOOKUP(C77,Soggetti_proprietari_infrastrut!C:K,9,0)),"",VLOOKUP(C77,Soggetti_proprietari_infrastrut!C:K,9,0)) -> 1202_13989-058101- | C77: Saracinesco | D77: =IF(ISNA(VLOOKUP(C77,Soggetti_proprietari_infrastrut!C:K,2,0)),"",VLOOKUP(C77,Soggetti_proprietari_infrastrut!C:K,2,0)) -> Comune | E77: =IF(ISNA(VLOOKUP(C77,Soggetti_proprietari_infrastrut!C:K,3,0)),"",VLOOKUP(C77,Soggetti_proprietari_infrastrut!C:K,3,0)) -> 0 | F77: =IF(ISNA(VLOOKUP(C77,Soggetti_proprietari_infrastrut!C:K,4,0)),"",VLOOKUP(C77,Soggetti_proprietari_infrastrut!C:K,4,0)) -> 058101 | L77: 2002 | M77: 1094.01 | N77: 1094.01 | O77: 1094.01 | P77: 1094.01 | AF77: TRUE
A78: 79 | B78: =IF(ISNA(VLOOKUP(C78,Soggetti_proprietari_infrastrut!C:K,9,0)),"",VLOOKUP(C78,Soggetti_proprietari_infrastrut!C:K,9,0)) -> 1202_13989-058102- | C78: Segni | D78: =IF(ISNA(VLOOKUP(C78,Soggetti_proprietari_infrastrut!C:K,2,0)),"",VLOOKUP(C78,Soggetti_proprietari_infrastrut!C:K,2,0)) -> Comune | E78: =IF(ISNA(VLOOKUP(C78,Soggetti_proprietari_infrastrut!C:K,3,0)),"",VLOOKUP(C78,Soggetti_proprietari_infrastrut!C:K,3,0)) -> 0 | F78: =IF(ISNA(VLOOKUP(C78,Soggetti_proprietari_infrastrut!C:K,4,0)),"",VLOOKUP(C78,Soggetti_proprietari_infrastrut!C:K,4,0)) -> 058102 | L78: 2002 | M78: 63885.23 | N78: 63885.23 | O78: 63885.23 | P78: 63885.23 | AF78: TRUE
A79: 80 | B79: =IF(ISNA(VLOOKUP(C79,Soggetti_proprietari_infrastrut!C:K,9,0)),"",VLOOKUP(C79,Soggetti_proprietari_infrastrut!C:K,9,0)) -> 1202_13989-058103- | C79: Subiaco | D79: =IF(ISNA(VLOOKUP(C79,Soggetti_proprietari_infrastrut!C:K,2,0)),"",VLOOKUP(C79,Soggetti_proprietari_infrastrut!C:K,2,0)) -> Comune | E79: =IF(ISNA(VLOOKUP(C79,Soggetti_proprietari_infrastrut!C:K,3,0)),"",VLOOKUP(C79,Soggetti_proprietari_infrastrut!C:K,3,0)) -> 0 | F79: =IF(ISNA(VLOOKUP(C79,Soggetti_proprietari_infrastrut!C:K,4,0)),"",VLOOKUP(C79,Soggetti_proprietari_infrastrut!C:K,4,0)) -> 058103 | G79: 2002 | H79: 91229.13 | I79: 731.47 | L79: 2002 | M79: 4517.16 | N79: 65233.45 | O79: 65964.92 | P79: 65964.92 | AF79: TRUE
A80: 81 | B80: =IF(ISNA(VLOOKUP(C80,Soggetti_proprietari_infrastrut!C:K,9,0)),"",VLOOKUP(C80,Soggetti_proprietari_infrastrut!C:K,9,0)) -> 1202_13989-058104- | C80: Tivoli | D80: =IF(ISNA(VLOOKUP(C80,Soggetti_proprietari_infrastrut!C:K,2,0)),"",VLOOKUP(C80,Soggetti_proprietari_infrastrut!C:K,2,0)) -> Comune | E80: =IF(ISNA(VLOOKUP(C80,Soggetti_proprietari_infrastrut!C:K,3,0)),"",VLOOKUP(C80,Soggetti_proprietari_infrastrut!C:K,3,0)) -> 0 | F80: =IF(ISNA(VLOOKUP(C80,Soggetti_proprietari_infrastrut!C:K,4,0)),"",VLOOKUP(C80,Soggetti_proprietari_infrastrut!C:K,4,0)) -> 058104 | L80: 2002 | M80: 382143.98 | N80: 382143.98 | O80: 382143.98 | P80: 382143.98 | AF80: TRUE
A81: 82 | B81: =IF(ISNA(VLOOKUP(C81,Soggetti_proprietari_infrastrut!C:K,9,0)),"",VLOOKUP(C81,Soggetti_proprietari_infrastrut!C:K,9,0)) -> 1202_13989-058105- | C81: Tolfa | D81: =IF(ISNA(VLOOKUP(C81,Soggetti_proprietari_infrastrut!C:K,2,0)),"",VLOOKUP(C81,Soggetti_proprietari_infrastrut!C:K,2,0)) -> Comune | E81: =IF(ISNA(VLOOKUP(C81,Soggetti_proprietari_infrastrut!C:K,3,0)),"",VLOOKUP(C81,Soggetti_proprietari_infrastrut!C:K,3,0)) -> 0 | F81: =IF(ISNA(VLOOKUP(C81,Soggetti_proprietari_infrastrut!C:K,4,0)),"",VLOOKUP(C81,Soggetti_proprietari_infrastrut!C:K,4,0)) -> 058105 | L81: 2002 | M81: 36109.48 | N81: 36109.48 | O81: 36109.48 | P81: 36109.48 | AF81: TRUE
A82: 83 | B82: =IF(ISNA(VLOOKUP(C82,Soggetti_proprietari_infrastrut!C:K,9,0)),"",VLOOKUP(C82,Soggetti_proprietari_infrastrut!C:K,9,0)) -> 1202_13989-058106- | C82: Torrita Tiberina | D82: =IF(ISNA(VLOOKUP(C82,Soggetti_proprietari_infrastrut!C:K,2,0)),"",VLOOKUP(C82,Soggetti_proprietari_infrastrut!C:K,2,0)) -> Comune | E82: =IF(ISNA(VLOOKUP(C82,Soggetti_proprietari_infrastrut!C:K,3,0)),"",VLOOKUP(C82,Soggetti_proprietari_infrastrut!C:K,3,0)) -> 0 | F82: =IF(ISNA(VLOOKUP(C82,Soggetti_proprietari_infrastrut!C:K,4,0)),"",VLOOKUP(C82,Soggetti_proprietari_infrastrut!C:K,4,0)) -> 058106 | L82: 2002 | M82: 6601.84 | N82: 6601.84 | O82: 6601.84 | P82: 6601.84 | AF82: TRUE
A83: 84 | B83: =IF(ISNA(VLOOKUP(C83,Soggetti_proprietari_infrastrut!C:K,9,0)),"",VLOOKUP(C83,Soggetti_proprietari_infrastrut!C:K,9,0)) -> 1202_13989-058107- | C83: Trevignano Romano | D83: =IF(ISNA(VLOOKUP(C83,Soggetti_proprietari_infrastrut!C:K,2,0)),"",VLOOKUP(C83,Soggetti_proprietari_infrastrut!C:K,2,0)) -> Comune | E83: =IF(ISNA(VLOOKUP(C83,Soggetti_proprietari_infrastrut!C:K,3,0)),"",VLOOKUP(C83,Soggetti_proprietari_infrastrut!C:K,3,0)) -> 0 | F83: =IF(ISNA(VLOOKUP(C83,Soggetti_proprietari_infrastrut!C:K,4,0)),"",VLOOKUP(C83,Soggetti_proprietari_infrastrut!C:K,4,0)) -> 058107 | L83: 2002 | M83: 31131.2 | N83: 31131.2 | O83: 31131.2 | P83: 31131.2 | AF83: TRUE
A84: 85 | B84: =IF(ISNA(VLOOKUP(C84,Soggetti_proprietari_infrastrut!C:K,9,0)),"",VLOOKUP(C84,Soggetti_proprietari_infrastrut!C:K,9,0)) -> 1202_13989-058110- | C84: Valmontone | D84: =IF(ISNA(VLOOKUP(C84,Soggetti_proprietari_infrastrut!C:K,2,0)),"",VLOOKUP(C84,Soggetti_proprietari_infrastrut!C:K,2,0)) -> Comune | E84: =IF(ISNA(VLOOKUP(C84,Soggetti_proprietari_infrastrut!C:K,3,0)),"",VLOOKUP(C84,Soggetti_proprietari_infrastrut!C:K,3,0)) -> 0 | F84: =IF(ISNA(VLOOKUP(C84,Soggetti_proprietari_infrastrut!C:K,4,0)),"",VLOOKUP(C84,Soggetti_proprietari_infrastrut!C:K,4,0)) -> 058110 | L84: 2002 | M84: 96447.05 | N84: 91595.42 | O84: 91595.42 | P84: 91595.42 | AF84: TRUE
A85: 86 | B85: =IF(ISNA(VLOOKUP(C85,Soggetti_proprietari_infrastrut!C:K,9,0)),"",VLOOKUP(C85,Soggetti_proprietari_infrastrut!C:K,9,0)) -> 1202_13989-056056- | C85: Vejano | D85: =IF(ISNA(VLOOKUP(C85,Soggetti_proprietari_infrastrut!C:K,2,0)),"",VLOOKUP(C85,Soggetti_proprietari_infrastrut!C:K,2,0)) -> Comune | E85: =IF(ISNA(VLOOKUP(C85,Soggetti_proprietari_infrastrut!C:K,3,0)),"",VLOOKUP(C85,Soggetti_proprietari_infrastrut!C:K,3,0)) -> 0 | F85: =IF(ISNA(VLOOKUP(C85,Soggetti_proprietari_infrastrut!C:K,4,0)),"",VLOOKUP(C85,Soggetti_proprietari_infrastrut!C:K,4,0)) -> 056056 | L85: 2002 | M85: 15398.82 | N85: 15398.82 | O85: 15398.82 | P85: 15398.82 | AF85: TRUE
A86: 87 | B86: =IF(ISNA(VLOOKUP(C86,Soggetti_proprietari_infrastrut!C:K,9,0)),"",VLOOKUP(C86,Soggetti_proprietari_infrastrut!C:K,9,0)) -> 1202_13989-058111- | C86: Velletri | D86: =IF(ISNA(VLOOKUP(C86,Soggetti_proprietari_infrastrut!C:K,2,0)),"",VLOOKUP(C86,Soggetti_proprietari_infrastrut!C:K,2,0)) -> Comune | E86: =IF(ISNA(VLOOKUP(C86,Soggetti_proprietari_infrastrut!C:K,3,0)),"",VLOOKUP(C86,Soggetti_proprietari_infrastrut!C:K,3,0)) -> 0 | F86: =IF(ISNA(VLOOKUP(C86,Soggetti_proprietari_infrastrut!C:K,4,0)),"",VLOOKUP(C86,Soggetti_proprietari_infrastrut!C:K,4,0)) -> 058111 | L86: 2002 | M86: 351143.21 | N86: 351143.21 | O86: 351143.21 | P86: 351143.21 | AF86: TRUE
A87: 88 | B87: =IF(ISNA(VLOOKUP(C87,Soggetti_proprietari_infrastrut!C:K,9,0)),"",VLOOKUP(C87,Soggetti_proprietari_infrastrut!C:K,9,0)) -> 1202_13989-058112- | C87: Vicovaro | D87: =IF(ISNA(VLOOKUP(C87,Soggetti_proprietari_infrastrut!C:K,2,0)),"",VLOOKUP(C87,Soggetti_proprietari_infrastrut!C:K,2,0)) -> Comune | E87: =IF(ISNA(VLOOKUP(C87,Soggetti_proprietari_infrastrut!C:K,3,0)),"",VLOOKUP(C87,Soggetti_proprietari_infrastrut!C:K,3,0)) -> 0 | F87: =IF(ISNA(VLOOKUP(C87,Soggetti_proprietari_infrastrut!C:K,4,0)),"",VLOOKUP(C87,Soggetti_proprietari_infrastrut!C:K,4,0)) -> 058112 | G87: 2002 | H87: 33291.45 | I87: 33291.45 | J87: 24908.3 | K87: 24908.3 | L87: 2002 | M87: 1989.4 | N87: 1989.4 | O87: 4143.21 | P87: 4143.21 | AF87: TRUE
A88: 89 | B88: =IF(ISNA(VLOOKUP(C88,Soggetti_proprietari_infrastrut!C:K,9,0)),"",VLOOKUP(C88,Soggetti_proprietari_infrastrut!C:K,9,0)) -> 1202_13989-058114- | C88: Zagarolo | D88: =IF(ISNA(VLOOKUP(C88,Soggetti_proprietari_infrastrut!C:K,2,0)),"",VLOOKUP(C88,Soggetti_proprietari_infrastrut!C:K,2,0)) -> Comune | E88: =IF(ISNA(VLOOKUP(C88,Soggetti_proprietari_infrastrut!C:K,3,0)),"",VLOOKUP(C88,Soggetti_proprietari_infrastrut!C:K,3,0)) -> 0 | F88: =IF(ISNA(VLOOKUP(C88,Soggetti_proprietari_infrastrut!C:K,4,0)),"",VLOOKUP(C88,Soggetti_proprietari_infrastrut!C:K,4,0)) -> 058114 | L88: 2002 | M88: 86907.21 | N88: 86907.21 | O88: 86907.21 | P88: 86907.21 | AF88: TRUE
A89: 90 | B89: =IF(ISNA(VLOOKUP(C89,Soggetti_proprietari_infrastrut!C:K,9,0)),"",VLOOKUP(C89,Soggetti_proprietari_infrastrut!C:K,9,0)) -> 1202_13989-058034- | C89: Colleferro | D89: =IF(ISNA(VLOOKUP(C89,Soggetti_proprietari_infrastrut!C:K,2,0)),"",VLOOKUP(C89,Soggetti_proprietari_infrastrut!C:K,2,0)) -> Comune | E89: =IF(ISNA(VLOOKUP(C89,Soggetti_proprietari_infrastrut!C:K,3,0)),"",VLOOKUP(C89,Soggetti_proprietari_infrastrut!C:K,3,0)) -> 0 | F89: =IF(ISNA(VLOOKUP(C89,Soggetti_proprietari_infrastrut!C:K,4,0)),"",VLOOKUP(C89,Soggetti_proprietari_infrastrut!C:K,4,0)) -> 058034 | G89: 2002 | H89: 447721.62 | I89: 31504.98 | J89: 31504.98 | K89: 17557.61 | L89: 2002 | M89: 17138.51 | N89: 124917.87 | O89: 124917.87 | P89: 138865.24 | AF89: TRUE
A90: 91 | B90: =IF(ISNA(VLOOKUP(C90,Soggetti_proprietari_infrastrut!C:K,9,0)),"",VLOOKUP(C90,Soggetti_proprietari_infrastrut!C:K,9,0)) ->  | C90: Manziana | D90: =IF(ISNA(VLOOKUP(C90,Soggetti_proprietari_infrastrut!C:K,2,0)),"",VLOOKUP(C90,Soggetti_proprietari_infrastrut!C:K,2,0)) ->  | E90: =IF(ISNA(VLOOKUP(C90,Soggetti_proprietari_infrastrut!C:K,3,0)),"",VLOOKUP(C90,Soggetti_proprietari_infrastrut!C:K,3,0)) ->  | F90: =IF(ISNA(VLOOKUP(C90,Soggetti_proprietari_infrastrut!C:K,4,0)),"",VLOOKUP(C90,Soggetti_proprietari_infrastrut!C:K,4,0)) ->  | L90: 2002 | M90: 46652.99 | N90: 43109.72 | O90: 43109.72 | P90: 43109.72 | AF90: TRUE
A91: 92 | B91: =IF(ISNA(VLOOKUP(C91,Soggetti_proprietari_infrastrut!C:K,9,0)),"",VLOOKUP(C91,Soggetti_proprietari_infrastrut!C:K,9,0)) -> 1202_13989-058049- | C91: Labico | D91: =IF(ISNA(VLOOKUP(C91,Soggetti_proprietari_infrastrut!C:K,2,0)),"",VLOOKUP(C91,Soggetti_proprietari_infrastrut!C:K,2,0)) -> Comune | E91: =IF(ISNA(VLOOKUP(C91,Soggetti_proprietari_infrastrut!C:K,3,0)),"",VLOOKUP(C91,Soggetti_proprietari_infrastrut!C:K,3,0)) -> 0 | F91: =IF(ISNA(VLOOKUP(C91,Soggetti_proprietari_infrastrut!C:K,4,0)),"",VLOOKUP(C91,Soggetti_proprietari_infrastrut!C:K,4,0)) -> 058049 | L91: 2002 | M91: 7601.53 | N91: 7601.53 | O91: 7601.53 | P91: 7601.53 | AF91: TRUE
A92: 93 | B92: =IF(ISNA(VLOOKUP(C92,Soggetti_proprietari_infrastrut!C:K,9,0)),"",VLOOKUP(C92,Soggetti_proprietari_infrastrut!C:K,9,0)) -> 1202_13989-058074- | C92: Palestrina | D92: =IF(ISNA(VLOOKUP(C92,Soggetti_proprietari_infrastrut!C:K,2,0)),"",VLOOKUP(C92,Soggetti_proprietari_infrastrut!C:K,2,0)) -> Comune | E92: =IF(ISNA(VLOOKUP(C92,Soggetti_proprietari_infrastrut!C:K,3,0)),"",VLOOKUP(C92,Soggetti_proprietari_infrastrut!C:K,3,0)) -> 0 | F92: =IF(ISNA(VLOOKUP(C92,Soggetti_proprietari_infrastrut!C:K,4,0)),"",VLOOKUP(C92,Soggetti_proprietari_infrastrut!C:K,4,0)) -> 058074 | L92: 2002 | M92: 124784.92 | N92: 124784.92 | O92: 124784.92 | P92: 124784.92 | AF92: TRUE
A93: 94 | B93: =IF(ISNA(VLOOKUP(C93,Soggetti_proprietari_infrastrut!C:K,9,0)),"",VLOOKUP(C93,Soggetti_proprietari_infrastrut!C:K,9,0)) -> 1202_13989-060080- | C93: Trevi nel Lazio | D93: =IF(ISNA(VLOOKUP(C93,Soggetti_proprietari_infrastrut!C:K,2,0)),"",VLOOKUP(C93,Soggetti_proprietari_infrastrut!C:K,2,0)) -> Comune | E93: =IF(ISNA(VLOOKUP(C93,Soggetti_proprietari_infrastrut!C:K,3,0)),"",VLOOKUP(C93,Soggetti_proprietari_infrastrut!C:K,3,0)) -> 0 | F93: =IF(ISNA(VLOOKUP(C93,Soggetti_proprietari_infrastrut!C:K,4,0)),"",VLOOKUP(C93,Soggetti_proprietari_infrastrut!C:K,4,0)) -> 060080 | L93: 2002 | M93: 4780.38 | N93: 4780.38 | O93: 4780.38 | P93: 4780.38 | AF93: TRUE
A94: 95 | B94: =IF(ISNA(VLOOKUP(C94,Soggetti_proprietari_infrastrut!C:K,9,0)),"",VLOOKUP(C94,Soggetti_proprietari_infrastrut!C:K,9,0)) -> 1202_13989-058027- | C94: Cerreto Laziale | D94: =IF(ISNA(VLOOKUP(C94,Soggetti_proprietari_infrastrut!C:K,2,0)),"",VLOOKUP(C94,Soggetti_proprietari_infrastrut!C:K,2,0)) -> Comune | E94: =IF(ISNA(VLOOKUP(C94,Soggetti_proprietari_infrastrut!C:K,3,0)),"",VLOOKUP(C94,Soggetti_proprietari_infrastrut!C:K,3,0)) -> 0 | F94: =IF(ISNA(VLOOKUP(C94,Soggetti_proprietari_infrastrut!C:K,4,0)),"",VLOOKUP(C94,Soggetti_proprietari_infrastrut!C:K,4,0)) -> 058027 | L94: 2002 | M94: 2599.02 | N94: 2599.02 | O94: 2599.02 | P94: 2599.02 | AF94: TRUE

Sheet Elenco_Ambiti_Tariffari
B1: RICAVI TARIFFARI
F2: Non sono presenti errori
F3: =+IF(COUNTIF(F8:G998,FALSE)>=1,FALSE,TRUE) -> TRUE | H3: ---> se errori indicazione FALSO
B5: 1 - Ambiti Tariffari
B7: N_Riga | C7: Ambito Tariffario | D7: N_Riga bis | F7: Ambiti non duplicati | G7: Presenza nome Ambito
B8: 1 | C8: ATO2 LAZIO CENTRALE ROMA | D8: =+B8 -> 1 | F8: =+IF(COUNTIF($C$8:C995,C8)>1,FALSE,TRUE) -> TRUE | G8: =+IF(C8="",FALSE,TRUE) -> TRUE

Sheet Ambiti_Tariffari_Comuni
B1: RICAVI TARIFFARI
B5: 2 - Comuni per ciascun Ambito Tariffario
A7: N_Riga | B7: Ambito tariffario | C7: Comune | D7: Codice ISTAT
A8: 1 | B8: ATO2 LAZIO CENTRALE ROMA | C8: Affile (RM) | D8: =IF(ISNA(VLOOKUP(C8,TT_Comuni_ATO!X:Y,2,0)),"",VLOOKUP(C8,TT_Comuni_ATO!X:Y,2,0)) -> 058001
A9: 2 | B9: ATO2 LAZIO CENTRALE ROMA | C9: Albano Laziale (RM)
A10: 3 | B10: ATO2 LAZIO CENTRALE ROMA | C10: Allumiere (RM)
A11: 4 | B11: ATO2 LAZIO CENTRALE ROMA | C11: Arcinazzo Romano (RM)
A12: 5 | B12: ATO2 LAZIO CENTRALE ROMA | C12: Ariccia (RM)
A13: 6 | B13: ATO2 LAZIO CENTRALE ROMA | C13: Artena (RM)
A14: 7 | B14: ATO2 LAZIO CENTRALE ROMA | C14: Bellegra (RM)
A15: 8 | B15: ATO2 LAZIO CENTRALE ROMA | C15: Canterano (RM)
A16: 9 | B16: ATO2 LAZIO CENTRALE ROMA | C16: Capranica Prenestina (RM)
A17: 10 | B17: ATO2 LAZIO CENTRALE ROMA | C17: Carpineto Romano (RM)
A18: 11 | B18: ATO2 LAZIO CENTRALE ROMA | C18: Casape (RM)
A19: 12 | B19: ATO2 LAZIO CENTRALE ROMA | C19: Castel Gandolfo (RM)
A20: 13 | B20: ATO2 LAZIO CENTRALE ROMA | C20: Castel Madama (RM)
A21: 14 | B21: ATO2 LAZIO CENTRALE ROMA | C21: Castel San Pietro Romano (RM)
A22: 15 | B22: ATO2 LAZIO CENTRALE ROMA | C22: Castelnuovo di Porto (RM)
A23: 16 | B23: ATO2 LAZIO CENTRALE ROMA | C23: Cave (RM)
A24: 17 | B24: ATO2 LAZIO CENTRALE ROMA | C24: Cervara di Roma (RM)
A25: 18 | B25: ATO2 LAZIO CENTRALE ROMA | C25: Cerveteri (RM)
A26: 19 | B26: ATO2 LAZIO CENTRALE ROMA | C26: Ciampino (RM)
A27: 20 | B27: ATO2 LAZIO CENTRALE ROMA | C27: Ciciliano (RM)
A28: 21 | B28: ATO2 LAZIO CENTRALE ROMA | C28: Colleferro (RM)
A29: 22 | B29: ATO2 LAZIO CENTRALE ROMA | C29: Colonna (RM)
A30: 23 | B30: ATO2 LAZIO CENTRALE ROMA | C30: Fiano Romano (RM)
A31: 24 | B31: ATO2 LAZIO CENTRALE ROMA | C31: Filacciano (RM)
A32: 25 | B32: ATO2 LAZIO CENTRALE ROMA | C32: Fiumicino (RM)
A33: 26 | B33: ATO2 LAZIO CENTRALE ROMA | C33: Fonte Nuova (RM)
A34: 27 | B34: ATO2 LAZIO CENTRALE ROMA | C34: Formello (RM)
A35: 28 | B35: ATO2 LAZIO CENTRALE ROMA | C35: Frascati (RM)
A36: 29 | B36: ATO2 LAZIO CENTRALE ROMA | C36: Gallicano nel Lazio (RM)
A37: 30 | B37: ATO2 LAZIO CENTRALE ROMA | C37: Gavignano (RM)
A38: 31 | B38: ATO2 LAZIO CENTRALE ROMA | C38: Genazzano (RM)
A39: 32 | B39: ATO2 LAZIO CENTRALE ROMA | C39: Genzano di Roma (RM)
A40: 33 | B40: ATO2 LAZIO CENTRALE ROMA | C40: Gerano (RM)
A41: 34 | B41: ATO2 LAZIO CENTRALE ROMA | C41: Gorga (RM)
A42: 35 | B42: ATO2 LAZIO CENTRALE ROMA | C42: Grottaferrata (RM)
A43: 36 | B43: ATO2 LAZIO CENTRALE ROMA | C43: Guidonia Montecelio (RM)
A44: 37 | B44: ATO2 LAZIO CENTRALE ROMA | C44: Jenne (RM)
A45: 38 | B45: ATO2 LAZIO CENTRALE ROMA | C45: Lanuvio (RM)
A46: 39 | B46: ATO2 LAZIO CENTRALE ROMA | C46: Lariano (RM)
A47: 40 | B47: ATO2 LAZIO CENTRALE ROMA | C47: Manziana (RM)
A48: 41 | B48: ATO2 LAZIO CENTRALE ROMA | C48: Marcellina (RM)
A49: 42 | B49: ATO2 LAZIO CENTRALE ROMA | C49: Marino (RM)
A50: 43 | B50: ATO2 LAZIO CENTRALE ROMA | C50: Mentana (RM)
A51: 44 | B51: ATO2 LAZIO CENTRALE ROMA | C51: Monte Compatri (RM)
A52: 45 | B52: ATO2 LAZIO CENTRALE ROMA | C52: Monte Porzio Catone (RM)
A53: 46 | B53: ATO2 LAZIO CENTRALE ROMA | C53: Montelanico (RM)
A54: 47 | B54: ATO2 LAZIO CENTRALE ROMA | C54: Monterotondo (RM)
A55: 48 | B55: ATO2 LAZIO CENTRALE ROMA | C55: Nazzano (RM)
A56: 49 | B56: ATO2 LAZIO CENTRALE ROMA | C56: Nemi (RM)
A57: 50 | B57: ATO2 LAZIO CENTRALE ROMA | C57: Olevano Romano (RM)
A58: 51 | B58: ATO2 LAZIO CENTRALE ROMA | C58: Oriolo Romano (VT)
A59: 52 | B59: ATO2 LAZIO CENTRALE ROMA | C59: Palestrina (RM)
A60: 53 | B60: ATO2 LAZIO CENTRALE ROMA | C60: Pisoniano (RM)
A61: 54 | B61: ATO2 LAZIO CENTRALE ROMA | C61: Poli (RM)
A62: 55 | B62: ATO2 LAZIO CENTRALE ROMA | C62: Ponzano Romano (RM)
A63: 56 | B63: ATO2 LAZIO CENTRALE ROMA | C63: Riano (RM)
A64: 57 | B64: ATO2 LAZIO CENTRALE ROMA | C64: Rocca Canterano (RM)
A65: 58 | B65: ATO2 LAZIO CENTRALE ROMA | C65: Rocca di Cave (RM)
A66: 59 | B66: ATO2 LAZIO CENTRALE ROMA | C66: Rocca di Papa (RM)
A67: 60 | B67: ATO2 LAZIO CENTRALE ROMA | C67: Rocca Priora (RM)
A68: 61 | B68: ATO2 LAZIO CENTRALE ROMA | C68: Rocca Santo Stefano (RM)
A69: 62 | B69: ATO2 LAZIO CENTRALE ROMA | C69: Roiate (RM)
A70: 63 | B70: ATO2 LAZIO CENTRALE ROMA | C70: Roma (RM)
A71: 64 | B71: ATO2 LAZIO CENTRALE ROMA | C71: Sacrofano (RM)
A72: 65 | B72: ATO2 LAZIO CENTRALE ROMA | C72: Sambuci (RM)
A73: 66 | B73: ATO2 LAZIO CENTRALE ROMA | C73: San Cesareo (RM)
A74: 67 | B74: ATO2 LAZIO CENTRALE ROMA | C74: San Gregorio da Sassola (RM)
A75: 68 | B75: ATO2 LAZIO CENTRALE ROMA | C75: San Polo dei Cavalieri (RM)
A76: 69 | B76: ATO2 LAZIO CENTRALE ROMA | C76: San Vito Romano (RM)
A77: 70 | B77: ATO2 LAZIO CENTRALE ROMA | C77: Santa Marinella (RM)
A78: 71 | B78: ATO2 LAZIO CENTRALE ROMA | C78: Sant'Oreste (RM)
A79: 72 | B79: ATO2 LAZIO CENTRALE ROMA | C79: Saracinesco (RM)
A80: 73 | B80: ATO2 LAZIO CENTRALE ROMA | C80: Segni (RM)
A81: 74 | B81: ATO2 LAZIO CENTRALE ROMA | C81: Subiaco (RM)
A82: 75 | B82: ATO2 LAZIO CENTRALE ROMA | C82: Tivoli (RM)
A83: 76 | B83: ATO2 LAZIO CENTRALE ROMA | C83: Tolfa (RM)
A84: 77 | B84: ATO2 LAZIO CENTRALE ROMA | C84: Torrita Tiberina (RM)
A85: 78 | B85: ATO2 LAZIO CENTRALE ROMA | C85: Trevignano Romano (RM)
A86: 79 | B86: ATO2 LAZIO CENTRALE ROMA | C86: Valmontone (RM)
A87: 80 | B87: ATO2 LAZIO CENTRALE ROMA | C87: Vejano (VT)
A88: 81 | B88: ATO2 LAZIO CENTRALE ROMA | C88: Velletri (RM)
A89: 82 | B89: ATO2 LAZIO CENTRALE ROMA | C89: Vicovaro (RM)
A90: 83 | B90: ATO2 LAZIO CENTRALE ROMA | C90: Zagarolo (RM)

Sheet Articolaz tariff QV
B1: RICAVI TARIFFARI
B3: riportare l'articolazione (tipologia d'uso e scaglioni) applicata agli utenti finali negli anni indicati
B5: 3 - Articolazione Tariffaria - quota variabile
H8: vigente al 31/12/2015
B9: Ambito tariffario | C9: Servizio idrico | D9: Tipologia d'uso | E9: Sottotipologia | F9: 1° scaglione a tariffa agevolata | G9: Minimo impegnato | H9: Min di scaglione (m3/anno) | I9: Max di scaglione (m3/anno) | J9: QV (Euro/m3) 2014 | K9: QV (Euro/m3) 2015 | L9: Volumi fatturati (m3/anno) anno 2014 | M9: Volumi fatturati (m3/anno) anno 2015
H10: Min_Scaglione | I10: Max_Scaglione | J10: QV | K10: QV | L10: Volumi | M10: Volumi_Anno_succ
B11: ATO2 LAZIO CENTRALE ROMA | C11: acquedotto | D11: 1-Uso domestico | E11: uso domestico | F11: SI | H11: 0 | I11: 92 | J11: 0.1918 | K11: 0.209 | L11: 139474555.1 | M11: 139701883.3
H12: =+IF(I11=0,"",I11+1) -> 93 | I12: 184 | J12: 0.6181 | K12: 0.6736 | L12: 79057069.17 | M12: 75964089.39
H13: 185 | I13: 276 | J13: 1.0947 | K13: 1.1929 | L13: 13127981.99 | M13: 12474429.56
H14: 277 | I14: 368 | J14: 2.2257 | K14: 2.4254 | L14: 3754344.83 | M14: 3597118.344
H15: 369 | J15: 4.361 | K15: 4.7523 | L15: 3249809.08 | M15: 3588487.251
B21: ATO2 LAZIO CENTRALE ROMA | C21: fognatura | D21: 1-Uso domestico | E21: uso domestico | H21: 0 | J21: 0.178 | K21: 0.194 | L21: 226264702.2 | M21: 225866978.9
H22: =+IF(I21=0,"",I21+1) -> 
B31: ATO2 LAZIO CENTRALE ROMA | C31: depurazione | D31: 1-Uso domestico | E31: uso domestico | H31: 0 | J31: 0.5135 | K31: 0.5596 | L31: 220529976.2 | M31: 220287831.5
H32: =+IF(I31=0,"",I31+1) -> 
B41: ATO2 LAZIO CENTRALE ROMA | C41: acquedotto | D41: 7-Usi diversi | E41: usi diversi | H41: 0 | I41: 1 | J41: 0.6834 | K41: 0.7447 | L41: 93032649.72 | M41: 90389813.88
H42: 1 | I42: 1.5 | J42: 1.0947 | K42: 1.1929 | L42: 4407293 | M42: 4759291.492
H43: 1.5 | I43: 2 | J43: 2.2257 | K43: 2.4254 | L43: 1903292 | M43: 2136439.923
H44: 2 | J44: 4.361 | K44: 4.7523 | L44: 5262820 | M44: 5908724.524
H45: =+IF(I44=0,"",I44+1) -> 
B51: ATO2 LAZIO CENTRALE ROMA | C51: fognatura | D51: 7-Usi diversi | E51: usi diversi | H51: 0 | J51: 0.178 | K51: 0.194 | L51: 74296358.18 | M51: 72609769.56
H52: =+IF(I51=0,"",I51+1) -> 
B61: ATO2 LAZIO CENTRALE ROMA | C61: depurazione | D61: 7-Usi diversi | E61: usi diversi | H61: 0 | J61: 0.5135 | K61: 0.5596 | L61: 73031055.91 | M61: 71328759.38
H62: =+IF(I61=0,"",I61+1) -> 

Sheet Articolaz tariff QF
B1: RICAVI TARIFFARI
B3: riportare l'articolazione (tipologia d'uso e scaglioni) applicata agli utenti finali negli anni indicati
B5: 4- Articolazione Tariffaria - quota fissa
H8: vigente al 31/12/2015
B9: Ambito tariffario | C9: servizio idrico | D9: Tipologia d'uso | E9: Sottotipologia | F9: campo vuoto1 | G9: campo vuoto2 | H9: Min di scaglione (m3/anno) | I9: Max di scaglione (m3/anno) | J9: QF (Euro/utente/ anno) 2014 | K9: QF (Euro/utente/ anno) 2015 | L9: Utenze (numero) anno 2014 | M9: Utenze (numero) anno 2015
H10: Min_Scaglione | I10: Max_Scaglione | J10: QF | K10: QF | L10: Utenze | M10: Utenze_Anno_succ
B11: ATO2 LAZIO CENTRALE ROMA | C11: acquedotto | D11: 1-Uso domestico | H11: 0 | J11: 16.07 | K11: 17.5118 | L11: 1728861 | M11: 1733389.5
H12: =+IF(I11=0,"",I11+1) -> 
H13: =+IF(I12=0,"",I12+1) -> 
H14: =+IF(I13=0,"",I13+1) -> 
H15: =+IF(I14=0,"",I14+1) -> 
H16: =+IF(I15=0,"",I15+1) -> 
B17: ATO2 LAZIO CENTRALE ROMA | C17: fognatura | D17: 1-Uso domestico | H17: 0 | J17: 4.52 | K17: 4.9255 | L17: 1656721 | M17: 1659083.75
H18: =+IF(I17=0,"",I17+1) -> 
H19: =+IF(I18=0,"",I18+1) -> 
H20: =+IF(I19=0,"",I19+1) -> 
H21: =+IF(I20=0,"",I20+1) -> 
H22: =+IF(I21=0,"",I21+1) -> 
B23: ATO2 LAZIO CENTRALE ROMA | C23: depurazione | D23: 1-Uso domestico | H23: 0 | J23: 13.35 | K23: 14.5478 | L23: 1614495 | M23: 1615742.875
H24: =+IF(I23=0,"",I23+1) -> 
H25: =+IF(I24=0,"",I24+1) -> 
H26: =+IF(I25=0,"",I25+1) -> 
H27: =+IF(I26=0,"",I26+1) -> 
H28: =+IF(I27=0,"",I27+1) -> 
B29: ATO2 LAZIO CENTRALE ROMA | C29: acquedotto | D29: 7-Usi diversi | H29: 0 | J29: 16.07 | K29: 17.5118 | L29: 98044 | M29: 98376.5
H30: =+IF(I29=0,"",I29+1) -> 
H31: =+IF(I30=0,"",I30+1) -> 
H32: =+IF(I31=0,"",I31+1) -> 
H33: =+IF(I32=0,"",I32+1) -> 
H34: =+IF(I33=0,"",I33+1) -> 
B35: ATO2 LAZIO CENTRALE ROMA | C35: fognatura | D35: 7-Usi diversi | H35: 0 | J35: 4.52 | K35: 4.9255 | L35: 89805 | M35: 90017.75
H36: =+IF(I35=0,"",I35+1) -> 
H37: =+IF(I36=0,"",I36+1) -> 
H38: =+IF(I37=0,"",I37+1) -> 
H39: =+IF(I38=0,"",I38+1) -> 
H40: =+IF(I39=0,"",I39+1) -> 
B41: ATO2 LAZIO CENTRALE ROMA | C41: depurazione | D41: 7-Usi diversi | H41: 0 | J41: 13.35 | K41: 14.5478 | L41: 87774 | M41: 87906.375
H42: =+IF(I41=0,"",I41+1) -> 
H43: =+IF(I42=0,"",I42+1) -> 
H44: =+IF(I43=0,"",I43+1) -> 
H45: =+IF(I44=0,"",I44+1) -> 
H46: =+IF(I45=0,"",I45+1) -> 
B47: ATO2 LAZIO CENTRALE ROMA | C47: acquedotto | D47: 9-Bocche antincendio | H47: 0 | I47: 1 | J47: 8.2452 | K47: 8.9848 | L47: 30491 | M47: 31231
H48: 0 | I48: 1 | J48: 2.0608 | K48: 2.2456 | L48: 103802 | M48: 106160
H49: 0 | I49: 1 | J49: 16.4904 | K49: 17.97 | L49: 16268 | M49: 16655
H50: 0 | I50: 1 | J50: 4.1224 | K50: 4.4924 | L50: 26315 | M50: 26894
H51: 0 | I51: 1 | J51: 24.7348 | K51: 26.954 | L51: 22 | M51: 23
H52: =+IF(I51=0,"",I51+1) -> 2 | J52: 0.3356969844 | K52: 0.3356969844 | L52: 14715 | M52: 14818

Sheet Ricavi_ambiti_tariffari
B1: RICAVI TARIFFARI
B3: eventualmente imputare direttamente i ricavi totali nelle colonne G, H e I. I totali si intendono comprensivi dei ricavi da quota fissa e variabile, mentre è da escludere la vendita all'ingrosso
B5: 5 - Totale ricavi tariffari da vendita agli utenti finali per ciascun ambito
D8: da calcolo automatico fogli specifici | G8: da eventuale input manuale
B9: N_riga | C9: Ambito Tariffario | J9: SPIEGAZIONE EVENTUALE DIFFERENZA CON LA STRUTTURA TARIFFARIA (QUOTA VAR+QUOTA FISSA) DEI FOGLI SPECIFICI
D10: per calcolo RCvol 2016 | E10: per calcolo J 2016 | F10: per calcolo J 2017 e RCvol 2017 | G10: per calcolo RCvol 2016 | H10: per calcolo J 2016 | I10: per calcolo J 2017 e RCvol 2017
B11: 1 | C11: ATO2 LAZIO CENTRALE ROMA | D11: =+SUMIF('Articolaz tariff QV'!$N:$N,Ricavi_ambiti_tariffari!$C11,'Articolaz tariff QV'!O:O)+SUMIF('Articolaz tariff QF'!$N:$N,Ricavi_ambiti_tariffari!$C11,'Articolaz tariff QF'!O:O) -> 0 | E11: =+SUMIF('Articolaz tariff QV'!$N:$N,Ricavi_ambiti_tariffari!$C11,'Articolaz tariff QV'!P:P)+SUMIF('Articolaz tariff QF'!$N:$N,Ricavi_ambiti_tariffari!$C11,'Articolaz tariff QF'!P:P) -> 0 | F11: =+SUMIF('Articolaz tariff QV'!$N:$N,Ricavi_ambiti_tariffari!$C11,'Articolaz tariff QV'!Q:Q)+SUMIF('Articolaz tariff QF'!$N:$N,Ricavi_ambiti_tariffari!$C11,'Articolaz tariff QF'!Q:Q) -> 0

Sheet Proposta nuova art QV
B1: Eventuale proposta modifica articolazione tariffaria nel periodo regolatorio 2016-2019
B3: riportare l'articolazione (tipologia d'uso e scaglioni) proposta per la vendita agli utenti finali - art. 36 e ss. all. A della delibera 664/2015
B5: Nuova proposta Articolazione Tariffaria - quota variabile
B9: Ambito tariffario | C9: Servizio | D9: Tipologia d'uso | E9: Sottotipologia | F9: 1° scaglione a tariffa agevolata | G9: Minimo impegnato | H9: Min di scaglione (m3/anno) | I9: Max di scaglione (m3/anno) | J9: QV (Euro/m3) 2014 | K9: QV (Euro/m3) 2015 | L9: QV (Euro/m3) 2016 | M9: Volumi fatturati (m3/anno) anno 2014 | N9: Volumi fatturati (m3/anno) anno 2015
H10: Min_Scaglione | I10: Max_Scaglione | J10: QV | K10: QV | M10: Volumi | N10: Volumi_Anno_succ
H11: 0
H12: =+IF(I11=0,"",I11+1) -> 

Sheet Proposta nuova art QF
B1: Eventuale proposta modifica articolazione tariffaria nel periodo regolatorio 2016-2019
B3: riportare l'articolazione (tipologia d'uso e scaglioni) proposta per la vendita agli utenti finali - art. 36 e ss. all. A della delibera 664/2015
B5: Nuova proposta Articolazione Tariffaria - quota fissa
B9: Ambito tariffario | C9: Servizio | D9: Tipologia d'uso | E9: Sottotipologia | F9: campo vuoto | G9: campo vuoto2 | H9: Min di scaglione (m3/anno) | I9: Max di scaglione (m3/anno) | J9: QF (Euro/utente/ anno) 2014 | K9: QF (Euro/utente/ anno) 2015 | L9: QF (Euro/utente/ anno) 2016 | M9: Utenze (numero) anno 2014 | N9: Utenze (numero) anno 2015
H10: Min_Scaglione | I10: Max_Scaglione | J10: QF | K10: QF | M10: Utenze | N10: Utenze_Anno_succ
H11: 0
H12: =+IF(I11=0,"",I11+1) -> 
H13: =+IF(I12=0,"",I12+1) -> 

Sheet Soggetti_Scambio
B1: SCAMBI ALL'INGROSSO
P2: controllo compilazione
B3: per ciascun soggetto indicare almeno l'ID gestore oppure la Partita IVA | P3: =+AND(OFFSET(L8,0,0,COUNTA(L:L),1))=TRUE -> TRUE
B5: 1. Soggetti con cui si hanno scambi di Servizi all'ingrosso (Vendita e/o Acquisti)
B7: ID_AEEG | C7: Nome soggetto | D7: Partita Iva | H7: nome_soggetto | I7: id_aeeg_j | J7: controllo 1 | K7: controllo 2 | L7: assenza di IDAEEG o Partita Iva
A8: 1 | B8: 1 | C8: Acea ATO5 Spa | D8: 02267050603 | H8: =+C8 -> Acea ATO5 Spa | I8: =+B8 -> 1 | J8: =+AND(B8="",C8="",D8="") -> FALSE | K8: =+AND(C8<>"",OR(B8<>"",D8<>"")) -> TRUE | L8: =+OR(J8=TRUE,K8=TRUE) -> TRUE
A9: 2 | B9: 2 | C9: Eredi Marrucco | D9: 07690890582 | H9: Eredi Marrucco | I9: 2 | J9: FALSE | K9: TRUE | L9: TRUE
A10: 3 | B10: 3 | C10: Trivelpozzi Appia Srl | D10: 01036310595 | H10: Trivelpozzi Appia Srl | I10: 3 | J10: FALSE | K10: TRUE | L10: TRUE
A11: 4 | B11: 4 | C11: Ma.P.R.OL di Giorgi Srl | D11: 07040230588 | H11: Ma.P.R.OL di Giorgi Srl | I11: 4 | J11: FALSE | K11: TRUE | L11: TRUE
A12: 5 | B12: 5 | C12: Fratelli Vicario Srl | D12: 04238021002 | H12: Fratelli Vicario Srl | I12: 5 | J12: FALSE | K12: TRUE | L12: TRUE
A13: 6 | B13: 6 | C13: Felci Nanda | D13: FLCNND46R65L719B | H13: Felci Nanda | I13: 6 | J13: FALSE | K13: TRUE | L13: TRUE
A14: 7 | B14: 7 | C14: Holding Civitavecchia Servizi Srl | D14: 10202781000 | H14: Holding Civitavecchia Servizi Srl | I14: 7 | J14: FALSE | K14: TRUE | L14: TRUE
A15: 8 | B15: 8 | C15: Consorzio Idraulico Sabino | D15: 01674091002 | H15: Consorzio Idraulico Sabino | I15: 8 | J15: FALSE | K15: TRUE | L15: TRUE
A16: 14 | B16: 9 | C16: ACCADEMIA TEDESCA | D16: 80068230582 | H16: =+C16 -> ACCADEMIA TEDESCA | I16: =+B16 -> 9 | J16: =+AND(B16="",C16="",D16="") -> FALSE | K16: =+AND(C16<>"",OR(B16<>"",D16<>"")) -> TRUE | L16: =+OR(J16=TRUE,K16=TRUE) -> TRUE
A17: 15 | B17: 10 | C17: ACQUE POTABILI SPA | D17: 00489140012 | H17: ACQUE POTABILI SPA | I17: 10 | J17: FALSE | K17: TRUE | L17: TRUE
A18: 16 | B18: 11 | C18: AMEA S.P.A. | D18: 02066710605 | H18: AMEA S.P.A. | I18: 11 | J18: FALSE | K18: TRUE | L18: TRUE
A19: 17 | B19: 12 | C19: A.R.S.I.A.L. | D19: 04838391003 | H19: A.R.S.I.A.L. | I19: 12 | J19: FALSE | K19: TRUE | L19: TRUE
A20: 18 | B20: 13 | C20: COMUNE DI AGOSTA | D20: 86002070588 | H20: COMUNE DI AGOSTA | I20: 13 | J20: FALSE | K20: TRUE | L20: TRUE
A21: 19 | B21: 14 | C21: COMUNE DI ANGUILLARA SABAZIA | D21: 80071510582 | H21: COMUNE DI ANGUILLARA SABAZIA | I21: 14 | J21: FALSE | K21: TRUE | L21: TRUE
A22: 20 | B22: 15 | C22: COMUNE DI CANTERANO | D22: 86001000586 | H22: COMUNE DI CANTERANO | I22: 15 | J22: FALSE | K22: TRUE | L22: TRUE
A23: 21 | B23: 16 | C23: COMUNE DI CAPENA | D23: 02652400587 | H23: COMUNE DI CAPENA | I23: 16 | J23: FALSE | K23: TRUE | L23: TRUE
A24: 22 | B24: 17 | C24: COMUNE DI CAPRANICA PRENESTINA | D24: 85003030583 | H24: COMUNE DI CAPRANICA PRENESTINA | I24: 17 | J24: FALSE | K24: TRUE | L24: TRUE
A25: 23 | B25: 18 | C25: COMUNE DI CASAPROTA | D25: 00123140576 | H25: COMUNE DI CASAPROTA | I25: 18 | J25: FALSE | K25: TRUE | L25: TRUE
A26: 24 | B26: 19 | C26: COMUNE DI CASTELNUOVO DI FARFA | D26: 00122190572 | H26: COMUNE DI CASTELNUOVO DI FARFA | I26: 19 | J26: FALSE | K26: TRUE | L26: TRUE
A27: 25 | B27: 20 | C27: COMUNE DI CERRETO LAZIALE | D27: 86002150588 | H27: COMUNE DI CERRETO LAZIALE | I27: 20 | J27: FALSE | K27: TRUE | L27: TRUE
A28: 26 | B28: 21 | C28: COMUNE DI CITTADUCALE | D28: 00113040570 | H28: COMUNE DI CITTADUCALE | I28: 21 | J28: FALSE | K28: TRUE | L28: TRUE
A29: 27 | B29: 22 | C29: COMUNE DI CIVITAVECCHIA | D29: 02700960582 | H29: COMUNE DI CIVITAVECCHIA | I29: 22 | J29: FALSE | K29: TRUE | L29: TRUE
A30: 28 | B30: 23 | C30: COMUNE DI CIVITELLA SAN PAOLO | D30: 02672190580 | H30: COMUNE DI CIVITELLA SAN PAOLO | I30: 23 | J30: FALSE | K30: TRUE | L30: TRUE
A31: 29 | B31: 24 | C31: COMUNE DI CORI | D31: 00106170590 | H31: COMUNE DI CORI | I31: 24 | J31: FALSE | K31: TRUE | L31: TRUE
A32: 32 | B32: 25 | C32: COMUNE DI GERANO | D32: 02850280583 | H32: COMUNE DI GERANO | I32: 25 | J32: FALSE | K32: TRUE | L32: TRUE
A33: 33 | B33: 26 | C33: COMUNE DI LABICO | D33: 02786080586 | H33: COMUNE DI LABICO | I33: 26 | J33: FALSE | K33: TRUE | L33: TRUE
A34: 34 | B34: 27 | C34: COMUNE DI MARANO EQUO | D34: 86001110583 | H34: COMUNE DI MARANO EQUO | I34: 27 | J34: FALSE | K34: TRUE | L34: TRUE
A35: 35 | B35: 28 | C35: COMUNE DI MOMPEO | D35: 00121720577 | H35: COMUNE DI MOMPEO | I35: 28 | J35: FALSE | K35: TRUE | L35: TRUE
A36: 36 | B36: 29 | C36: COMUNE DI MONTENERO SABINO | D36: 00121390579 | H36: COMUNE DI MONTENERO SABINO | I36: 29 | J36: FALSE | K36: TRUE | L36: TRUE
A37: 37 | B37: 30 | C37: COMUNE DI MONTOPOLI DI SABINA | D37: 00094140571 | H37: COMUNE DI MONTOPOLI DI SABINA | I37: 30 | J37: FALSE | K37: TRUE | L37: TRUE
A38: 38 | B38: 31 | C38: COMUNE DI MORLUPO | D38: 02591110586 | H38: COMUNE DI MORLUPO | I38: 31 | J38: FALSE | K38: TRUE | L38: TRUE
A39: 39 | B39: 32 | C39: COMUNE DI NEROLA | D39: 02457750582 | H39: COMUNE DI NEROLA | I39: 32 | J39: FALSE | K39: TRUE | L39: TRUE
A40: 40 | B40: 33 | C40: COMUNE DI PALOMBARA SABINA | D40: 00998690580 | H40: COMUNE DI PALOMBARA SABINA | I40: 33 | J40: FALSE | K40: TRUE | L40: TRUE
A41: 41 | B41: 34 | C41: COMUNE DI POGGIO CATINO | D41: 00096500574 | H41: COMUNE DI POGGIO CATINO | I41: 34 | J41: FALSE | K41: TRUE | L41: TRUE
A42: 42 | B42: 35 | C42: COMUNE DI POGGIO MIRTETO | D42: 00094100575 | H42: COMUNE DI POGGIO MIRTETO | I42: 35 | J42: FALSE | K42: TRUE | L42: TRUE
A43: 43 | B43: 36 | C43: COMUNE DI POGGIO MOIANO | D43: 00121900575 | H43: COMUNE DI POGGIO MOIANO | I43: 36 | J43: FALSE | K43: TRUE | L43: TRUE
A44: 44 | B44: 37 | C44: COMUNE DI POGGIO NATIVO | D44: 00122390578 | H44: COMUNE DI POGGIO NATIVO | I44: 37 | J44: FALSE | K44: TRUE | L44: TRUE
A45: 45 | B45: 38 | C45: COMUNE DI POMEZIA | D45: 02298490588 | H45: COMUNE DI POMEZIA | I45: 38 | J45: FALSE | K45: TRUE | L45: TRUE
A46: 46 | B46: 39 | C46: COMUNE DI RIETI | D46: 00100700574 | H46: COMUNE DI RIETI | I46: 39 | J46: FALSE | K46: TRUE | L46: TRUE
A47: 47 | B47: 40 | C47: COMUNE DI ROCCA CANTERANO | D47: 02850250586 | H47: COMUNE DI ROCCA CANTERANO | I47: 40 | J47: FALSE | K47: TRUE | L47: TRUE
A48: 48 | B48: 41 | C48: COMUNE DI ROCCA MASSIMA | D48: 80004750594 | H48: COMUNE DI ROCCA MASSIMA | I48: 41 | J48: FALSE | K48: TRUE | L48: TRUE
A49: 49 | B49: 42 | C49: COMUNE DI SALISANO | D49: 00142660570 | H49: COMUNE DI SALISANO | I49: 42 | J49: FALSE | K49: TRUE | L49: TRUE
A50: 50 | B50: 43 | C50: COMUNE DI SANT'ANGELO ROMANO | D50: 86002210580 | H50: COMUNE DI SANT'ANGELO ROMANO | I50: 43 | J50: FALSE | K50: TRUE | L50: TRUE
A51: 51 | B51: 44 | C51: COMUNE DI TIVOLI | D51: 02696630587 | H51: COMUNE DI TIVOLI | I51: 44 | J51: FALSE | K51: TRUE | L51: TRUE
A52: 52 | B52: 45 | C52: COMUNE DI TREVI NEL LAZIO | D52: 00300630605 | H52: COMUNE DI TREVI NEL LAZIO | I52: 45 | J52: FALSE | K52: TRUE | L52: TRUE
A53: 53 | B53: 46 | C53: COMUNE DI VALMONTONE | D53: 02512330586 | H53: COMUNE DI VALMONTONE | I53: 46 | J53: FALSE | K53: TRUE | L53: TRUE
A54: 54 | B54: 47 | C54: CONSORZIO ACQUEDOTTO LE CAPORE | D54: 90004010576 | H54: CONSORZIO ACQUEDOTTO LE CAPORE | I54: 47 | J54: FALSE | K54: TRUE | L54: TRUE
A55: 55 | B55: 48 | C55: CONSORZIO ALTIPIANI DI ARCINAZZO | D55: 97161360587 | H55: CONSORZIO ALTIPIANI DI ARCINAZZO | I55: 48 | J55: FALSE | K55: TRUE | L55: TRUE
A56: 56 | B56: 49 | C56: CONSORZIO ASI | D56: 00290890607 | H56: CONSORZIO ASI | I56: 49 | J56: FALSE | K56: TRUE | L56: TRUE
A57: 57 | B57: 50 | C57: CONSORZIO BASSA SABINA ACQUA PESCHIERA | D57: 00092850577 | H57: CONSORZIO BASSA SABINA ACQUA PESCHIERA | I57: 50 | J57: FALSE | K57: TRUE | L57: TRUE
A58: 58 | B58: 51 | C58: CONSORZIO FARA IN SABINA | D58: 90011590578 | H58: CONSORZIO FARA IN SABINA | I58: 51 | J58: FALSE | K58: TRUE | L58: TRUE
A59: 59 | B59: 52 | C59: CONSORZIO TRA I COMUNI MEDIA SABINA | D59: 00086470572 | H59: CONSORZIO TRA I COMUNI MEDIA SABINA | I59: 52 | J59: FALSE | K59: TRUE | L59: TRUE
A60: 60 | B60: 53 | C60: FLAVIA ACQUE S.R.L. | D60: 07857381003 | H60: FLAVIA ACQUE S.R.L. | I60: 53 | J60: FALSE | K60: TRUE | L60: TRUE
A61: 61 | B61: 54 | C61: IDRICA S.P.A. | D61: 04881890588 | H61: IDRICA S.P.A. | I61: 54 | J61: FALSE | K61: TRUE | L61: TRUE
A62: 62 | B62: 55 | C62: COMUNE DI OLEVANO ROMANO | H62: COMUNE DI OLEVANO ROMANO | I62: 55 | J62: FALSE | K62: TRUE | L62: TRUE

Sheet Vendita_Servizi_ingrosso
B1: SCAMBI ALL'INGROSSO
B3: 2. Ricavi da tariffe applicate nella Vendita all'ingrosso
F4: ANNO 2014 | L4: ANNO 2015 | R4: Informazione sui J ANNO 2014 | W4: Informazione sui J ANNO 2015
A5: N_riga | B5: ID_AEEG | C5: Soggetto a cui si vende | D5: ATO | E5: Servizio | F5: Volumi erogati / trattati (m3/anno) | G5: QV (Euro/m3) | H5: Minimo impegnato (m3/anno) | I5: Utenze (numero) | J5: QF (Euro/utente/anno) | K5: Importo (Euro/anno) | L5: Volumi erogati / trattati (m3/anno) | M5: QV (Euro/m3) | N5: Minimo impegnato (m3/anno) | O5: Utenze (numero) | P5: QF (Euro/utente/anno) | Q5: Importo (Euro/anno) | R5: Le tariffe riportane per il 2014 includono l'applicazione del Teta? | S5: Teta medio applicato nella fatturazione dell'anno 2014 | T5: Teta approvato dal soggetto competente per l'anno 2014 | U5: Teta approvato da AEEGSI per l'anno 2014 | V5: delibera AEEGSI | W5: Le tariffe riportane per il 2015 includono l'applicazione del Teta? | X5: Teta medio applicato nella fatturazione dell'anno 2015 | Y5: Teta approvato dal soggetto competente per l'anno 2015 | Z5: Teta approvato da AEEGSI per l'anno 2015 | AA5: delibera AEEGSI
A6: 1 | B6: =+IF(ISNA(VLOOKUP(C6,soggetto_j,2,FALSE)),0,VLOOKUP(C6,soggetto_j,2,FALSE)) -> 13 | C6: COMUNE DI AGOSTA | E6: Adduzione | F6: 226543 | G6: 0 | K6: =+I6*J6+IF(H6>F6,H6*G6,F6*G6) -> 0 | L6: 130854.6667 | M6: 0 | Q6: =+O6*P6+IF(N6>L6,N6*M6,L6*M6) -> 0 | U6: =+Dati_Anni_precedenti!$D$5 -> 1.148 | V6: =Dati_Anni_precedenti!$C$4 -> 463/2014 | Z6: =+Dati_Anni_precedenti!$E$5 -> 1.251 | AA6: =Dati_Anni_precedenti!$C$4 -> 463/2014
A7: 2 | B7: =+IF(ISNA(VLOOKUP(C7,soggetto_j,2,FALSE)),0,VLOOKUP(C7,soggetto_j,2,FALSE)) -> 49 | C7: CONSORZIO ASI | E7: Adduzione | F7: 1725535 | G7: 0.2654501473 | K7: =+I7*J7+IF(H7>F7,H7*G7,F7*G7) -> 458043.52 | L7: 1553581.333 | M7: 0.1848886959 | Q7: =+O7*P7+IF(N7>L7,N7*M7,L7*M7) -> 287239.6267 | U7: =+Dati_Anni_precedenti!$D$5 -> 1.148 | V7: =Dati_Anni_precedenti!$C$4 -> 463/2014 | Z7: =+Dati_Anni_precedenti!$E$5 -> 1.251 | AA7: =Dati_Anni_precedenti!$C$4 -> 463/2014
A8: 3 | B8: 14 | C8: COMUNE DI ANGUILLARA SABAZIA | E8: Adduzione | F8: 171968 | G8: 0.4098372372 | K8: 70478.89 | L8: 532646.6667 | M8: 0.7152648785 | Q8: 380983.4533 | U8: =+Dati_Anni_precedenti!$D$5 -> 1.148 | V8: =Dati_Anni_precedenti!$C$4 -> 463/2014 | Z8: =+Dati_Anni_precedenti!$E$5 -> 1.251 | AA8: =Dati_Anni_precedenti!$C$4 -> 463/2014
A9: 4 | B9: 48 | C9: CONSORZIO ALTIPIANI DI ARCINAZZO | E9: Adduzione | F9: 26450 | G9: 0.2593950851 | K9: 6861 | L9: 21096 | M9: 0.2891859436 | Q9: 6100.666667 | U9: =+Dati_Anni_precedenti!$D$5 -> 1.148 | V9: =Dati_Anni_precedenti!$C$4 -> 463/2014 | Z9: =+Dati_Anni_precedenti!$E$5 -> 1.251 | AA9: =Dati_Anni_precedenti!$C$4 -> 463/2014
A10: 5 | B10: 54 | C10: IDRICA S.P.A. | E10: Adduzione | F10: 3306311 | G10: 0.2630616146 | K10: 869763.51 | L10: 3047057.333 | M10: 0.2726163035 | Q10: 830677.5067 | U10: =+Dati_Anni_precedenti!$D$5 -> 1.148 | V10: =Dati_Anni_precedenti!$C$4 -> 463/2014 | Z10: =+Dati_Anni_precedenti!$E$5 -> 1.251 | AA10: =Dati_Anni_precedenti!$C$4 -> 463/2014
A11: 6 | B11: 15 | C11: COMUNE DI CANTERANO | E11: Adduzione | F11: 93439 | G11: 0.254198461 | K11: 23752.05 | Q11: 0 | U11: =+Dati_Anni_precedenti!$D$5 -> 1.148 | V11: =Dati_Anni_precedenti!$C$4 -> 463/2014 | Z11: =+Dati_Anni_precedenti!$E$5 -> 1.251 | AA11: =Dati_Anni_precedenti!$C$4 -> 463/2014
A12: 7 | B12: 16 | C12: COMUNE DI CAPENA | E12: Adduzione | F12: 46263 | G12: 0.2519421568 | K12: 11655.6 | Q12: 0 | U12: =+Dati_Anni_precedenti!$D$5 -> 1.148 | V12: =Dati_Anni_precedenti!$C$4 -> 463/2014 | Z12: =+Dati_Anni_precedenti!$E$5 -> 1.251 | AA12: =Dati_Anni_precedenti!$C$4 -> 463/2014
A13: 8 | B13: 17 | C13: COMUNE DI CAPRANICA PRENESTINA | E13: Adduzione | F13: 187996 | G13: 0.2523999979 | K13: 47450.19 | Q13: 0 | U13: =+Dati_Anni_precedenti!$D$5 -> 1.148 | V13: =Dati_Anni_precedenti!$C$4 -> 463/2014 | Z13: =+Dati_Anni_precedenti!$E$5 -> 1.251 | AA13: =Dati_Anni_precedenti!$C$4 -> 463/2014
A14: 9 | B14: 18 | C14: COMUNE DI CASAPROTA | E14: Adduzione | F14: 232176 | G14: 0.4064793519 | K14: 94374.75 | L14: 227724 | M14: 0.4049706955 | Q14: 92221.54667 | U14: =+Dati_Anni_precedenti!$D$5 -> 1.148 | V14: =Dati_Anni_precedenti!$C$4 -> 463/2014 | Z14: =+Dati_Anni_precedenti!$E$5 -> 1.251 | AA14: =Dati_Anni_precedenti!$C$4 -> 463/2014
A15: 10 | B15: 19 | C15: COMUNE DI CASTELNUOVO DI FARFA | E15: Adduzione | F15: 126146 | G15: 3.170928924e-06 | K15: 0.4 | L15: 127642.6667 | M15: 4.178331175e-06 | Q15: 0.5333333333 | U15: =+Dati_Anni_precedenti!$D$5 -> 1.148 | V15: =Dati_Anni_precedenti!$C$4 -> 463/2014 | Z15: =+Dati_Anni_precedenti!$E$5 -> 1.251 | AA15: =Dati_Anni_precedenti!$C$4 -> 463/2014
A16: 11 | B16: 20 | C16: COMUNE DI CERRETO LAZIALE | E16: Adduzione | F16: 27568 | G16: 0.2459986216 | K16: 6781.69 | L16: 15954.66667 | M16: 0.2676575297 | Q16: 4270.386667 | U16: =+Dati_Anni_precedenti!$D$5 -> 1.148 | V16: =Dati_Anni_precedenti!$C$4 -> 463/2014 | Z16: =+Dati_Anni_precedenti!$E$5 -> 1.251 | AA16: =Dati_Anni_precedenti!$C$4 -> 463/2014
A17: 12 | B17: 22 | C17: COMUNE DI CIVITAVECCHIA | E17: Adduzione | F17: 5610364 | G17: 0.3464023992 | K17: 1943443.55 | L17: 5471964 | M17: 0.3414852924 | Q17: 1868595.227 | U17: =+Dati_Anni_precedenti!$D$5 -> 1.148 | V17: =Dati_Anni_precedenti!$C$4 -> 463/2014 | Z17: =+Dati_Anni_precedenti!$E$5 -> 1.251 | AA17: =Dati_Anni_precedenti!$C$4 -> 463/2014
A18: 13 | B18: 23 | C18: COMUNE DI CIVITELLA SAN PAOLO | E18: Adduzione | F18: 90424 | G18: 0.2524000265 | K18: 22823.02 | L18: 87773.33333 | M18: 0.2840173173 | Q18: 24929.14667 | U18: =+Dati_Anni_precedenti!$D$5 -> 1.148 | V18: =Dati_Anni_precedenti!$C$4 -> 463/2014 | Z18: =+Dati_Anni_precedenti!$E$5 -> 1.251 | AA18: =Dati_Anni_precedenti!$C$4 -> 463/2014
A19: 14 | B19: 24 | C19: COMUNE DI CORI | E19: Adduzione | F19: 717147 | G19: 0.252400024 | K19: 181007.92 | L19: 599993.3333 | M19: 0.2675178391 | Q19: 160508.92 | U19: =+Dati_Anni_precedenti!$D$5 -> 1.148 | V19: =Dati_Anni_precedenti!$C$4 -> 463/2014 | Z19: =+Dati_Anni_precedenti!$E$5 -> 1.251 | AA19: =Dati_Anni_precedenti!$C$4 -> 463/2014
A20: 15 | B20: 51 | C20: CONSORZIO FARA IN SABINA | E20: Adduzione | F20: 2545847 | G20: 0.2088511053 | K20: 531702.96 | L20: 2309202.667 | M20: 0.3087818999 | Q20: 713039.9867 | U20: =+Dati_Anni_precedenti!$D$5 -> 1.148 | V20: =Dati_Anni_precedenti!$C$4 -> 463/2014 | Z20: =+Dati_Anni_precedenti!$E$5 -> 1.251 | AA20: =Dati_Anni_precedenti!$C$4 -> 463/2014
A21: 16 | B21: 50 | C21: CONSORZIO BASSA SABINA ACQUA PESCHIERA | E21: Adduzione | F21: 1119226 | G21: 0.1264803445 | K21: 141560.09 | L21: 1138142.667 | M21: 0.1325504477 | Q21: 150861.32 | U21: =+Dati_Anni_precedenti!$D$5 -> 1.148 | V21: =Dati_Anni_precedenti!$C$4 -> 463/2014 | Z21: =+Dati_Anni_precedenti!$E$5 -> 1.251 | AA21: =Dati_Anni_precedenti!$C$4 -> 463/2014
A22: 17 | B22: 12 | C22: A.R.S.I.A.L. | E22: Adduzione | F22: 168923 | G22: 0.2533959852 | K22: 42804.41 | L22: 221205.3333 | M22: 0.2788245612 | Q22: 61677.48 | U22: =+Dati_Anni_precedenti!$D$5 -> 1.148 | V22: =Dati_Anni_precedenti!$C$4 -> 463/2014 | Z22: =+Dati_Anni_precedenti!$E$5 -> 1.251 | AA22: =Dati_Anni_precedenti!$C$4 -> 463/2014
A23: 18 | B23: 47 | C23: CONSORZIO ACQUEDOTTO LE CAPORE | E23: Adduzione | F23: 392822 | G23: 0.2290384704 | K23: 89971.35 | L23: 329016 | M23: 0.09352748802 | Q23: 30772.04 | U23: =+Dati_Anni_precedenti!$D$5 -> 1.148 | V23: =Dati_Anni_precedenti!$C$4 -> 463/2014 | Z23: =+Dati_Anni_precedenti!$E$5 -> 1.251 | AA23: =Dati_Anni_precedenti!$C$4 -> 463/2014
A24: 19 | B24: 25 | C24: COMUNE DI GERANO | E24: Adduzione | F24: 126621 | G24: 0.2540847095 | K24: 32172.46 | Q24: 0 | U24: =+Dati_Anni_precedenti!$D$5 -> 1.148 | V24: =Dati_Anni_precedenti!$C$4 -> 463/2014 | Z24: =+Dati_Anni_precedenti!$E$5 -> 1.251 | AA24: =Dati_Anni_precedenti!$C$4 -> 463/2014
A25: 20 | B25: 26 | C25: COMUNE DI LABICO | E25: Adduzione | F25: 56637 | G25: 0.2524000212 | K25: 14295.18 | L25: 64688 | M25: 0.2886515789 | Q25: 18672.29333 | U25: =+Dati_Anni_precedenti!$D$5 -> 1.148 | V25: =Dati_Anni_precedenti!$C$4 -> 463/2014 | Z25: =+Dati_Anni_precedenti!$E$5 -> 1.251 | AA25: =Dati_Anni_precedenti!$C$4 -> 463/2014
A26: 21 | B26: 53 | C26: FLAVIA ACQUE S.R.L. | E26: Adduzione | F26: 632453 | G26: 0.2416050046 | K26: 152803.81 | L26: 639961.3333 | M26: 0.2680967808 | Q26: 171571.5733 | U26: =+Dati_Anni_precedenti!$D$5 -> 1.148 | V26: =Dati_Anni_precedenti!$C$4 -> 463/2014 | Z26: =+Dati_Anni_precedenti!$E$5 -> 1.251 | AA26: =Dati_Anni_precedenti!$C$4 -> 463/2014
A27: 22 | B27: 27 | C27: COMUNE DI MARANO EQUO | E27: Adduzione | F27: 243478 | G27: 0.9983591947 | K27: 243078.5 | L27: 211548 | M27: 0.9493119922 | Q27: 200825.0533 | U27: =+Dati_Anni_precedenti!$D$5 -> 1.148 | V27: =Dati_Anni_precedenti!$C$4 -> 463/2014 | Z27: =+Dati_Anni_precedenti!$E$5 -> 1.251 | AA27: =Dati_Anni_precedenti!$C$4 -> 463/2014
A28: 23 | B28: 28 | C28: COMUNE DI MOMPEO | E28: Adduzione | F28: 81418 | G28: 0 | K28: 0 | L28: 70342.66667 | M28: 0 | Q28: 0 | U28: =+Dati_Anni_precedenti!$D$5 -> 1.148 | V28: =Dati_Anni_precedenti!$C$4 -> 463/2014 | Z28: =+Dati_Anni_precedenti!$E$5 -> 1.251 | AA28: =Dati_Anni_precedenti!$C$4 -> 463/2014
A29: 24 | B29: 30 | C29: COMUNE DI MONTOPOLI DI SABINA | E29: Adduzione | F29: 938282 | G29: 0.2233061489 | K29: 209524.14 | L29: 982216 | M29: 0.2517048117 | Q29: 247228.4933 | U29: =+Dati_Anni_precedenti!$D$5 -> 1.148 | V29: =Dati_Anni_precedenti!$C$4 -> 463/2014 | Z29: =+Dati_Anni_precedenti!$E$5 -> 1.251 | AA29: =Dati_Anni_precedenti!$C$4 -> 463/2014
A30: 25 | B30: 31 | C30: COMUNE DI MORLUPO | E30: Adduzione | F30: 786141 | G30: 0.3496431556 | K30: 274868.82 | L30: 788146.6667 | M30: 0.3907776556 | Q30: 307990.1067 | U30: =+Dati_Anni_precedenti!$D$5 -> 1.148 | V30: =Dati_Anni_precedenti!$C$4 -> 463/2014 | Z30: =+Dati_Anni_precedenti!$E$5 -> 1.251 | AA30: =Dati_Anni_precedenti!$C$4 -> 463/2014
A31: 26 | B31: 32 | C31: COMUNE DI NEROLA | E31: Adduzione | F31: 134773 | G31: 0.3249325904 | K31: 43792.14 | L31: 116634.6667 | M31: 0.3297576478 | Q31: 38461.17333 | U31: =+Dati_Anni_precedenti!$D$5 -> 1.148 | V31: =Dati_Anni_precedenti!$C$4 -> 463/2014 | Z31: =+Dati_Anni_precedenti!$E$5 -> 1.251 | AA31: =Dati_Anni_precedenti!$C$4 -> 463/2014
A32: 27 | B32: 9 | C32: ACCADEMIA TEDESCA | E32: Adduzione | F32: 3196 | G32: 0.2523998748 | K32: 806.67 | L32: 7329.333333 | M32: 0.2902383118 | Q32: 2127.253333 | U32: =+Dati_Anni_precedenti!$D$5 -> 1.148 | V32: =Dati_Anni_precedenti!$C$4 -> 463/2014 | Z32: =+Dati_Anni_precedenti!$E$5 -> 1.251 | AA32: =Dati_Anni_precedenti!$C$4 -> 463/2014
A33: 28 | B33: 11 | C33: AMEA S.P.A. | E33: Adduzione | F33: 291029 | G33: 0.2524000357 | K33: 73455.73 | L33: 304456 | M33: 0.269052036 | Q33: 81914.50667 | U33: =+Dati_Anni_precedenti!$D$5 -> 1.148 | V33: =Dati_Anni_precedenti!$C$4 -> 463/2014 | Z33: =+Dati_Anni_precedenti!$E$5 -> 1.251 | AA33: =Dati_Anni_precedenti!$C$4 -> 463/2014
A34: 29 | B34: 33 | C34: COMUNE DI PALOMBARA SABINA | E34: Adduzione | F34: 991750 | G34: 0.2610469271 | K34: 258893.29 | L34: 1037253.333 | M34: 0.2703906857 | Q34: 280463.64 | U34: =+Dati_Anni_precedenti!$D$5 -> 1.148 | V34: =Dati_Anni_precedenti!$C$4 -> 463/2014 | Z34: =+Dati_Anni_precedenti!$E$5 -> 1.251 | AA34: =Dati_Anni_precedenti!$C$4 -> 463/2014
A35: 30 | B35: 34 | C35: COMUNE DI POGGIO CATINO | E35: Adduzione | F35: 31534 | G35: 0.2524002664 | K35: 7959.19 | L35: 31909.33333 | M35: 0.267665051 | Q35: 8541.013333 | U35: =+Dati_Anni_precedenti!$D$5 -> 1.148 | V35: =Dati_Anni_precedenti!$C$4 -> 463/2014 | Z35: =+Dati_Anni_precedenti!$E$5 -> 1.251 | AA35: =Dati_Anni_precedenti!$C$4 -> 463/2014
A36: 31 | B36: 35 | C36: COMUNE DI POGGIO MIRTETO | E36: Adduzione | F36: 883074 | G36: 0.1447155165 | K36: 127794.51 | L36: 780865.3333 | M36: 0.1551686334 | Q36: 121165.8067 | U36: =+Dati_Anni_precedenti!$D$5 -> 1.148 | V36: =Dati_Anni_precedenti!$C$4 -> 463/2014 | Z36: =+Dati_Anni_precedenti!$E$5 -> 1.251 | AA36: =Dati_Anni_precedenti!$C$4 -> 463/2014
A37: 32 | B37: 36 | C37: COMUNE DI POGGIO MOIANO | E37: Adduzione | F37: 168928 | G37: 0.2524000758 | K37: 42637.44 | L37: 207858.6667 | M37: 0.3235399695 | Q37: 67250.58667 | U37: =+Dati_Anni_precedenti!$D$5 -> 1.148 | V37: =Dati_Anni_precedenti!$C$4 -> 463/2014 | Z37: =+Dati_Anni_precedenti!$E$5 -> 1.251 | AA37: =Dati_Anni_precedenti!$C$4 -> 463/2014
A38: 33 | B38: 37 | C38: COMUNE DI POGGIO NATIVO | E38: Adduzione | F38: 291582 | G38: 0.4813583143 | K38: 140355.42 | L38: 301274.6667 | M38: 0.5287710882 | Q38: 159305.3333 | U38: =+Dati_Anni_precedenti!$D$5 -> 1.148 | V38: =Dati_Anni_precedenti!$C$4 -> 463/2014 | Z38: =+Dati_Anni_precedenti!$E$5 -> 1.251 | AA38: =Dati_Anni_precedenti!$C$4 -> 463/2014
A39: 34 | B39: 38 | C39: COMUNE DI POMEZIA | E39: Adduzione | F39: 6220849 | G39: 0.3203943947 | K39: 1993125.15 | L39: 6301389.333 | M39: 0.3419282414 | Q39: 2154622.973 | U39: =+Dati_Anni_precedenti!$D$5 -> 1.148 | V39: =Dati_Anni_precedenti!$C$4 -> 463/2014 | Z39: =+Dati_Anni_precedenti!$E$5 -> 1.251 | AA39: =Dati_Anni_precedenti!$C$4 -> 463/2014
A40: 35 | B40: 39 | C40: COMUNE DI RIETI | E40: Adduzione | F40: 2948 | G40: 0.2523982361 | K40: 744.07 | L40: 6234.666667 | M40: 0.2931757913 | Q40: 1827.853333 | U40: =+Dati_Anni_precedenti!$D$5 -> 1.148 | V40: =Dati_Anni_precedenti!$C$4 -> 463/2014 | Z40: =+Dati_Anni_precedenti!$E$5 -> 1.251 | AA40: =Dati_Anni_precedenti!$C$4 -> 463/2014
A41: 36 | B41: 40 | C41: COMUNE DI ROCCA CANTERANO | E41: Adduzione | F41: 88125 | G41: 0.2957369645 | K41: 26061.82 | Q41: 0 | U41: =+Dati_Anni_precedenti!$D$5 -> 1.148 | V41: =Dati_Anni_precedenti!$C$4 -> 463/2014 | Z41: =+Dati_Anni_precedenti!$E$5 -> 1.251 | AA41: =Dati_Anni_precedenti!$C$4 -> 463/2014
A42: 37 | B42: 10 | C42: ACQUE POTABILI SPA | E42: Adduzione | F42: 826417 | G42: 0.2659018994 | K42: 219745.85 | Q42: 0 | U42: =+Dati_Anni_precedenti!$D$5 -> 1.148 | V42: =Dati_Anni_precedenti!$C$4 -> 463/2014 | Z42: =+Dati_Anni_precedenti!$E$5 -> 1.251 | AA42: =Dati_Anni_precedenti!$C$4 -> 463/2014
A43: 38 | B43: 41 | C43: COMUNE DI ROCCA MASSIMA | E43: Adduzione | F43: 196853 | G43: 0.2523999634 | K43: 49685.69 | L43: 145538.6667 | M43: 0.2750000916 | Q43: 40023.14667 | U43: =+Dati_Anni_precedenti!$D$5 -> 1.148 | V43: =Dati_Anni_precedenti!$C$4 -> 463/2014 | Z43: =+Dati_Anni_precedenti!$E$5 -> 1.251 | AA43: =Dati_Anni_precedenti!$C$4 -> 463/2014
A44: 39 | B44: 42 | C44: COMUNE DI SALISANO | E44: Adduzione | F44: 96291 | G44: 0 | K44: 0 | L44: 101201.3333 | M44: 0 | Q44: 0 | U44: =+Dati_Anni_precedenti!$D$5 -> 1.148 | V44: =Dati_Anni_precedenti!$C$4 -> 463/2014 | Z44: =+Dati_Anni_precedenti!$E$5 -> 1.251 | AA44: =Dati_Anni_precedenti!$C$4 -> 463/2014
A45: 40 | B45: 43 | C45: COMUNE DI SANT'ANGELO ROMANO | E45: Adduzione | F45: 182138 | G45: 0.2995484193 | K45: 54559.15 | L45: 129114.6667 | M45: 0.3872972861 | Q45: 50005.76 | U45: =+Dati_Anni_precedenti!$D$5 -> 1.148 | V45: =Dati_Anni_precedenti!$C$4 -> 463/2014 | Z45: =+Dati_Anni_precedenti!$E$5 -> 1.251 | AA45: =Dati_Anni_precedenti!$C$4 -> 463/2014
A46: 41 | B46: 44 | C46: COMUNE DI TIVOLI | E46: Adduzione | F46: 3650 | G46: 0.2301972603 | K46: 840.22 | L46: 3640 | M46: 0.3077728938 | Q46: 1120.293333 | U46: =+Dati_Anni_precedenti!$D$5 -> 1.148 | V46: =Dati_Anni_precedenti!$C$4 -> 463/2014 | Z46: =+Dati_Anni_precedenti!$E$5 -> 1.251 | AA46: =Dati_Anni_precedenti!$C$4 -> 463/2014
A47: 42 | B47: 45 | C47: COMUNE DI TREVI NEL LAZIO | E47: Adduzione | F47: 259097 | G47: 0.2529294434 | K47: 65533.26 | L47: 208205.3333 | M47: 0.2735816566 | Q47: 56961.16 | U47: =+Dati_Anni_precedenti!$D$5 -> 1.148 | V47: =Dati_Anni_precedenti!$C$4 -> 463/2014 | Z47: =+Dati_Anni_precedenti!$E$5 -> 1.251 | AA47: =Dati_Anni_precedenti!$C$4 -> 463/2014
A48: 43 | B48: 46 | C48: COMUNE DI VALMONTONE | E48: Adduzione | F48: 357301 | G48: 0.2524000493 | K48: 90182.79 | L48: 296034.6667 | M48: 0.2675473143 | Q48: 79203.28 | U48: =+Dati_Anni_precedenti!$D$5 -> 1.148 | V48: =Dati_Anni_precedenti!$C$4 -> 463/2014 | Z48: =+Dati_Anni_precedenti!$E$5 -> 1.251 | AA48: =Dati_Anni_precedenti!$C$4 -> 463/2014
A49: 44 | B49: 52 | C49: CONSORZIO TRA I COMUNI MEDIA SABINA | E49: Adduzione | F49: 919296 | G49: 0 | K49: 0 | Q49: 0 | U49: =+Dati_Anni_precedenti!$D$5 -> 1.148 | V49: =Dati_Anni_precedenti!$C$4 -> 463/2014 | Z49: =+Dati_Anni_precedenti!$E$5 -> 1.251 | AA49: =Dati_Anni_precedenti!$C$4 -> 463/2014
A50: 45 | B50: 55 | C50: COMUNE DI OLEVANO ROMANO | E50: Adduzione | F50: 1889335 | G50: 0.4308888825 | K50: 814093.4469 | Q50: 0 | U50: =+Dati_Anni_precedenti!$D$5 -> 1.148 | V50: =Dati_Anni_precedenti!$C$4 -> 463/2014 | Z50: =+Dati_Anni_precedenti!$E$5 -> 1.251 | AA50: =Dati_Anni_precedenti!$C$4 -> 463/2014
A51: 46 | B51: 1 | C51: Acea ATO5 Spa | E51: Adduzione | F51: 5542883 | G51: 0.4308888825 | K51: 2388366.662 | L51: 4998484 | M51: 0.491658485 | Q51: 2457547.071 | U51: =+Dati_Anni_precedenti!$D$5 -> 1.148 | V51: =Dati_Anni_precedenti!$C$4 -> 463/2014 | Z51: =+Dati_Anni_precedenti!$E$5 -> 1.251 | AA51: =Dati_Anni_precedenti!$C$4 -> 463/2014

Sheet Acquisto_Servizi_ingrosso
B1: SCAMBI ALL'INGROSSO
B3: 3. Costi per acquisto all'ingrosso | F3: costi sostenuti di fornitura all'ingrosso, criterio di competenza | Q3: costi a seguito dell'applicazione del J al grossista | W3: costi sostenuti di fornitura all'ingrosso, criterio di competenza | AH3: costi a seguito dell'applicazione del J al grossista
F4: ANNO 2014 - COeffettivo,2014 ai fini del COws art.26 del. 664/2015/R/idr | L4: informazione sui J ANNO 2014 | Q4: ANNO 2014 - COeffettivo,2014 ai fini del RCws art.29 del. 664/2015/R/idr | W4: ANNO 2015 - COeffettivo,2014 ai fini del COws art.26 del. 664/2015/R/idr | AC4: informazione sui J ANNO 2015 | AH4: ANNO 2015 - COeffettivo,2015 ai fini del RCws art.29 del. 664/2015/R/idr
A5: N_riga | B5: ID_AEEG | C5: Soggetto da cui si acquista | D5: ATO | E5: Servizio | F5: Volumi erogati / trattati (m3/anno) | G5: QV (Euro/m3) | H5: Minimo impegnato (m3/anno) | I5: Utenze (numero) | J5: QF (Euro/utente/anno) | K5: Importo (Euro/anno) | L5: Le tariffe applicate per la fatturazione 2014 includono l'applicazione del Teta? | M5: Teta medio applicato dal grossista nella fatturazione dell'anno 2014 | N5: Teta approvato dal soggetto competente per l'anno 2014 | O5: Teta approvato da AEEGSI per l'anno 2014 | P5: delibera AEEGSI | Q5: Volumi erogati / trattati (m3/anno) | R5: QV (Euro/m3) | S5: Minimo impegnato (m3/anno) | T5: Utenze (numero) | U5: QF (Euro/utente/anno) | V5: Importo (Euro/anno) | W5: Volumi erogati / trattati (m3/anno) | X5: QV (Euro/m3) | Y5: Minimo impegnato (m3/anno) | Z5: Utenze (numero) | AA5: QF (Euro/utente/anno) | AB5: Importo (Euro/anno) | AC5: Le tariffe applicate per la fatturazione 2015 includono l'applicazione del Teta? | AD5: Teta medio applicato dal grossista nella fatturazione dell'anno 2015 | AE5: Teta approvato dal soggetto competente per l'anno 2015 | AF5: Teta approvato da AEEGSI per l'anno 2015 | AG5: delibera AEEGSI | AH5: Volumi erogati / trattati (m3/anno) | AI5: QV (Euro/m3) | AJ5: Minimo impegnato (m3/anno) | AK5: Utenze (numero) | AL5: QF (Euro/utente/anno) | AM5: Importo (Euro/anno)
A6: 1 | B6: =+IF(ISNA(VLOOKUP(C6,soggetto_j,2,FALSE)),0,VLOOKUP(C6,soggetto_j,2,FALSE)) -> 1 | C6: Acea ATO5 Spa | D6: ATO 5 - LAZIO MERIDIONALE FROSINONE | E6: Acquedotto distribuzione | F6: 4061889 | G6: 0.6072436002 | K6: =+I6*J6+IF(H6>F6,H6*G6,F6*G6) -> 2466556.1 | V6: =+T6*U6+IF(S6>Q6,S6*R6,Q6*R6) -> 0 | W6: 4435223 | X6: 0.749886353 | AB6: =+Z6*AA6+IF(Y6>W6,Y6*X6,W6*X6) -> 3325913.2 | AM6: =+AK6*AL6+IF(AJ6>AH6,AJ6*AI6,AH6*AI6) -> 0
A7: 2 | B7: 2 | C7: Eredi Marrucco | D7: ATO 2 - LAZIO CENTRALE ROMA | E7: Captazione | K7: =+I7*J7+IF(H7>F7,H7*G7,F7*G7) -> 0 | V7: =+T7*U7+IF(S7>Q7,S7*R7,Q7*R7) -> 0 | AB7: =+Z7*AA7+IF(Y7>W7,Y7*X7,W7*X7) -> 0 | AM7: =+AK7*AL7+IF(AJ7>AH7,AJ7*AI7,AH7*AI7) -> 0
A8: 3 | B8: 3 | C8: Trivelpozzi Appia Srl | D8: ATO 2 - LAZIO CENTRALE ROMA | E8: Captazione | K8: 0 | V8: 0 | AB8: 0 | AM8: 0
A9: 4 | B9: 4 | C9: Ma.P.R.OL di Giorgi Srl | D9: ATO 2 - LAZIO CENTRALE ROMA | E9: Captazione | F9: 637478 | G9: 0.3166345397 | K9: 201847.5531 | V9: 0 | W9: 470765 | X9: 0.4928148864 | AB9: 232000 | AM9: 0
A10: 5 | B10: 5 | C10: Fratelli Vicario Srl | D10: ATO 2 - LAZIO CENTRALE ROMA | E10: Captazione | F10: 532453 | G10: 0.4208518874 | K10: 224083.85 | V10: 0 | W10: 567223 | X10: 0.4654254147 | AB10: 264000 | AM10: 0
A11: 6 | B11: 6 | C11: Felci Nanda | D11: ATO 2 - LAZIO CENTRALE ROMA | E11: Captazione | F11: 113241 | G11: 0.4067360762 | K11: 46059.2 | V11: 0 | W11: 0 | AB11: 0 | AM11: 0
A12: 7 | B12: 7 | C12: Holding Civitavecchia Servizi Srl | D12: ATO 2 - LAZIO CENTRALE ROMA | E12: Captazione | F12: 296503.25 | G12: 0.9305165458 | K12: 275901.18 | V12: 0 | W12: 407835 | X12: 0.3015925558 | AB12: 123000 | AM12: 0
A13: 8 | B13: 8 | C13: Consorzio Idraulico Sabino | D13: ATO 2 - LAZIO CENTRALE ROMA | E13: Captazione | F13: 655948.8 | G13: 0.1058009406 | K13: 69400 | V13: 0 | W13: 656000 | X13: 0.09512937595 | AB13: 62404.87062 | AM13: 0

Sheet Nuovi_Investimenti
B1: IMMOBILIZZAZIONI DEL GESTORE | G1: Tutti i valori si intendono a moneta dell'anno del cespite
A2: 1. LAVORI IN CORSO
D3: 2014 | E3: 2015 | F3: 2016 | G3: 2017
C4: Saldo LIC (*già nettati dai lavori a saldo invariato da più di 5 anni) | D4: 101536731 | E4: 114527584 | F4: 114527584 | G4: 114527584
A6: 2. NUOVI INVESTIMENTI
D7: 2014 | E7: 2015 | F7: 2016 | G7: 2017
C9: Totale nuovi investimenti | D9: =+SUMIF($D$13:$D$442,D3,$E$13:$E$442) -> 153942292 | E9: =+SUMIF($D$13:$D$442,E3,$E$13:$E$442) -> 167608412 | F9: =+SUMIF($D$13:$D$442,F3,$E$13:$E$442) -> 189999999 | G9: =+SUMIF($D$13:$D$442,G3,$E$13:$E$442) -> 210000000
A12: N_riga | B12: Categoria del cespite | C12: Categoria di Immobilizzazione | D12: Anno cespite | E12: IP (Euro) | F12: CFP (Euro)
A13: 60 | B13: Terreni | C13: Servizio idrico integrato | D13: 2014 | E13: 145851
A14: 61 | B14: Fabbricati industriali | C14: Servizio idrico integrato | D14: 2014 | E14: 1131651 | F14: 21381
A15: 62 | B15: Condutture e opere idrauliche fisse | C15: Servizio idrico integrato | D15: 2014 | E15: 90497479 | F15: 3216146
A16: 63 | B16: Serbatoi | C16: Servizio idrico integrato | D16: 2014 | E16: 211946 | F16: 4004
A17: 64 | B17: Impianti di trattamento | C17: Servizio idrico integrato | D17: 2014 | E17: 18601369 | F17: 351451
A18: 65 | B18: Impianti di sollevamento e pompaggio | C18: Servizio idrico integrato | D18: 2014 | E18: 31369198 | F18: 592685
A19: 66 | B19: Gruppi di misura meccanici | C19: Servizio idrico integrato | D19: 2014 | E19: 1293 | F19: 24
A20: 67 | B20: Altri impianti | C20: Servizio idrico integrato | D20: 2014 | E20: 4219211 | F20: -
A21: 68 | B21: Laboratori | C21: Servizio idrico integrato | D21: 2014 | E21: 158154 | F21: 2988
A22: 69 | B22: Telecontrollo | C22: Servizio idrico integrato | D22: 2014 | E22: 2219205 | F22: 41929
A23: 70 | B23: Studi, ricerche, brevetti, diritti di utilizzazione | C23: Servizio idrico integrato | D23: 2014 | E23: 1208013 | F23: 22824
A24: 71 | B24: Altre immobilizzazioni materiali e immateriali | C24: Servizio idrico integrato | D24: 2014 | E24: 4178922 | F24: 78956
A25: 72 | B25: Terreni | C25: Servizio idrico integrato | D25: 2015 | E25: 101902
A26: 73 | B26: Fabbricati industriali | C26: Servizio idrico integrato | D26: 2015 | E26: 2043058 | F26: 42003
A27: 74 | B27: Condutture e opere idrauliche fisse | C27: Servizio idrico integrato | D27: 2015 | E27: 54211722 | F27: 4703167
A28: 75 | B28: Serbatoi | C28: Servizio idrico integrato | D28: 2015 | E28: 153030 | F28: 3146
A29: 76 | B29: Impianti di trattamento | C29: Servizio idrico integrato | D29: 2015 | E29: 20598507 | F29: 423483
A30: 77 | B30: Impianti di sollevamento e pompaggio | C30: Servizio idrico integrato | D30: 2015 | E30: 40368350 | F30: 829929
A31: 78 | B31: Altri impianti | C31: Servizio idrico integrato | D31: 2015 | E31: 5054634 | F31: -
A32: 79 | B32: Laboratori | C32: Servizio idrico integrato | D32: 2015 | E32: 9817223 | F32: 201831
A33: 80 | B33: Telecontrollo | C33: Servizio idrico integrato | D33: 2015 | E33: 2937890 | F33: 60400
A34: 81 | B34: Autoveicoli | C34: Servizio idrico integrato | D34: 2015 | E34: 4485018 | F34: 92207
A35: 82 | B35: Studi, ricerche, brevetti, diritti di utilizzazione | C35: Servizio idrico integrato | D35: 2015 | E35: 26620838 | F35: 547295
A36: 83 | B36: Altre immobilizzazioni materiali e immateriali | C36: Servizio idrico integrato | D36: 2015 | E36: 1216240 | F36: 25005
A37: 84 | B37: Terreni | C37: Servizio idrico integrato | D37: 2016 | E37: 594494
A38: 85 | B38: Fabbricati industriali | C38: Servizio idrico integrato | D38: 2016 | E38: 4981144 | F38: 544019
A39: 86 | B39: Costruzioni leggere | C39: Servizio idrico integrato | D39: 2016 | E39: 675 | F39: 74
A40: 87 | B40: Condutture e opere idrauliche fisse | C40: Servizio idrico integrato | D40: 2016 | E40: 90445872 | F40: 11191046
A41: 88 | B41: Serbatoi | C41: Servizio idrico integrato | D41: 2016 | E41: 8590933 | F41: 938265
A42: 89 | B42: Impianti di trattamento | C42: Servizio idrico integrato | D42: 2016 | E42: 27897479 | F42: 3046843
A43: 90 | B43: Impianti di sollevamento e pompaggio | C43: Servizio idrico integrato | D43: 2016 | E43: 25640107 | F43: 2800303
A44: 91 | B44: Gruppi di misura meccanici | C44: Servizio idrico integrato | D44: 2016 | E44: 2800000 | F44: 305804
A45: 92 | B45: Laboratori | C45: Servizio idrico integrato | D45: 2016 | E45: 6700802 | F45: 731833
A46: 93 | B46: Telecontrollo | C46: Servizio idrico integrato | D46: 2016 | E46: 6150000 | F46: 671677
A47: 94 | B47: Studi, ricerche, brevetti, diritti di utilizzazione | C47: Servizio idrico integrato | D47: 2016 | E47: 16079129 | F47: 1756094
A48: 95 | B48: Altre immobilizzazioni materiali e immateriali | C48: Servizio idrico integrato | D48: 2016 | E48: 119364 | F48: 13036
A49: 96 | B49: Terreni | C49: Servizio idrico integrato | D49: 2017 | E49: 520182
A50: 97 | B50: Fabbricati industriali | C50: Servizio idrico integrato | D50: 2017 | E50: 4358501 | F50: 438520
A51: 98 | B51: Costruzioni leggere | C51: Servizio idrico integrato | D51: 2017 | E51: 591 | F51: 59
A52: 99 | B52: Condutture e opere idrauliche fisse | C52: Servizio idrico integrato | D52: 2017 | E52: 117830049 | F52: 13168132
A53: 100 | B53: Serbatoi | C53: Servizio idrico integrato | D53: 2017 | E53: 9607000 | F53: 966585
A54: 101 | B54: Impianti di trattamento | C54: Servizio idrico integrato | D54: 2017 | E54: 30397916 | F54: 3058415
A55: 102 | B55: Impianti di sollevamento e pompaggio | C55: Servizio idrico integrato | D55: 2017 | E55: 21092129 | F55: 2122135
A56: 103 | B56: Gruppi di misura meccanici | C56: Servizio idrico integrato | D56: 2017 | E56: 2800000 | F56: 281715
A57: 104 | B57: Laboratori | C57: Servizio idrico integrato | D57: 2017 | E57: 5863202 | F57: 589912
A58: 105 | B58: Telecontrollo | C58: Servizio idrico integrato | D58: 2017 | E58: 8900000 | F58: 895453
A59: 106 | B59: Studi, ricerche, brevetti, diritti di utilizzazione | C59: Servizio idrico integrato | D59: 2017 | E59: 8525987 | F59: 857822
A60: 107 | B60: Altre immobilizzazioni materiali e immateriali | C60: Servizio idrico integrato | D60: 2017 | E60: 104443 | F60: 10508

Sheet Dismissioni
B1: IMMOBILIZZAZIONI DEL GESTORE | G1: Tutti i valori si intendono a moneta dell'anno del cespite
A2: 3. DISMISSIONI
A7: N_riga | B7: Categoria del cespite | C7: Categoria di Immobilizzazione | D7: Anno dismissione | E7: Anno cespite | F7: IP (Euro) | G7: FA (Euro) | H7: CFP (Euro) | I7: FA cfp (Euro)
A8: 1 | B8: Fabbricati industriali | C8: Servizio idrico integrato | D8: 2012 | E8: 2005 | F8: 66.93
A9: 2 | B9: Fabbricati industriali | C9: Servizio idrico integrato | D9: 2012 | E9: 2011 | F9: 4806.46
A10: 3 | B10: Condutture e opere idrauliche fisse | C10: Servizio idrico integrato | D10: 2012 | E10: 2002 | F10: 907.65
A11: 4 | B11: Condutture e opere idrauliche fisse | C11: Servizio idrico integrato | D11: 2012 | E11: 2003 | F11: 5274.6
A12: 5 | B12: Condutture e opere idrauliche fisse | C12: Servizio idrico integrato | D12: 2012 | E12: 2005 | F12: 4344
A13: 6 | B13: Condutture e opere idrauliche fisse | C13: Servizio idrico integrato | D13: 2012 | E13: 2006 | F13: 15288.67
A14: 7 | B14: Condutture e opere idrauliche fisse | C14: Servizio idrico integrato | D14: 2012 | E14: 2007 | F14: 3358.87
A15: 8 | B15: Condutture e opere idrauliche fisse | C15: Servizio idrico integrato | D15: 2012 | E15: 2008 | F15: 1001.36
A16: 9 | B16: Condutture e opere idrauliche fisse | C16: Servizio idrico integrato | D16: 2012 | E16: 2009 | F16: 36848.36
A17: 10 | B17: Condutture e opere idrauliche fisse | C17: Servizio idrico integrato | D17: 2013 | E17: 2010 | F17: 146494.04
A18: 11 | B18: Condutture e opere idrauliche fisse | C18: Servizio idrico integrato | D18: 2012 | E18: 2010 | F18: 85106.53
A19: 12 | B19: Condutture e opere idrauliche fisse | C19: Servizio idrico integrato | D19: 2012 | E19: 2011 | F19: 100738.49
A20: 13 | B20: Condutture e opere idrauliche fisse | C20: Servizio idrico integrato | D20: 2013 | E20: 2011 | F20: 225227.96
A21: 14 | B21: Condutture e opere idrauliche fisse | C21: Servizio idrico integrato | D21: 2013 | E21: 2012 | F21: 297613.03
A22: 15 | B22: Serbatoi | C22: Servizio idrico integrato | D22: 2012 | E22: 2008 | F22: 6848.97
A23: 16 | B23: Serbatoi | C23: Servizio idrico integrato | D23: 2012 | E23: 2010 | F23: 40736.96
A24: 17 | B24: Serbatoi | C24: Servizio idrico integrato | D24: 2013 | E24: 2012 | F24: 105.87
A25: 18 | B25: Impianti di trattamento | C25: Servizio idrico integrato | D25: 2013 | E25: 2008 | F25: 1350
A26: 19 | B26: Impianti di trattamento | C26: Servizio idrico integrato | D26: 2012 | E26: 2008 | F26: 50887.51
A27: 20 | B27: Impianti di trattamento | C27: Servizio idrico integrato | D27: 2012 | E27: 2009 | F27: 2824.64
A28: 21 | B28: Impianti di trattamento | C28: Servizio idrico integrato | D28: 2013 | E28: 2011 | F28: 71721.62
A29: 22 | B29: Impianti di trattamento | C29: Servizio idrico integrato | D29: 2013 | E29: 2012 | F29: 3353.69
A30: 23 | B30: Impianti di sollevamento e pompaggio | C30: Servizio idrico integrato | D30: 2012 | E30: 2008 | F30: 3527.11
A31: 24 | B31: Impianti di sollevamento e pompaggio | C31: Servizio idrico integrato | D31: 2013 | E31: 2010 | F31: 37654.07
A32: 25 | B32: Impianti di sollevamento e pompaggio | C32: Servizio idrico integrato | D32: 2012 | E32: 2010 | F32: 38598
A33: 26 | B33: Impianti di sollevamento e pompaggio | C33: Servizio idrico integrato | D33: 2013 | E33: 2011 | F33: 452520.13
A34: 27 | B34: Impianti di sollevamento e pompaggio | C34: Servizio idrico integrato | D34: 2012 | E34: 2011 | F34: 670.19
A35: 28 | B35: Impianti di sollevamento e pompaggio | C35: Servizio idrico integrato | D35: 2013 | E35: 2012 | F35: 94631.31
A36: 29 | B36: Gruppi di misura meccanici | C36: Servizio idrico integrato | D36: 2013 | E36: 2010 | F36: 24742.8 | G36: 2135.46
A37: 30 | B37: Gruppi di misura meccanici | C37: Servizio idrico integrato | D37: 2012 | E37: 2010 | F37: 19239.65
A38: 31 | B38: Laboratori | C38: Servizio idrico integrato | D38: 2013 | E38: 2006 | F38: 274508.2 | G38: 254491.96
A39: 32 | B39: Laboratori | C39: Servizio idrico integrato | D39: 2013 | E39: 2007 | F39: 95320.98 | G39: 76455.38
A40: 33 | B40: Laboratori | C40: Servizio idrico integrato | D40: 2013 | E40: 2008 | F40: 66567 | G40: 45071.42
A41: 34 | B41: Laboratori | C41: Servizio idrico integrato | D41: 2013 | E41: 2009 | F41: 99360 | G41: 54855.01
A42: 35 | B42: Laboratori | C42: Servizio idrico integrato | D42: 2013 | E42: 2010 | F42: 88628 | G42: 37851.54
A43: 36 | B43: Laboratori | C43: Servizio idrico integrato | D43: 2013 | E43: 2011 | F43: 32848 | G43: 9922.85
A44: 37 | B44: Telecontrollo | C44: Servizio idrico integrato | D44: 2012 | E44: 2010 | F44: 629.77
A45: 38 | B45: Telecontrollo | C45: Servizio idrico integrato | D45: 2013 | E45: 2011 | F45: 33062.75
A46: 39 | B46: Telecontrollo | C46: Servizio idrico integrato | D46: 2012 | E46: 2011 | F46: 3324.75
A47: 40 | B47: Telecontrollo | C47: Servizio idrico integrato | D47: 2013 | E47: 2012 | F47: 823.97
A48: 41 | B48: Autoveicoli | C48: Servizio idrico integrato | D48: 2012 | E48: 1999 | F48: 64454.98 | G48: 64454.98
A49: 42 | B49: Autoveicoli | C49: Servizio idrico integrato | D49: 2012 | E49: 2000 | F49: 253822.5 | G49: 253822.5
A50: 43 | B50: Autoveicoli | C50: Servizio idrico integrato | D50: 2013 | E50: 2000 | F50: 166311.75 | G50: 166311.75
A51: 44 | B51: Autoveicoli | C51: Servizio idrico integrato | D51: 2013 | E51: 2001 | F51: 101815.53 | G51: 100356.12
A52: 45 | B52: Autoveicoli | C52: Servizio idrico integrato | D52: 2012 | E52: 2001 | F52: 110825 | G52: 107693.61
A53: 46 | B53: Autoveicoli | C53: Servizio idrico integrato | D53: 2013 | E53: 2002 | F53: 38931.96 | G53: 35590.86
A54: 47 | B54: Autoveicoli | C54: Servizio idrico integrato | D54: 2012 | E54: 2002 | F54: 71553.21 | G54: 62739.66
A55: 48 | B55: Autoveicoli | C55: Servizio idrico integrato | D55: 2013 | E55: 2003 | F55: 37026.8 | G55: 29313.07
A56: 49 | B56: Autoveicoli | C56: Servizio idrico integrato | D56: 2012 | E56: 2003 | F56: 6250.41 | G56: 4962.81
A57: 50 | B57: Autoveicoli | C57: Servizio idrico integrato | D57: 2012 | E57: 2004 | F57: 36733.89 | G57: 25651.63
A58: 51 | B58: Autoveicoli | C58: Servizio idrico integrato | D58: 2013 | E58: 2004 | F58: 38754.8 | G58: 27451.33
A59: 52 | B59: Autoveicoli | C59: Servizio idrico integrato | D59: 2012 | E59: 2005 | F59: 2103.83 | G59: 1314.9
A60: 53 | B60: Autoveicoli | C60: Servizio idrico integrato | D60: 2013 | E60: 2005 | F60: 600 | G60: 375
A61: 54 | B61: Autoveicoli | C61: Servizio idrico integrato | D61: 2012 | E61: 2006 | F61: 49776.83 | G61: 26556.59
A62: 55 | B62: Autoveicoli | C62: Servizio idrico integrato | D62: 2013 | E62: 2006 | F62: 20360.85 | G62: 11028.8
A63: 56 | B63: Autoveicoli | C63: Servizio idrico integrato | D63: 2013 | E63: 2008 | F63: 1005.62 | G63: 377.1
A64: 57 | B64: Autoveicoli | C64: Servizio idrico integrato | D64: 2012 | E64: 2008 | F64: 3450.54 | G64: 1255.79
A65: 58 | B65: Studi, ricerche, brevetti, diritti di utilizzazione | C65: Servizio idrico integrato | D65: 2013 | E65: 2010 | F65: 130000

Sheet Ammortamento_Finanziario
B1: IMMOBILIZZAZIONI DEL GESTORE | D1: Vite utili per il calcolo degli ammortamenti MTI-2 sulle immobilizzazioni al 2013 | J1: Vite utili per il calcolo degli ammortamenti MTI-2 sui nuovi investimenti
A2: 4. VITE UTILI PER LO SVILUPPO DELLA RAB | D2: area dati storici | J2: area disponibile per la compilazione
D3: ANNI 1963 - 2011 | F3: ANNO 2012 | H3: ANNO 2013 | J3: ANNO 2014 | L3: ANNO 2015 | N3: ANNO 2016 | P3: ANNO 2017
B4: Ricorso all'Ammortamento finanziario (a partire dall'anno 2014 scegliere "SI"/"NO" dal menu a tendina) | D4: NO | F4: NO | H4: SI | J4: SI | L4: SI | N4: SI | P4: SI
D5: Periodo di ammortamento: | F5: Periodo di ammortamento: | H5: Periodo di ammortamento: | J5: Periodo di ammortamento: | L5: Periodo di ammortamento: | N5: Periodo di ammortamento: | P5: Periodo di ammortamento:
B6: ID | C6: Categoria Cespite | D6: vite utili regolatorie (MTT) | E6: durata ammortamento finanziario | F6: vite utili regolatorie (MTT) | G6: durata ammortamento finanziario | H6: vite utili regolatorie (MTT) | I6: durata ammortamento finanziario | J6: vite utili regolatorie (MTT) | K6: durata ammortamento finanziario | L6: vite utili regolatorie (MTT) | M6: durata ammortamento finanziario | N6: vite utili regolatorie (MTT) | O6: durata ammortamento finanziario | P6: vite utili regolatorie (MTT) | Q6: durata ammortamento finanziario
B7: 1 | C7: Terreni
B8: 2 | C8: Fabbricati non industriali | D8: 40 | E8: 40 | F8: 40 | G8: 40 | H8: 40 | I8: 40 | J8: 40 | K8: 40 | L8: 40 | M8: 40 | N8: 40 | O8: 40 | P8: 40 | Q8: 40
B9: 3 | C9: Fabbricati industriali | D9: 40 | E9: 40 | F9: 40 | G9: 40 | H9: 40 | I9: 20 | J9: 40 | K9: 20 | L9: 40 | M9: 20 | N9: 40 | O9: 20 | P9: 40 | Q9: 20
B10: 4 | C10: Costruzioni leggere | D10: 40 | E10: 40 | F10: 40 | G10: 40 | H10: 40 | I10: 40 | J10: 40 | K10: 40 | L10: 40 | M10: 40 | N10: 40 | O10: 40 | P10: 40 | Q10: 40
B11: 5 | C11: Condutture e opere idrauliche fisse | D11: 40 | E11: 40 | F11: 40 | G11: 40 | H11: 40 | I11: 20 | J11: 40 | K11: 20 | L11: 40 | M11: 20 | N11: 40 | O11: 20 | P11: 40 | Q11: 20
B12: 6 | C12: Serbatoi | D12: 50 | E12: 50 | F12: 50 | G12: 50 | H12: 50 | I12: 25 | J12: 50 | K12: 25 | L12: 50 | M12: 25 | N12: 50 | O12: 25 | P12: 50 | Q12: 25
B13: 7 | C13: Impianti di trattamento | D13: 12 | E13: 12 | F13: 12 | G13: 12 | H13: 12 | I13: 12 | J13: 12 | K13: 12 | L13: 12 | M13: 12 | N13: 12 | O13: 12 | P13: 12 | Q13: 12
B14: 8 | C14: Impianti di sollevamento e pompaggio | D14: 8 | E14: 8 | F14: 8 | G14: 8 | H14: 8 | I14: 8 | J14: 8 | K14: 8 | L14: 8 | M14: 8 | N14: 8 | O14: 8 | P14: 8 | Q14: 8
B15: 9 | C15: Gruppi di misura meccanici | D15: 15 | E15: 15 | F15: 15 | G15: 15 | H15: 15 | I15: 15 | J15: 15 | K15: 15 | L15: 15 | M15: 15 | N15: 15 | O15: 15 | P15: 15 | Q15: 15
B16: 10 | C16: Gruppi di misura elettronici | D16: 15 | E16: 15 | F16: 15 | G16: 15 | H16: 15 | I16: 15 | J16: 15 | K16: 15 | L16: 15 | M16: 15 | N16: 15 | O16: 15 | P16: 15 | Q16: 15
B17: 11 | C17: Altri impianti | D17: 20 | E17: 20 | F17: 20 | G17: 20 | H17: 20 | I17: 20 | J17: 20 | K17: 20 | L17: 20 | M17: 20 | N17: 20 | O17: 20 | P17: 20 | Q17: 20
B18: 12 | C18: Laboratori | D18: 10 | E18: 10 | F18: 10 | G18: 10 | H18: 10 | I18: 10 | J18: 10 | K18: 10 | L18: 10 | M18: 10 | N18: 10 | O18: 10 | P18: 10 | Q18: 10
B19: 13 | C19: Telecontrollo | D19: 8 | E19: 8 | F19: 8 | G19: 8 | H19: 8 | I19: 8 | J19: 8 | K19: 8 | L19: 8 | M19: 8 | N19: 8 | O19: 8 | P19: 8 | Q19: 8
B20: 14 | C20: Autoveicoli | D20: 5 | E20: 5 | F20: 5 | G20: 5 | H20: 5 | I20: 5 | J20: 5 | K20: 5 | L20: 5 | M20: 5 | N20: 5 | O20: 5 | P20: 5 | Q20: 5
B21: 15 | C21: Studi, ricerche, brevetti, diritti di utilizzazione | D21: 5 | E21: 5 | F21: 5 | G21: 5 | H21: 5 | I21: 5 | J21: 5 | K21: 5 | L21: 5 | M21: 5 | N21: 5 | O21: 5 | P21: 5 | Q21: 5
B22: 16 | C22: Altre immobilizzazioni materiali e immateriali | D22: 7 | E22: 7 | F22: 7 | G22: 7 | H22: 7 | I22: 7 | J22: 7 | K22: 7 | L22: 7 | M22: 7 | N22: 7 | O22: 7 | P22: 7 | Q22: 7
B23: 17 | C23: Immobilizzazioni immateriali: avviamenti, capitalizzazione concessione, etc.
E25: § | G25: § | I25: §
C26: L'ammortamento finanziario può essere richiesto se si ricade negli shemi IV, V, VI o valgono le ulteriori casistiche di cui al comma 16.5 in tal caso vanno compilate necessariamente tutte le colonne. L'inosservanza di una sola delle due indicazioni determinerà automaticamente lo sviluppo dei costi delle immobilizzazioni secondo le vite utili regolatorie | E26: le vite utili delle colonne E, G e I sono modificabili per le gestioni che hanno la possibilità di ricorrere all'ammortamento finanziario.

Sheet Info_eventuali_aggregazioni
B1: AGGREGAZIONI
V2: controllo compilazione
B3: Informazioni anagrafiche delle gestioni per le quali non si dispone di un corredo informativo completo (art. 10 All. A MTI2) | V3: =+AND(OFFSET(R10,0,0,COUNTA(R:R),1))=TRUE -> TRUE
B4: In caso di compilazione, fornire tutte le informazioni richieste
B5: 1. INFORMAZIONI SUI SOGGETTI AGGREGATI
B9: Nome del soggetto | C9: IdAEEG della gestione aggregata | D9: gestore/proprietario di infrastruttura | E9: P. IVA | F9: Codice Istat Comune | G9: gestore esercente il servizio di Acquedotto | H9: gestore esercente il servizio di Fognatura | I9: gestore esercente il servizio di Depurazione | J9: popolazione (la maggiore tra i servizi forniti in origine) | K9: grado di completezza dei dati | L9: grado di acquisizione della gestione | R9: controllo compilazione
A10: 1 | R10: =+OR(COUNTA(B10:L10)=11,COUNTA(B10:L10)=0) -> TRUE

Sheet Dati_exGestioni_incomplete
B1: AGGREGAZIONI | R1: controllo compilazione
R2: =+AND(OFFSET(Q11,0,0,COUNTA(Q:Q),1))=TRUE -> TRUE
B3: Ricavi tariffari delle gestioni per le quali non si dispone di un corredo informativo completo (art. 10 All. A MTI2)
B5: 2. SCHEMA REGOLATORIO VIRTUALE: ricavi tariffari delle gestioni aggregate
B9: IdAEEG della gestione incompleta | C9: Nome del gestore | D9: Popolazione | H9: tali ricavi tariffari sono già inseriti nell'articolazione tariffaria dei fogli precedenti (SI/NO) | I9: si conferma che i costi (opex e capex) indicati non siano inclusi né nella determinazione delle componenti tariffarie MTI né nei dati di bilancio oggetto di predisposizione? (SI/NO) | Q9: controllo compilazione
B10: idaeeg_altro | C10: ragione_altro | F10: tarif2015_vscal2014_altro | G10: tarif2015_vscal2015_altro | H10: ricavi_anche_nel_gestore | I10: ricavi_anche_in_bilancio2014 | Q10: controllo compilazione
A11: 3 | Q11: =+OR(COUNTA(C11,F11:I11)=5,COUNTA(C11,F11:I11)=0) -> TRUE

Sheet Dati_Anni_precedenti
I1: ikey | J1: anno | K1: idato | L1: idgestore | M1: regione | N1: ato | O1: gestore | P1: delibera | Q1: J deliberato | R1: J medio | S1: rc_post | T1: ∑Ipexp 2014-2017 | U1: ipexp | V1: ψ | W1: RABMTT | X1: quadrante | Y1: Opnew,a | Z1: vrg approvato | AA1: ∑tarif2012 * vscala-2 | AB1: Rba-2 | AC1: Cba-2 | AD1: ammcapex | AE1: of | AF1: ofisc | AG1: ΔCUITcapex | AH1: iml | AI1: imn | AJ1: fa | AK1: ammfoni | AL1: ΔCUITfoni | AM1: fnifoni | AN1: erc | AO1: coato | AP1: coaeeg | AQ1: comor | AR1: cores | AS1: coee | AT1: cows | AU1: mt | AV1: ac | AW1: opexend | AX1: rcvol | AY1: rcee | AZ1: rcws | BA1: rimb335 | BB1: rcaltro | BC1: AF MTI | BD1: capex | BE1: foni | BF1: opex | BG1: rc_tot | BH1: opexal | BI1: rinuncia_capex | BJ1: checkimn | BK1: checkcomponentitariffarie | BL1: note | BM1: pop_delib | BN1: delibera_mtt
A2: DATI ANNI PRECEDENTI | BX2: controllo compilazione | BY2: controllo valori non negativi | BZ2: controllo finale
A3: Sezione | B3: Voce | C3: 2014-2015 | D3: 2014 | E3: 2015 | F3: completare la compilazione nel caso in cui alcuni valori risultino assenti | BX3: =+COUNTA(D5,E5,D9,E9,D15,E15,D29,E29,D30,E30,D31,E31,D32,E32,D33,E33,D34,E34,D37,E37,C43,C52,D53,D54,D55,D56,D57,D58,D25,E25,D26,E26,D27,E27)=34 -> FALSE | BY3: =+OR(D5<0,E5<0,D9<0,E9<0,D15<0,E15<0,D29<0,E29<0,D30<0,E30<0,D31<0,E31<0,D32<0,E32<0,D33<0,E33<0,D34<0,E34<0,D37<0,E37<0,C52<0,D53<0,D54<0,D55<0,D56<0,D57<0,D58<0,D25<0,E25<0,D26<0,E26<0,D27<0,E27<0)=FALSE -> TRUE | BZ3: =+AND(BX3=TRUE,BY3=TRUE) -> FALSE
A4: Delibera AEEGSI | B4: Delibera | C4: 463/2014
A5: Delibera AEEGSI | B5: J deliberato | D5: 1.148 | E5: 1.251
A6: Delibera AEEGSI | B6: J medio
A7: Delibera AEEGSI | B7: RC post | C7: 19026772
A8: Schema regolatorio | B8: ∑Ipexp 2014-2017 | C8: 673082312
A9: Schema regolatorio | B9: Ipexp
A10: Schema regolatorio | B10: ψ | C10: .4
A11: Schema regolatorio | B11: RABMTT
A12: Schema regolatorio | B12: Quadrante | C12: III
A13: Schema regolatorio | B13: Opnew,a
A14: Moltiplicatore | B14: VRG approvato | D14: 516445575.6 | E14: 556428629.5
A15: Moltiplicatore | B15: ∑tarif2012 * vscala-2 | D15: 438218223.6 | E15: 434834308
A16: Moltiplicatore | B16: Rba-2 | D16: 15753113.17 | E16: 12051755.98
A17: Moltiplicatore | B17: Cba-2 | D17: 6491782.711 | E17: 6692656.536
A18: Costi delle immobilizzazioni | B18: AMMcapex | D18: 57541440.23 | E18: 77547650.83
A19: Costi delle immobilizzazioni | B19: OF | D19: 40181119.99 | E19: 44185748.34
A20: Costi delle immobilizzazioni | B20: OFisc | D20: 17547665.4 | E20: 18872880.53
A21: Costi delle immobilizzazioni | B21: ΔCUITcapex | D21: 26781489.86 | E21: 17766016.8
A22: Immobilizzazioni | B22: IML | D22: 1095541829 | E22: 1223371408
A23: Immobilizzazioni | B23: IMN | D23: 816769092.4 | E23: 879087875.4
A24: Immobilizzazioni | B24: FA | D24: 278772736.1 | E24: 344283532.9
A25: Fondo Nuovi Investimenti | B25: AMMfoni | D25: 3898054.796 | E25: 4606017.004
A26: Fondo Nuovi Investimenti | B26: ΔCUITfoni | D26: 0 | E26: 0
A27: Fondo Nuovi Investimenti | B27: FNIfoni | D27: 0 | E27: 0
A28: Costi Operativi | B28: ERC | D28: 0 | E28: 0
A29: Costi Operativi | B29: COato | D29: 1487928.927 | E29: 1511670.308
A30: Costi Operativi | B30: COaeeg | D30: 115775.194 | E30: 117979.9203
A31: Costi Operativi | B31: COmor | D31: 15396250.26 | E31: 14443120.38
A32: Costi Operativi | B32: COres | D32: 17096314.09 | E32: 14527791.21
A33: Costi Operativi | B33: COee | D33: 55989306.99 | E33: 50502140.92
A34: Costi Operativi | B34: COws | D34: 4283491.24 | E34: 4283491.24
A35: Costi Operativi | B35: MT | D35: 7112752.98 | E35: 4726465.54
A36: Costi Operativi | B36: AC | D36: 22251259.62 | E36: 23141237.24
A37: Costi Operativi | B37: Opexend | D37: 221718729.6 | E37: 226374822.9
A38: Sezione Conguagli | B38: RcVOL
A39: Sezione Conguagli | B39: RcEE
A40: Sezione Conguagli | B40: RcWS
A41: Sezione Conguagli | B41: Rimb335
A42: Sezione Conguagli | B42: RcALTRO
A43: Ammortamento finanziario MTI | B43: AF MTI | C43: SI
C51: 2012 | D51: 2013
A52: Sezione altri dati | B52: PRA | C52: 3482000
A53: Sezione altri dati | B53: PopATO
A54: Sezione altri dati | B54: COrealiEE (altre gruppo - SII) | D54: 48340282.44
A55: Sezione altri dati | B55: COrealiEE (altre imprese - SII) | D55: 105759.9948
A56: Sezione altri dati | B56: COrealiEE (altre gruppo - AAI)
A57: Sezione altri dati | B57: COrealiEE (altre imprese - AAI)
A58: Sezione altri dati | B58: Kwh

Sheet Vite_utili_precedenti
D1: Vite utili per la ricostituzione del fondo ammortamento al 2015
A2: VITE UTILI REGOLATORIE E FINANZIARIE | D2: area dati storici | M2: Sezione relativa ai dati storici del gestore. Eventuali modifiche sono ammissibili se accuratamente dettagliate in relazione di accompagnamento
D3: ANNI 1963 - 2011 | F3: ANNO 2012 | H3: ANNO 2013
B4: le vite utili delle colonne E, G e I sono modificabili per le gestioni che hanno la possibilità di ricorrere all'ammortamento finanziario.
D5: Periodo di ammortamento: | F5: Periodo di ammortamento: | H5: Periodo di ammortamento:
B6: ID | C6: Categoria Cespite | D6: vite utili regolatorie (MTT) | E6: durata ammortamento finanziario | F6: vite utili regolatorie (MTT) | G6: durata ammortamento finanziario | H6: vite utili regolatorie (MTT) | I6: durata ammortamento finanziario
B7: 1 | C7: Terreni
B8: 2 | C8: Fabbricati non industriali | D8: 40 | E8: 40 | F8: 40 | G8: 40 | H8: 40 | I8: 40
B9: 3 | C9: Fabbricati industriali | D9: 40 | E9: 40 | F9: 40 | G9: 40 | H9: 40 | I9: 20
B10: 4 | C10: Costruzioni leggere | D10: 40 | E10: 40 | F10: 40 | G10: 40 | H10: 40 | I10: 40
B11: 5 | C11: Condutture e opere idrauliche fisse | D11: 40 | E11: 40 | F11: 40 | G11: 40 | H11: 40 | I11: 20
B12: 6 | C12: Serbatoi | D12: 50 | E12: 50 | F12: 50 | G12: 50 | H12: 50 | I12: 25
B13: 7 | C13: Impianti di trattamento | D13: 12 | E13: 12 | F13: 12 | G13: 12 | H13: 12 | I13: 12
B14: 8 | C14: Impianti di sollevamento e pompaggio | D14: 8 | E14: 8 | F14: 8 | G14: 8 | H14: 8 | I14: 8
B15: 9 | C15: Gruppi di misura meccanici | D15: 15 | E15: 15 | F15: 15 | G15: 15 | H15: 15 | I15: 15
B16: 10 | C16: Gruppi di misura elettronici | D16: 15 | E16: 15 | F16: 15 | G16: 15 | H16: 15 | I16: 15
B17: 11 | C17: Altri impianti | D17: 20 | E17: 20 | F17: 20 | G17: 20 | H17: 20 | I17: 20
B18: 12 | C18: Laboratori | D18: 10 | E18: 10 | F18: 10 | G18: 10 | H18: 10 | I18: 10
B19: 13 | C19: Telecontrollo | D19: 8 | E19: 8 | F19: 8 | G19: 8 | H19: 8 | I19: 8
B20: 14 | C20: Autoveicoli | D20: 5 | E20: 5 | F20: 5 | G20: 5 | H20: 5 | I20: 5
B21: 15 | C21: Studi, ricerche, brevetti, diritti di utilizzazione | D21: 5 | E21: 5 | F21: 5 | G21: 5 | H21: 5 | I21: 5
B22: 16 | C22: Altre immobilizzazioni materiali e immateriali | D22: 7 | E22: 7 | F22: 7 | G22: 7 | H22: 7 | I22: 7
B23: 17 | C23: Immobilizzazioni immateriali: avviamenti, capitalizzazione concessione, etc.

Sheet RAB_cespiti_ante2013
H2: RAB Gestore (solo immobilizzazioni fino al 2012, anno cespite)
A4: RAB gestore ante 2013
A5: IDATO | B5: IDGestore | C5: Gestore_Proprietario | D5: N_prop | E5: Fonte | F5: ID_Categoria_Cespite | G5: CategoriaCespite | H5: ID_Immobilizzazione | I5: IMMOBILIZZAZIONE | J5: AnnoCespite | K5: IP | L5: FAIP | M5: CFP | N5: FACFP
A6: 1202 | B6: 13989 | C6: Gestore | D6: 0 | E6: 16_IP | F6: 1 | G6: Terreni | H6: 1 | I6: Servizio idrico integrato | J6: 1998 | K6: 1780.113827 | L6: 0 | M6: 0 | N6: 0
A7: 1202 | B7: 13989 | C7: Gestore | D7: 0 | E7: 16_IP | F7: 1 | G7: Terreni | H7: 1 | I7: Servizio idrico integrato | J7: 2000 | K7: 69701.17 | L7: 0 | M7: 0 | N7: 0
A8: 1202 | B8: 13989 | C8: Gestore | D8: 0 | E8: 16_IP | F8: 1 | G8: Terreni | H8: 1 | I8: Servizio idrico integrato | J8: 2001 | K8: 124404.9 | L8: 0 | M8: 46995.51 | N8: 0
A9: 1202 | B9: 13989 | C9: Gestore | D9: 0 | E9: 16_IP | F9: 1 | G9: Terreni | H9: 1 | I9: Servizio idrico integrato | J9: 2002 | K9: 119301.96 | L9: 0 | M9: 35039.24 | N9: 0
A10: 1202 | B10: 13989 | C10: Gestore | D10: 0 | E10: 16_IP | F10: 1 | G10: Terreni | H10: 1 | I10: Servizio idrico integrato | J10: 2003 | K10: 430557.18 | L10: 0 | M10: 0 | N10: 0
A11: 1202 | B11: 13989 | C11: Gestore | D11: 0 | E11: 16_IP | F11: 1 | G11: Terreni | H11: 1 | I11: Servizio idrico integrato | J11: 2004 | K11: 255114.03 | L11: 0 | M11: 44834.72 | N11: 0
A12: 1202 | B12: 13989 | C12: Gestore | D12: 0 | E12: 16_IP | F12: 1 | G12: Terreni | H12: 1 | I12: Servizio idrico integrato | J12: 2005 | K12: 285652.9 | L12: 0 | M12: 0 | N12: 0
A13: 1202 | B13: 13989 | C13: Gestore | D13: 0 | E13: 16_IP | F13: 1 | G13: Terreni | H13: 1 | I13: Servizio idrico integrato | J13: 2006 | K13: 144692.4 | L13: 0 | M13: 3600 | N13: 0
A14: 1202 | B14: 13989 | C14: Gestore | D14: 0 | E14: 16_IP | F14: 1 | G14: Terreni | H14: 1 | I14: Servizio idrico integrato | J14: 2007 | K14: 324610.31 | L14: 0 | M14: 1795.75 | N14: 0
A15: 1202 | B15: 13989 | C15: Gestore | D15: 0 | E15: 16_IP | F15: 1 | G15: Terreni | H15: 1 | I15: Servizio idrico integrato | J15: 2008 | K15: 627397.83 | L15: 0 | M15: 0 | N15: 0
A16: 1202 | B16: 13989 | C16: Gestore | D16: 0 | E16: 16_IP | F16: 1 | G16: Terreni | H16: 1 | I16: Servizio idrico integrato | J16: 2009 | K16: 311525.15 | L16: 0 | M16: 14082.99 | N16: 0
A17: 1202 | B17: 13989 | C17: Gestore | D17: 0 | E17: 16_IP | F17: 1 | G17: Terreni | H17: 1 | I17: Servizio idrico integrato | J17: 2010 | K17: 12344 | L17: 0 | M17: 0 | N17: 0
A18: 1202 | B18: 13989 | C18: Gestore | D18: 0 | E18: 16_IP | F18: 1 | G18: Terreni | H18: 1 | I18: Servizio idrico integrato | J18: 2011 | K18: 24899.1 | L18: 0 | M18: 0 | N18: 0
A19: 1202 | B19: 13989 | C19: Gestore | D19: 0 | F19: 1 | G19: Terreni | H19: 1 | I19: Servizio idrico integrato | J19: 2012 | K19: 42562
A20: 1202 | B20: 13989 | C20: Gestore | D20: 0 | E20: 16_IP | F20: 3 | G20: Fabbricati industriali | H20: 1 | I20: Servizio idrico integrato | J20: 1998 | K20: 947965.1996 | L20: 127530.8284 | M20: 0 | N20: 0
A21: 1202 | B21: 13989 | C21: Gestore | D21: 0 | E21: 16_IP | F21: 3 | G21: Fabbricati industriali | H21: 1 | I21: Servizio idrico integrato | J21: 1999 | K21: 53387.89646 | L21: 9405.638676 | M21: 0 | N21: 0
A22: 1202 | B22: 13989 | C22: Gestore | D22: 0 | E22: 16_IP | F22: 3 | G22: Fabbricati industriali | H22: 1 | I22: Servizio idrico integrato | J22: 2000 | K22: 49730.62 | L22: 11438.02 | M22: 0 | N22: 0
A23: 1202 | B23: 13989 | C23: Gestore | D23: 0 | E23: 16_IP | F23: 3 | G23: Fabbricati industriali | H23: 1 | I23: Servizio idrico integrato | J23: 2001 | K23: 552350.99 | L23: 116250.28 | M23: 0 | N23: 0
A24: 1202 | B24: 13989 | C24: Gestore | D24: 0 | E24: 16_IP | F24: 3 | G24: Fabbricati industriali | H24: 1 | I24: Servizio idrico integrato | J24: 2002 | K24: 88031.7 | L24: 16825.83 | M24: 0 | N24: 0
A25: 1202 | B25: 13989 | C25: Gestore | D25: 0 | E25: 16_IP | F25: 3 | G25: Fabbricati industriali | H25: 1 | I25: Servizio idrico integrato | J25: 2003 | K25: 1238774.51 | L25: 211529.99 | M25: 0 | N25: 0
A26: 1202 | B26: 13989 | C26: Gestore | D26: 0 | E26: 16_IP | F26: 3 | G26: Fabbricati industriali | H26: 1 | I26: Servizio idrico integrato | J26: 2004 | K26: 1150497.03 | L26: 173380.89 | M26: 0 | N26: 0
A27: 1202 | B27: 13989 | C27: Gestore | D27: 0 | E27: 16_IP | F27: 3 | G27: Fabbricati industriali | H27: 1 | I27: Servizio idrico integrato | J27: 2005 | K27: 499704.39 | L27: 64961.65 | M27: 0 | N27: 0
A28: 1202 | B28: 13989 | C28: Gestore | D28: 0 | E28: 16_IP | F28: 3 | G28: Fabbricati industriali | H28: 1 | I28: Servizio idrico integrato | J28: 2006 | K28: 1394324.82 | L28: 159793.24 | M28: 0 | N28: 0
A29: 1202 | B29: 13989 | C29: Gestore | D29: 0 | E29: 16_IP | F29: 3 | G29: Fabbricati industriali | H29: 1 | I29: Servizio idrico integrato | J29: 2007 | K29: 3114511.71 | L29: 280336.36 | M29: 0 | N29: 0
A30: 1202 | B30: 13989 | C30: Gestore | D30: 0 | E30: 16_IP | F30: 3 | G30: Fabbricati industriali | H30: 1 | I30: Servizio idrico integrato | J30: 2008 | K30: 3859861.58 | L30: 270315.84 | M30: 0 | N30: 0
A31: 1202 | B31: 13989 | C31: Gestore | D31: 0 | E31: 16_IP | F31: 3 | G31: Fabbricati industriali | H31: 1 | I31: Servizio idrico integrato | J31: 2009 | K31: 1048349.29 | L31: 52481.95 | M31: 0 | N31: 0
A32: 1202 | B32: 13989 | C32: Gestore | D32: 0 | E32: 16_IP | F32: 3 | G32: Fabbricati industriali | H32: 1 | I32: Servizio idrico integrato | J32: 2010 | K32: 1691335.36 | L32: 50488.13 | M32: 0 | N32: 0
A33: 1202 | B33: 13989 | C33: Gestore | D33: 0 | E33: 16_IP | F33: 3 | G33: Fabbricati industriali | H33: 1 | I33: Servizio idrico integrato | J33: 2011 | K33: 7201893.17 | L33: 71933.0226 | M33: 0 | N33: 0
A34: 1202 | B34: 13989 | C34: Gestore | D34: 0 | F34: 3 | G34: Fabbricati industriali | H34: 1 | I34: Servizio idrico integrato | J34: 2012 | K34: 951040.8839 | M34: 17046.74319
A35: 1202 | B35: 13989 | C35: Gestore | D35: 0 | E35: 16_IP | F35: 4 | G35: Costruzioni leggere | H35: 1 | I35: Servizio idrico integrato | J35: 2011 | K35: 3102 | L35: 155.1 | M35: 0 | N35: 0
A36: 1202 | B36: 13989 | C36: Gestore | D36: 0 | E36: 16_IP | F36: 5 | G36: Condutture e opere idrauliche fisse | H36: 3 | I36: Altri servizi idrici | J36: 1998 | K36: 3153713.995 | L36: 1472469.056 | M36: 0 | N36: 0
A37: 1202 | B37: 13989 | C37: Gestore | D37: 0 | E37: 16_IP | F37: 5 | G37: Condutture e opere idrauliche fisse | H37: 1 | I37: Servizio idrico integrato | J37: 1998 | K37: 9027649.546 | L37: 867940.5248 | M37: 0 | N37: 0
A38: 1202 | B38: 13989 | C38: Gestore | D38: 0 | E38: 16_IP | F38: 5 | G38: Condutture e opere idrauliche fisse | H38: 1 | I38: Servizio idrico integrato | J38: 1999 | K38: 6551940.673 | L38: 2217901.884 | M38: 0 | N38: 0
A39: 1202 | B39: 13989 | C39: Gestore | D39: 0 | E39: 16_IP | F39: 5 | G39: Condutture e opere idrauliche fisse | H39: 3 | I39: Altri servizi idrici | J39: 1999 | K39: 4526046.733 | L39: 115505.6314 | M39: 0 | N39: 0
A40: 1202 | B40: 13989 | C40: Gestore | D40: 0 | E40: 16_IP | F40: 5 | G40: Condutture e opere idrauliche fisse | H40: 1 | I40: Servizio idrico integrato | J40: 2000 | K40: 4370962.87 | L40: 1746628.76 | M40: 0 | N40: 0
A41: 1202 | B41: 13989 | C41: Gestore | D41: 0 | E41: 16_IP | F41: 5 | G41: Condutture e opere idrauliche fisse | H41: 3 | I41: Altri servizi idrici | J41: 2000 | K41: 3753392.83 | L41: 3002714.28 | M41: 0 | N41: 0
A42: 1202 | B42: 13989 | C42: Gestore | D42: 0 | E42: 16_IP | F42: 5 | G42: Condutture e opere idrauliche fisse | H42: 1 | I42: Servizio idrico integrato | J42: 2001 | K42: 40543440.6 | L42: 6649270.72 | M42: 7028784.428 | N42: 1447133.106
A43: 1202 | B43: 13989 | C43: Gestore | D43: 0 | E43: 16_IP | F43: 5 | G43: Condutture e opere idrauliche fisse | H43: 3 | I43: Altri servizi idrici | J43: 2001 | K43: 6222421.32 | L43: 4365647.13 | M43: 0 | N43: 0
A44: 1202 | B44: 13989 | C44: Gestore | D44: 0 | E44: 16_IP | F44: 5 | G44: Condutture e opere idrauliche fisse | H44: 1 | I44: Servizio idrico integrato | J44: 2002 | K44: 13560790.3 | L44: 2372238.66 | M44: 1963229.03 | N44: 327859.248
A45: 1202 | B45: 13989 | C45: Gestore | D45: 0 | E45: 16_IP | F45: 5 | G45: Condutture e opere idrauliche fisse | H45: 3 | I45: Altri servizi idrici | J45: 2002 | K45: 6043239.16 | L45: 3849921.2 | M45: 0 | N45: 0
A46: 1202 | B46: 13989 | C46: Gestore | D46: 0 | E46: 16_IP | F46: 5 | G46: Condutture e opere idrauliche fisse | H46: 3 | I46: Altri servizi idrici | J46: 2003 | K46: 5323630.99 | L46: 3017451.21 | M46: 0 | N46: 0
A47: 1202 | B47: 13989 | C47: Gestore | D47: 0 | E47: 16_IP | F47: 5 | G47: Condutture e opere idrauliche fisse | H47: 1 | I47: Servizio idrico integrato | J47: 2003 | K47: 8336275.15 | L47: 1181408 | M47: 0 | N47: 0
A48: 1202 | B48: 13989 | C48: Gestore | D48: 0 | E48: 16_IP | F48: 5 | G48: Condutture e opere idrauliche fisse | H48: 1 | I48: Servizio idrico integrato | J48: 2004 | K48: 16625014 | L48: 2081927.94 | M48: 309874.14 | N48: 41399.1851
A49: 1202 | B49: 13989 | C49: Gestore | D49: 0 | E49: 16_IP | F49: 5 | G49: Condutture e opere idrauliche fisse | H49: 3 | I49: Altri servizi idrici | J49: 2004 | K49: 7938462.66 | L49: 3974389.78 | M49: 0 | N49: 0
A50: 1202 | B50: 13989 | C50: Gestore | D50: 0 | E50: 16_IP | F50: 5 | G50: Condutture e opere idrauliche fisse | H50: 1 | I50: Servizio idrico integrato | J50: 2005 | K50: 26770352.76 | L50: 2897433.34 | M50: 9000 | N50: 2520
A51: 1202 | B51: 13989 | C51: Gestore | D51: 0 | E51: 16_IP | F51: 5 | G51: Condutture e opere idrauliche fisse | H51: 3 | I51: Altri servizi idrici | J51: 2005 | K51: 7025087.35 | L51: 3045112.9 | M51: 0 | N51: 0
A52: 1202 | B52: 13989 | C52: Gestore | D52: 0 | E52: 16_IP | F52: 5 | G52: Condutture e opere idrauliche fisse | H52: 1 | I52: Servizio idrico integrato | J52: 2006 | K52: 32611957.1 | L52: 2991122.84 | M52: 0 | N52: 0
A53: 1202 | B53: 13989 | C53: Gestore | D53: 0 | E53: 16_IP | F53: 5 | G53: Condutture e opere idrauliche fisse | H53: 3 | I53: Altri servizi idrici | J53: 2006 | K53: 6228156.97 | L53: 2276679.42 | M53: 0 | N53: 0
A54: 1202 | B54: 13989 | C54: Gestore | D54: 0 | E54: 16_IP | F54: 5 | G54: Condutture e opere idrauliche fisse | H54: 1 | I54: Servizio idrico integrato | J54: 2007 | K54: 44900342.8 | L54: 3430992.55 | M54: 0 | N54: 0
A55: 1202 | B55: 13989 | C55: Gestore | D55: 0 | E55: 16_IP | F55: 5 | G55: Condutture e opere idrauliche fisse | H55: 3 | I55: Altri servizi idrici | J55: 2007 | K55: 8450121.63 | L55: 2548466.2 | M55: 0 | N55: 0
A56: 1202 | B56: 13989 | C56: Gestore | D56: 0 | E56: 16_IP | F56: 5 | G56: Condutture e opere idrauliche fisse | H56: 1 | I56: Servizio idrico integrato | J56: 2008 | K56: 64373219.08 | L56: 3726007.63 | M56: 0 | N56: 0
A57: 1202 | B57: 13989 | C57: Gestore | D57: 0 | E57: 16_IP | F57: 5 | G57: Condutture e opere idrauliche fisse | H57: 3 | I57: Altri servizi idrici | J57: 2008 | K57: 8882057.9 | L57: 2074543.65 | M57: 0 | N57: 0
A58: 1202 | B58: 13989 | C58: Gestore | D58: 0 | E58: 16_IP | F58: 5 | G58: Condutture e opere idrauliche fisse | H58: 3 | I58: Altri servizi idrici | J58: 2009 | K58: 10592821.37 | L58: 1768079.67 | M58: 0 | N58: 0
A59: 1202 | B59: 13989 | C59: Gestore | D59: 0 | E59: 16_IP | F59: 5 | G59: Condutture e opere idrauliche fisse | H59: 1 | I59: Servizio idrico integrato | J59: 2009 | K59: 36823850.18 | L59: 1532138.25 | M59: 0 | N59: 0
A60: 1202 | B60: 13989 | C60: Gestore | D60: 0 | E60: 16_IP | F60: 5 | G60: Condutture e opere idrauliche fisse | H60: 3 | I60: Altri servizi idrici | J60: 2010 | K60: 15900065.75 | L60: 1591372.02 | M60: 0 | N60: 0
A61: 1202 | B61: 13989 | C61: Gestore | D61: 0 | E61: 16_IP | F61: 5 | G61: Condutture e opere idrauliche fisse | H61: 1 | I61: Servizio idrico integrato | J61: 2010 | K61: 52943681.23 | L61: 1319505.5 | M61: 0 | N61: 0
A62: 1202 | B62: 13989 | C62: Gestore | D62: 0 | E62: 16_IP | F62: 5 | G62: Condutture e opere idrauliche fisse | H62: 3 | I62: Altri servizi idrici | J62: 2011 | K62: 15402090.62 | L62: 513379.15 | M62: 0 | N62: 0
A63: 1202 | B63: 13989 | C63: Gestore | D63: 0 | E63: 16_IP | F63: 5 | G63: Condutture e opere idrauliche fisse | H63: 1 | I63: Servizio idrico integrato | J63: 2011 | K63: 43415745.57 | L63: 364342.0077 | M63: 0 | N63: 0
A64: 1202 | B64: 13989 | C64: Gestore | D64: 0 | F64: 5 | G64: Condutture e opere idrauliche fisse | H64: 1 | I64: Servizio idrico integrato | J64: 2012 | K64: 49170984.61 | M64: 5512813.197
A65: 1202 | B65: 13989 | C65: Gestore | D65: 0 | E65: 16_IP | F65: 6 | G65: Serbatoi | H65: 1 | I65: Servizio idrico integrato | J65: 1998 | K65: 898579.2689 | L65: 125801.0904 | M65: 0 | N65: 0
A66: 1202 | B66: 13989 | C66: Gestore | D66: 0 | E66: 16_IP | F66: 6 | G66: Serbatoi | H66: 1 | I66: Servizio idrico integrato | J66: 1999 | K66: 875478.018 | L66: 130037.9203 | M66: 0 | N66: 0
A67: 1202 | B67: 13989 | C67: Gestore | D67: 0 | E67: 16_IP | F67: 6 | G67: Serbatoi | H67: 1 | I67: Servizio idrico integrato | J67: 2000 | K67: 117253.16 | L67: 26968.2 | M67: 0 | N67: 0
A68: 1202 | B68: 13989 | C68: Gestore | D68: 0 | E68: 16_IP | F68: 6 | G68: Serbatoi | H68: 1 | I68: Servizio idrico integrato | J68: 2001 | K68: 10478.68 | L68: 2724.43 | M68: 568102.589 | N68: 124982.5696
A69: 1202 | B69: 13989 | C69: Gestore | D69: 0 | E69: 16_IP | F69: 6 | G69: Serbatoi | H69: 1 | I69: Servizio idrico integrato | J69: 2002 | K69: 877.98 | L69: 166.82 | M69: 0 | N69: 0
A70: 1202 | B70: 13989 | C70: Gestore | D70: 0 | E70: 16_IP | F70: 6 | G70: Serbatoi | H70: 1 | I70: Servizio idrico integrato | J70: 2003 | K70: 7715.06 | L70: 1311.55 | M70: 0 | N70: 0
A71: 1202 | B71: 13989 | C71: Gestore | D71: 0 | E71: 16_IP | F71: 6 | G71: Serbatoi | H71: 1 | I71: Servizio idrico integrato | J71: 2005 | K71: 140277.47 | L71: 18236.07 | M71: 0 | N71: 0
A72: 1202 | B72: 13989 | C72: Gestore | D72: 0 | E72: 16_IP | F72: 6 | G72: Serbatoi | H72: 1 | I72: Servizio idrico integrato | J72: 2006 | K72: 445841.43 | L72: 49042.57 | M72: 0 | N72: 0
A73: 1202 | B73: 13989 | C73: Gestore | D73: 0 | E73: 16_IP | F73: 6 | G73: Serbatoi | H73: 1 | I73: Servizio idrico integrato | J73: 2007 | K73: 438457.83 | L73: 39461.22 | M73: 0 | N73: 0
A74: 1202 | B74: 13989 | C74: Gestore | D74: 0 | E74: 16_IP | F74: 6 | G74: Serbatoi | H74: 1 | I74: Servizio idrico integrato | J74: 2008 | K74: 413816.17 | L74: 28967.18 | M74: 0 | N74: 0
A75: 1202 | B75: 13989 | C75: Gestore | D75: 0 | E75: 16_IP | F75: 6 | G75: Serbatoi | H75: 1 | I75: Servizio idrico integrato | J75: 2009 | K75: 343162.28 | L75: 17158.13 | M75: 0 | N75: 0
A76: 1202 | B76: 13989 | C76: Gestore | D76: 0 | E76: 16_IP | F76: 6 | G76: Serbatoi | H76: 1 | I76: Servizio idrico integrato | J76: 2010 | K76: 4627497.3 | L76: 138827.81 | M76: 0 | N76: 0
A77: 1202 | B77: 13989 | C77: Gestore | D77: 0 | E77: 16_IP | F77: 6 | G77: Serbatoi | H77: 1 | I77: Servizio idrico integrato | J77: 2011 | K77: 2644994.64 | L77: 25956.154 | M77: 0 | N77: 0
A78: 1202 | B78: 13989 | C78: Gestore | D78: 0 | F78: 6 | G78: Serbatoi | H78: 1 | I78: Servizio idrico integrato | J78: 2012 | K78: 6529101.709 | M78: 117029.5851
A79: 1202 | B79: 13989 | C79: Gestore | D79: 0 | E79: 16_IP | F79: 7 | G79: Impianti di trattamento | H79: 1 | I79: Servizio idrico integrato | J79: 2001 | K79: 525.11 | L79: 220.5 | M79: 13368707.3 | N79: 6615026.771
A80: 1202 | B80: 13989 | C80: Gestore | D80: 0 | E80: 16_IP | F80: 7 | G80: Impianti di trattamento | H80: 1 | I80: Servizio idrico integrato | J80: 2002 | K80: 444356.47 | L80: 168855.47 | M80: 4613503.547 | N80: 1869558.098
A81: 1202 | B81: 13989 | C81: Gestore | D81: 0 | E81: 16_IP | F81: 7 | G81: Impianti di trattamento | H81: 1 | I81: Servizio idrico integrato | J81: 2003 | K81: 4069099.16 | L81: 1383493.66 | M81: 1998688.2 | N81: 719527.752
A82: 1202 | B82: 13989 | C82: Gestore | D82: 0 | E82: 16_IP | F82: 7 | G82: Impianti di trattamento | H82: 1 | I82: Servizio idrico integrato | J82: 2004 | K82: 5124411.55 | L82: 1537914.07 | M82: 3842680.47 | N82: 1229657.75
A83: 1202 | B83: 13989 | C83: Gestore | D83: 0 | E83: 16_IP | F83: 7 | G83: Impianti di trattamento | H83: 1 | I83: Servizio idrico integrato | J83: 2005 | K83: 1541174.75 | L83: 400705.51 | M83: 0 | N83: 0
A84: 1202 | B84: 13989 | C84: Gestore | D84: 0 | E84: 16_IP | F84: 7 | G84: Impianti di trattamento | H84: 1 | I84: Servizio idrico integrato | J84: 2006 | K84: 3255891.36 | L84: 717535.53 | M84: 0 | N84: 0
A85: 1202 | B85: 13989 | C85: Gestore | D85: 0 | E85: 16_IP | F85: 7 | G85: Impianti di trattamento | H85: 1 | I85: Servizio idrico integrato | J85: 2007 | K85: 3031655.07 | L85: 545264.19 | M85: 0 | N85: 0
A86: 1202 | B86: 13989 | C86: Gestore | D86: 0 | E86: 16_IP | F86: 7 | G86: Impianti di trattamento | H86: 1 | I86: Servizio idrico integrato | J86: 2008 | K86: 7967979.83 | L86: 1111700.54 | M86: 0 | N86: 0
A87: 1202 | B87: 13989 | C87: Gestore | D87: 0 | E87: 16_IP | F87: 7 | G87: Impianti di trattamento | H87: 1 | I87: Servizio idrico integrato | J87: 2009 | K87: 2845835.46 | L87: 284590.96 | M87: 0 | N87: 0
A88: 1202 | B88: 13989 | C88: Gestore | D88: 0 | E88: 16_IP | F88: 7 | G88: Impianti di trattamento | H88: 1 | I88: Servizio idrico integrato | J88: 2010 | K88: 17041260.46 | L88: 1088035.88 | M88: 0 | N88: 0
A89: 1202 | B89: 13989 | C89: Gestore | D89: 0 | E89: 16_IP | F89: 7 | G89: Impianti di trattamento | H89: 1 | I89: Servizio idrico integrato | J89: 2011 | K89: 11187714.81 | L89: 271876.3454 | M89: 0 | N89: 0
A90: 1202 | B90: 13989 | C90: Gestore | D90: 0 | F90: 7 | G90: Impianti di trattamento | H90: 1 | I90: Servizio idrico integrato | J90: 2012 | K90: 11233223.88 | M90: 8786505.367
A91: 1202 | B91: 13989 | C91: Gestore | D91: 0 | E91: 16_IP | F91: 8 | G91: Impianti di sollevamento e pompaggio | H91: 1 | I91: Servizio idrico integrato | J91: 1998 | K91: 5764054.044 | L91: 1539205.6 | M91: 0 | N91: 0
A92: 1202 | B92: 13989 | C92: Gestore | D92: 0 | E92: 16_IP | F92: 8 | G92: Impianti di sollevamento e pompaggio | H92: 1 | I92: Servizio idrico integrato | J92: 1999 | K92: 6105187.351 | L92: 3259402.295 | M92: 0 | N92: 0
A93: 1202 | B93: 13989 | C93: Gestore | D93: 0 | E93: 16_IP | F93: 8 | G93: Impianti di sollevamento e pompaggio | H93: 1 | I93: Servizio idrico integrato | J93: 2000 | K93: 3028068.44 | L93: 1692842.63 | M93: 0 | N93: 0
A94: 1202 | B94: 13989 | C94: Gestore | D94: 0 | E94: 16_IP | F94: 8 | G94: Impianti di sollevamento e pompaggio | H94: 1 | I94: Servizio idrico integrato | J94: 2001 | K94: 9829139.35 | L94: 4225929.99 | M94: 0 | N94: 0
A95: 1202 | B95: 13989 | C95: Gestore | D95: 0 | E95: 16_IP | F95: 8 | G95: Impianti di sollevamento e pompaggio | H95: 1 | I95: Servizio idrico integrato | J95: 2002 | K95: 6227523.97 | L95: 2733979.78 | M95: 0 | N95: 0
A96: 1202 | B96: 13989 | C96: Gestore | D96: 0 | E96: 16_IP | F96: 8 | G96: Impianti di sollevamento e pompaggio | H96: 1 | I96: Servizio idrico integrato | J96: 2003 | K96: 4500350.11 | L96: 1659547.61 | M96: 0 | N96: 0
A97: 1202 | B97: 13989 | C97: Gestore | D97: 0 | E97: 16_IP | F97: 8 | G97: Impianti di sollevamento e pompaggio | H97: 1 | I97: Servizio idrico integrato | J97: 2004 | K97: 6766204.64 | L97: 2135401.1 | M97: 0 | N97: 0
A98: 1202 | B98: 13989 | C98: Gestore | D98: 0 | E98: 16_IP | F98: 8 | G98: Impianti di sollevamento e pompaggio | H98: 1 | I98: Servizio idrico integrato | J98: 2005 | K98: 7541318.53 | L98: 2453620.29 | M98: 0 | N98: 0
A99: 1202 | B99: 13989 | C99: Gestore | D99: 0 | E99: 16_IP | F99: 8 | G99: Impianti di sollevamento e pompaggio | H99: 1 | I99: Servizio idrico integrato | J99: 2006 | K99: 12410201.63 | L99: 2967212.06 | M99: 0 | N99: 0
A100: 1202 | B100: 13989 | C100: Gestore | D100: 0 | E100: 16_IP | F100: 8 | G100: Impianti di sollevamento e pompaggio | H100: 1 | I100: Servizio idrico integrato | J100: 2007 | K100: 16598935.22 | L100: 3538630.82 | M100: 0 | N100: 0
A101: 1202 | B101: 13989 | C101: Gestore | D101: 0 | E101: 16_IP | F101: 8 | G101: Impianti di sollevamento e pompaggio | H101: 1 | I101: Servizio idrico integrato | J101: 2008 | K101: 19757396.31 | L101: 3280928.66 | M101: 0 | N101: 0
A102: 1202 | B102: 13989 | C102: Gestore | D102: 0 | E102: 16_IP | F102: 8 | G102: Impianti di sollevamento e pompaggio | H102: 1 | I102: Servizio idrico integrato | J102: 2009 | K102: 27752188.08 | L102: 3391145.32 | M102: 0 | N102: 0
A103: 1202 | B103: 13989 | C103: Gestore | D103: 0 | E103: 16_IP | F103: 8 | G103: Impianti di sollevamento e pompaggio | H103: 1 | I103: Servizio idrico integrato | J103: 2010 | K103: 27740896.65 | L103: 2059425.99 | M103: 0 | N103: 0
A104: 1202 | B104: 13989 | C104: Gestore | D104: 0 | E104: 16_IP | F104: 8 | G104: Impianti di sollevamento e pompaggio | H104: 1 | I104: Servizio idrico integrato | J104: 2011 | K104: 30327218.9 | L104: 816533.4094 | M104: 0 | N104: 0
A105: 1202 | B105: 13989 | C105: Gestore | D105: 0 | F105: 8 | G105: Impianti di sollevamento e pompaggio | H105: 1 | I105: Servizio idrico integrato | J105: 2012 | K105: 21414613.05 | M105: 383841.9729
A106: 1202 | B106: 13989 | C106: Gestore | D106: 0 | E106: 16_IP | F106: 9 | G106: Gruppi di misura meccanici | H106: 1 | I106: Servizio idrico integrato | J106: 1998 | K106: 842139.6422 | L106: 393194.9954 | M106: 0 | N106: 0
A107: 1202 | B107: 13989 | C107: Gestore | D107: 0 | E107: 16_IP | F107: 9 | G107: Gruppi di misura meccanici | H107: 1 | I107: Servizio idrico integrato | J107: 1999 | K107: 910874.0356 | L107: 789818.875 | M107: 0 | N107: 0
A108: 1202 | B108: 13989 | C108: Gestore | D108: 0 | E108: 16_IP | F108: 9 | G108: Gruppi di misura meccanici | H108: 1 | I108: Servizio idrico integrato | J108: 2000 | K108: 731914.47 | L108: 585531.6 | M108: 0 | N108: 0
A109: 1202 | B109: 13989 | C109: Gestore | D109: 0 | E109: 16_IP | F109: 9 | G109: Gruppi di misura meccanici | H109: 1 | I109: Servizio idrico integrato | J109: 2001 | K109: 700665.63 | L109: 513122.58 | M109: 0 | N109: 0
A110: 1202 | B110: 13989 | C110: Gestore | D110: 0 | E110: 16_IP | F110: 9 | G110: Gruppi di misura meccanici | H110: 1 | I110: Servizio idrico integrato | J110: 2002 | K110: 563592.68 | L110: 375745.16 | M110: 0 | N110: 0
A111: 1202 | B111: 13989 | C111: Gestore | D111: 0 | E111: 16_IP | F111: 9 | G111: Gruppi di misura meccanici | H111: 1 | I111: Servizio idrico integrato | J111: 2003 | K111: 65334.67 | L111: 37022.94 | M111: 0 | N111: 0
A112: 1202 | B112: 13989 | C112: Gestore | D112: 0 | E112: 16_IP | F112: 9 | G112: Gruppi di misura meccanici | H112: 1 | I112: Servizio idrico integrato | J112: 2004 | K112: 0.25 | L112: 0.14 | M112: 0 | N112: 0
A113: 1202 | B113: 13989 | C113: Gestore | D113: 0 | E113: 16_IP | F113: 9 | G113: Gruppi di misura meccanici | H113: 1 | I113: Servizio idrico integrato | J113: 2010 | K113: 1377406.35 | L113: 138471.46 | M113: 0 | N113: 0
A114: 1202 | B114: 13989 | C114: Gestore | D114: 0 | E114: 16_IP | F114: 9 | G114: Gruppi di misura meccanici | H114: 1 | I114: Servizio idrico integrato | J114: 2011 | K114: 2808814.05 | L114: 93627.14 | M114: 0 | N114: 0
A115: 1202 | B115: 13989 | C115: Gestore | D115: 0 | F115: 9 | G115: Gruppi di misura meccanici | H115: 1 | I115: Servizio idrico integrato | J115: 2012 | K115: 4717764.022 | M115: 84562.62298
A116: 1202 | B116: 13989 | C116: Gestore | D116: 0 | E116: 16_IP | F116: 11 | G116: Altri impianti | H116: 1 | I116: Servizio idrico integrato | J116: 1999 | K116: 141.4575447 | L116: 63.40644642 | M116: 0 | N116: 0
A117: 1202 | B117: 13989 | C117: Gestore | D117: 0 | E117: 16_IP | F117: 11 | G117: Altri impianti | H117: 1 | I117: Servizio idrico integrato | J117: 2002 | K117: 9633.96 | L117: 2614.97 | M117: 0 | N117: 0
A118: 1202 | B118: 13989 | C118: Gestore | D118: 0 | E118: 16_IP | F118: 11 | G118: Altri impianti | H118: 1 | I118: Servizio idrico integrato | J118: 2008 | K118: 99847.94 | L118: 17473.38 | M118: 0 | N118: 0
A119: 1202 | B119: 13989 | C119: Gestore | D119: 0 | E119: 16_IP | F119: 12 | G119: Laboratori | H119: 1 | I119: Servizio idrico integrato | J119: 1998 | K119: 733214.3761 | L119: 352841.0219 | M119: 0 | N119: 0
A120: 1202 | B120: 13989 | C120: Gestore | D120: 0 | E120: 16_IP | F120: 12 | G120: Laboratori | H120: 1 | I120: Servizio idrico integrato | J120: 1999 | K120: 2086430.47 | L120: 1343071.262 | M120: 0 | N120: 0
A121: 1202 | B121: 13989 | C121: Gestore | D121: 0 | E121: 16_IP | F121: 12 | G121: Laboratori | H121: 1 | I121: Servizio idrico integrato | J121: 2000 | K121: 1512707.15 | L121: 1170264.97 | M121: 0 | N121: 0
A122: 1202 | B122: 13989 | C122: Gestore | D122: 0 | E122: 16_IP | F122: 12 | G122: Laboratori | H122: 1 | I122: Servizio idrico integrato | J122: 2001 | K122: 2036118.26 | L122: 1429974.09 | M122: 0 | N122: 0
A123: 1202 | B123: 13989 | C123: Gestore | D123: 0 | E123: 16_IP | F123: 12 | G123: Laboratori | H123: 1 | I123: Servizio idrico integrato | J123: 2002 | K123: 1220341.44 | L123: 786842.24 | M123: 0 | N123: 0
A124: 1202 | B124: 13989 | C124: Gestore | D124: 0 | E124: 16_IP | F124: 12 | G124: Laboratori | H124: 1 | I124: Servizio idrico integrato | J124: 2003 | K124: 967074.11 | L124: 616649.94 | M124: 0 | N124: 0
A125: 1202 | B125: 13989 | C125: Gestore | D125: 0 | E125: 16_IP | F125: 12 | G125: Laboratori | H125: 1 | I125: Servizio idrico integrato | J125: 2004 | K125: 1211014.85 | L125: 898184.97 | M125: 0 | N125: 0
A126: 1202 | B126: 13989 | C126: Gestore | D126: 0 | E126: 16_IP | F126: 12 | G126: Laboratori | H126: 1 | I126: Servizio idrico integrato | J126: 2005 | K126: 1453080.6 | L126: 832407.1 | M126: 0 | N126: 0
A127: 1202 | B127: 13989 | C127: Gestore | D127: 0 | E127: 16_IP | F127: 12 | G127: Laboratori | H127: 1 | I127: Servizio idrico integrato | J127: 2006 | K127: 1944766.82 | L127: 916179.18 | M127: 0 | N127: 0
A128: 1202 | B128: 13989 | C128: Gestore | D128: 0 | E128: 16_IP | F128: 12 | G128: Laboratori | H128: 1 | I128: Servizio idrico integrato | J128: 2007 | K128: 2045376.34 | L128: 790436.78 | M128: 0 | N128: 0
A129: 1202 | B129: 13989 | C129: Gestore | D129: 0 | E129: 16_IP | F129: 12 | G129: Laboratori | H129: 1 | I129: Servizio idrico integrato | J129: 2008 | K129: 1739594.93 | L129: 444124.06 | M129: 0 | N129: 0
A130: 1202 | B130: 13989 | C130: Gestore | D130: 0 | E130: 16_IP | F130: 12 | G130: Laboratori | H130: 1 | I130: Servizio idrico integrato | J130: 2009 | K130: 998234.63 | L130: 209810.5 | M130: 0 | N130: 0
A131: 1202 | B131: 13989 | C131: Gestore | D131: 0 | E131: 16_IP | F131: 12 | G131: Laboratori | H131: 1 | I131: Servizio idrico integrato | J131: 2010 | K131: 1432378.31 | L131: 153823.66 | M131: 0 | N131: 0
A132: 1202 | B132: 13989 | C132: Gestore | D132: 0 | E132: 16_IP | F132: 12 | G132: Laboratori | H132: 1 | I132: Servizio idrico integrato | J132: 2011 | K132: 890858.49 | L132: 30585.65 | M132: 0 | N132: 0
A133: 1202 | B133: 13989 | C133: Gestore | D133: 0 | F133: 12 | G133: Laboratori | H133: 1 | I133: Servizio idrico integrato | J133: 2012 | K133: 10635163.37 | M133: 190627.8707
A134: 1202 | B134: 13989 | C134: Gestore | D134: 0 | E134: 16_IP | F134: 13 | G134: Telecontrollo | H134: 1 | I134: Servizio idrico integrato | J134: 1998 | K134: 124745.1409 | L134: 24973.96998 | M134: 0 | N134: 0
A135: 1202 | B135: 13989 | C135: Gestore | D135: 0 | E135: 16_IP | F135: 13 | G135: Telecontrollo | H135: 1 | I135: Servizio idrico integrato | J135: 1999 | K135: 14814.00321 | L135: 1058.157178 | M135: 0 | N135: 0
A136: 1202 | B136: 13989 | C136: Gestore | D136: 0 | E136: 16_IP | F136: 13 | G136: Telecontrollo | H136: 1 | I136: Servizio idrico integrato | J136: 2000 | K136: 89513.67 | L136: 38363.04 | M136: 0 | N136: 0
A137: 1202 | B137: 13989 | C137: Gestore | D137: 0 | E137: 16_IP | F137: 13 | G137: Telecontrollo | H137: 1 | I137: Servizio idrico integrato | J137: 2001 | K137: 80740.91 | L137: 29288.75 | M137: 0 | N137: 0
A138: 1202 | B138: 13989 | C138: Gestore | D138: 0 | E138: 16_IP | F138: 13 | G138: Telecontrollo | H138: 1 | I138: Servizio idrico integrato | J138: 2002 | K138: 212328.53 | L138: 67246.22 | M138: 0 | N138: 0
A139: 1202 | B139: 13989 | C139: Gestore | D139: 0 | E139: 16_IP | F139: 13 | G139: Telecontrollo | H139: 1 | I139: Servizio idrico integrato | J139: 2003 | K139: 396930.56 | L139: 97947.48 | M139: 0 | N139: 0
A140: 1202 | B140: 13989 | C140: Gestore | D140: 0 | E140: 16_IP | F140: 13 | G140: Telecontrollo | H140: 1 | I140: Servizio idrico integrato | J140: 2004 | K140: 412060.74 | L140: 90600.73 | M140: 0 | N140: 0
A141: 1202 | B141: 13989 | C141: Gestore | D141: 0 | E141: 16_IP | F141: 13 | G141: Telecontrollo | H141: 1 | I141: Servizio idrico integrato | J141: 2005 | K141: 900507.13 | L141: 171231.13 | M141: 0 | N141: 0
A142: 1202 | B142: 13989 | C142: Gestore | D142: 0 | E142: 16_IP | F142: 13 | G142: Telecontrollo | H142: 1 | I142: Servizio idrico integrato | J142: 2006 | K142: 733686.27 | L142: 118367.03 | M142: 0 | N142: 0
A143: 1202 | B143: 13989 | C143: Gestore | D143: 0 | E143: 16_IP | F143: 13 | G143: Telecontrollo | H143: 1 | I143: Servizio idrico integrato | J143: 2007 | K143: 796362.51 | L143: 102489.07 | M143: 0 | N143: 0
A144: 1202 | B144: 13989 | C144: Gestore | D144: 0 | E144: 16_IP | F144: 13 | G144: Telecontrollo | H144: 1 | I144: Servizio idrico integrato | J144: 2008 | K144: 966250.95 | L144: 98204.79 | M144: 0 | N144: 0
A145: 1202 | B145: 13989 | C145: Gestore | D145: 0 | E145: 16_IP | F145: 13 | G145: Telecontrollo | H145: 1 | I145: Servizio idrico integrato | J145: 2009 | K145: 912832.1 | L145: 66519.54 | M145: 0 | N145: 0
A146: 1202 | B146: 13989 | C146: Gestore | D146: 0 | E146: 16_IP | F146: 13 | G146: Telecontrollo | H146: 1 | I146: Servizio idrico integrato | J146: 2010 | K146: 1414101.12 | L146: 60832.21 | M146: 0 | N146: 0
A147: 1202 | B147: 13989 | C147: Gestore | D147: 0 | E147: 16_IP | F147: 13 | G147: Telecontrollo | H147: 1 | I147: Servizio idrico integrato | J147: 2011 | K147: 2553218.86 | L147: 41452.01486 | M147: 0 | N147: 0
A148: 1202 | B148: 13989 | C148: Gestore | D148: 0 | F148: 13 | G148: Telecontrollo | H148: 1 | I148: Servizio idrico integrato | J148: 2012 | K148: 2536059.197 | M148: 45457.08873
A149: 1202 | B149: 13989 | C149: Gestore | D149: 0 | E149: 16_IP | F149: 14 | G149: Autoveicoli | H149: 1 | I149: Servizio idrico integrato | J149: 2002 | K149: 821003.72 | L149: 658597.95 | M149: 0 | N149: 0
A150: 1202 | B150: 13989 | C150: Gestore | D150: 0 | E150: 16_IP | F150: 14 | G150: Autoveicoli | H150: 1 | I150: Servizio idrico integrato | J150: 2003 | K150: 932935.57 | L150: 649799.8 | M150: 0 | N150: 0
A151: 1202 | B151: 13989 | C151: Gestore | D151: 0 | E151: 16_IP | F151: 14 | G151: Autoveicoli | H151: 1 | I151: Servizio idrico integrato | J151: 2004 | K151: 2025050 | L151: 1291002.2 | M151: 0 | N151: 0
A152: 1202 | B152: 13989 | C152: Gestore | D152: 0 | E152: 16_IP | F152: 14 | G152: Autoveicoli | H152: 1 | I152: Servizio idrico integrato | J152: 2005 | K152: 1012015.34 | L152: 549852.35 | M152: 0 | N152: 0
A153: 1202 | B153: 13989 | C153: Gestore | D153: 0 | E153: 16_IP | F153: 14 | G153: Autoveicoli | H153: 1 | I153: Servizio idrico integrato | J153: 2006 | K153: 2522372.97 | L153: 1153238.41 | M153: 0 | N153: 0
A154: 1202 | B154: 13989 | C154: Gestore | D154: 0 | E154: 16_IP | F154: 14 | G154: Autoveicoli | H154: 1 | I154: Servizio idrico integrato | J154: 2007 | K154: 333127.33 | L154: 119839.94 | M154: 0 | N154: 0
A155: 1202 | B155: 13989 | C155: Gestore | D155: 0 | E155: 16_IP | F155: 14 | G155: Autoveicoli | H155: 1 | I155: Servizio idrico integrato | J155: 2008 | K155: 1513321.77 | L155: 446673.9 | M155: 0 | N155: 0
A156: 1202 | B156: 13989 | C156: Gestore | D156: 0 | E156: 16_IP | F156: 14 | G156: Autoveicoli | H156: 1 | I156: Servizio idrico integrato | J156: 2009 | K156: 444261.77 | L156: 146045.87 | M156: 0 | N156: 0
A157: 1202 | B157: 13989 | C157: Gestore | D157: 0 | E157: 16_IP | F157: 14 | G157: Autoveicoli | H157: 1 | I157: Servizio idrico integrato | J157: 2010 | K157: 860603.06 | L157: 108380.41 | M157: 0 | N157: 0
A158: 1202 | B158: 13989 | C158: Gestore | D158: 0 | E158: 16_IP | F158: 14 | G158: Autoveicoli | H158: 1 | I158: Servizio idrico integrato | J158: 2011 | K158: 57480 | L158: 2395 | M158: 0 | N158: 0
A159: 1202 | B159: 13989 | C159: Gestore | D159: 0 | E159: 16_IP | F159: 15 | G159: Studi, ricerche, brevetti, diritti di utilizzazione | H159: 1 | I159: Servizio idrico integrato | J159: 2010 | K159: 3995047.81 | L159: 2663131.97 | M159: 0 | N159: 0
A160: 1202 | B160: 13989 | C160: Gestore | D160: 0 | E160: 16_IP | F160: 15 | G160: Studi, ricerche, brevetti, diritti di utilizzazione | H160: 1 | I160: Servizio idrico integrato | J160: 2011 | K160: 3916440.46 | L160: 1305477.86 | M160: 0 | N160: 0
A161: 1202 | B161: 13989 | C161: Gestore | D161: 0 | F161: 15 | G161: Studi, ricerche, brevetti, diritti di utilizzazione | H161: 1 | I161: Servizio idrico integrato | J161: 2012 | K161: 1770711.498 | M161: 31738.7661
A162: 1202 | B162: 13989 | C162: Gestore | D162: 0 | E162: 16_IP | F162: 16 | G162: Altre immobilizzazioni materiali e immateriali | H162: 1 | I162: Servizio idrico integrato | J162: 2007 | K162: 536873.96 | L162: 447394.95 | M162: 0 | N162: 0
A163: 1202 | B163: 13989 | C163: Gestore | D163: 0 | E163: 16_IP | F163: 16 | G163: Altre immobilizzazioni materiali e immateriali | H163: 1 | I163: Servizio idrico integrato | J163: 2009 | K163: 10781 | L163: 8085.75 | M163: 0 | N163: 0
A164: 1202 | B164: 13989 | C164: Gestore | D164: 0 | E164: 16_IP | F164: 16 | G164: Altre immobilizzazioni materiali e immateriali | H164: 1 | I164: Servizio idrico integrato | J164: 2010 | K164: 877.45 | L164: 292.48 | M164: 0 | N164: 0
A165: 1202 | B165: 13989 | C165: Gestore | D165: 0 | F165: 16 | G165: Altre immobilizzazioni materiali e immateriali | H165: 1 | I165: Servizio idrico integrato | J165: 2012 | K165: 1122690.805 | M165: 20123.44806
A166: 1202 | B166: 13989 | C166: Gestore | D166: 0 | E166: 16_IP | F166: 17 | G166: Immobilizzazioni immateriali: avviamenti, capitalizzazione concessione, etc. | H166: 1 | I166: Servizio idrico integrato | J166: 1998 | K166: 370056345.4 | L166: 172692961.1 | M166: 0 | N166: 0
A167: 1202 | B167: 13989 | C167: Gestore | D167: 0 | E167: 16_IP | F167: 17 | G167: Immobilizzazioni immateriali: avviamenti, capitalizzazione concessione, etc. | H167: 1 | I167: Servizio idrico integrato | J167: 2000 | K167: 409014310.8 | L167: 245408586.5 | M167: 0 | N167: 0
A168: 1202 | B168: 13989 | C168: Gestore | D168: 0 | E168: 16_IP | F168: 17 | G168: Immobilizzazioni immateriali: avviamenti, capitalizzazione concessione, etc. | H168: 1 | I168: Servizio idrico integrato | J168: 2002 | K168: 22558742.7 | L168: 21054826.52 | M168: 0 | N168: 0
A169: 1202 | B169: 13989 | C169: Gestore | D169: 0 | E169: 16_IP | F169: 17 | G169: Immobilizzazioni immateriali: avviamenti, capitalizzazione concessione, etc. | H169: 1 | I169: Servizio idrico integrato | J169: 2009 | K169: 673227.63 | L169: 73176.93 | M169: 0 | N169: 0

Sheet conferma_investimenti_mti
F2: RAB Gestore (solo immobilizzazioni al 2013 - anno cespite, da confermare.)
D3: Investimenti 2013 Le colonne da D a J mostrano gli investimenti relativi al 2013 come da predisposizione tariffaria MTI. Indicare nelle colonne K e L eventuali variazioni motivandole in relazione di accompagnamento, altrimenti ricopiare i valori dalle adiacenti colonne. È possibile eventualmente aggiungere ulteriori righe e si sconsiglia la rimozione di quelle già presenti. La mancata compilazione delle colonne K e L escluderà tali cespiti dal calcolo. | K3: spazio per la compilazione manuale nessuna rivalutazione monetaria va effettuata
K4: Investimenti EFFETTIVI del 2013 (non lasciare campi vuoti)
A6: n_riga | B6: IDATO | C6: IDGESTORE | D6: ID_Categoria_Cespite | E6: CategoriaCespite | F6: ID_Immobilizzazione | G6: IMMOBILIZZAZIONE | H6: AnnoCespite | I6: IP (come da approvazione tariffaria) | J6: CFP (come da approvazione tariffaria) | K6: IP | L6: CFP
A7: 1 | B7: 1202 | C7: 13989 | D7: 1 | E7: Terreni | F7: 1 | G7: Servizio idrico integrato | H7: 2013 | I7: 46304.93 | J7: 0 | K7: 46304.93
A8: 2 | B8: 1202 | C8: 13989 | D8: 3 | E8: Fabbricati industriali | F8: 1 | G8: Servizio idrico integrato | H8: 2013 | I8: 3066963.99 | J8: 1790693.983 | K8: 3066963.99 | L8: 56880.79592
A9: 3 | B9: 1202 | C9: 13989 | D9: 5 | E9: Condutture e opere idrauliche fisse | F9: 1 | G9: Servizio idrico integrato | H9: 2013 | I9: 53110913.18 | J9: 1845289.184 | K9: 53110913.18 | L9: 3659048.877
A10: 4 | B10: 1202 | C10: 13989 | D10: 6 | E10: Serbatoi | F10: 1 | G10: Servizio idrico integrato | H10: 2013 | I10: 4651718.21 | J10: 92932.29132 | K10: 4651718.21 | L10: 86272.10331
A11: 5 | B11: 1202 | C11: 13989 | D11: 7 | E11: Impianti di trattamento | F11: 1 | G11: Servizio idrico integrato | H11: 2013 | I11: 15803267.11 | J11: 315718.5703 | K11: 15803267.11 | L11: 293091.9353
A12: 6 | B12: 1202 | C12: 13989 | D12: 8 | E12: Impianti di sollevamento e pompaggio | F12: 1 | G12: Servizio idrico integrato | H12: 2013 | I12: 22897420.13 | J12: 457445.9634 | K12: 22897420.13 | L12: 424662.1368
A13: 7 | B13: 1202 | C13: 13989 | D13: 9 | E13: Gruppi di misura meccanici | F13: 1 | G13: Servizio idrico integrato | H13: 2013 | I13: 338828.36 | J13: 6769.132272 | K13: 338828.36 | L13: 6284.008179
A14: 8 | B14: 1202 | C14: 13989 | D14: 12 | E14: Laboratori | F14: 1 | G14: Servizio idrico integrato | H14: 2013 | I14: 7027858.92 | J14: 140402.9657 | K14: 7027858.92 | L14: 130340.6921
A15: 9 | B15: 1202 | C15: 13989 | D15: 13 | E15: Telecontrollo | F15: 1 | G15: Servizio idrico integrato | H15: 2013 | I15: 2155736.58 | J15: 43067.42817 | K15: 2155736.58 | L15: 39980.9104
A16: 10 | B16: 1202 | C16: 13989 | D16: 15 | E16: Studi, ricerche, brevetti, diritti di utilizzazione | F16: 1 | G16: Servizio idrico integrato | H16: 2013 | I16: 2582562.59 | J16: 51594.5825 | K16: 2582562.59 | L16: 47896.94829
A17: 11 | B17: 1202 | C17: 13989 | D17: 16 | E17: Altre immobilizzazioni materiali e immateriali | F17: 1 | G17: Servizio idrico integrato | H17: 2013 | I17: 380163.99 | J17: 7594.937843 | K17: 380163.99 | L17: 7050.630657

Sheet RAB_Proprietari
C1: RABProprietari - Sviluppo dei costi di capitale associati alle infrastrutture di terzi
A2: scarico dati
A3: RAB MTI
A5: idato associato al gestore | B5: idaeeg associato al gestore | C5: Tipologia di Proprietario | D5: Key_Prop | E5: ID_Categoria_Cespite | F5: CategoriaCespite | G5: ID_Immobilizzazione | H5: IMMOBILIZZAZIONE | I5: AnnoCespite | J5: IP | K5: FAIP | L5: CFP | M5: FACP | N5: New_Key_prop
A6: 1202 | B6: 13989 | C6: Comune | D6: 1202_13989-058091- | E6: 1 | F6: Terreni | G6: 1 | H6: Servizio idrico integrato | I6: 1990 | J6: 2983228.989 | K6: 0 | L6: 0 | M6: 0 | N6: =VLOOKUP(D6,Soggetti_proprietari_infrastrut!K:L,2,0) -> 1202_13989-058091-
A7: 1202 | B7: 13989 | C7: Comune | D7: 1202_13989-058091- | E7: 1 | F7: Terreni | G7: 1 | H7: Servizio idrico integrato | I7: 1991 | J7: 1431533.069 | K7: 0 | L7: 0 | M7: 0 | N7: =VLOOKUP(D7,Soggetti_proprietari_infrastrut!K:L,2,0) -> 1202_13989-058091-
A8: 1202 | B8: 13989 | C8: Comune | D8: 1202_13989-058091- | E8: 1 | F8: Terreni | G8: 1 | H8: Servizio idrico integrato | I8: 1994 | J8: 20089.81185 | K8: 0 | L8: 0 | M8: 0 | N8: =VLOOKUP(D8,Soggetti_proprietari_infrastrut!K:L,2,0) -> 1202_13989-058091-
A9: 1202 | B9: 13989 | C9: Comune | D9: 1202_13989-058091- | E9: 1 | F9: Terreni | G9: 1 | H9: Servizio idrico integrato | I9: 1995 | J9: 2597.829848 | K9: 0 | L9: 0 | M9: 0 | N9: =VLOOKUP(D9,Soggetti_proprietari_infrastrut!K:L,2,0) -> 1202_13989-058091-
A10: 1202 | B10: 13989 | C10: Comune | D10: 1202_13989-058091- | E10: 3 | F10: Fabbricati industriali | G10: 1 | H10: Servizio idrico integrato | I10: 1962 | J10: 138526.2489 | K10: 137795.3199 | L10: 0 | M10: 0 | N10: =VLOOKUP(D10,Soggetti_proprietari_infrastrut!K:L,2,0) -> 1202_13989-058091-
A11: 1202 | B11: 13989 | C11: Comune | D11: 1202_13989-058091- | E11: 3 | F11: Fabbricati industriali | G11: 1 | H11: Servizio idrico integrato | I11: 1963 | J11: 493721.3297 | K11: 493440.3301 | L11: 0 | M11: 0 | N11: =VLOOKUP(D11,Soggetti_proprietari_infrastrut!K:L,2,0) -> 1202_13989-058091-
A12: 1202 | B12: 13989 | C12: Comune | D12: 1202_13989-058091- | E12: 3 | F12: Fabbricati industriali | G12: 1 | H12: Servizio idrico integrato | I12: 1964 | J12: 383788.8704 | K12: 383014.7521 | L12: 0 | M12: 0 | N12: =VLOOKUP(D12,Soggetti_proprietari_infrastrut!K:L,2,0) -> 1202_13989-058091-
A13: 1202 | B13: 13989 | C13: Comune | D13: 1202_13989-058091- | E13: 3 | F13: Fabbricati industriali | G13: 1 | H13: Servizio idrico integrato | I13: 1965 | J13: 379992.9736 | K13: 379060.6899 | L13: 0 | M13: 0 | N13: =VLOOKUP(D13,Soggetti_proprietari_infrastrut!K:L,2,0) -> 1202_13989-058091-
A14: 1202 | B14: 13989 | C14: Comune | D14: 1202_13989-058091- | E14: 3 | F14: Fabbricati industriali | G14: 1 | H14: Servizio idrico integrato | I14: 1966 | J14: 579215.5231 | K14: 565354.9588 | L14: 0 | M14: 0 | N14: =VLOOKUP(D14,Soggetti_proprietari_infrastrut!K:L,2,0) -> 1202_13989-058091-
A15: 1202 | B15: 13989 | C15: Comune | D15: 1202_13989-058091- | E15: 3 | F15: Fabbricati industriali | G15: 1 | H15: Servizio idrico integrato | I15: 1967 | J15: 2072397.406 | K15: 1876824.36 | L15: 0 | M15: 0 | N15: =VLOOKUP(D15,Soggetti_proprietari_infrastrut!K:L,2,0) -> 1202_13989-058091-
A16: 1202 | B16: 13989 | C16: Comune | D16: 1202_13989-058091- | E16: 3 | F16: Fabbricati industriali | G16: 1 | H16: Servizio idrico integrato | I16: 1968 | J16: 9733381.298 | K16: 8666896.267 | L16: 0 | M16: 0 | N16: =VLOOKUP(D16,Soggetti_proprietari_infrastrut!K:L,2,0) -> 1202_13989-058091-
A17: 1202 | B17: 13989 | C17: Comune | D17: 1202_13989-058091- | E17: 3 | F17: Fabbricati industriali | G17: 1 | H17: Servizio idrico integrato | I17: 1969 | J17: 357777.4215 | K17: 330839.8596 | L17: 0 | M17: 0 | N17: =VLOOKUP(D17,Soggetti_proprietari_infrastrut!K:L,2,0) -> 1202_13989-058091-
A18: 1202 | B18: 13989 | C18: Comune | D18: 1202_13989-058091- | E18: 3 | F18: Fabbricati industriali | G18: 1 | H18: Servizio idrico integrato | I18: 1970 | J18: 782481.7804 | K18: 740176.9815 | L18: 0 | M18: 0 | N18: =VLOOKUP(D18,Soggetti_proprietari_infrastrut!K:L,2,0) -> 1202_13989-058091-
A19: 1202 | B19: 13989 | C19: Comune | D19: 1202_13989-058091- | E19: 3 | F19: Fabbricati industriali | G19: 1 | H19: Servizio idrico integrato | I19: 1971 | J19: 956131.1986 | K19: 871605.8985 | L19: 0 | M19: 0 | N19: =VLOOKUP(D19,Soggetti_proprietari_infrastrut!K:L,2,0) -> 1202_13989-058091-
A20: 1202 | B20: 13989 | C20: Comune | D20: 1202_13989-058091- | E20: 3 | F20: Fabbricati industriali | G20: 1 | H20: Servizio idrico integrato | I20: 1972 | J20: 1986376.546 | K20: 1785714.305 | L20: 0 | M20: 0 | N20: =VLOOKUP(D20,Soggetti_proprietari_infrastrut!K:L,2,0) -> 1202_13989-058091-
A21: 1202 | B21: 13989 | C21: Comune | D21: 1202_13989-058091- | E21: 3 | F21: Fabbricati industriali | G21: 1 | H21: Servizio idrico integrato | I21: 1973 | J21: 754077.0926 | K21: 717659.8677 | L21: 0 | M21: 0 | N21: =VLOOKUP(D21,Soggetti_proprietari_infrastrut!K:L,2,0) -> 1202_13989-058091-
A22: 1202 | B22: 13989 | C22: Comune | D22: 1202_13989-058091- | E22: 3 | F22: Fabbricati industriali | G22: 1 | H22: Servizio idrico integrato | I22: 1974 | J22: 445264.6315 | K22: 404602.6897 | L22: 0 | M22: 0 | N22: =VLOOKUP(D22,Soggetti_proprietari_infrastrut!K:L,2,0) -> 1202_13989-058091-
A23: 1202 | B23: 13989 | C23: Comune | D23: 1202_13989-058091- | E23: 3 | F23: Fabbricati industriali | G23: 1 | H23: Servizio idrico integrato | I23: 1975 | J23: 442373.8048 | K23: 397538.2793 | L23: 0 | M23: 0 | N23: =VLOOKUP(D23,Soggetti_proprietari_infrastrut!K:L,2,0) -> 1202_13989-058091-
A24: 1202 | B24: 13989 | C24: Comune | D24: 1202_13989-058091- | E24: 3 | F24: Fabbricati industriali | G24: 1 | H24: Servizio idrico integrato | I24: 1976 | J24: 4976750.669 | K24: 4624555.425 | L24: 0 | M24: 0 | N24: =VLOOKUP(D24,Soggetti_proprietari_infrastrut!K:L,2,0) -> 1202_13989-058091-
A25: 1202 | B25: 13989 | C25: Comune | D25: 1202_13989-058091- | E25: 3 | F25: Fabbricati industriali | G25: 1 | H25: Servizio idrico integrato | I25: 1977 | J25: 742515.4467 | K25: 607180.8808 | L25: 0 | M25: 0 | N25: =VLOOKUP(D25,Soggetti_proprietari_infrastrut!K:L,2,0) -> 1202_13989-058091-
A26: 1202 | B26: 13989 | C26: Comune | D26: 1202_13989-058091- | E26: 3 | F26: Fabbricati industriali | G26: 1 | H26: Servizio idrico integrato | I26: 1978 | J26: 572804.9575 | K26: 464794.8189 | L26: 0 | M26: 0 | N26: =VLOOKUP(D26,Soggetti_proprietari_infrastrut!K:L,2,0) -> 1202_13989-058091-
A27: 1202 | B27: 13989 | C27: Comune | D27: 1202_13989-058091- | E27: 3 | F27: Fabbricati industriali | G27: 1 | H27: Servizio idrico integrato | I27: 1979 | J27: 210633.4587 | K27: 161339.5678 | L27: 0 | M27: 0 | N27: =VLOOKUP(D27,Soggetti_proprietari_infrastrut!K:L,2,0) -> 1202_13989-058091-
A28: 1202 | B28: 13989 | C28: Comune | D28: 1202_13989-058091- | E28: 3 | F28: Fabbricati industriali | G28: 1 | H28: Servizio idrico integrato | I28: 1980 | J28: 368487.6639 | K28: 294251.5047 | L28: 0 | M28: 0 | N28: =VLOOKUP(D28,Soggetti_proprietari_infrastrut!K:L,2,0) -> 1202_13989-058091-
A29: 1202 | B29: 13989 | C29: Comune | D29: 1202_13989-058091- | E29: 3 | F29: Fabbricati industriali | G29: 1 | H29: Servizio idrico integrato | I29: 1981 | J29: 563951.547 | K29: 451371.5174 | L29: 0 | M29: 0 | N29: =VLOOKUP(D29,Soggetti_proprietari_infrastrut!K:L,2,0) -> 1202_13989-058091-
A30: 1202 | B30: 13989 | C30: Comune | D30: 1202_13989-058091- | E30: 3 | F30: Fabbricati industriali | G30: 1 | H30: Servizio idrico integrato | I30: 1982 | J30: 1369160.422 | K30: 1059677.168 | L30: 0 | M30: 0 | N30: =VLOOKUP(D30,Soggetti_proprietari_infrastrut!K:L,2,0) -> 1202_13989-058091-
A31: 1202 | B31: 13989 | C31: Comune | D31: 1202_13989-058091- | E31: 3 | F31: Fabbricati industriali | G31: 1 | H31: Servizio idrico integrato | I31: 1983 | J31: 10645456.98 | K31: 8090333.55 | L31: 0 | M31: 0 | N31: =VLOOKUP(D31,Soggetti_proprietari_infrastrut!K:L,2,0) -> 1202_13989-058091-
A32: 1202 | B32: 13989 | C32: Comune | D32: 1202_13989-058091- | E32: 3 | F32: Fabbricati industriali | G32: 1 | H32: Servizio idrico integrato | I32: 1984 | J32: 1643584.141 | K32: 1201744.887 | L32: 0 | M32: 0 | N32: =VLOOKUP(D32,Soggetti_proprietari_infrastrut!K:L,2,0) -> 1202_13989-058091-
A33: 1202 | B33: 13989 | C33: Comune | D33: 1202_13989-058091- | E33: 3 | F33: Fabbricati industriali | G33: 1 | H33: Servizio idrico integrato | I33: 1985 | J33: 2671599.241 | K33: 1860065.156 | L33: 0 | M33: 0 | N33: =VLOOKUP(D33,Soggetti_proprietari_infrastrut!K:L,2,0) -> 1202_13989-058091-
A34: 1202 | B34: 13989 | C34: Comune | D34: 1202_13989-058091- | E34: 3 | F34: Fabbricati industriali | G34: 1 | H34: Servizio idrico integrato | I34: 1986 | J34: 3146683.254 | K34: 2125051.922 | L34: 0 | M34: 0 | N34: =VLOOKUP(D34,Soggetti_proprietari_infrastrut!K:L,2,0) -> 1202_13989-058091-
A35: 1202 | B35: 13989 | C35: Comune | D35: 1202_13989-058091- | E35: 3 | F35: Fabbricati industriali | G35: 1 | H35: Servizio idrico integrato | I35: 1987 | J35: 2389447.494 | K35: 1542329.448 | L35: 0 | M35: 0 | N35: =VLOOKUP(D35,Soggetti_proprietari_infrastrut!K:L,2,0) -> 1202_13989-058091-
A36: 1202 | B36: 13989 | C36: Comune | D36: 1202_13989-058091- | E36: 3 | F36: Fabbricati industriali | G36: 1 | H36: Servizio idrico integrato | I36: 1988 | J36: 5146666.704 | K36: 3072530.109 | L36: 0 | M36: 0 | N36: =VLOOKUP(D36,Soggetti_proprietari_infrastrut!K:L,2,0) -> 1202_13989-058091-
A37: 1202 | B37: 13989 | C37: Comune | D37: 1202_13989-058091- | E37: 3 | F37: Fabbricati industriali | G37: 1 | H37: Servizio idrico integrato | I37: 1989 | J37: 847280.716 | K37: 466750.9066 | L37: 0 | M37: 0 | N37: =VLOOKUP(D37,Soggetti_proprietari_infrastrut!K:L,2,0) -> 1202_13989-058091-
A38: 1202 | B38: 13989 | C38: Comune | D38: 1202_13989-058091- | E38: 3 | F38: Fabbricati industriali | G38: 1 | H38: Servizio idrico integrato | I38: 1990 | J38: 83581.47727 | K38: 44077.36989 | L38: 0 | M38: 0 | N38: =VLOOKUP(D38,Soggetti_proprietari_infrastrut!K:L,2,0) -> 1202_13989-058091-
A39: 1202 | B39: 13989 | C39: Comune | D39: 1202_13989-058091- | E39: 3 | F39: Fabbricati industriali | G39: 1 | H39: Servizio idrico integrato | I39: 1991 | J39: 154647.5502 | K39: 76163.90121 | L39: 0 | M39: 0 | N39: =VLOOKUP(D39,Soggetti_proprietari_infrastrut!K:L,2,0) -> 1202_13989-058091-
A40: 1202 | B40: 13989 | C40: Comune | D40: 1202_13989-058091- | E40: 3 | F40: Fabbricati industriali | G40: 1 | H40: Servizio idrico integrato | I40: 1992 | J40: 83244.23247 | K40: 38084.21656 | L40: 0 | M40: 0 | N40: =VLOOKUP(D40,Soggetti_proprietari_infrastrut!K:L,2,0) -> 1202_13989-058091-
A41: 1202 | B41: 13989 | C41: Comune | D41: 1202_13989-058091- | E41: 3 | F41: Fabbricati industriali | G41: 1 | H41: Servizio idrico integrato | I41: 1993 | J41: 49267.91253 | K41: 20815.68583 | L41: 0 | M41: 0 | N41: =VLOOKUP(D41,Soggetti_proprietari_infrastrut!K:L,2,0) -> 1202_13989-058091-
A42: 1202 | B42: 13989 | C42: Comune | D42: 1202_13989-058091- | E42: 3 | F42: Fabbricati industriali | G42: 1 | H42: Servizio idrico integrato | I42: 1994 | J42: 1136485.796 | K42: 440388.2372 | L42: 0 | M42: 0 | N42: =VLOOKUP(D42,Soggetti_proprietari_infrastrut!K:L,2,0) -> 1202_13989-058091-
A43: 1202 | B43: 13989 | C43: Comune | D43: 1202_13989-058091- | E43: 3 | F43: Fabbricati industriali | G43: 1 | H43: Servizio idrico integrato | I43: 1995 | J43: 162900.8351 | K43: 57422.54438 | L43: 0 | M43: 0 | N43: =VLOOKUP(D43,Soggetti_proprietari_infrastrut!K:L,2,0) -> 1202_13989-058091-
A44: 1202 | B44: 13989 | C44: Comune | D44: 1202_13989-058091- | E44: 3 | F44: Fabbricati industriali | G44: 1 | H44: Servizio idrico integrato | I44: 1996 | J44: 118615.9642 | K44: 37567.64005 | L44: 0 | M44: 0 | N44: =VLOOKUP(D44,Soggetti_proprietari_infrastrut!K:L,2,0) -> 1202_13989-058091-
A45: 1202 | B45: 13989 | C45: Comune | D45: 1202_13989-058091- | E45: 3 | F45: Fabbricati industriali | G45: 1 | H45: Servizio idrico integrato | I45: 1997 | J45: 30924.37418 | K45: 4638.650705 | L45: 0 | M45: 0 | N45: =VLOOKUP(D45,Soggetti_proprietari_infrastrut!K:L,2,0) -> 1202_13989-058091-
A46: 1202 | B46: 13989 | C46: Comune | D46: 1202_13989-058091- | E46: 5 | F46: Condutture e opere idrauliche fisse | G46: 1 | H46: Servizio idrico integrato | I46: 1962 | J46: 23417.06012 | K46: 23381.87649 | L46: 0 | M46: 0 | N46: =VLOOKUP(D46,Soggetti_proprietari_infrastrut!K:L,2,0) -> 1202_13989-058091-
A47: 1202 | B47: 13989 | C47: Comune | D47: 1202_13989-058091- | E47: 5 | F47: Condutture e opere idrauliche fisse | G47: 1 | H47: Servizio idrico integrato | I47: 1963 | J47: 1905.481674 | K47: 1621.420566 | L47: 0 | M47: 0 | N47: =VLOOKUP(D47,Soggetti_proprietari_infrastrut!K:L,2,0) -> 1202_13989-058091-
A48: 1202 | B48: 13989 | C48: Comune | D48: 1202_13989-058091- | E48: 5 | F48: Condutture e opere idrauliche fisse | G48: 1 | H48: Servizio idrico integrato | I48: 1964 | J48: 9349.029319 | K48: 8085.773162 | L48: 0 | M48: 0 | N48: =VLOOKUP(D48,Soggetti_proprietari_infrastrut!K:L,2,0) -> 1202_13989-058091-
A49: 1202 | B49: 13989 | C49: Comune | D49: 1202_13989-058091- | E49: 5 | F49: Condutture e opere idrauliche fisse | G49: 1 | H49: Servizio idrico integrato | I49: 1965 | J49: 284818.9488 | K49: 282571.4136 | L49: 0 | M49: 0 | N49: =VLOOKUP(D49,Soggetti_proprietari_infrastrut!K:L,2,0) -> 1202_13989-058091-
A50: 1202 | B50: 13989 | C50: Comune | D50: 1202_13989-058091- | E50: 5 | F50: Condutture e opere idrauliche fisse | G50: 1 | H50: Servizio idrico integrato | I50: 1966 | J50: 98855.27793 | K50: 78085.10745 | L50: 0 | M50: 0 | N50: =VLOOKUP(D50,Soggetti_proprietari_infrastrut!K:L,2,0) -> 1202_13989-058091-
A51: 1202 | B51: 13989 | C51: Comune | D51: 1202_13989-058091- | E51: 5 | F51: Condutture e opere idrauliche fisse | G51: 1 | H51: Servizio idrico integrato | I51: 1967 | J51: 107199.7867 | K51: 93014.68339 | L51: 0 | M51: 0 | N51: =VLOOKUP(D51,Soggetti_proprietari_infrastrut!K:L,2,0) -> 1202_13989-058091-
A52: 1202 | B52: 13989 | C52: Comune | D52: 1202_13989-058091- | E52: 5 | F52: Condutture e opere idrauliche fisse | G52: 1 | H52: Servizio idrico integrato | I52: 1968 | J52: 43822.50203 | K52: 36273.16025 | L52: 0 | M52: 0 | N52: =VLOOKUP(D52,Soggetti_proprietari_infrastrut!K:L,2,0) -> 1202_13989-058091-
A53: 1202 | B53: 13989 | C53: Comune | D53: 1202_13989-058091- | E53: 5 | F53: Condutture e opere idrauliche fisse | G53: 1 | H53: Servizio idrico integrato | I53: 1969 | J53: 804522.9379 | K53: 797992.0874 | L53: 0 | M53: 0 | N53: =VLOOKUP(D53,Soggetti_proprietari_infrastrut!K:L,2,0) -> 1202_13989-058091-
A54: 1202 | B54: 13989 | C54: Comune | D54: 1202_13989-058091- | E54: 5 | F54: Condutture e opere idrauliche fisse | G54: 1 | H54: Servizio idrico integrato | I54: 1970 | J54: 602732.3503 | K54: 584829.8006 | L54: 0 | M54: 0 | N54: =VLOOKUP(D54,Soggetti_proprietari_infrastrut!K:L,2,0) -> 1202_13989-058091-
A55: 1202 | B55: 13989 | C55: Comune | D55: 1202_13989-058091- | E55: 5 | F55: Condutture e opere idrauliche fisse | G55: 1 | H55: Servizio idrico integrato | I55: 1971 | J55: 4210824.731 | K55: 4103691.901 | L55: 0 | M55: 0 | N55: =VLOOKUP(D55,Soggetti_proprietari_infrastrut!K:L,2,0) -> 1202_13989-058091-
A56: 1202 | B56: 13989 | C56: Comune | D56: 1202_13989-058091- | E56: 5 | F56: Condutture e opere idrauliche fisse | G56: 1 | H56: Servizio idrico integrato | I56: 1972 | J56: 515007.9607 | K56: 474677.4313 | L56: 0 | M56: 0 | N56: =VLOOKUP(D56,Soggetti_proprietari_infrastrut!K:L,2,0) -> 1202_13989-058091-
A57: 1202 | B57: 13989 | C57: Comune | D57: 1202_13989-058091- | E57: 5 | F57: Condutture e opere idrauliche fisse | G57: 1 | H57: Servizio idrico integrato | I57: 1973 | J57: 873993.2602 | K57: 810713.3778 | L57: 0 | M57: 0 | N57: =VLOOKUP(D57,Soggetti_proprietari_infrastrut!K:L,2,0) -> 1202_13989-058091-
A58: 1202 | B58: 13989 | C58: Comune | D58: 1202_13989-058091- | E58: 5 | F58: Condutture e opere idrauliche fisse | G58: 1 | H58: Servizio idrico integrato | I58: 1974 | J58: 649348.3414 | K58: 643906.2424 | L58: 0 | M58: 0 | N58: =VLOOKUP(D58,Soggetti_proprietari_infrastrut!K:L,2,0) -> 1202_13989-058091-
A59: 1202 | B59: 13989 | C59: Comune | D59: 1202_13989-058091- | E59: 5 | F59: Condutture e opere idrauliche fisse | G59: 1 | H59: Servizio idrico integrato | I59: 1975 | J59: 503165.431 | K59: 499182.2308 | L59: 0 | M59: 0 | N59: =VLOOKUP(D59,Soggetti_proprietari_infrastrut!K:L,2,0) -> 1202_13989-058091-
A60: 1202 | B60: 13989 | C60: Comune | D60: 1202_13989-058091- | E60: 5 | F60: Condutture e opere idrauliche fisse | G60: 1 | H60: Servizio idrico integrato | I60: 1976 | J60: 25605828.76 | K60: 25060279.47 | L60: 0 | M60: 0 | N60: =VLOOKUP(D60,Soggetti_proprietari_infrastrut!K:L,2,0) -> 1202_13989-058091-
A61: 1202 | B61: 13989 | C61: Comune | D61: 1202_13989-058091- | E61: 5 | F61: Condutture e opere idrauliche fisse | G61: 1 | H61: Servizio idrico integrato | I61: 1977 | J61: 3587519.458 | K61: 2810588.199 | L61: 0 | M61: 0 | N61: =VLOOKUP(D61,Soggetti_proprietari_infrastrut!K:L,2,0) -> 1202_13989-058091-
A62: 1202 | B62: 13989 | C62: Comune | D62: 1202_13989-058091- | E62: 5 | F62: Condutture e opere idrauliche fisse | G62: 1 | H62: Servizio idrico integrato | I62: 1978 | J62: 4621030.17 | K62: 3817015.485 | L62: 0 | M62: 0 | N62: =VLOOKUP(D62,Soggetti_proprietari_infrastrut!K:L,2,0) -> 1202_13989-058091-
A63: 1202 | B63: 13989 | C63: Comune | D63: 1202_13989-058091- | E63: 5 | F63: Condutture e opere idrauliche fisse | G63: 1 | H63: Servizio idrico integrato | I63: 1979 | J63: 6945278.702 | K63: 6148606.014 | L63: 0 | M63: 0 | N63: =VLOOKUP(D63,Soggetti_proprietari_infrastrut!K:L,2,0) -> 1202_13989-058091-
A64: 1202 | B64: 13989 | C64: Comune | D64: 1202_13989-058091- | E64: 5 | F64: Condutture e opere idrauliche fisse | G64: 1 | H64: Servizio idrico integrato | I64: 1980 | J64: 10839873.73 | K64: 9405317.133 | L64: 0 | M64: 0 | N64: =VLOOKUP(D64,Soggetti_proprietari_infrastrut!K:L,2,0) -> 1202_13989-058091-
A65: 1202 | B65: 13989 | C65: Comune | D65: 1202_13989-058091- | E65: 5 | F65: Condutture e opere idrauliche fisse | G65: 1 | H65: Servizio idrico integrato | I65: 1981 | J65: 24211119.82 | K65: 23573010.79 | L65: 0 | M65: 0 | N65: =VLOOKUP(D65,Soggetti_proprietari_infrastrut!K:L,2,0) -> 1202_13989-058091-
A66: 1202 | B66: 13989 | C66: Comune | D66: 1202_13989-058091- | E66: 5 | F66: Condutture e opere idrauliche fisse | G66: 1 | H66: Servizio idrico integrato | I66: 1982 | J66: 21312289.91 | K66: 20260560.23 | L66: 0 | M66: 0 | N66: =VLOOKUP(D66,Soggetti_proprietari_infrastrut!K:L,2,0) -> 1202_13989-058091-
A67: 1202 | B67: 13989 | C67: Comune | D67: 1202_13989-058091- | E67: 5 | F67: Condutture e opere idrauliche fisse | G67: 1 | H67: Servizio idrico integrato | I67: 1983 | J67: 26674049.64 | K67: 16084415.46 | L67: 0 | M67: 0 | N67: =VLOOKUP(D67,Soggetti_proprietari_infrastrut!K:L,2,0) -> 1202_13989-058091-
A68: 1202 | B68: 13989 | C68: Comune | D68: 1202_13989-058091- | E68: 5 | F68: Condutture e opere idrauliche fisse | G68: 1 | H68: Servizio idrico integrato | I68: 1984 | J68: 9112816.158 | K68: 8025892.534 | L68: 0 | M68: 0 | N68: =VLOOKUP(D68,Soggetti_proprietari_infrastrut!K:L,2,0) -> 1202_13989-058091-
A69: 1202 | B69: 13989 | C69: Comune | D69: 1202_13989-058091- | E69: 5 | F69: Condutture e opere idrauliche fisse | G69: 1 | H69: Servizio idrico integrato | I69: 1985 | J69: 15362695.63 | K69: 12875693.77 | L69: 0 | M69: 0 | N69: =VLOOKUP(D69,Soggetti_proprietari_infrastrut!K:L,2,0) -> 1202_13989-058091-
A70: 1202 | B70: 13989 | C70: Comune | D70: 1202_13989-058091- | E70: 5 | F70: Condutture e opere idrauliche fisse | G70: 1 | H70: Servizio idrico integrato | I70: 1986 | J70: 11364791.45 | K70: 9489497.808 | L70: 0 | M70: 0 | N70: =VLOOKUP(D70,Soggetti_proprietari_infrastrut!K:L,2,0) -> 1202_13989-058091-
A71: 1202 | B71: 13989 | C71: Comune | D71: 1202_13989-058091- | E71: 5 | F71: Condutture e opere idrauliche fisse | G71: 1 | H71: Servizio idrico integrato | I71: 1987 | J71: 10122687.64 | K71: 8033380.883 | L71: 0 | M71: 0 | N71: =VLOOKUP(D71,Soggetti_proprietari_infrastrut!K:L,2,0) -> 1202_13989-058091-
A72: 1202 | B72: 13989 | C72: Comune | D72: 1202_13989-058091- | E72: 5 | F72: Condutture e opere idrauliche fisse | G72: 1 | H72: Servizio idrico integrato | I72: 1988 | J72: 14262404.55 | K72: 11767368.86 | L72: 0 | M72: 0 | N72: =VLOOKUP(D72,Soggetti_proprietari_infrastrut!K:L,2,0) -> 1202_13989-058091-
A73: 1202 | B73: 13989 | C73: Comune | D73: 1202_13989-058091- | E73: 5 | F73: Condutture e opere idrauliche fisse | G73: 1 | H73: Servizio idrico integrato | I73: 1989 | J73: 15978148.8 | K73: 10752611.34 | L73: 0 | M73: 0 | N73: =VLOOKUP(D73,Soggetti_proprietari_infrastrut!K:L,2,0) -> 1202_13989-058091-
A74: 1202 | B74: 13989 | C74: Comune | D74: 1202_13989-058091- | E74: 5 | F74: Condutture e opere idrauliche fisse | G74: 1 | H74: Servizio idrico integrato | I74: 1990 | J74: 16969050.92 | K74: 10087890.63 | L74: 0 | M74: 0 | N74: =VLOOKUP(D74,Soggetti_proprietari_infrastrut!K:L,2,0) -> 1202_13989-058091-
A75: 1202 | B75: 13989 | C75: Comune | D75: 1202_13989-058091- | E75: 5 | F75: Condutture e opere idrauliche fisse | G75: 1 | H75: Servizio idrico integrato | I75: 1991 | J75: 14425259.76 | K75: 7746117.494 | L75: 0 | M75: 0 | N75: =VLOOKUP(D75,Soggetti_proprietari_infrastrut!K:L,2,0) -> 1202_13989-058091-
A76: 1202 | B76: 13989 | C76: Comune | D76: 1202_13989-058091- | E76: 5 | F76: Condutture e opere idrauliche fisse | G76: 1 | H76: Servizio idrico integrato | I76: 1992 | J76: 9836424.03 | K76: 4796906.616 | L76: 0 | M76: 0 | N76: =VLOOKUP(D76,Soggetti_proprietari_infrastrut!K:L,2,0) -> 1202_13989-058091-
A77: 1202 | B77: 13989 | C77: Comune | D77: 1202_13989-058091- | E77: 5 | F77: Condutture e opere idrauliche fisse | G77: 1 | H77: Servizio idrico integrato | I77: 1993 | J77: 8616646.138 | K77: 3916287.534 | L77: 0 | M77: 0 | N77: =VLOOKUP(D77,Soggetti_proprietari_infrastrut!K:L,2,0) -> 1202_13989-058091-
A78: 1202 | B78: 13989 | C78: Comune | D78: 1202_13989-058091- | E78: 5 | F78: Condutture e opere idrauliche fisse | G78: 1 | H78: Servizio idrico integrato | I78: 1994 | J78: 12602376.62 | K78: 5287017.995 | L78: 0 | M78: 0 | N78: =VLOOKUP(D78,Soggetti_proprietari_infrastrut!K:L,2,0) -> 1202_13989-058091-
A79: 1202 | B79: 13989 | C79: Comune | D79: 1202_13989-058091- | E79: 5 | F79: Condutture e opere idrauliche fisse | G79: 1 | H79: Servizio idrico integrato | I79: 1995 | J79: 3839388.617 | K79: 1439770.726 | L79: 0 | M79: 0 | N79: =VLOOKUP(D79,Soggetti_proprietari_infrastrut!K:L,2,0) -> 1202_13989-058091-
A80: 1202 | B80: 13989 | C80: Comune | D80: 1202_13989-058091- | E80: 5 | F80: Condutture e opere idrauliche fisse | G80: 1 | H80: Servizio idrico integrato | I80: 1996 | J80: 6145735.79 | K80: 1857164.362 | L80: 0 | M80: 0 | N80: =VLOOKUP(D80,Soggetti_proprietari_infrastrut!K:L,2,0) -> 1202_13989-058091-
A81: 1202 | B81: 13989 | C81: Comune | D81: 1202_13989-058091- | E81: 5 | F81: Condutture e opere idrauliche fisse | G81: 1 | H81: Servizio idrico integrato | I81: 1997 | J81: 4816197.939 | K81: 695029.2192 | L81: 0 | M81: 0 | N81: =VLOOKUP(D81,Soggetti_proprietari_infrastrut!K:L,2,0) -> 1202_13989-058091-
A82: 1202 | B82: 13989 | C82: Comune | D82: 1202_13989-058091- | E82: 5 | F82: Condutture e opere idrauliche fisse | G82: 3 | H82: Altri servizi idrici | I82: 1997 | J82: 4387577.203 | K82: 2303478.031 | L82: 0 | M82: 0 | N82: =VLOOKUP(D82,Soggetti_proprietari_infrastrut!K:L,2,0) -> 1202_13989-058091-
A83: 1202 | B83: 13989 | C83: Comune | D83: 1202_13989-058091- | E83: 6 | F83: Serbatoi | G83: 1 | H83: Servizio idrico integrato | I83: 1971 | J83: 193741.8294 | K83: 58122.54882 | L83: 0 | M83: 0 | N83: =VLOOKUP(D83,Soggetti_proprietari_infrastrut!K:L,2,0) -> 1202_13989-058091-
A84: 1202 | B84: 13989 | C84: Comune | D84: 1202_13989-058091- | E84: 6 | F84: Serbatoi | G84: 1 | H84: Servizio idrico integrato | I84: 1978 | J84: 266.8734216 | K84: 263.4152262 | L84: 0 | M84: 0 | N84: =VLOOKUP(D84,Soggetti_proprietari_infrastrut!K:L,2,0) -> 1202_13989-058091-
A85: 1202 | B85: 13989 | C85: Comune | D85: 1202_13989-058091- | E85: 6 | F85: Serbatoi | G85: 1 | H85: Servizio idrico integrato | I85: 1979 | J85: 296.7969343 | K85: 289.1786786 | L85: 0 | M85: 0 | N85: =VLOOKUP(D85,Soggetti_proprietari_infrastrut!K:L,2,0) -> 1202_13989-058091-
A86: 1202 | B86: 13989 | C86: Comune | D86: 1202_13989-058091- | E86: 6 | F86: Serbatoi | G86: 1 | H86: Servizio idrico integrato | I86: 1980 | J86: 594.0999964 | K86: 569.7165168 | L86: 0 | M86: 0 | N86: =VLOOKUP(D86,Soggetti_proprietari_infrastrut!K:L,2,0) -> 1202_13989-058091-
A87: 1202 | B87: 13989 | C87: Comune | D87: 1202_13989-058091- | E87: 6 | F87: Serbatoi | G87: 1 | H87: Servizio idrico integrato | I87: 1992 | J87: 7901.790556 | K87: 3792.859467 | L87: 0 | M87: 0 | N87: =VLOOKUP(D87,Soggetti_proprietari_infrastrut!K:L,2,0) -> 1202_13989-058091-
A88: 1202 | B88: 13989 | C88: Comune | D88: 1202_13989-058091- | E88: 6 | F88: Serbatoi | G88: 1 | H88: Servizio idrico integrato | I88: 1993 | J88: 3305.324154 | K88: 1454.342628 | L88: 0 | M88: 0 | N88: =VLOOKUP(D88,Soggetti_proprietari_infrastrut!K:L,2,0) -> 1202_13989-058091-
A89: 1202 | B89: 13989 | C89: Comune | D89: 1202_13989-058091- | E89: 6 | F89: Serbatoi | G89: 1 | H89: Servizio idrico integrato | I89: 1994 | J89: 2983356.345 | K89: 1192896.312 | L89: 0 | M89: 0 | N89: =VLOOKUP(D89,Soggetti_proprietari_infrastrut!K:L,2,0) -> 1202_13989-058091-
A90: 1202 | B90: 13989 | C90: Comune | D90: 1202_13989-058091- | E90: 6 | F90: Serbatoi | G90: 1 | H90: Servizio idrico integrato | I90: 1995 | J90: 15239944.43 | K90: 5486379.995 | L90: 0 | M90: 0 | N90: =VLOOKUP(D90,Soggetti_proprietari_infrastrut!K:L,2,0) -> 1202_13989-058091-
A91: 1202 | B91: 13989 | C91: Comune | D91: 1202_13989-058091- | E91: 7 | F91: Impianti di trattamento | G91: 1 | H91: Servizio idrico integrato | I91: 1997 | J91: 403482.7953 | K91: 196697.8624 | L91: 0 | M91: 0 | N91: =VLOOKUP(D91,Soggetti_proprietari_infrastrut!K:L,2,0) -> 1202_13989-058091-
A92: 1202 | B92: 13989 | C92: Comune | D92: 1202_13989-058091- | E92: 8 | F92: Impianti di sollevamento e pompaggio | G92: 1 | H92: Servizio idrico integrato | I92: 1990 | J92: 82781683.34 | K92: 59420036.58 | L92: 0 | M92: 0 | N92: =VLOOKUP(D92,Soggetti_proprietari_infrastrut!K:L,2,0) -> 1202_13989-058091-
A93: 1202 | B93: 13989 | C93: Comune | D93: 1202_13989-058091- | E93: 8 | F93: Impianti di sollevamento e pompaggio | G93: 1 | H93: Servizio idrico integrato | I93: 1991 | J93: 1470025.987 | K93: 1469438.748 | L93: 0 | M93: 0 | N93: =VLOOKUP(D93,Soggetti_proprietari_infrastrut!K:L,2,0) -> 1202_13989-058091-
A94: 1202 | B94: 13989 | C94: Comune | D94: 1202_13989-058091- | E94: 8 | F94: Impianti di sollevamento e pompaggio | G94: 1 | H94: Servizio idrico integrato | I94: 1992 | J94: 408375.3526 | K94: 309195.0844 | L94: 0 | M94: 0 | N94: =VLOOKUP(D94,Soggetti_proprietari_infrastrut!K:L,2,0) -> 1202_13989-058091-
A95: 1202 | B95: 13989 | C95: Comune | D95: 1202_13989-058091- | E95: 8 | F95: Impianti di sollevamento e pompaggio | G95: 1 | H95: Servizio idrico integrato | I95: 1993 | J95: 360237.3817 | K95: 354713.2502 | L95: 0 | M95: 0 | N95: =VLOOKUP(D95,Soggetti_proprietari_infrastrut!K:L,2,0) -> 1202_13989-058091-
A96: 1202 | B96: 13989 | C96: Comune | D96: 1202_13989-058091- | E96: 8 | F96: Impianti di sollevamento e pompaggio | G96: 1 | H96: Servizio idrico integrato | I96: 1994 | J96: 5087485.194 | K96: 3794217.749 | L96: 0 | M96: 0 | N96: =VLOOKUP(D96,Soggetti_proprietari_infrastrut!K:L,2,0) -> 1202_13989-058091-
A97: 1202 | B97: 13989 | C97: Comune | D97: 1202_13989-058091- | E97: 8 | F97: Impianti di sollevamento e pompaggio | G97: 1 | H97: Servizio idrico integrato | I97: 1995 | J97: 39225.6989 | K97: 36775.21472 | L97: 0 | M97: 0 | N97: =VLOOKUP(D97,Soggetti_proprietari_infrastrut!K:L,2,0) -> 1202_13989-058091-
A98: 1202 | B98: 13989 | C98: Comune | D98: 1202_13989-058091- | E98: 8 | F98: Impianti di sollevamento e pompaggio | G98: 1 | H98: Servizio idrico integrato | I98: 1996 | J98: 24630478.23 | K98: 19249177.82 | L98: 0 | M98: 0 | N98: =VLOOKUP(D98,Soggetti_proprietari_infrastrut!K:L,2,0) -> 1202_13989-058091-
A99: 1202 | B99: 13989 | C99: Comune | D99: 1202_13989-058091- | E99: 8 | F99: Impianti di sollevamento e pompaggio | G99: 1 | H99: Servizio idrico integrato | I99: 1997 | J99: 892153.9408 | K99: 77910.47194 | L99: 0 | M99: 0 | N99: =VLOOKUP(D99,Soggetti_proprietari_infrastrut!K:L,2,0) -> 1202_13989-058091-
A100: 1202 | B100: 13989 | C100: Comune | D100: 1202_13989-058091- | E100: 11 | F100: Altri impianti | G100: 1 | H100: Servizio idrico integrato | I100: 1996 | J100: 95349.92279 | K100: 46721.44742 | L100: 0 | M100: 0 | N100: =VLOOKUP(D100,Soggetti_proprietari_infrastrut!K:L,2,0) -> 1202_13989-058091-
A101: 1202 | B101: 13989 | C101: Comune | D101: 1202_13989-058091- | E101: 11 | F101: Altri impianti | G101: 1 | H101: Servizio idrico integrato | I101: 1997 | J101: 38.08611402 | K101: 8.568019956 | L101: 0 | M101: 0 | N101: =VLOOKUP(D101,Soggetti_proprietari_infrastrut!K:L,2,0) -> 1202_13989-058091-
A102: 1202 | B102: 13989 | C102: Comune | D102: 1202_13989-058091- | E102: 12 | F102: Laboratori | G102: 1 | H102: Servizio idrico integrato | I102: 1997 | J102: 2465421.855 | K102: 1339302.205 | L102: 0 | M102: 0 | N102: =VLOOKUP(D102,Soggetti_proprietari_infrastrut!K:L,2,0) -> 1202_13989-058091-
A103: 1202 | B103: 13989 | C103: Comune | D103: 1202_13989-058091- | E103: 16 | F103: Altre immobilizzazioni materiali e immateriali | G103: 1 | H103: Servizio idrico integrato | I103: 1970 | J103: 217.4851648 | K103: 208.7890635 | L103: 0 | M103: 0 | N103: =VLOOKUP(D103,Soggetti_proprietari_infrastrut!K:L,2,0) -> 1202_13989-058091-
A104: 1202 | B104: 13989 | C104: Comune | D104: 1202_13989-058091- | E104: 16 | F104: Altre immobilizzazioni materiali e immateriali | G104: 1 | H104: Servizio idrico integrato | I104: 1976 | J104: 1606.75319 | K104: 1387.728984 | L104: 0 | M104: 0 | N104: =VLOOKUP(D104,Soggetti_proprietari_infrastrut!K:L,2,0) -> 1202_13989-058091-
A105: 1202 | B105: 13989 | C105: Comune | D105: 1202_13989-058091- | E105: 16 | F105: Altre immobilizzazioni materiali e immateriali | G105: 1 | H105: Servizio idrico integrato | I105: 1977 | J105: 80261.72176 | K105: 69321.84251 | L105: 0 | M105: 0 | N105: =VLOOKUP(D105,Soggetti_proprietari_infrastrut!K:L,2,0) -> 1202_13989-058091-
A106: 1202 | B106: 13989 | C106: Comune | D106: 1202_13989-058091- | E106: 16 | F106: Altre immobilizzazioni materiali e immateriali | G106: 1 | H106: Servizio idrico integrato | I106: 1978 | J106: 208673.2274 | K106: 179041.8945 | L106: 0 | M106: 0 | N106: =VLOOKUP(D106,Soggetti_proprietari_infrastrut!K:L,2,0) -> 1202_13989-058091-
A107: 1202 | B107: 13989 | C107: Comune | D107: 1202_13989-058091- | E107: 16 | F107: Altre immobilizzazioni materiali e immateriali | G107: 1 | H107: Servizio idrico integrato | I107: 1979 | J107: 264155.2831 | K107: 225275.1264 | L107: 0 | M107: 0 | N107: =VLOOKUP(D107,Soggetti_proprietari_infrastrut!K:L,2,0) -> 1202_13989-058091-
A108: 1202 | B108: 13989 | C108: Comune | D108: 1202_13989-058091- | E108: 16 | F108: Altre immobilizzazioni materiali e immateriali | G108: 1 | H108: Servizio idrico integrato | I108: 1980 | J108: 86535.76567 | K108: 73373.6922 | L108: 0 | M108: 0 | N108: =VLOOKUP(D108,Soggetti_proprietari_infrastrut!K:L,2,0) -> 1202_13989-058091-
A109: 1202 | B109: 13989 | C109: Comune | D109: 1202_13989-058091- | E109: 16 | F109: Altre immobilizzazioni materiali e immateriali | G109: 1 | H109: Servizio idrico integrato | I109: 1981 | J109: 52062.4448 | K109: 43895.96131 | L109: 0 | M109: 0 | N109: =VLOOKUP(D109,Soggetti_proprietari_infrastrut!K:L,2,0) -> 1202_13989-058091-
A110: 1202 | B110: 13989 | C110: Comune | D110: 1202_13989-058091- | E110: 16 | F110: Altre immobilizzazioni materiali e immateriali | G110: 1 | H110: Servizio idrico integrato | I110: 1982 | J110: 32726.82839 | K110: 27370.05273 | L110: 0 | M110: 0 | N110: =VLOOKUP(D110,Soggetti_proprietari_infrastrut!K:L,2,0) -> 1202_13989-058091-
A111: 1202 | B111: 13989 | C111: Comune | D111: 1202_13989-058091- | E111: 16 | F111: Altre immobilizzazioni materiali e immateriali | G111: 1 | H111: Servizio idrico integrato | I111: 1983 | J111: 20782.05622 | K111: 17284.28938 | L111: 0 | M111: 0 | N111: =VLOOKUP(D111,Soggetti_proprietari_infrastrut!K:L,2,0) -> 1202_13989-058091-
A112: 1202 | B112: 13989 | C112: Comune | D112: 1202_13989-058091- | E112: 16 | F112: Altre immobilizzazioni materiali e immateriali | G112: 1 | H112: Servizio idrico integrato | I112: 1984 | J112: 236856.6465 | K112: 194415.1482 | L112: 0 | M112: 0 | N112: =VLOOKUP(D112,Soggetti_proprietari_infrastrut!K:L,2,0) -> 1202_13989-058091-
A113: 1202 | B113: 13989 | C113: Comune | D113: 1202_13989-058091- | E113: 16 | F113: Altre immobilizzazioni materiali e immateriali | G113: 1 | H113: Servizio idrico integrato | I113: 1985 | J113: 232314.2671 | K113: 184826.4163 | L113: 0 | M113: 0 | N113: =VLOOKUP(D113,Soggetti_proprietari_infrastrut!K:L,2,0) -> 1202_13989-058091-
A114: 1202 | B114: 13989 | C114: Comune | D114: 1202_13989-058091- | E114: 16 | F114: Altre immobilizzazioni materiali e immateriali | G114: 1 | H114: Servizio idrico integrato | I114: 1986 | J114: 55875.27049 | K114: 43382.94918 | L114: 0 | M114: 0 | N114: =VLOOKUP(D114,Soggetti_proprietari_infrastrut!K:L,2,0) -> 1202_13989-058091-
A115: 1202 | B115: 13989 | C115: Comune | D115: 1202_13989-058091- | E115: 16 | F115: Altre immobilizzazioni materiali e immateriali | G115: 1 | H115: Servizio idrico integrato | I115: 1987 | J115: 306896.9503 | K115: 229075.5277 | L115: 0 | M115: 0 | N115: =VLOOKUP(D115,Soggetti_proprietari_infrastrut!K:L,2,0) -> 1202_13989-058091-
A116: 1202 | B116: 13989 | C116: Comune | D116: 1202_13989-058091- | E116: 16 | F116: Altre immobilizzazioni materiali e immateriali | G116: 1 | H116: Servizio idrico integrato | I116: 1988 | J116: 74429.93229 | K116: 52225.608 | L116: 0 | M116: 0 | N116: =VLOOKUP(D116,Soggetti_proprietari_infrastrut!K:L,2,0) -> 1202_13989-058091-
A117: 1202 | B117: 13989 | C117: Comune | D117: 1202_13989-058091- | E117: 16 | F117: Altre immobilizzazioni materiali e immateriali | G117: 1 | H117: Servizio idrico integrato | I117: 1989 | J117: 13929.56458 | K117: 9669.545053 | L117: 0 | M117: 0 | N117: =VLOOKUP(D117,Soggetti_proprietari_infrastrut!K:L,2,0) -> 1202_13989-058091-
A118: 1202 | B118: 13989 | C118: Comune | D118: 1202_13989-058091- | E118: 16 | F118: Altre immobilizzazioni materiali e immateriali | G118: 1 | H118: Servizio idrico integrato | I118: 1990 | J118: 299941.7726 | K118: 192465.1247 | L118: 0 | M118: 0 | N118: =VLOOKUP(D118,Soggetti_proprietari_infrastrut!K:L,2,0) -> 1202_13989-058091-
A119: 1202 | B119: 13989 | C119: Comune | D119: 1202_13989-058091- | E119: 16 | F119: Altre immobilizzazioni materiali e immateriali | G119: 1 | H119: Servizio idrico integrato | I119: 1991 | J119: 33407.2965 | K119: 20434.40378 | L119: 0 | M119: 0 | N119: =VLOOKUP(D119,Soggetti_proprietari_infrastrut!K:L,2,0) -> 1202_13989-058091-
A120: 1202 | B120: 13989 | C120: Comune | D120: 1202_13989-058091- | E120: 16 | F120: Altre immobilizzazioni materiali e immateriali | G120: 1 | H120: Servizio idrico integrato | I120: 1992 | J120: 53091.48363 | K120: 30970.22884 | L120: 0 | M120: 0 | N120: =VLOOKUP(D120,Soggetti_proprietari_infrastrut!K:L,2,0) -> 1202_13989-058091-
A121: 1202 | B121: 13989 | C121: Comune | D121: 1202_13989-058091- | E121: 16 | F121: Altre immobilizzazioni materiali e immateriali | G121: 1 | H121: Servizio idrico integrato | I121: 1993 | J121: 13069.13137 | K121: 7253.348448 | L121: 0 | M121: 0 | N121: =VLOOKUP(D121,Soggetti_proprietari_infrastrut!K:L,2,0) -> 1202_13989-058091-

Sheet storico articolazione QV
B2: Raccolta dati precedente - Articolazione tariffaria MTI - valida anche per Recupero RCvol2015.
B3: riportare l'articolazione (tipologia d'uso e scaglioni) applicata nel 2013 (dati consuntivo) per la vendita agli utenti finali
B5: Articolazione Tariffaria - quota variabile
D6: la tariffa 2015 è stata approvata da AEEGSI? | E6: SI
D7: L'approvazione 2015 è avvenuta su dati del 2013 consuntivi? | E7: SI
E8: =+IF(AND(E6="si",E7="no"),"compilare i seguenti campi per il recupero RCvol2015 dovuto a volumi consuntivi rispetto a quelli utilizzati", "non è previsto alcun recupero") -> non è previsto alcun recupero
D9: Star2013*vscal2013 utilizzato nell'RCvol2015 dell'approvazione AEEGSI | F9: (inserire la parte relativa alla sola quota variabile sia per le vendite al dettaglio sia per le vendite all'ingrosso)
D10: Star2013*vscal2013 | E10: =+SUM('storico articolazione QV'!O:O)+SUM('storico articolazione QF'!O:O)+'storico articolazione QF'!E10 -> 0 | F10: (Somma di quota variabile e quota fissa, inclusa la vendita all'ingrosso)
G11: 2012 | K11: 2013
B12: Ambito tariffario | C12: Servizio | D12: Tipologia d'uso | E12: Sottotipologia | F12: 1° scaglione a tariffa agevolata | G12: Min di scaglione (m3/anno) | H12: Max di scaglione (m3/anno) | I12: QV (Euro/m3) 2012 | J12: Volumi fatturati (m3/anno) anno 2012 | K12: Min di scaglione (m3/anno) | L12: Max di scaglione (m3/anno) | M12: QV (Euro/m3) 2013 | N12: Volumi fatturati (m3/anno) anno 2013
G13: Min_Scaglione | H13: Max_Scaglione | I13: QV | J13: Volumi | K13: Min_Scaglione | L13: Max_Scaglione | M13: QV | N13: Volumi_Anno_succ
G14: 0 | K14: 0
G15: =+IF(H14=0,"",H14+1) ->  | K15: =+IF(L14=0,"",L14+1) -> 

Sheet storico articolazione QF
B2: Raccolta dati precedente - Articolazione tariffaria MTI - valida anche per Recupero RCvol2015.
B3: riportare l'articolazione (tipologia d'uso e scaglioni) applicata nel 2013 (dati consuntivo) per la vendita agli utenti finali
B5: Articolazione Tariffaria - quota fissa
E8: =+'storico articolazione QV'!E8 -> non è previsto alcun recupero
D9: Star2013*vscal2013 utilizzato nell'RCvol2015 dell'approvazione AEEGSI | G9: (inserire la parte relativa alla sola quota fissa sia per le vendite al dettaglio sia per le vendite all'ingrosso)
D10: Star2013*vscal2013 | G10: (inserire la parte relativa alle sole vendite all'ingrosso, somma di quota fissa e quota variabile)
G11: 2012 | K11: 2013
B12: Ambito tariffario | C12: Servizio | D12: Tipologia d'uso | E12: Sottotipologia | F12: campo vuoto | G12: Min di scaglione (m3/anno) | H12: Max di scaglione (m3/anno) | I12: QF (Euro/utente/ anno) 2012 | J12: Utenze (numero) anno 2012 | K12: Min di scaglione (m3/anno) | L12: Max di scaglione (m3/anno) | M12: QF (Euro/utente/ anno) 2013 | N12: Utenze (numero) anno 2013
G13: Min_Scaglione | H13: Max_Scaglione | I13: QF | J13: Utenze | K13: Min_Scaglione | L13: Max_Scaglione | M13: QF | N13: Utenze_Anno_succ
G14: 0 | K14: 0
G15: =+IF(H14=0,"",H14+1) ->  | K15: =+IF(L14=0,"",L14+1) -> 
G16: =+IF(H15=0,"",H15+1) ->  | K16: =+IF(L15=0,"",L15+1) -> 
G17: =+IF(H16=0,"",H16+1) ->  | K17: =+IF(L16=0,"",L16+1) -> 
G18: =+IF(H17=0,"",H17+1) ->  | K18: =+IF(L17=0,"",L17+1) -> 
G19: =+IF(H18=0,"",H18+1) ->  | K19: =+IF(L18=0,"",L18+1) -> 

Sheet TT_Gestori
A6: Area elenco gestori in anagrafica | C6: aggiornata in data 14/3/2016
A7: IDAEEG | B7: P. IVA | C7: Denominazione / Ragione Sociale
A8: 5 | B8: 00734480213 | C8: AZIENDA PUBBLISERVIZI BRUNICO
A9: 52 | B9: 04015810874 | C9: SOGIP S.R.L.
A10: 55 | B10: 00343510228 | C10: COMUNE DI VERMIGLIO
A11: 78 | B11: 00128850229 | C11: AZIENDA ELETTRICA COMUNALE CASTELLO
A12: 79 | B12: 00124130220 | C12: COMUNE DI CAVALESE - AEC
A13: 81 | B13: 00090290149 | C13: COMUNE DI GROSOTTO
A14: 85 | B14: 00359000122 | C14: M.D.G. METANIFERA DI GAVIRATE S.R.L.
A15: 183 | B15: 00100510213 | C15: COMUNE DI PARCINES - SERVIZIO DISTRIBUZIONE E.E.
A16: 188 | B16: 00148360662 | C16: COMUNE DI BARETE
A17: 199 | B17: 00272300229 | C17: COMUNE DI PALU' DEL FERSINA
A18: 205 | B18: 03586470282 | C18: Infrastrutture Distribuzione Gas S.p.A.
A19: 206 | B19: 00431040229 | C19: COMUNE DI FAI DELLA PAGANELLA
A20: 230 | B20: 01210650436 | C20: A.S.SE.M. SPA
A21: 245 | B21: 00110390226 | C21: COMUNE DI AVIO
A22: 253 | B22: 02224280137 | C22: ASME SPA
A23: 258 | B23: 00161690664 | C23: COMUNE DI ANVERSA DEGLI ABRUZZI
A24: 259 | B24: 00291090876 | C24: COMUNE DI CASTIGLIONE DI SICILIA
A25: 308 | B25: 02191980420 | C25: MULTISERVIZI SPA
A26: 314 | B26: 00159650837 | C26: COMUNE DI FRANCAVILLA DI SICILIA
A27: 335 | B27: 02066710605 | C27: AMEA S.P.A.
A28: 337 | B28: 01471630184 | C28: ASM VIGEVANO E LOMELLINA SPA
A29: 349 | B29: 00114540669 | C29: COMUNE DI CASTEL DEL MONTE
A30: 371 | B30: 02216150017 | C30: COMUNE DI VALPRATO SOANA
A31: 380 | B31: 13171830154 | C31: EROGASMET S.P.A.
A32: 387 | B32: 01599690185 | C32: BRONI-STRADELLA S.P.A
A33: 420 | B33: 01830160063 | C33: A.M.A.G. SPA
A34: 424 | B34: 01812230223 | C34: STET SPA - SERVIZI TERRITORIALI EST TRENTINO
A35: 433 | B35: 02127560163 | C35: AMIAS SERVIZI SRL
A36: 436 | B36: 02231010212 | C36: SEAB - SERVIZI ENERGIA AMBIENTE BOLZANO S.P.A. / SEAB - ENERGIE- UMWELTBETRIEBE BOZEN A.G.
A37: 439 | B37: 00399050087 | C37: AMAIE SPA
A38: 464 | B38: 01474680418 | C38: ASET S.P.A.
A39: 505 | B39: 01733220022 | C39: EDIGAS ESERCIZIO DISTRIBUZIONE GAS S.P.A
A40: 542 | B40: 00319630224 | C40: COMUNE DI ANDALO
A41: 544 | B41: 00482100211 | C41: Comune di Corvara in Badia
A42: 583 | B42: 00186560215 | C42: COMUNE DI TIRES - AZIENDA ELETTRICA
A43: 630 | B43: 02728750247 | C43: ACQUE DEL CHIAMPO S.P.A. SERVIZIO IDRICO INTEGRATO
A44: 650 | B44: 00149120222 | C44: COMUNE DI MOLVENO - AZIENDA ELETTRICA COMUNALE
A45: 666 | B45: 00100580216 | C45: ASM - AZIENDA SERVIZI MUNICIPALIZZATI LACES
A46: 691 | B46: 00307860221 | C46: COMUNE DI PIEVE DI BONO
A47: 692 | B47: 00971870258 | C47: BIM GESTIONE SERVIZI PUBBLICI SPA
A48: 723 | B48: 00414320218 | C48: COMUNE DI TUBRE
A49: 739 | B49: 02315390985 | C49: SERVER SRL
A50: 759 | B50: 01177760491 | C50: A.S.A. - AZIENDA SERVIZI AMBIENTALI SPA
A51: 765 | B51: 00500910229 | C51: COMUNE DI STRIGNO
A52: 779 | B52: 00807660212 | C52: COMUNE DI SLUDERNO
A53: 780 | B53: 01531350229 | C53: ASM TIONE - AZIENDA SERVIZI MUNICIPALIZZATI
A54: 805 | B54: 00126510213 | C54: AZIENDA ELETTRICA COMUNALE - VIPITENO
A55: 813 | B55: 00575780986 | C55: COMUNE DI MALONNO
A56: 815 | B56: 00172780702 | C56: COMUNE DI JELSI
A57: 841 | B57: 04245520376 | C57: HERA S.P.A.
A58: 896 | B58: 01300290192 | C58: ASPM SORESINA SERVIZI SRL
A59: 926 | B59: 00930530324 | C59: AcegasApsAmga S.p.A.
A60: 927 | B60: 01581060223 | C60: ALTO GARDA SERVIZI SPA
A61: 940 | B61: 01639620069 | C61: AZIENDA MULTISERVIZI CASALESE SPA
A62: 942 | B62: 00577230980 | C62: COMUNE DI EDOLO
A63: 960 | B63: 02480540125 | C63: ASPEM S.P.A.
A64: 990 | B64: 01938630025 | C64: ATENA SPA
A65: 992 | B65: 01405600220 | C65: Dolomiti Reti S.p.a
A66: 1026 | B66: 01723300206 | C66: A.SE.P. S.P.A.
A67: 1042 | B67: 00453310211 | C67: Comune di Nalles
A68: 1045 | B68: 01501460438 | C68: ASTEA SPA
A69: 1090 | B69: 00664670361 | C69: AIMAG S.P.A.
A70: 1161 | B70: 02569060540 | C70: VALLE UMBRA SERVIZI S.P.A.
A71: 1188 | B71: 01349510436 | C71: ATAC CIVITANOVA SPA UNIPERSONALE
A72: 1193 | B72: 02259590129 | C72: Lura Ambiente SpA
A73: 1211 | B73: 00584970982 | C73: COMUNE DI VEZZA D'OGLIO
A74: 1218 | B74: 03119540130 | C74: LARIO RETI HOLDING
A75: 1226 | B75: 00148590227 | C75: COMUNE DI PREDAZZO - AEC
A76: 1234 | B76: 00203870225 | C76: COMUNE DI ISERA
A77: 1250 | B77: 00278030630 | C77: COMPAGNIA NAPOLETANA DI ILLUMINAZIONE E SCALDAMENTO COL GAS S.P.A.
A78: 1261 | B78: 02013000985 | C78: AZIENDA SERVIZI VALTROMPIA SPA
A79: 1280 | B79: 02059030417 | C79: Marche Multiservizi S.p.A.
A80: 1300 | B80: 02119730428 | C80: ACQUAMBIENTE MARCHE SRL
A81: 1310 | B81: 00070680947 | C81: COMUNE DI FROSOLONE
A82: 1330 | B82: 01106460213 | C82: COMUNE DI VANDOIES
A83: 1343 | B83: 01717730210 | C83: AZIENDA SERVIZI DI BRESSANONE SPA
A84: 1348 | B84: 00670090141 | C84: S.EC.AM. S.P.A.
A85: 1352 | B85: 00149220220 | C85: COMUNE DI SANT'ORSOLA TERME
A86: 1362 | B86: 00437620222 | C86: COMUNE DI CALDES
A87: 1373 | B87: 00571350214 | C87: COMUNE DI CURON VENOSTA (BZ)
A88: 1391 | B88: 00196170666 | C88: COMUNE DI PACENTRO
A89: 1392 | B89: 01210690432 | C89: A.S.S.M. S.P.A. - TOLENTINO
A90: 1417 | B90: 01579450220 | C90: A.I.R. - AZ. INTERCOMUNALE ROTALIANA S.P.A.
A91: 1439 | B91: 00111860193 | C91: PADANIA ACQUE S.P.A.
A92: 1440 | B92: 01522960671 | C92: RUZZO RETI SPA
A93: 1473 | B93: 00149160228 | C93: COMUNE DI VARENA
A94: 1531 | B94: 00129330213 | C94: COMUNE DI CAMPO TURES
A95: 1552 | B95: 02181280138 | C95: AZIENDA SERVIZI INTEGRATI LAMBRO
A96: 1643 | B96: 01531480216 | C96: ECO-CENTER SPA
A97: 1657 | B97: 01142420056 | C97: A.S.P. S.P.A.
A98: 1699 | B98: 00244230082 | C98: Comune di Molini di Triora
A99: 1704 | B99: 02177670649 | C99: IRNO SERVICE S.P.A.
A100: 1711 | B100: 00726790983 | C100: GARDA UNO S.P.A
A101: 1761 | B101: 00132380874 | C101: ACOSET
A102: 1768 | B102: 00171760242 | C102: PEDEMONTANA PATRIMONIO E SERVIZI SRL
A103: 1791 | B103: 01133700219 | C103: Comune di Rio di Pusteria
A104: 1873 | B104: 00296550221 | C104: COMUNE DI VILLA RENDENA
A105: 1879 | B105: 00144520665 | C105: COMUNE DI ROCCA PIA
A106: 1905 | B106: 00104260229 | C106: AEC - COMUNE DI CLES
A107: 1927 | B107: 00827900218 | C107: COMUNE DI MALLES VENOSTA
A108: 1961 | B108: 00337870406 | C108: Romagna Acque Società delle Fonti S.p.A.
A109: 1964 | B109: 09909860018 | C109: AIDA AMBIENTE SRL
A110: 1976 | B110: 00070680707 | C110: COMUNE DI SAN GIULIANO DI PUGLIA
A111: 1988 | B111: 00075910703 | C111: COMUNE DI RICCIA
A112: 2071 | B112: 01685020065 | C112: Azienda Multiservizi Valenzana Spa
A113: 2136 | B113: 00125770073 | C113: COMUNE DI CHAMPDEPRAZ
A114: 2149 | B114: 00617120217 | C114: Comune di Cornedo all'Isarco
A115: 2189 | B115: 03341820276 | C115: VERITAS SPA
A116: 2323 | B116: 00177740214 | C116: Comune Moso in Passiria
A117: 2325 | B117: 00409340213 | C117: COMUNE DI PERCA
A118: 2326 | B118: 00447010216 | C118: Gemeinde St. Leonhard in Passeier
A119: 2332 | B119: 01081070219 | C119: Gemeinde Lüsen
A120: 2510 | B120: 02119870208 | C120: TEA ACQUE
A121: 2572 | B121: 00409320215 | C121: comune di Rasun-Anterselva
A122: 2872 | B122: 00146270228 | C122: COMUNE DI BASELGA DI PINE'
A123: 2886 | B123: 00288090228 | C123: COMUNE DI CARISOLO
A124: 2933 | B124: 00114190143 | C124: COMUNE DI TEGLIO
A125: 2937 | B125: 07937540016 | C125: SOCIETA' METROPOLITANA ACQUE TORINO
A126: 2958 | B126: 00432110211 | C126: Comune Città di Glorenza
A127: 2967 | B127: 03278040245 | C127: ETRA SPA
A128: 2982 | B128: 07063880962 | C128: Acsm-Agam reti gas-acqua S.p.A.
A129: 3005 | B129: 02199110020 | C129: CONSORZIO DI BONIFICA DELLA BARAGGIA BIELLESE E VERCELLESE
A130: 3045 | B130: 01791490343 | C130: IRETI S.p.A.
A131: 3061 | B131: 01340850211 | C131: Comunità Comprensoriale Val Venosta
A132: 3125 | B132: 00347000721 | C132: ACQUEDOTTO PUGLIESE SPA
A133: 3182 | B133: 02686791209 | C133: EUROFOX ITALIA S.r.l.
A134: 3299 | B134: 03258180987 | C134: A2A CICLO IDRICO
A135: 3548 | B135: 01066120211 | C135: Gemeinde Terlan
A136: 3577 | B136: 01093630216 | C136: Comune di Chiusa
A137: 3659 | B137: 00508670213 | C137: Comune di Chienes
A138: 3720 | B138: 00575930219 | C138: COMUNE DI SARENTINO
A139: 3733 | B139: 01965360991 | C139: MEDITERRANEA DELLE ACQUE SOCIETA' PER AZIONI
A140: 3800 | B140: 00266900224 | C140: COMUNE DI FONDO
A141: 3913 | B141: 00169490257 | C141: CONSORZIO PER L'ACQUEDOTTO DI AZZON
A142: 4080 | B142: 00232370213 | C142: Comune di Marlengo
A143: 4082 | B143: 00253800213 | C143: Comune di Verano
A144: 4917 | B144: 00446860215 | C144: Comune di Scena
A145: 5096 | B145: 00848050217 | C145: Comune di Lasa
A146: 5098 | B146: 00194370219 | C146: Comune di Lana
A147: 5156 | B147: 01084890217 | C147: Gemeinde Jenesien
A148: 5461 | B148: 00264460213 | C148: Comune di Appiano sulla Strada del Vino
A149: 5462 | B149: 00668860216 | C149: Comune di Terento
A150: 5516 | B150: 00247030224 | C150: COMUNE DI CASTELLO TESINO
A151: 5673 | B151: 00243880127 | C151: comune di jerago con orago
A152: 6958 | B152: 00689390573 | C152: SO.GE.A. S.P.A.
A153: 7146 | B153: 02050020136 | C153: VALBE SERVIZI S.P.A.
A154: 7331 | B154: 01271960021 | C154: CO.R.D.A.R. VALSESIA spa
A155: 7345 | B155: 00073940058 | C155: ACQUEDOTTO VALTIGLIONE S.P.A.
A156: 7373 | B156: 03798601211 | C156: ENERGIA VERDE ED IDRICA SPA IN LIQUIDAZIONE
A157: 7379 | B157: 00162000871 | C157: COMUNE DI ACI CASTELLO
A158: 7381 | B158: 01880180060 | C158: GESTIONE ACQUA SPA
A159: 7391 | B159: 00559790126 | C159: COMUNE DI BRUSIMPIANO
A160: 7396 | B160: 01070220312 | C160: IRISACQUA SRL
A161: 7423 | B161: 00305100190 | C161: COMUNE DI BORDOLANO
A162: 7442 | B162: 00411590136 | C162: COMODEPUR
A163: 7462 | B163: 03299640163 | C163: UNIACQUE SPA
A164: 7473 | B164: 00593600984 | C164: Comune di Cerveno
A165: 7521 | B165: 04564950485 | C165: Acque Toscane
A166: 7534 | B166: 01250250550 | C166: SERVIZIO IDRICO INTEGRATO S.C.p.A.
A167: 7608 | B167: 04201250877 | C167: SERVIZI IDRICI ETNEI S.P.A
A168: 7700 | B168: 01280290386 | C168: C.A.D.F. S.p.A.
A169: 7702 | B169: 00182790659 | C169: Consac Gestioni Idriche S.p.a.
A170: 7725 | B170: 00934000621 | C170: Gestione Servizi Sannio - GE.SE.SA.
A171: 7778 | B171: 01321570663 | C171: SACA SERVIZI AMBIENTALI CENTRO ABRUZZO
A172: 7806 | B172: 00451260046 | C172: ACQUEDOTTO LANGHE E ALPI CUNEESI SPA
A173: 7887 | B173: 01553450899 | C173: SAI 8 S.p.A
A174: 7942 | B174: 00131630873 | C174: Acque di Casalotto S.p.A.
A175: 8051 | B175: 01270510660 | C175: Consorzio Aquedottistico Marsicano S.p.a.
A176: 8054 | B176: 02634920546 | C176: Umbra Acque S.p.A.
A177: 8092 | B177: 03079180364 | C177: SORGEAQUA S.R.L.
A178: 8186 | B178: 00451940043 | C178: CALSO SPA - COMUNI DELL'ACQUEDOTTO LANGHE SUD OCCIDENTALI SPA
A179: 8241 | B179: 00133090878 | C179: ACQUE CARCACI DEL FASANO SPA
A180: 8246 | B180: 01855890230 | C180: AZIENDA GARDESANA SERVIZI SPA
A181: 8294 | B181: 01390570065 | C181: CONSORZIO DEPURAZIONE ACQUE REFLUE DELLA VALLE DELL'ORBA
A182: 8302 | B182: 02102300064 | C182: COMUNI RIUNITI BELFORTE MONFERRATO SRL
A183: 8739 | B183: 03170640043 | C183: Azienda Intercomunale Gestione Ottimale del Ciclo Idrico Integrato (AIGO)
A184: 9039 | B184: 04017080872 | C184: A.M.A. S.p.A.
A185: 9229 | B185: 02504010345 | C185: EMILIAMBIENTE
A186: 9240 | B186: 02371210135 | C186: PRAGMA SPA
A187: 9253 | B187: 01866890021 | C187: CORDAR SPA BIELLA SERVIZI
A188: 9281 | B188: 02180710879 | C188: ACQUE SUD S.R.L.
A189: 9369 | B189: 00083520668 | C189: GRAN SASSO ACQUA S.P.A.
A190: 9613 | B190: 01489020204 | C190: Vesentini Sandro
A191: 9735 | B191: 02156920304 | C191: CARNIACQUE
A192: 9768 | B192: 00593060650 | C192: AUSINO S.P.A
A193: 9842 | B193: 02775910132 | C193: CANTURINA SERVIZI TERRITORIALI S.P.A.
A194: 9844 | B194: 00268520657 | C194: ASIS SALERNITANA RETI ED IMPIANTI SPA
A195: 9907 | B195: 00057170946 | C195: Comune di Capracotta
A196: 9909 | B196: 05175700482 | C196: Acque S.p.A.
A197: 9918 | B197: 02111820029 | C197: COMUNI RIUNITI SOCIETA' DI GESTIONE DI SERVIZI COMUNALI
A198: 10042 | B198: 01494020462 | C198: G.E.A.L. S.P.A. Gestione esercizio acquedotti Lucchesi
A199: 10202 | B199: 07599620635 | C199: G.O.R.I. S.p.A. - GESTIONE OTTIMALE RISORSE IDRICHE
A200: 10468 | B200: 02200370167 | C200: realizzazione e gestione servizi pubblici locali spa
A201: 10612 | B201: 00064780281 | C201: CENTRO VENETO SERVIZI SPA
A202: 10626 | B202: 02645680162 | C202: ABM NEXT SRL
A203: 10783 | B203: 02468770041 | C203: Azienda Cuneese Dell' Acqua-Società per Azioni
A204: 10839 | B204: 02482390842 | C204: GIRGENTI ACQUE S.P.A.
A205: 10912 | B205: 00475450185 | C205: COMUNE DI ROMAGNESE
... 1603 more rows

Sheet TT_Comuni_ATO
A1: REGIONE | B1: Comune | C1: Comune_Prov | D1: Ente_Ambito | E1: ID_ATO | F1: ID_ATO | G1: PROVINCIA | H1: PROV | I1: Istat_Comune | J1: Comune | L1: ATO | M1: ID_ATO | N1: ID_ATO | O1: N/C/S | Q1: ID_Ente_Ambito | R1: Ente_Ambito | V1: ID_ATO | X1: Comune_Prov | Y1: Istat_Comune | Z1: REGIONE | AA1: PROVINCIA | AB1: PROV | AC1: Comune | AD1: Ente_Ambito | AE1: ID_ATO | AF1: ID_ATO
A2: VENETO | B2: Abano Terme | C2: Abano Terme (PD) | D2: Consiglio di Bacino Bacchiglione | E2: 502 | F2: 502 | G2: PADOVA | H2: PD | I2: 028001 | J2: Abano Terme | L2: ATO SARDEGNA | M2: 2001 | N2: 2001 | O2: S | Q2: 19855 | R2: Consiglio di Bacino Brenta | V2: 1202 | X2: Affile (RM) | Y2: 058001 | Z2: LAZIO | AA2: ROMA | AB2: RM | AC2: Affile | AD2: Ambito Territoriale Ottimale 2 Lazio Centrale - Roma | AE2: 1202 | AF2: 1202
A3: LOMBARDIA | B3: Abbadia Cerreto | C3: Abbadia Cerreto (LO) | D3: UFFICIO D'AMBITO DI LODI | E3: 307 | F3: 307 | G3: LODI | H3: LO | I3: 098001 | J3: Abbadia Cerreto | L3: ATO 1 - AMBITO 1-2 | M3: 1001 | N3: 1001 | O3: C | Q3: 19856 | R3: Consulta d'Ambito Territoriale Ottimale Orientale Goriziano | X3: Agosta (RM) | Y3: 058002 | Z3: LAZIO | AA3: ROMA | AB3: RM | AC3: Agosta | AD3: Ambito Territoriale Ottimale 2 Lazio Centrale - Roma | AE3: 1202 | AF3: 1202
A4: LOMBARDIA | B4: Abbadia Lariana | C4: Abbadia Lariana (LC) | D4: Ufficio d'ambito di Lecco | E4: 306 | F4: 306 | G4: LECCO | H4: LC | I4: 097001 | J4: Abbadia Lariana | L4: ATO 1 - AQUILANO | M4: 1301 | N4: 1301 | O4: S | Q4: 19857 | R4: ATO 1 Verbano Cusio Ossola e Pianura Novarese | X4: Albano Laziale (RM) | Y4: 058003 | Z4: LAZIO | AA4: ROMA | AB4: RM | AC4: Albano Laziale | AD4: Ambito Territoriale Ottimale 2 Lazio Centrale - Roma | AE4: 1202 | AF4: 1202
A5: TOSCANA | B5: Abbadia San Salvatore | C5: Abbadia San Salvatore (SI) | D5: Autorità Idrica Toscana | E5: 906 | F5: 906 | G5: SIENA | H5: SI | I5: 052001 | J5: Abbadia San Salvatore | L5: ATO 1 - COSENZA | M5: 1801 | N5: 1801 | O5: S | Q5: 19858 | R5: Consiglio di Bacino Valle del Chiampo | X5: Allumiere (RM) | Y5: 058004 | Z5: LAZIO | AA5: ROMA | AB5: RM | AC5: Allumiere | AD5: Ambito Territoriale Ottimale 2 Lazio Centrale - Roma | AE5: 1202 | AF5: 1202
A6: SARDEGNA | B6: Abbasanta | C6: Abbasanta (OR) | D6: Ente di Governo dell'Ambito della Sardegna | E6: 2001 | F6: 2001 | G6: ORISTANO | H6: OR | I6: 095001 | J6: Abbasanta | L6: ATO 1 - LAZIO NORD VITERBO | M6: 1201 | N6: 1201 | O6: C | Q6: 19859 | R6: Consiglio di Bacino Veronese | X6: Anguillara Sabazia (RM) | Y6: 058005 | Z6: LAZIO | AA6: ROMA | AB6: RM | AC6: Anguillara Sabazia | AD6: Ambito Territoriale Ottimale 2 Lazio Centrale - Roma | AE6: 1202 | AF6: 1202
A7: ABRUZZO | B7: Abbateggio | C7: Abbateggio (PE) | D7: A.T.O. Pescara | E7: 1304 | F7: 1304 | G7: PESCARA | H7: PE | I7: 068001 | J7: Abbateggio | L7: ATO 1 - MARCHE NORD PESARO E URBINO | M7: 1101 | N7: 1101 | O7: C | Q7: 19860 | R7: UFFICIO D'AMBITO DELLA PROVINCIA DI SONDRIO | X7: Anticoli Corrado (RM) | Y7: 058006 | Z7: LAZIO | AA7: ROMA | AB7: RM | AC7: Anticoli Corrado | AD7: Ambito Territoriale Ottimale 2 Lazio Centrale - Roma | AE7: 1202 | AF7: 1202
A8: LOMBARDIA | B8: Abbiategrasso | C8: Abbiategrasso (MI) | D8: Ufficio d'Ambito della Città metropolitana di Milano | E8: 308 | F8: 308 | G8: MILANO | H8: MI | I8: 015002 | J8: Abbiategrasso | L8: ATO 1 - PALERMO | M8: 1901 | N8: 1901 | O8: S | Q8: 19861 | R8: Ente d'Ambito Chietino | X8: Arcinazzo Romano (RM) | Y8: 058008 | Z8: LAZIO | AA8: ROMA | AB8: RM | AC8: Arcinazzo Romano | AD8: Ambito Territoriale Ottimale 2 Lazio Centrale - Roma | AE8: 1202 | AF8: 1202
A9: TOSCANA | B9: Abetone | C9: Abetone (PT) | D9: Autorità Idrica Toscana | E9: 901 | F9: 901 | G9: PISTOIA | H9: PT | I9: 047001 | J9: Abetone | L9: ATO 1 - PIACENZA | M9: 801 | N9: 801 | O9: N | Q9: 19862 | R9: UFFICIO DI AMBITO DELLA PROVINCIA DI MANTOVA | X9: Ardea (RM) | Y9: 058117 | Z9: LAZIO | AA9: ROMA | AB9: RM | AC9: Ardea | AD9: Ambito Territoriale Ottimale 2 Lazio Centrale - Roma | AE9: 1202 | AF9: 1202
A10: BASILICATA | B10: Abriola | C10: Abriola (PZ) | D10: Autorità d'Ambito Territoriale Ottimale della Basilicata | E10: 1701 | F10: 1701 | G10: POTENZA | H10: PZ | I10: 076001 | J10: Abriola | L10: ATO 1 - TOSCANA NORD | M10: 901 | N10: 901 | O10: C | Q10: 19863 | R10: Autorità di Ambito Calore Irpino | X10: Ariccia (RM) | Y10: 058009 | Z10: LAZIO | AA10: ROMA | AB10: RM | AC10: Ariccia | AD10: Ambito Territoriale Ottimale 2 Lazio Centrale - Roma | AE10: 1202 | AF10: 1202
A11: SICILIA | B11: Acate | C11: Acate (RG) | D11: Autorità Ambito Territoriale Ottimale Ragusa "idrico" | E11: 1904 | F11: 1904 | G11: RAGUSA | H11: RG | I11: 088001 | J11: Acate | L11: ATO 1 - VERBANO-CUSIO-OSSOLA E PIANURA NOVARESE | M11: 101 | N11: 101 | O11: N | Q11: 19864 | R11: Consiglio di Bacino "Dolomiti Bellunesi" | X11: Arsoli (RM) | Y11: 058010 | Z11: LAZIO | AA11: ROMA | AB11: RM | AC11: Arsoli | AD11: Ambito Territoriale Ottimale 2 Lazio Centrale - Roma | AE11: 1202 | AF11: 1202
A12: PUGLIA | B12: Accadia | C12: Accadia (FG) | D12: Autorità Idrica Pugliese | E12: 1601 | F12: 1601 | G12: Foggia | H12: FG | I12: 071001 | J12: Accadia | L12: ATO 2 - AMBITO 3 | M12: 1002 | N12: 1002 | O12: C | Q12: 19865 | R12: Consiglio di Bacino Polesine | X12: Artena (RM) | Y12: 058011 | Z12: LAZIO | AA12: ROMA | AB12: RM | AC12: Artena | AD12: Ambito Territoriale Ottimale 2 Lazio Centrale - Roma | AE12: 1202 | AF12: 1202
A13: PIEMONTE | B13: Acceglio | C13: Acceglio (CN) | D13: Autorità di Ambito Territoriale Ottimale n.4 Cuneese | E13: 104 | F13: 104 | G13: CUNEO | H13: CN | I13: 004001 | J13: Acceglio | L13: ATO 2 - BASSO VALDARNO (PISA) | M13: 902 | N13: 902 | O13: C | Q13: 19867 | R13: ATO VARESE | X13: Bellegra (RM) | Y13: 058012 | Z13: LAZIO | AA13: ROMA | AB13: RM | AC13: Bellegra | AD13: Ambito Territoriale Ottimale 2 Lazio Centrale - Roma | AE13: 1202 | AF13: 1202
A14: BASILICATA | B14: Accettura | C14: Accettura (MT) | D14: Autorità d'Ambito Territoriale Ottimale della Basilicata | E14: 1701 | F14: 1701 | G14: MATERA | H14: MT | I14: 077001 | J14: Accettura | L14: ATO 2 - BIELLESE, VERCELLESE, CASALESE | M14: 102 | N14: 102 | O14: N | Q14: 19869 | R14: Consiglio di Bacino Bacchiglione | X14: Bracciano (RM) | Y14: 058013 | Z14: LAZIO | AA14: ROMA | AB14: RM | AC14: Bracciano | AD14: Ambito Territoriale Ottimale 2 Lazio Centrale - Roma | AE14: 1202 | AF14: 1202
A15: ABRUZZO | B15: Acciano | C15: Acciano (AQ) | D15: Ente d'Ambito Aquilano | E15: 1301 | F15: 1301 | G15: L'AQUILA | H15: AQ | I15: 066001 | J15: Acciano | L15: ATO 2 - CATANIA | M15: 1902 | N15: 1902 | O15: S | Q15: 19872 | R15: Autorità d'Ambito Territoriale Ottimale Veneto Orientale | X15: Camerata Nuova (RM) | Y15: 058014 | Z15: LAZIO | AA15: ROMA | AB15: RM | AC15: Camerata Nuova | AD15: Ambito Territoriale Ottimale 2 Lazio Centrale - Roma | AE15: 1202 | AF15: 1202
A16: LAZIO | B16: Accumoli | C16: Accumoli (RI) | D16: ATO3 RIETI | E16: 1203 | F16: 1203 | G16: RIETI | H16: RI | I16: 057001 | J16: Accumoli | L16: ATO 2 - CATANZARO | M16: 1802 | N16: 1802 | O16: S | Q16: 19873 | R16: Autorità di Ambito Territoriale Ottimale della Provincia di Imperia | X16: Canale Monterano (RM) | Y16: 058016 | Z16: LAZIO | AA16: ROMA | AB16: RM | AC16: Canale Monterano | AD16: Ambito Territoriale Ottimale 2 Lazio Centrale - Roma | AE16: 1202 | AF16: 1202
A17: BASILICATA | B17: Acerenza | C17: Acerenza (PZ) | D17: Autorità d'Ambito Territoriale Ottimale della Basilicata | E17: 1701 | F17: 1701 | G17: POTENZA | H17: PZ | I17: 076002 | J17: Acerenza | L17: ATO 2 - LAZIO CENTRALE ROMA | M17: 1202 | N17: 1202 | O17: C | Q17: 19874 | R17: CONSORZIO DI AMBITO AGRIGENTO S.I.I. | X17: Canterano (RM) | Y17: 058017 | Z17: LAZIO | AA17: ROMA | AB17: RM | AC17: Canterano | AD17: Ambito Territoriale Ottimale 2 Lazio Centrale - Roma | AE17: 1202 | AF17: 1202
A18: CAMPANIA | B18: Acerno | C18: Acerno (SA) | D18: Autorità di Ambito Sele | E18: 1503 | F18: 1503 | G18: SALERNO | H18: SA | I18: 065001 | J18: Acerno | L18: ATO 2 - MARCHE CENTRO ANCONA | M18: 1102 | N18: 1102 | O18: C | Q18: 19876 | R18: Ente d'Ambito Napoli Volturno | X18: Capena (RM) | Y18: 058018 | Z18: LAZIO | AA18: ROMA | AB18: RM | AC18: Capena | AD18: Ambito Territoriale Ottimale 2 Lazio Centrale - Roma | AE18: 1202 | AF18: 1202
A19: CAMPANIA | B19: Acerra | C19: Acerra (NA) | D19: Ente d'Ambito Napoli Volturno | E19: 1505 | F19: 1502 | G19: NAPOLI | H19: NA | I19: 063001 | J19: Acerra | L19: ATO 2 - MARSICANO | M19: 1302 | N19: 1302 | O19: S | Q19: 19879 | R19: Ente d'Ambito Sarnese Vesuviano | X19: Capranica Prenestina (RM) | Y19: 058019 | Z19: LAZIO | AA19: ROMA | AB19: RM | AC19: Capranica Prenestina | AD19: Ambito Territoriale Ottimale 2 Lazio Centrale - Roma | AE19: 1202 | AF19: 1202
A20: SICILIA | B20: Aci Bonaccorsi | C20: Aci Bonaccorsi (CT) | D20: CONSORZIO AMBITO TERRITORIALE OTTIMALE 2 CATANIA | E20: 1902 | F20: 1902 | G20: CATANIA | H20: CT | I20: 087001 | J20: Aci Bonaccorsi | L20: ATO 2 - PARMA | M20: 802 | N20: 802 | O20: N | Q20: 19880 | R20: UFFICIO D'AMBITO DI LODI | X20: Carpineto Romano (RM) | Y20: 058020 | Z20: LAZIO | AA20: ROMA | AB20: RM | AC20: Carpineto Romano | AD20: Ambito Territoriale Ottimale 2 Lazio Centrale - Roma | AE20: 1202 | AF20: 1202
A21: SICILIA | B21: Aci Castello | C21: Aci Castello (CT) | D21: CONSORZIO AMBITO TERRITORIALE OTTIMALE 2 CATANIA | E21: 1902 | F21: 1902 | G21: CATANIA | H21: CT | I21: 087002 | J21: Aci Castello | L21: ATO 3 - AMBITO 4 | M21: 1003 | N21: 1003 | O21: C | Q21: 19881 | R21: UFFICIO D'AMBITO DELLA PROVINCIA DI CREMONA | X21: Casape (RM) | Y21: 058021 | Z21: LAZIO | AA21: ROMA | AB21: RM | AC21: Casape | AD21: Ambito Territoriale Ottimale 2 Lazio Centrale - Roma | AE21: 1202 | AF21: 1202
A22: SICILIA | B22: Aci Catena | C22: Aci Catena (CT) | D22: CONSORZIO AMBITO TERRITORIALE OTTIMALE 2 CATANIA | E22: 1902 | F22: 1902 | G22: CATANIA | H22: CT | I22: 087003 | J22: Aci Catena | L22: ATO 3 - CROTONE | M22: 1803 | N22: 1803 | O22: S | Q22: 19882 | R22: Autorità Idrica Pugliese | X22: Castel Gandolfo (RM) | Y22: 058022 | Z22: LAZIO | AA22: ROMA | AB22: RM | AC22: Castel Gandolfo | AD22: Ambito Territoriale Ottimale 2 Lazio Centrale - Roma | AE22: 1202 | AF22: 1202
A23: SICILIA | B23: Aci Sant'Antonio | C23: Aci Sant'Antonio (CT) | D23: CONSORZIO AMBITO TERRITORIALE OTTIMALE 2 CATANIA | E23: 1902 | F23: 1902 | G23: CATANIA | H23: CT | I23: 087005 | J23: Aci Sant'Antonio | L23: ATO 3 - LAZIO CENTRALE RIETI | M23: 1203 | N23: 1203 | O23: C | Q23: 19883 | R23: Autorità d'Ambito Territoriale Ottimale 4 Lazio Meridionale - Latina | X23: Castel Madama (RM) | Y23: 058023 | Z23: LAZIO | AA23: ROMA | AB23: RM | AC23: Castel Madama | AD23: Ambito Territoriale Ottimale 2 Lazio Centrale - Roma | AE23: 1202 | AF23: 1202
A24: SICILIA | B24: Acireale | C24: Acireale (CT) | D24: CONSORZIO AMBITO TERRITORIALE OTTIMALE 2 CATANIA | E24: 1902 | F24: 1902 | G24: CATANIA | H24: CT | I24: 087004 | J24: Acireale | L24: ATO 3 - MARCHE CENTRO MACERATA | M24: 1103 | N24: 1103 | O24: C | Q24: 19884 | R24: ATO 2 Biellese, Vercellese e Casalese | X24: Castel San Pietro Romano (RM) | Y24: 058025 | Z24: LAZIO | AA24: ROMA | AB24: RM | AC24: Castel San Pietro Romano | AD24: Ambito Territoriale Ottimale 2 Lazio Centrale - Roma | AE24: 1202 | AF24: 1202
A25: MARCHE | B25: Acquacanina | C25: Acquacanina (MC) | D25: Autorità di Ambito Territoriale Ottimale n. 3 MARCHE CENTRO - MACERATA | E25: 1103 | F25: 1103 | G25: MACERATA | H25: MC | I25: 043001 | J25: Acquacanina | L25: ATO 3 - MEDIO VALDARNO (FIRENZE) | M25: 903 | N25: 903 | O25: C | Q25: 19885 | R25: Ufficio d'ambito di Lecco | X25: Castelnuovo di Porto (RM) | Y25: 058024 | Z25: LAZIO | AA25: ROMA | AB25: RM | AC25: Castelnuovo di Porto | AD25: Ambito Territoriale Ottimale 2 Lazio Centrale - Roma | AE25: 1202 | AF25: 1202
A26: LAZIO | B26: Acquafondata | C26: Acquafondata (FR) | D26: Autorità d'Ambito Territoriale Ottimale 5 Lazio Meridionale - Frosinone | E26: 1205 | F26: 1205 | G26: FROSINONE | H26: FR | I26: 060001 | J26: Acquafondata | L26: ATO 3 - MESSINA | M26: 1903 | N26: 1903 | O26: S | Q26: 19886 | R26: Autorità di Ambito Territoriale Ottimale n. 2 Marche Centro - Ancona | X26: Cave (RM) | Y26: 058026 | Z26: LAZIO | AA26: ROMA | AB26: RM | AC26: Cave | AD26: Ambito Territoriale Ottimale 2 Lazio Centrale - Roma | AE26: 1202 | AF26: 1202
A27: CALABRIA | B27: Acquaformosa | C27: Acquaformosa (CS) | D27: Regione Calabria | E27: 1801 | F27: 1801 | G27: COSENZA | H27: CS | I27: 078001 | J27: Acquaformosa | L27: ATO 3 - PELIGNO ALTO SANGRO | M27: 1303 | N27: 1303 | O27: S | Q27: 19887 | R27: Ente d'Ambito Teramano | X27: Cerreto Laziale (RM) | Y27: 058027 | Z27: LAZIO | AA27: ROMA | AB27: RM | AC27: Cerreto Laziale | AD27: Ambito Territoriale Ottimale 2 Lazio Centrale - Roma | AE27: 1202 | AF27: 1202
A28: LOMBARDIA | B28: Acquafredda | C28: Acquafredda (BS) | D28: ATO BRESCIA | E28: 302 | F28: 302 | G28: BRESCIA | H28: BS | I28: 017001 | J28: Acquafredda | L28: ATO 3 - REGGIO NELL'EMILIA | M28: 803 | N28: 803 | O28: N | Q28: 19888 | R28: Consiglio di Bacino Laguna di Venezia | X28: Cervara di Roma (RM) | Y28: 058028 | Z28: LAZIO | AA28: ROMA | AB28: RM | AC28: Cervara di Roma | AD28: Ambito Territoriale Ottimale 2 Lazio Centrale - Roma | AE28: 1202 | AF28: 1202
A29: MARCHE | B29: Acqualagna | C29: Acqualagna (PU) | D29: Autorità di Ambito Territoriale Ottimale n. 1 MARCHE NORD - PESARO URBINO | E29: 1101 | F29: 1101 | G29: PESARO E URBINO | H29: PU | I29: 041001 | J29: Acqualagna | L29: ATO 3 - TORINO | M29: 103 | N29: 103 | O29: N | Q29: 19890 | R29: A.T.O. Pescara | X29: Cerveteri (RM) | Y29: 058029 | Z29: LAZIO | AA29: ROMA | AB29: RM | AC29: Cerveteri | AD29: Ambito Territoriale Ottimale 2 Lazio Centrale - Roma | AE29: 1202 | AF29: 1202
A30: LOMBARDIA | B30: Acquanegra Cremonese | C30: Acquanegra Cremonese (CR) | D30: UFFICIO D'AMBITO DELLA PROVINCIA DI CREMONA | E30: 305 | F30: 305 | G30: CREMONA | H30: CR | I30: 019001 | J30: Acquanegra Cremonese | L30: ATO 4 - ALTO VALDARNO (AREZZO) | M30: 904 | N30: 904 | O30: C | Q30: 19893 | R30: CONSORZIO AMBITO TERRITORIALE OTTIMALE 2 CATANIA | X30: Ciampino (RM) | Y30: 058118 | Z30: LAZIO | AA30: ROMA | AB30: RM | AC30: Ciampino | AD30: Ambito Territoriale Ottimale 2 Lazio Centrale - Roma | AE30: 1202 | AF30: 1202
A31: LOMBARDIA | B31: Acquanegra sul Chiese | C31: Acquanegra sul Chiese (MN) | D31: UFFICIO DI AMBITO DELLA PROVINCIA DI MANTOVA | E31: 309 | F31: 309 | G31: MANTOVA | H31: MN | I31: 020001 | J31: Acquanegra sul Chiese | L31: ATO 4 - CUNEO | M31: 104 | N31: 104 | O31: N | Q31: 19898 | R31: Ambito Territoriale Ottimale 2 Lazio Centrale - Roma | X31: Ciciliano (RM) | Y31: 058030 | Z31: LAZIO | AA31: ROMA | AB31: RM | AC31: Ciciliano | AD31: Ambito Territoriale Ottimale 2 Lazio Centrale - Roma | AE31: 1202 | AF31: 1202
A32: LAZIO | B32: Acquapendente | C32: Acquapendente (VT) | D32: Autorità d'Ambito dell'A.T.O. n° 1 Lazio Nord - Viterbo | E32: 1201 | F32: 1201 | G32: VITERBO | H32: VT | I32: 056001 | J32: Acquapendente | L32: ATO 4 - LAZIO MERIDIONALE LATINA | M32: 1204 | N32: 1204 | O32: C | Q32: 19900 | R32: UFFICIO D'AMBITO DELLA PROVINCIA DI BERGAMO | X32: Cineto Romano (RM) | Y32: 058031 | Z32: LAZIO | AA32: ROMA | AB32: RM | AC32: Cineto Romano | AD32: Ambito Territoriale Ottimale 2 Lazio Centrale - Roma | AE32: 1202 | AF32: 1202
A33: CALABRIA | B33: Acquappesa | C33: Acquappesa (CS) | D33: Regione Calabria | E33: 1801 | F33: 1801 | G33: COSENZA | H33: CS | I33: 078002 | J33: Acquappesa | L33: ATO 4 - MARCHE SUD ALTO PICENO MACERATESE | M33: 1104 | N33: 1104 | O33: C | Q33: 19901 | R33: Autorità di Ambito Territoriale Ottimale n.4 Cuneese | X33: Civitavecchia (RM) | Y33: 058032 | Z33: LAZIO | AA33: ROMA | AB33: RM | AC33: Civitavecchia | AD33: Ambito Territoriale Ottimale 2 Lazio Centrale - Roma | AE33: 1202 | AF33: 1202
A34: PUGLIA | B34: Acquarica del Capo | C34: Acquarica del Capo (LE) | D34: Autorità Idrica Pugliese | E34: 1601 | F34: 1601 | G34: Lecce | H34: LE | I34: 075001 | J34: Acquarica del Capo | L34: ATO 4 - MODENA | M34: 804 | N34: 804 | O34: N | Q34: 19905 | R34: ATO 6 ALESSANDRINO | X34: Civitella San Paolo (RM) | Y34: 058033 | Z34: LAZIO | AA34: ROMA | AB34: RM | AC34: Civitella San Paolo | AD34: Ambito Territoriale Ottimale 2 Lazio Centrale - Roma | AE34: 1202 | AF34: 1202
A35: CALABRIA | B35: Acquaro | C35: Acquaro (VV) | D35: Regione Calabria | E35: 1804 | F35: 1804 | G35: VIBO VALENTIA | H35: VV | I35: 102001 | J35: Acquaro | L35: ATO 4 - PESCARA | M35: 1304 | N35: 1304 | O35: S | Q35: 19906 | R35: Ente d'Ambito Peligno Alto Sangro | X35: Colleferro (RM) | Y35: 058034 | Z35: LAZIO | AA35: ROMA | AB35: RM | AC35: Colleferro | AD35: Ambito Territoriale Ottimale 2 Lazio Centrale - Roma | AE35: 1202 | AF35: 1202
A36: MARCHE | B36: Acquasanta Terme | C36: Acquasanta Terme (AP) | D36: Autorità di Ambito Territoriale Ottimale n. 5 MARCHE SUD - ASCOLI PICENO | E36: 1105 | F36: 1105 | G36: ASCOLI PICENO | H36: AP | I36: 044001 | J36: Acquasanta Terme | L36: ATO 4 - RAGUSA | M36: 1904 | N36: 1904 | O36: S | Q36: 19907 | R36: Ente d'ambito Marsicano n° 2 | X36: Colonna (RM) | Y36: 058035 | Z36: LAZIO | AA36: ROMA | AB36: RM | AC36: Colonna | AD36: Ambito Territoriale Ottimale 2 Lazio Centrale - Roma | AE36: 1202 | AF36: 1202
A37: UMBRIA | B37: Acquasparta | C37: Acquasparta (TR) | D37: Ambito Territoriale Integrato N. 4 | E37: 1003 | F37: 1003 | G37: TERNI | H37: TR | I37: 055001 | J37: Acquasparta | L37: ATO 4 - VIBO VALENTIA | M37: 1804 | N37: 1804 | O37: S | Q37: 19911 | R37: ATO CITTA' DI MILANO | X37: Fiano Romano (RM) | Y37: 058036 | Z37: LAZIO | AA37: ROMA | AB37: RM | AC37: Fiano Romano | AD37: Ambito Territoriale Ottimale 2 Lazio Centrale - Roma | AE37: 1202 | AF37: 1202
A38: MOLISE | B38: Acquaviva Collecroce | C38: Acquaviva Collecroce (CB) | D38: Regione Molise | E38: 1401 | F38: 1401 | G38: CAMPOBASSO | H38: CB | I38: 070001 | J38: Acquaviva Collecroce | L38: ATO 5 - ASTIGIANO, MONFERRATO | M38: 105 | N38: 105 | O38: N | Q38: 19912 | R38: Autorità di Ambito Territoriale Ottimale n. 4 Marche Centro Sud - Fermano e Maceratese | X38: Filacciano (RM) | Y38: 058037 | Z38: LAZIO | AA38: ROMA | AB38: RM | AC38: Filacciano | AD38: Ambito Territoriale Ottimale 2 Lazio Centrale - Roma | AE38: 1202 | AF38: 1202
A39: PUGLIA | B39: Acquaviva delle Fonti | C39: Acquaviva delle Fonti (BA) | D39: Autorità Idrica Pugliese | E39: 1601 | F39: 1601 | G39: Bari | H39: BA | I39: 072001 | J39: Acquaviva delle Fonti | L39: ATO 5 - BOLOGNA | M39: 805 | N39: 805 | O39: N | Q39: 19913 | R39: ATO PAVIA | X39: Filettino (FR) | Y39: 060034 | Z39: LAZIO | AA39: FROSINONE | AB39: FR | AC39: Filettino | AD39: Ambito Territoriale Ottimale 2 Lazio Centrale - Roma | AE39: 1202 | AF39: 1202
A40: MOLISE | B40: Acquaviva d'Isernia | C40: Acquaviva d'Isernia (IS) | D40: Regione Molise | E40: 1401 | F40: 1401 | G40: ISERNIA | H40: IS | I40: 094001 | J40: Acquaviva d'Isernia | L40: ATO 5 - ENNA | M40: 1905 | N40: 1905 | O40: S | Q40: 19914 | R40: Autorità di Ambito Territoriale Ottimale n. 3 MARCHE CENTRO - MACERATA | X40: Fiumicino (RM) | Y40: 058120 | Z40: LAZIO | AA40: ROMA | AB40: RM | AC40: Fiumicino | AD40: Ambito Territoriale Ottimale 2 Lazio Centrale - Roma | AE40: 1202 | AF40: 1202
A41: MARCHE | B41: Acquaviva Picena | C41: Acquaviva Picena (AP) | D41: Autorità di Ambito Territoriale Ottimale n. 5 MARCHE SUD - ASCOLI PICENO | E41: 1105 | F41: 1105 | G41: ASCOLI PICENO | H41: AP | I41: 044002 | J41: Acquaviva Picena | L41: ATO 5 - LAZIO MERIDIONALE FROSINONE | M41: 1205 | N41: 1205 | O41: C | Q41: 19916 | R41: Autorità di Ambito Territoriale Ottimale n. 5 MARCHE SUD - ASCOLI PICENO | X41: Fonte Nuova (RM) | Y41: 058122 | Z41: LAZIO | AA41: ROMA | AB41: RM | AC41: Fonte Nuova | AD41: Ambito Territoriale Ottimale 2 Lazio Centrale - Roma | AE41: 1202 | AF41: 1202
A42: SICILIA | B42: Acquaviva Platani | C42: Acquaviva Platani (CL) | D42: CONSORZIO AMBITO TERRITORIALE OTTIMALE 6 CALTANISSETTA | E42: 1906 | F42: 1906 | G42: CALTANISSETTA | H42: CL | I42: 085001 | J42: Acquaviva Platani | L42: ATO 5 - MARCHE SUD ASCOLI PICENO | M42: 1105 | N42: 1105 | O42: C | Q42: 19917 | R42: Autorità di Ambito Sele | X42: Formello (RM) | Y42: 058038 | Z42: LAZIO | AA42: ROMA | AB42: RM | AC42: Formello | AD42: Ambito Territoriale Ottimale 2 Lazio Centrale - Roma | AE42: 1202 | AF42: 1202
A43: SICILIA | B43: Acquedolci | C43: Acquedolci (ME) | D43: ATO 3 - MESSINA | E43: 1903 | F43: 1903 | G43: MESSINA | H43: ME | I43: 083107 | J43: Acquedolci | L43: ATO 5 - REGGIO DI CALABRIA | M43: 1805 | N43: 1805 | O43: S | Q43: 19918 | R43: ATO BRESCIA | X43: Frascati (RM) | Y43: 058039 | Z43: LAZIO | AA43: ROMA | AB43: RM | AC43: Frascati | AD43: Ambito Territoriale Ottimale 2 Lazio Centrale - Roma | AE43: 1202 | AF43: 1202
A44: PIEMONTE | B44: Acqui Terme | C44: Acqui Terme (AL) | D44: ATO 6 ALESSANDRINO | E44: 106 | F44: 106 | G44: ALESSANDRIA | H44: AL | I44: 006001 | J44: Acqui Terme | L44: ATO 5 - TERAMO | M44: 1305 | N44: 1305 | O44: S | Q44: 19920 | R44: ATO 3 Torinese | X44: Gallicano nel Lazio (RM) | Y44: 058040 | Z44: LAZIO | AA44: ROMA | AB44: RM | AC44: Gallicano nel Lazio | AD44: Ambito Territoriale Ottimale 2 Lazio Centrale - Roma | AE44: 1202 | AF44: 1202
A45: CALABRIA | B45: Acri | C45: Acri (CS) | D45: Regione Calabria | E45: 1801 | F45: 1801 | G45: COSENZA | H45: CS | I45: 078003 | J45: Acri | L45: ATO 5 - TOSCANA COSTA | M45: 905 | N45: 905 | O45: C | Q45: 19921 | R45: Ambito Territoriale Integrato N. 2 | X45: Gavignano (RM) | Y45: 058041 | Z45: LAZIO | AA45: ROMA | AB45: RM | AC45: Gavignano | AD45: Ambito Territoriale Ottimale 2 Lazio Centrale - Roma | AE45: 1202 | AF45: 1202
A46: LAZIO | B46: Acuto | C46: Acuto (FR) | D46: Autorità d'Ambito Territoriale Ottimale 5 Lazio Meridionale - Frosinone | E46: 1205 | F46: 1205 | G46: FROSINONE | H46: FR | I46: 060002 | J46: Acuto | L46: ATO 6 - ALESSANDRIA | M46: 106 | N46: 106 | O46: N | Q46: 19922 | R46: Ambito Territoriale Integrato N. 3 | X46: Genazzano (RM) | Y46: 058042 | Z46: LAZIO | AA46: ROMA | AB46: RM | AC46: Genazzano | AD46: Ambito Territoriale Ottimale 2 Lazio Centrale - Roma | AE46: 1202 | AF46: 1202
A47: PUGLIA | B47: Adelfia | C47: Adelfia (BA) | D47: Autorità Idrica Pugliese | E47: 1601 | F47: 1601 | G47: Bari | H47: BA | I47: 072002 | J47: Adelfia | L47: ATO 6 - CALTANISSETTA | M47: 1906 | N47: 1906 | O47: S | Q47: 19925 | R47: Ambito Territoriale Integrato N. 4 | X47: Genzano di Roma (RM) | Y47: 058043 | Z47: LAZIO | AA47: ROMA | AB47: RM | AC47: Genzano di Roma | AD47: Ambito Territoriale Ottimale 2 Lazio Centrale - Roma | AE47: 1202 | AF47: 1202
A48: SICILIA | B48: Adrano | C48: Adrano (CT) | D48: CONSORZIO AMBITO TERRITORIALE OTTIMALE 2 CATANIA | E48: 1902 | F48: 1902 | G48: CATANIA | H48: CT | I48: 087006 | J48: Adrano | L48: ATO 6 - CHIETI | M48: 1306 | N48: 1306 | O48: S | Q48: 19926 | R48: Autorità di Ambito Territoriale Ottimale della Provincia di Genova | X48: Gerano (RM) | Y48: 058044 | Z48: LAZIO | AA48: ROMA | AB48: RM | AC48: Gerano | AD48: Ambito Territoriale Ottimale 2 Lazio Centrale - Roma | AE48: 1202 | AF48: 1202
A49: LOMBARDIA | B49: Adrara San Martino | C49: Adrara San Martino (BG) | D49: UFFICIO D'AMBITO DELLA PROVINCIA DI BERGAMO | E49: 301 | F49: 301 | G49: BERGAMO | H49: BG | I49: 016001 | J49: Adrara San Martino | L49: ATO 6 - FERRARA | M49: 806 | N49: 806 | O49: N | Q49: 19928 | R49: Ufficio d'Ambito della Città metropolitana di Milano | X49: Gorga (RM) | Y49: 058045 | Z49: LAZIO | AA49: ROMA | AB49: RM | AC49: Gorga | AD49: Ambito Territoriale Ottimale 2 Lazio Centrale - Roma | AE49: 1202 | AF49: 1202
A50: LOMBARDIA | B50: Adrara San Rocco | C50: Adrara San Rocco (BG) | D50: UFFICIO D'AMBITO DELLA PROVINCIA DI BERGAMO | E50: 301 | F50: 301 | G50: BERGAMO | H50: BG | I50: 016002 | J50: Adrara San Rocco | L50: ATO 6 - OMBRONE (GROSSETO) | M50: 906 | N50: 906 | O50: C | Q50: 19929 | R50: Ufficio d'Ambito di Como | X50: Grottaferrata (RM) | Y50: 058046 | Z50: LAZIO | AA50: ROMA | AB50: RM | AC50: Grottaferrata | AD50: Ambito Territoriale Ottimale 2 Lazio Centrale - Roma | AE50: 1202 | AF50: 1202
A51: VENETO | B51: Adria | C51: Adria (RO) | D51: Consiglio di Bacino Polesine | E51: 505 | F51: 505 | G51: ROVIGO | H51: RO | I51: 029001 | J51: Adria | L51: ATO 7 - RAVENNA | M51: 807 | N51: 807 | O51: N | Q51: 19930 | R51: Autorità d'Ambito Territoriale Ottimale della Basilicata | X51: Guidonia Montecelio (RM) | Y51: 058047 | Z51: LAZIO | AA51: ROMA | AB51: RM | AC51: Guidonia Montecelio | AD51: Ambito Territoriale Ottimale 2 Lazio Centrale - Roma | AE51: 1202 | AF51: 1202
A52: LOMBARDIA | B52: Adro | C52: Adro (BS) | D52: ATO BRESCIA | E52: 302 | F52: 302 | G52: BRESCIA | H52: BS | I52: 017002 | J52: Adro | L52: ATO 7 - TRAPANI | M52: 1907 | N52: 1907 | O52: S | Q52: 19931 | R52: Ente di Governo dell'Ambito della Sardegna | X52: Jenne (RM) | Y52: 058048 | Z52: LAZIO | AA52: ROMA | AB52: RM | AC52: Jenne | AD52: Ambito Territoriale Ottimale 2 Lazio Centrale - Roma | AE52: 1202 | AF52: 1202
A53: VENETO | B53: Affi | C53: Affi (VR) | D53: Consiglio di Bacino Veronese | E53: 506 | F53: 506 | G53: VERONA | H53: VR | I53: 023001 | J53: Affi | L53: ATO 8 - FORLì-CESENA | M53: 808 | N53: 808 | O53: N | Q53: 19934 | R53: Autorità di Ambito Territoriale Ottimale n. 1 MARCHE NORD - PESARO URBINO | X53: Labico (RM) | Y53: 058049 | Z53: LAZIO | AA53: ROMA | AB53: RM | AC53: Labico | AD53: Ambito Territoriale Ottimale 2 Lazio Centrale - Roma | AE53: 1202 | AF53: 1202
A54: LAZIO | B54: Affile | C54: Affile (RM) | D54: Ambito Territoriale Ottimale 2 Lazio Centrale - Roma | E54: 1202 | F54: 1202 | G54: ROMA | H54: RM | I54: 058001 | J54: Affile | L54: ATO 8 - SIRACUSA | M54: 1908 | N54: 1908 | O54: S | Q54: 19938 | R54: ATO MONZA E BRIANZA | X54: Ladispoli (RM) | Y54: 058116 | Z54: LAZIO | AA54: ROMA | AB54: RM | AC54: Ladispoli | AD54: Ambito Territoriale Ottimale 2 Lazio Centrale - Roma | AE54: 1202 | AF54: 1202
A55: CAMPANIA | B55: Afragola | C55: Afragola (NA) | D55: Ente d'Ambito Napoli Volturno | E55: 1505 | F55: 1502 | G55: NAPOLI | H55: NA | I55: 063002 | J55: Afragola | L55: ATO 9 - AGRIGENTO | M55: 1909 | N55: 1909 | O55: S | Q55: 19939 | R55: Consorzio ATO 5 Enna | X55: Lanuvio (RM) | Y55: 058050 | Z55: LAZIO | AA55: ROMA | AB55: RM | AC55: Lanuvio | AD55: Ambito Territoriale Ottimale 2 Lazio Centrale - Roma | AE55: 1202 | AF55: 1202
A56: CALABRIA | B56: Africo | C56: Africo (RC) | D56: Regione Calabria | E56: 1805 | F56: 1805 | G56: REGGIO DI CALABRIA | H56: RC | I56: 080001 | J56: Africo | L56: ATO 9 - RIMINI | M56: 809 | N56: 809 | O56: N | Q56: 19941 | R56: CONSORZIO AMBITO TERRITORIALE OTTIMALE 6 CALTANISSETTA | X56: Lariano (RM) | Y56: 058115 | Z56: LAZIO | AA56: ROMA | AB56: RM | AC56: Lariano | AD56: Ambito Territoriale Ottimale 2 Lazio Centrale - Roma | AE56: 1202 | AF56: 1202
A57: EMILIA-ROMAGNA | B57: Agazzano | C57: Agazzano (PC) | D57: ATERSIR | E57: 801 | F57: 801 | G57: PIACENZA | H57: PC | I57: 033001 | J57: Agazzano | L57: ATO AV - ALTO VENETO | M57: 501 | N57: 501 | O57: N | Q57: 19942 | R57: Consulta d'Ambito per il servizio idrico integrato dell'ATO Occidentale | X57: Licenza (RM) | Y57: 058051 | Z57: LAZIO | AA57: ROMA | AB57: RM | AC57: Licenza | AD57: Ambito Territoriale Ottimale 2 Lazio Centrale - Roma | AE57: 1202 | AF57: 1202
A58: CAMPANIA | B58: Agerola | C58: Agerola (NA) | D58: Autorità di Ambito Sele | E58: 1503 | F58: 1503 | G58: NAPOLI | H58: NA | I58: 063003 | J58: Agerola | L58: ATO B - BACCHIGLIONE | M58: 502 | N58: 502 | O58: N | Q58: 19944 | R58: Consulta d'Ambito Territoriale Ottimale "Orientale Triestino" | X58: Mandela (RM) | Y58: 058053 | Z58: LAZIO | AA58: ROMA | AB58: RM | AC58: Mandela | AD58: Ambito Territoriale Ottimale 2 Lazio Centrale - Roma | AE58: 1202 | AF58: 1202
A59: SARDEGNA | B59: Aggius | C59: Aggius (OT) | D59: Ente di Governo dell'Ambito della Sardegna | E59: 2001 | F59: 2001 | G59: OLBIA-TEMPIO | H59: OT | I59: 104001 | J59: Aggius | L59: ATO BASILICATA | M59: 1701 | N59: 1701 | O59: S | Q59: 19946 | R59: Consulta d'Ambito per il Servizio Idrico Integrato Centrale Friuli | X59: Manziana (RM) | Y59: 058054 | Z59: LAZIO | AA59: ROMA | AB59: RM | AC59: Manziana | AD59: Ambito Territoriale Ottimale 2 Lazio Centrale - Roma | AE59: 1202 | AF59: 1202
A60: SICILIA | B60: Agira | C60: Agira (EN) | D60: Consorzio ATO 5 Enna | E60: 1905 | F60: 1905 | G60: ENNA | H60: EN | I60: 086001 | J60: Agira | L60: ATO BG - BERGAMO | M60: 301 | N60: 301 | O60: N | Q60: 19947 | R60: AUTORITA' D'AMBITO ASTIGIANO MONFERRATO | X60: Marano Equo (RM) | Y60: 058055 | Z60: LAZIO | AA60: ROMA | AB60: RM | AC60: Marano Equo | AD60: Ambito Territoriale Ottimale 2 Lazio Centrale - Roma | AE60: 1202 | AF60: 1202
A61: TOSCANA | B61: Agliana | C61: Agliana (PT) | D61: Autorità Idrica Toscana | E61: 903 | F61: 903 | G61: PISTOIA | H61: PT | I61: 047002 | J61: Agliana | L61: ATO BR - BRENTA | M61: 503 | N61: 503 | O61: N | Q61: 19949 | R61: Autorità d'Ambito A.T.O. Interregionale Lemene | X61: Marcellina (RM) | Y61: 058056 | Z61: LAZIO | AA61: ROMA | AB61: RM | AC61: Marcellina | AD61: Ambito Territoriale Ottimale 2 Lazio Centrale - Roma | AE61: 1202 | AF61: 1202
A62: PIEMONTE | B62: Agliano Terme | C62: Agliano Terme (AT) | D62: AUTORITA' D'AMBITO ASTIGIANO MONFERRATO | E62: 105 | F62: 105 | G62: ASTI | H62: AT | I62: 005001 | J62: Agliano Terme | L62: ATO BS - BRESCIA | M62: 302 | N62: 302 | O62: N | Q62: 19964 | R62: Autorità Idrica Toscana | X62: Marino (RM) | Y62: 058057 | Z62: LAZIO | AA62: ROMA | AB62: RM | AC62: Marino | AD62: Ambito Territoriale Ottimale 2 Lazio Centrale - Roma | AE62: 1202 | AF62: 1202
A63: PIEMONTE | B63: Agliè | C63: Agliè (TO) | D63: ATO 3 Torinese | E63: 103 | F63: 103 | G63: TORINO | H63: TO | I63: 001001 | J63: Agliè | L63: ATO CDM - CITTÀ DI MILANO | M63: 303 | N63: 303 | O63: N | Q63: 19984 | R63: Autorità d'Ambito Territoriale Ottimale 5 Lazio Meridionale - Frosinone | X63: Mentana (RM) | Y63: 058059 | Z63: LAZIO | AA63: ROMA | AB63: RM | AC63: Mentana | AD63: Ambito Territoriale Ottimale 2 Lazio Centrale - Roma | AE63: 1202 | AF63: 1202
A64: SARDEGNA | B64: Aglientu | C64: Aglientu (OT) | D64: Ente di Governo dell'Ambito della Sardegna | E64: 2001 | F64: 2001 | G64: OLBIA-TEMPIO | H64: OT | I64: 104002 | J64: Aglientu | L64: ATO CE - CASERTA | M64: 1505 | N64: 1502 | O64: S | Q64: 19992 | R64: Autorità d'Ambito dell'A.T.O. n° 1 Lazio Nord - Viterbo | X64: Monte Compatri (RM) | Y64: 058060 | Z64: LAZIO | AA64: ROMA | AB64: RM | AC64: Monte Compatri | AD64: Ambito Territoriale Ottimale 2 Lazio Centrale - Roma | AE64: 1202 | AF64: 1202
A65: VENETO | B65: Agna | C65: Agna (PD) | D65: Consiglio di Bacino Bacchiglione | E65: 502 | F65: 502 | G65: PADOVA | H65: PD | I65: 028002 | J65: Agna | L65: ATO CEN - CENTRALE UDINE | M65: 601 | N65: 601 | O65: N | Q65: 19997 | R65: ATERSIR | X65: Monte Porzio Catone (RM) | Y65: 058064 | Z65: LAZIO | AA65: ROMA | AB65: RM | AC65: Monte Porzio Catone | AD65: Ambito Territoriale Ottimale 2 Lazio Centrale - Roma | AE65: 1202 | AF65: 1202
A66: LOMBARDIA | B66: Agnadello | C66: Agnadello (CR) | D66: UFFICIO D'AMBITO DELLA PROVINCIA DI CREMONA | E66: 305 | F66: 305 | G66: CREMONA | H66: CR | I66: 019002 | J66: Agnadello | L66: ATO Centro-Ovest 1 | M66: 705 | N66: 704 | O66: N | Q66: 20007 | R66: Regione Molise | X66: Montelanico (RM) | Y66: 058062 | Z66: LAZIO | AA66: ROMA | AB66: RM | AC66: Montelanico | AD66: Ambito Territoriale Ottimale 2 Lazio Centrale - Roma | AE66: 1202 | AF66: 1202
A67: CALABRIA | B67: Agnana Calabra | C67: Agnana Calabra (RC) | D67: Regione Calabria | E67: 1805 | F67: 1805 | G67: REGGIO DI CALABRIA | H67: RC | I67: 080002 | J67: Agnana Calabra | L67: ATO Centro-Ovest 2 | M67: 706 | N67: 704 | O67: N | Q67: 20011 | R67: Consorzio dei Comuni della Valle d'Aosta Bacino Imbrifero Montano | X67: Monterotondo (RM) | Y67: 058065 | Z67: LAZIO | AA67: ROMA | AB67: RM | AC67: Monterotondo | AD67: Ambito Territoriale Ottimale 2 Lazio Centrale - Roma | AE67: 1202 | AF67: 1202
A68: MOLISE | B68: Agnone | C68: Agnone (IS) | D68: Regione Molise | E68: 1401 | F68: 1401 | G68: ISERNIA | H68: IS | I68: 094002 | J68: Agnone | L68: ATO Centro-Ovest 3 | M68: 707 | N68: 704 | O68: N | Q68: 20129 | R68: ATO 4 SPEZZINO | X68: Morlupo (RM) | Y68: 058068 | Z68: LAZIO | AA68: ROMA | AB68: RM | AC68: Morlupo | AD68: Ambito Territoriale Ottimale 2 Lazio Centrale - Roma | AE68: 1202 | AF68: 1202
A69: LOMBARDIA | B69: Agnosine | C69: Agnosine (BS) | D69: ATO BRESCIA | E69: 302 | F69: 302 | G69: BRESCIA | H69: BS | I69: 017003 | J69: Agnosine | L69: ATO CI - CALORE IRPINO | M69: 1501 | N69: 1501 | O69: S | Q69: 20233 | R69: Autorità Ambito Territoriale Ottimale Ragusa "idrico" | X69: Nazzano (RM) | Y69: 058069 | Z69: LAZIO | AA69: ROMA | AB69: RM | AC69: Nazzano | AD69: Ambito Territoriale Ottimale 2 Lazio Centrale - Roma | AE69: 1202 | AF69: 1202
A70: VENETO | B70: Agordo | C70: Agordo (BL) | D70: Consiglio di Bacino "Dolomiti Bellunesi" | E70: 501 | F70: 501 | G70: BELLUNO | H70: BL | I70: 025001 | J70: Agordo | L70: ATO CO - COMO | M70: 304 | N70: 304 | O70: N | Q70: 20304 | R70: Ente d'Ambito Aquilano | X70: Nemi (RM) | Y70: 058070 | Z70: LAZIO | AA70: ROMA | AB70: RM | AC70: Nemi | AD70: Ambito Territoriale Ottimale 2 Lazio Centrale - Roma | AE70: 1202 | AF70: 1202
A71: LAZIO | B71: Agosta | C71: Agosta (RM) | D71: Ambito Territoriale Ottimale 2 Lazio Centrale - Roma | E71: 1202 | F71: 1202 | G71: ROMA | H71: RM | I71: 058002 | J71: Agosta | L71: ATO CR - CREMONA | M71: 305 | N71: 305 | O71: N | Q71: 20344 | R71: Consorzio ATO idrico 8 Siracusa | X71: Olevano Romano (RM) | Y71: 058073 | Z71: LAZIO | AA71: ROMA | AB71: RM | AC71: Olevano Romano | AD71: Ambito Territoriale Ottimale 2 Lazio Centrale - Roma | AE71: 1202 | AF71: 1202
A72: LOMBARDIA | B72: Agra | C72: Agra (VA) | D72: ATO VARESE | E72: 312 | F72: 312 | G72: VARESE | H72: VA | I72: 012001 | J72: Agra | L72: ATO GE - GENOVA | M72: 701 | N72: 701 | O72: N | Q72: 20361 | R72: Autorità Ambito Territoriale Ottimale 1 Palermo | X72: Oriolo Romano (VT) | Y72: 056041 | Z72: LAZIO | AA72: VITERBO | AB72: VT | AC72: Oriolo Romano | AD72: Ambito Territoriale Ottimale 2 Lazio Centrale - Roma | AE72: 1202 | AF72: 1202
A73: LOMBARDIA | B73: Agrate Brianza | C73: Agrate Brianza (MB) | D73: ATO MONZA E BRIANZA | E73: 313 | F73: 313 | G73: MONZA E BRIANZA | H73: MB | I73: 015003 | J73: Agrate Brianza | L73: ATO IM - IMPERIA | M73: 702 | N73: 702 | O73: N | Q73: 20426 | R73: Provincia di Savona | X73: Palestrina (RM) | Y73: 058074 | Z73: LAZIO | AA73: ROMA | AB73: RM | AC73: Palestrina | AD73: Ambito Territoriale Ottimale 2 Lazio Centrale - Roma | AE73: 1202 | AF73: 1202
A74: PIEMONTE | B74: Agrate Conturbia | C74: Agrate Conturbia (NO) | D74: ATO 1 Verbano Cusio Ossola e Pianura Novarese | E74: 101 | F74: 101 | G74: NOVARA | H74: NO | I74: 003001 | J74: Agrate Conturbia | L74: ATO LC - LECCO | M74: 306 | N74: 306 | O74: N | Q74: 20492 | R74: ATO3 RIETI | X74: Percile (RM) | Y74: 058076 | Z74: LAZIO | AA74: ROMA | AB74: RM | AC74: Percile | AD74: Ambito Territoriale Ottimale 2 Lazio Centrale - Roma | AE74: 1202 | AF74: 1202
A75: SICILIA | B75: Agrigento | C75: Agrigento (AG) | D75: CONSORZIO DI AMBITO AGRIGENTO S.I.I. | E75: 1909 | F75: 1909 | G75: AGRIGENTO | H75: AG | I75: 084001 | J75: Agrigento | L75: ATO LEMENE (Friuli Venezia Giulia-Veneto) | M75: 1 | N75: 1 | O75: N | Q75: 20519 | R75: Regione Calabria | X75: Pisoniano (RM) | Y75: 058077 | Z75: LAZIO | AA75: ROMA | AB75: RM | AC75: Pisoniano | AD75: Ambito Territoriale Ottimale 2 Lazio Centrale - Roma | AE75: 1202 | AF75: 1202
A76: CAMPANIA | B76: Agropoli | C76: Agropoli (SA) | D76: Autorità di Ambito Sele | E76: 1503 | F76: 1503 | G76: SALERNO | H76: SA | I76: 065002 | J76: Agropoli | L76: ATO LO - LODI | M76: 307 | N76: 307 | O76: N | R76: ATO 3 - MESSINA | X76: Poli (RM) | Y76: 058078 | Z76: LAZIO | AA76: ROMA | AB76: RM | AC76: Poli | AD76: Ambito Territoriale Ottimale 2 Lazio Centrale - Roma | AE76: 1202 | AF76: 1202
